Workbook

Sheet Inputs (hidden)
A1: User Inputs
F2: Prior Year | G2: 2017
B3: Filing Submissions | F3: Current Year | G3: 2018
B4: Used for plan count and issuer count summaries
G6: Prior Filings | I6: Current Filings
C7: Parent Company | D7: Legal Entity | E7: =year_current&" SERFF ID" -> 2018 SERFF ID | F7: Market | G7: Rate Table Path | H7: ActMemo Exhibits Path | I7: Rate Table Path | J7: ActMemo Exhibits Path | L7: KEY
L8: Linked Cell
L9: Hard-Coded from External
L10: Formula
L11: Input
B59: Plans by County
B60: Pulls age 21 rates by county, rating area, metal, issuer, plan ID, plan name, plan type, and exchange status
C62: Tab Name | D62: File Path
C63: Plans by County | D63: J:\Pennsylvania Insurance Department\003 CY 2018 Filings\Background and Project Management\Map and Report Information\PA 2017 Plans by County by Issuer Revised 12-8-16.xlsx

Sheet Prior Plans (hidden)
A1: PRIOR RATES FOR AGE 21, NON-TOBACCO USER, BY RATING AREA AND COUNTY
B4: Inputs Tab | C4: Inputs Tab | D4: Inputs Tab | E4: Prior Rate Tables; Plan Design Summary Tab | F4: Prior Rate Tables; Plan Design Summary Tab | G4: Prior Rate Tables; Plan Design Summary Tab | H4: Prior Rate Tables; Plan Design Summary Tab | I4: Prior Rate Tables; Plan Design Summary Tab | J4: Prior Rate Tables; Plan Design Summary Tab | BZ4: Calc | CA4: Calc | CB4: Calc | CC4: Calc | CD4: Calc | CE4: Calc | CF4: Calc | CG4: Calc | CH4: Calc | CI4: Calc | CJ4: Calc | CK4: Calc | CL4: Calc | CM4: Calc | CN4: Calc | CO4: Calc | CP4: Calc | CQ4: Calc | CR4: Calc | CS4: Calc | CT4: Calc | CU4: Calc | CV4: Calc | CW4: Calc | CX4: Calc | CY4: Calc | CZ4: Calc | DA4: Calc | DB4: Calc | DC4: Calc | DD4: Calc | DE4: Calc | DF4: Calc | DG4: Calc | DH4: Calc | DI4: Calc | DJ4: Calc | DK4: Calc | DL4: Calc | DM4: Calc | DN4: Calc | DO4: Calc | DP4: Calc | DQ4: Calc | DR4: Calc | DS4: Calc | DT4: Calc | DU4: Calc | DV4: Calc | DW4: Calc | DX4: Calc | DY4: Calc | DZ4: Calc | EA4: Calc | EB4: Calc | EC4: Calc | ED4: Calc | EE4: Calc | EF4: Calc | EG4: Calc | EH4: Calc | EI4: Calc | EJ4: Calc | EK4: Calc | EL4: Calc | EM4: Calc | EN4: Calc
BZ5: 2nd Lowest Silver Info
K6: =INDEX(Lookups!$B:$B,MATCH(K$7,Lookups!$A:$A,0),1) -> Rating Area 1 | L6: =INDEX(Lookups!$B:$B,MATCH(L$7,Lookups!$A:$A,0),1) -> Rating Area 1 | M6: =INDEX(Lookups!$B:$B,MATCH(M$7,Lookups!$A:$A,0),1) -> Rating Area 1 | N6: =INDEX(Lookups!$B:$B,MATCH(N$7,Lookups!$A:$A,0),1) -> Rating Area 1 | O6: =INDEX(Lookups!$B:$B,MATCH(O$7,Lookups!$A:$A,0),1) -> Rating Area 1 | P6: =INDEX(Lookups!$B:$B,MATCH(P$7,Lookups!$A:$A,0),1) -> Rating Area 1 | Q6: =INDEX(Lookups!$B:$B,MATCH(Q$7,Lookups!$A:$A,0),1) -> Rating Area 1 | R6: =INDEX(Lookups!$B:$B,MATCH(R$7,Lookups!$A:$A,0),1) -> Rating Area 1 | S6: =INDEX(Lookups!$B:$B,MATCH(S$7,Lookups!$A:$A,0),1) -> Rating Area 2 | T6: =INDEX(Lookups!$B:$B,MATCH(T$7,Lookups!$A:$A,0),1) -> Rating Area 2 | U6: =INDEX(Lookups!$B:$B,MATCH(U$7,Lookups!$A:$A,0),1) -> Rating Area 2 | V6: =INDEX(Lookups!$B:$B,MATCH(V$7,Lookups!$A:$A,0),1) -> Rating Area 3 | W6: =INDEX(Lookups!$B:$B,MATCH(W$7,Lookups!$A:$A,0),1) -> Rating Area 3 | X6: =INDEX(Lookups!$B:$B,MATCH(X$7,Lookups!$A:$A,0),1) -> Rating Area 3 | Y6: =INDEX(Lookups!$B:$B,MATCH(Y$7,Lookups!$A:$A,0),1) -> Rating Area 3 | Z6: =INDEX(Lookups!$B:$B,MATCH(Z$7,Lookups!$A:$A,0),1) -> Rating Area 3 | AA6: =INDEX(Lookups!$B:$B,MATCH(AA$7,Lookups!$A:$A,0),1) -> Rating Area 3 | AB6: =INDEX(Lookups!$B:$B,MATCH(AB$7,Lookups!$A:$A,0),1) -> Rating Area 3 | AC6: =INDEX(Lookups!$B:$B,MATCH(AC$7,Lookups!$A:$A,0),1) -> Rating Area 3 | AD6: =INDEX(Lookups!$B:$B,MATCH(AD$7,Lookups!$A:$A,0),1) -> Rating Area 3 | AE6: =INDEX(Lookups!$B:$B,MATCH(AE$7,Lookups!$A:$A,0),1) -> Rating Area 3 | AF6: =INDEX(Lookups!$B:$B,MATCH(AF$7,Lookups!$A:$A,0),1) -> Rating Area 3 | AG6: =INDEX(Lookups!$B:$B,MATCH(AG$7,Lookups!$A:$A,0),1) -> Rating Area 3 | AH6: =INDEX(Lookups!$B:$B,MATCH(AH$7,Lookups!$A:$A,0),1) -> Rating Area 3 | AI6: =INDEX(Lookups!$B:$B,MATCH(AI$7,Lookups!$A:$A,0),1) -> Rating Area 4 | AJ6: =INDEX(Lookups!$B:$B,MATCH(AJ$7,Lookups!$A:$A,0),1) -> Rating Area 4 | AK6: =INDEX(Lookups!$B:$B,MATCH(AK$7,Lookups!$A:$A,0),1) -> Rating Area 4 | AL6: =INDEX(Lookups!$B:$B,MATCH(AL$7,Lookups!$A:$A,0),1) -> Rating Area 4 | AM6: =INDEX(Lookups!$B:$B,MATCH(AM$7,Lookups!$A:$A,0),1) -> Rating Area 4 | AN6: =INDEX(Lookups!$B:$B,MATCH(AN$7,Lookups!$A:$A,0),1) -> Rating Area 4 | AO6: =INDEX(Lookups!$B:$B,MATCH(AO$7,Lookups!$A:$A,0),1) -> Rating Area 4 | AP6: =INDEX(Lookups!$B:$B,MATCH(AP$7,Lookups!$A:$A,0),1) -> Rating Area 4 | AQ6: =INDEX(Lookups!$B:$B,MATCH(AQ$7,Lookups!$A:$A,0),1) -> Rating Area 4 | AR6: =INDEX(Lookups!$B:$B,MATCH(AR$7,Lookups!$A:$A,0),1) -> Rating Area 4 | AS6: =INDEX(Lookups!$B:$B,MATCH(AS$7,Lookups!$A:$A,0),1) -> Rating Area 5 | AT6: =INDEX(Lookups!$B:$B,MATCH(AT$7,Lookups!$A:$A,0),1) -> Rating Area 5 | AU6: =INDEX(Lookups!$B:$B,MATCH(AU$7,Lookups!$A:$A,0),1) -> Rating Area 5 | AV6: =INDEX(Lookups!$B:$B,MATCH(AV$7,Lookups!$A:$A,0),1) -> Rating Area 5 | AW6: =INDEX(Lookups!$B:$B,MATCH(AW$7,Lookups!$A:$A,0),1) -> Rating Area 5 | AX6: =INDEX(Lookups!$B:$B,MATCH(AX$7,Lookups!$A:$A,0),1) -> Rating Area 5 | AY6: =INDEX(Lookups!$B:$B,MATCH(AY$7,Lookups!$A:$A,0),1) -> Rating Area 5 | AZ6: =INDEX(Lookups!$B:$B,MATCH(AZ$7,Lookups!$A:$A,0),1) -> Rating Area 6 | BA6: =INDEX(Lookups!$B:$B,MATCH(BA$7,Lookups!$A:$A,0),1) -> Rating Area 6 | BB6: =INDEX(Lookups!$B:$B,MATCH(BB$7,Lookups!$A:$A,0),1) -> Rating Area 6 | BC6: =INDEX(Lookups!$B:$B,MATCH(BC$7,Lookups!$A:$A,0),1) -> Rating Area 6 | BD6: =INDEX(Lookups!$B:$B,MATCH(BD$7,Lookups!$A:$A,0),1) -> Rating Area 6 | BE6: =INDEX(Lookups!$B:$B,MATCH(BE$7,Lookups!$A:$A,0),1) -> Rating Area 6 | BF6: =INDEX(Lookups!$B:$B,MATCH(BF$7,Lookups!$A:$A,0),1) -> Rating Area 6 | BG6: =INDEX(Lookups!$B:$B,MATCH(BG$7,Lookups!$A:$A,0),1) -> Rating Area 6 | BH6: =INDEX(Lookups!$B:$B,MATCH(BH$7,Lookups!$A:$A,0),1) -> Rating Area 6 | BI6: =INDEX(Lookups!$B:$B,MATCH(BI$7,Lookups!$A:$A,0),1) -> Rating Area 6 | BJ6: =INDEX(Lookups!$B:$B,MATCH(BJ$7,Lookups!$A:$A,0),1) -> Rating Area 7 | BK6: =INDEX(Lookups!$B:$B,MATCH(BK$7,Lookups!$A:$A,0),1) -> Rating Area 7 | BL6: =INDEX(Lookups!$B:$B,MATCH(BL$7,Lookups!$A:$A,0),1) -> Rating Area 7 | BM6: =INDEX(Lookups!$B:$B,MATCH(BM$7,Lookups!$A:$A,0),1) -> Rating Area 7 | BN6: =INDEX(Lookups!$B:$B,MATCH(BN$7,Lookups!$A:$A,0),1) -> Rating Area 8 | BO6: =INDEX(Lookups!$B:$B,MATCH(BO$7,Lookups!$A:$A,0),1) -> Rating Area 8 | BP6: =INDEX(Lookups!$B:$B,MATCH(BP$7,Lookups!$A:$A,0),1) -> Rating Area 8 | BQ6: =INDEX(Lookups!$B:$B,MATCH(BQ$7,Lookups!$A:$A,0),1) -> Rating Area 8 | BR6: =INDEX(Lookups!$B:$B,MATCH(BR$7,Lookups!$A:$A,0),1) -> Rating Area 8 | BS6: =INDEX(Lookups!$B:$B,MATCH(BS$7,Lookups!$A:$A,0),1) -> Rating Area 9 | BT6: =INDEX(Lookups!$B:$B,MATCH(BT$7,Lookups!$A:$A,0),1) -> Rating Area 9 | BU6: =INDEX(Lookups!$B:$B,MATCH(BU$7,Lookups!$A:$A,0),1) -> Rating Area 9 | BV6: =INDEX(Lookups!$B:$B,MATCH(BV$7,Lookups!$A:$A,0),1) -> Rating Area 9 | BW6: =INDEX(Lookups!$B:$B,MATCH(BW$7,Lookups!$A:$A,0),1) -> Rating Area 9 | BX6: =INDEX(Lookups!$B:$B,MATCH(BX$7,Lookups!$A:$A,0),1) -> Rating Area 9 | BY6: =INDEX(Lookups!$B:$B,MATCH(BY$7,Lookups!$A:$A,0),1) -> Rating Area 9 | BZ6: =INDEX(Lookups!$B:$B,MATCH(BZ$7,Lookups!$A:$A,0),1) -> Rating Area 1 | CA6: =INDEX(Lookups!$B:$B,MATCH(CA$7,Lookups!$A:$A,0),1) -> Rating Area 1 | CB6: =INDEX(Lookups!$B:$B,MATCH(CB$7,Lookups!$A:$A,0),1) -> Rating Area 1 | CC6: =INDEX(Lookups!$B:$B,MATCH(CC$7,Lookups!$A:$A,0),1) -> Rating Area 1 | CD6: =INDEX(Lookups!$B:$B,MATCH(CD$7,Lookups!$A:$A,0),1) -> Rating Area 1 | CE6: =INDEX(Lookups!$B:$B,MATCH(CE$7,Lookups!$A:$A,0),1) -> Rating Area 1 | CF6: =INDEX(Lookups!$B:$B,MATCH(CF$7,Lookups!$A:$A,0),1) -> Rating Area 1 | CG6: =INDEX(Lookups!$B:$B,MATCH(CG$7,Lookups!$A:$A,0),1) -> Rating Area 1 | CH6: =INDEX(Lookups!$B:$B,MATCH(CH$7,Lookups!$A:$A,0),1) -> Rating Area 2 | CI6: =INDEX(Lookups!$B:$B,MATCH(CI$7,Lookups!$A:$A,0),1) -> Rating Area 2 | CJ6: =INDEX(Lookups!$B:$B,MATCH(CJ$7,Lookups!$A:$A,0),1) -> Rating Area 2 | CK6: =INDEX(Lookups!$B:$B,MATCH(CK$7,Lookups!$A:$A,0),1) -> Rating Area 3 | CL6: =INDEX(Lookups!$B:$B,MATCH(CL$7,Lookups!$A:$A,0),1) -> Rating Area 3 | CM6: =INDEX(Lookups!$B:$B,MATCH(CM$7,Lookups!$A:$A,0),1) -> Rating Area 3 | CN6: =INDEX(Lookups!$B:$B,MATCH(CN$7,Lookups!$A:$A,0),1) -> Rating Area 3 | CO6: =INDEX(Lookups!$B:$B,MATCH(CO$7,Lookups!$A:$A,0),1) -> Rating Area 3 | CP6: =INDEX(Lookups!$B:$B,MATCH(CP$7,Lookups!$A:$A,0),1) -> Rating Area 3 | CQ6: =INDEX(Lookups!$B:$B,MATCH(CQ$7,Lookups!$A:$A,0),1) -> Rating Area 3 | CR6: =INDEX(Lookups!$B:$B,MATCH(CR$7,Lookups!$A:$A,0),1) -> Rating Area 3 | CS6: =INDEX(Lookups!$B:$B,MATCH(CS$7,Lookups!$A:$A,0),1) -> Rating Area 3 | CT6: =INDEX(Lookups!$B:$B,MATCH(CT$7,Lookups!$A:$A,0),1) -> Rating Area 3 | CU6: =INDEX(Lookups!$B:$B,MATCH(CU$7,Lookups!$A:$A,0),1) -> Rating Area 3 | CV6: =INDEX(Lookups!$B:$B,MATCH(CV$7,Lookups!$A:$A,0),1) -> Rating Area 3 | CW6: =INDEX(Lookups!$B:$B,MATCH(CW$7,Lookups!$A:$A,0),1) -> Rating Area 3 | CX6: =INDEX(Lookups!$B:$B,MATCH(CX$7,Lookups!$A:$A,0),1) -> Rating Area 4 | CY6: =INDEX(Lookups!$B:$B,MATCH(CY$7,Lookups!$A:$A,0),1) -> Rating Area 4 | CZ6: =INDEX(Lookups!$B:$B,MATCH(CZ$7,Lookups!$A:$A,0),1) -> Rating Area 4 | DA6: =INDEX(Lookups!$B:$B,MATCH(DA$7,Lookups!$A:$A,0),1) -> Rating Area 4 | DB6: =INDEX(Lookups!$B:$B,MATCH(DB$7,Lookups!$A:$A,0),1) -> Rating Area 4 | DC6: =INDEX(Lookups!$B:$B,MATCH(DC$7,Lookups!$A:$A,0),1) -> Rating Area 4 | DD6: =INDEX(Lookups!$B:$B,MATCH(DD$7,Lookups!$A:$A,0),1) -> Rating Area 4 | DE6: =INDEX(Lookups!$B:$B,MATCH(DE$7,Lookups!$A:$A,0),1) -> Rating Area 4 | DF6: =INDEX(Lookups!$B:$B,MATCH(DF$7,Lookups!$A:$A,0),1) -> Rating Area 4 | DG6: =INDEX(Lookups!$B:$B,MATCH(DG$7,Lookups!$A:$A,0),1) -> Rating Area 4 | DH6: =INDEX(Lookups!$B:$B,MATCH(DH$7,Lookups!$A:$A,0),1) -> Rating Area 5 | DI6: =INDEX(Lookups!$B:$B,MATCH(DI$7,Lookups!$A:$A,0),1) -> Rating Area 5 | DJ6: =INDEX(Lookups!$B:$B,MATCH(DJ$7,Lookups!$A:$A,0),1) -> Rating Area 5 | DK6: =INDEX(Lookups!$B:$B,MATCH(DK$7,Lookups!$A:$A,0),1) -> Rating Area 5 | DL6: =INDEX(Lookups!$B:$B,MATCH(DL$7,Lookups!$A:$A,0),1) -> Rating Area 5 | DM6: =INDEX(Lookups!$B:$B,MATCH(DM$7,Lookups!$A:$A,0),1) -> Rating Area 5 | DN6: =INDEX(Lookups!$B:$B,MATCH(DN$7,Lookups!$A:$A,0),1) -> Rating Area 5 | DO6: =INDEX(Lookups!$B:$B,MATCH(DO$7,Lookups!$A:$A,0),1) -> Rating Area 6 | DP6: =INDEX(Lookups!$B:$B,MATCH(DP$7,Lookups!$A:$A,0),1) -> Rating Area 6 | DQ6: =INDEX(Lookups!$B:$B,MATCH(DQ$7,Lookups!$A:$A,0),1) -> Rating Area 6 | DR6: =INDEX(Lookups!$B:$B,MATCH(DR$7,Lookups!$A:$A,0),1) -> Rating Area 6 | DS6: =INDEX(Lookups!$B:$B,MATCH(DS$7,Lookups!$A:$A,0),1) -> Rating Area 6 | DT6: =INDEX(Lookups!$B:$B,MATCH(DT$7,Lookups!$A:$A,0),1) -> Rating Area 6 | DU6: =INDEX(Lookups!$B:$B,MATCH(DU$7,Lookups!$A:$A,0),1) -> Rating Area 6 | DV6: =INDEX(Lookups!$B:$B,MATCH(DV$7,Lookups!$A:$A,0),1) -> Rating Area 6 | DW6: =INDEX(Lookups!$B:$B,MATCH(DW$7,Lookups!$A:$A,0),1) -> Rating Area 6 | DX6: =INDEX(Lookups!$B:$B,MATCH(DX$7,Lookups!$A:$A,0),1) -> Rating Area 6 | DY6: =INDEX(Lookups!$B:$B,MATCH(DY$7,Lookups!$A:$A,0),1) -> Rating Area 7 | DZ6: =INDEX(Lookups!$B:$B,MATCH(DZ$7,Lookups!$A:$A,0),1) -> Rating Area 7 | EA6: =INDEX(Lookups!$B:$B,MATCH(EA$7,Lookups!$A:$A,0),1) -> Rating Area 7 | EB6: =INDEX(Lookups!$B:$B,MATCH(EB$7,Lookups!$A:$A,0),1) -> Rating Area 7 | EC6: =INDEX(Lookups!$B:$B,MATCH(EC$7,Lookups!$A:$A,0),1) -> Rating Area 8 | ED6: =INDEX(Lookups!$B:$B,MATCH(ED$7,Lookups!$A:$A,0),1) -> Rating Area 8 | EE6: =INDEX(Lookups!$B:$B,MATCH(EE$7,Lookups!$A:$A,0),1) -> Rating Area 8 | EF6: =INDEX(Lookups!$B:$B,MATCH(EF$7,Lookups!$A:$A,0),1) -> Rating Area 8 | EG6: =INDEX(Lookups!$B:$B,MATCH(EG$7,Lookups!$A:$A,0),1) -> Rating Area 8 | EH6: =INDEX(Lookups!$B:$B,MATCH(EH$7,Lookups!$A:$A,0),1) -> Rating Area 9 | EI6: =INDEX(Lookups!$B:$B,MATCH(EI$7,Lookups!$A:$A,0),1) -> Rating Area 9 | EJ6: =INDEX(Lookups!$B:$B,MATCH(EJ$7,Lookups!$A:$A,0),1) -> Rating Area 9 | EK6: =INDEX(Lookups!$B:$B,MATCH(EK$7,Lookups!$A:$A,0),1) -> Rating Area 9 | EL6: =INDEX(Lookups!$B:$B,MATCH(EL$7,Lookups!$A:$A,0),1) -> Rating Area 9 | EM6: =INDEX(Lookups!$B:$B,MATCH(EM$7,Lookups!$A:$A,0),1) -> Rating Area 9 | EN6: =INDEX(Lookups!$B:$B,MATCH(EN$7,Lookups!$A:$A,0),1) -> Rating Area 9
B7: Parent Company | C7: Legal Entity | D7: Market | E7: HIOS Plan ID | F7: Plan Marketing Name | G7: Product | H7: Metal | I7: On/Off Exchange | J7: Counties Excluded | K7: Clarion | L7: Crawford | M7: Erie | N7: Forest | O7: McKean | P7: Mercer | Q7: Venango | R7: Warren | S7: Cameron | T7: Elk | U7: Potter | V7: Bradford | W7: Carbon | X7: Clinton | Y7: Lackawanna | Z7: Luzerne | AA7: Lycoming | AB7: Monroe | AC7: Pike | AD7: Sullivan | AE7: Susquehanna | AF7: Tioga | AG7: Wayne | AH7: Wyoming | AI7: Allegheny | AJ7: Armstrong | AK7: Beaver | AL7: Butler | AM7: Fayette | AN7: Greene | AO7: Indiana | AP7: Lawrence | AQ7: Washington | AR7: Westmoreland | AS7: Bedford | AT7: Blair | AU7: Cambria | AV7: Clearfield | AW7: Huntingdon | AX7: Jefferson | AY7: Somerset | AZ7: Centre | BA7: Columbia | BB7: Lehigh | BC7: Mifflin | BD7: Montour | BE7: Northampton | BF7: Northumberland | BG7: Schuylkill | BH7: Snyder | BI7: Union | BJ7: Adams | BK7: Berks | BL7: Lancaster | BM7: York | BN7: Bucks | BO7: Chester | BP7: Delaware | BQ7: Montgomery | BR7: Philadelphia | BS7: Cumberland | BT7: Dauphin | BU7: Franklin | BV7: Fulton | BW7: Juniata | BX7: Lebanon | BY7: Perry | BZ7: Clarion | CA7: Crawford | CB7: Erie | CC7: Forest | CD7: McKean | CE7: Mercer | CF7: Venango | CG7: Warren | CH7: Cameron | CI7: Elk | CJ7: Potter | CK7: Bradford | CL7: Carbon | CM7: Clinton | CN7: Lackawanna | CO7: Luzerne | CP7: Lycoming | CQ7: Monroe | CR7: Pike | CS7: Sullivan | CT7: Susquehanna | CU7: Tioga | CV7: Wayne | CW7: Wyoming | CX7: Allegheny | CY7: Armstrong | CZ7: Beaver | DA7: Butler | DB7: Fayette | DC7: Greene | DD7: Indiana | DE7: Lawrence | DF7: Washington | DG7: Westmoreland | DH7: Bedford | DI7: Blair | DJ7: Cambria | DK7: Clearfield | DL7: Huntingdon | DM7: Jefferson | DN7: Somerset | DO7: Centre | DP7: Columbia | DQ7: Lehigh | DR7: Mifflin | DS7: Montour | DT7: Northampton | DU7: Northumberland | DV7: Schuylkill | DW7: Snyder | DX7: Union | DY7: Adams | DZ7: Berks | EA7: Lancaster | EB7: York | EC7: Bucks | ED7: Chester | EE7: Delaware | EF7: Montgomery | EG7: Philadelphia | EH7: Cumberland | EI7: Dauphin | EJ7: Franklin | EK7: Fulton | EL7: Juniata | EM7: Lebanon | EN7: Perry
B8: IBC | C8: QCC | D8: Individual | E8: 31609PA0070001 | F8: Personal Choice PPO Platinum | G8: PPO | H8: Platinum | I8: On | K8: 0 | L8: 0 | M8: 0 | N8: 0 | O8: 0 | P8: 0 | Q8: 0 | R8: 0 | S8: 0 | T8: 0 | U8: 0 | V8: 0 | W8: 0 | X8: 0 | Y8: 0 | Z8: 0 | AA8: 0 | AB8: 0 | AC8: 0 | AD8: 0 | AE8: 0 | AF8: 0 | AG8: 0 | AH8: 0 | AI8: 0 | AJ8: 0 | AK8: 0 | AL8: 0 | AM8: 0 | AN8: 0 | AO8: 0 | AP8: 0 | AQ8: 0 | AR8: 0 | AS8: 0 | AT8: 0 | AU8: 0 | AV8: 0 | AW8: 0 | AX8: 0 | AY8: 0 | AZ8: 0 | BA8: 0 | BB8: 0 | BC8: 0 | BD8: 0 | BE8: 0 | BF8: 0 | BG8: 0 | BH8: 0 | BI8: 0 | BJ8: 0 | BK8: 0 | BL8: 0 | BM8: 0 | BN8: 620.66 | BO8: 620.66 | BP8: 620.66 | BQ8: 620.66 | BR8: 620.66 | BS8: 0 | BT8: 0 | BU8: 0 | BV8: 0 | BW8: 0 | BX8: 0 | BY8: 0 | BZ8: =IF(OR($H8<>"Silver",K8=0),0,IF(K8=MIN(IF(($H$8:$H$5000="Silver")*($D$8:$D$5000=$D8)*(K$8:K$5000>0),K$8:K$5000)),0,K8)) -> 0 | CA8: =IF(OR($H8<>"Silver",L8=0),0,IF(L8=MIN(IF(($H$8:$H$5000="Silver")*($D$8:$D$5000=$D8)*(L$8:L$5000>0),L$8:L$5000)),0,L8)) -> 0 | CB8: =IF(OR($H8<>"Silver",M8=0),0,IF(M8=MIN(IF(($H$8:$H$5000="Silver")*($D$8:$D$5000=$D8)*(M$8:M$5000>0),M$8:M$5000)),0,M8)) -> 0 | CC8: =IF(OR($H8<>"Silver",N8=0),0,IF(N8=MIN(IF(($H$8:$H$5000="Silver")*($D$8:$D$5000=$D8)*(N$8:N$5000>0),N$8:N$5000)),0,N8)) -> 0 | CD8: =IF(OR($H8<>"Silver",O8=0),0,IF(O8=MIN(IF(($H$8:$H$5000="Silver")*($D$8:$D$5000=$D8)*(O$8:O$5000>0),O$8:O$5000)),0,O8)) -> 0 | CE8: =IF(OR($H8<>"Silver",P8=0),0,IF(P8=MIN(IF(($H$8:$H$5000="Silver")*($D$8:$D$5000=$D8)*(P$8:P$5000>0),P$8:P$5000)),0,P8)) -> 0 | CF8: =IF(OR($H8<>"Silver",Q8=0),0,IF(Q8=MIN(IF(($H$8:$H$5000="Silver")*($D$8:$D$5000=$D8)*(Q$8:Q$5000>0),Q$8:Q$5000)),0,Q8)) -> 0 | CG8: =IF(OR($H8<>"Silver",R8=0),0,IF(R8=MIN(IF(($H$8:$H$5000="Silver")*($D$8:$D$5000=$D8)*(R$8:R$5000>0),R$8:R$5000)),0,R8)) -> 0 | CH8: =IF(OR($H8<>"Silver",S8=0),0,IF(S8=MIN(IF(($H$8:$H$5000="Silver")*($D$8:$D$5000=$D8)*(S$8:S$5000>0),S$8:S$5000)),0,S8)) -> 0 | CI8: =IF(OR($H8<>"Silver",T8=0),0,IF(T8=MIN(IF(($H$8:$H$5000="Silver")*($D$8:$D$5000=$D8)*(T$8:T$5000>0),T$8:T$5000)),0,T8)) -> 0 | CJ8: =IF(OR($H8<>"Silver",U8=0),0,IF(U8=MIN(IF(($H$8:$H$5000="Silver")*($D$8:$D$5000=$D8)*(U$8:U$5000>0),U$8:U$5000)),0,U8)) -> 0 | CK8: =IF(OR($H8<>"Silver",V8=0),0,IF(V8=MIN(IF(($H$8:$H$5000="Silver")*($D$8:$D$5000=$D8)*(V$8:V$5000>0),V$8:V$5000)),0,V8)) -> 0 | CL8: =IF(OR($H8<>"Silver",W8=0),0,IF(W8=MIN(IF(($H$8:$H$5000="Silver")*($D$8:$D$5000=$D8)*(W$8:W$5000>0),W$8:W$5000)),0,W8)) -> 0 | CM8: =IF(OR($H8<>"Silver",X8=0),0,IF(X8=MIN(IF(($H$8:$H$5000="Silver")*($D$8:$D$5000=$D8)*(X$8:X$5000>0),X$8:X$5000)),0,X8)) -> 0 | CN8: =IF(OR($H8<>"Silver",Y8=0),0,IF(Y8=MIN(IF(($H$8:$H$5000="Silver")*($D$8:$D$5000=$D8)*(Y$8:Y$5000>0),Y$8:Y$5000)),0,Y8)) -> 0 | CO8: =IF(OR($H8<>"Silver",Z8=0),0,IF(Z8=MIN(IF(($H$8:$H$5000="Silver")*($D$8:$D$5000=$D8)*(Z$8:Z$5000>0),Z$8:Z$5000)),0,Z8)) -> 0 | CP8: =IF(OR($H8<>"Silver",AA8=0),0,IF(AA8=MIN(IF(($H$8:$H$5000="Silver")*($D$8:$D$5000=$D8)*(AA$8:AA$5000>0),AA$8:AA$5000)),0,AA8)) -> 0 | CQ8: =IF(OR($H8<>"Silver",AB8=0),0,IF(AB8=MIN(IF(($H$8:$H$5000="Silver")*($D$8:$D$5000=$D8)*(AB$8:AB$5000>0),AB$8:AB$5000)),0,AB8)) -> 0 | CR8: =IF(OR($H8<>"Silver",AC8=0),0,IF(AC8=MIN(IF(($H$8:$H$5000="Silver")*($D$8:$D$5000=$D8)*(AC$8:AC$5000>0),AC$8:AC$5000)),0,AC8)) -> 0 | CS8: =IF(OR($H8<>"Silver",AD8=0),0,IF(AD8=MIN(IF(($H$8:$H$5000="Silver")*($D$8:$D$5000=$D8)*(AD$8:AD$5000>0),AD$8:AD$5000)),0,AD8)) -> 0 | CT8: =IF(OR($H8<>"Silver",AE8=0),0,IF(AE8=MIN(IF(($H$8:$H$5000="Silver")*($D$8:$D$5000=$D8)*(AE$8:AE$5000>0),AE$8:AE$5000)),0,AE8)) -> 0 | CU8: =IF(OR($H8<>"Silver",AF8=0),0,IF(AF8=MIN(IF(($H$8:$H$5000="Silver")*($D$8:$D$5000=$D8)*(AF$8:AF$5000>0),AF$8:AF$5000)),0,AF8)) -> 0 | CV8: =IF(OR($H8<>"Silver",AG8=0),0,IF(AG8=MIN(IF(($H$8:$H$5000="Silver")*($D$8:$D$5000=$D8)*(AG$8:AG$5000>0),AG$8:AG$5000)),0,AG8)) -> 0 | CW8: =IF(OR($H8<>"Silver",AH8=0),0,IF(AH8=MIN(IF(($H$8:$H$5000="Silver")*($D$8:$D$5000=$D8)*(AH$8:AH$5000>0),AH$8:AH$5000)),0,AH8)) -> 0 | CX8: =IF(OR($H8<>"Silver",AI8=0),0,IF(AI8=MIN(IF(($H$8:$H$5000="Silver")*($D$8:$D$5000=$D8)*(AI$8:AI$5000>0),AI$8:AI$5000)),0,AI8)) -> 0 | CY8: =IF(OR($H8<>"Silver",AJ8=0),0,IF(AJ8=MIN(IF(($H$8:$H$5000="Silver")*($D$8:$D$5000=$D8)*(AJ$8:AJ$5000>0),AJ$8:AJ$5000)),0,AJ8)) -> 0 | CZ8: =IF(OR($H8<>"Silver",AK8=0),0,IF(AK8=MIN(IF(($H$8:$H$5000="Silver")*($D$8:$D$5000=$D8)*(AK$8:AK$5000>0),AK$8:AK$5000)),0,AK8)) -> 0 | DA8: =IF(OR($H8<>"Silver",AL8=0),0,IF(AL8=MIN(IF(($H$8:$H$5000="Silver")*($D$8:$D$5000=$D8)*(AL$8:AL$5000>0),AL$8:AL$5000)),0,AL8)) -> 0 | DB8: =IF(OR($H8<>"Silver",AM8=0),0,IF(AM8=MIN(IF(($H$8:$H$5000="Silver")*($D$8:$D$5000=$D8)*(AM$8:AM$5000>0),AM$8:AM$5000)),0,AM8)) -> 0 | DC8: =IF(OR($H8<>"Silver",AN8=0),0,IF(AN8=MIN(IF(($H$8:$H$5000="Silver")*($D$8:$D$5000=$D8)*(AN$8:AN$5000>0),AN$8:AN$5000)),0,AN8)) -> 0 | DD8: =IF(OR($H8<>"Silver",AO8=0),0,IF(AO8=MIN(IF(($H$8:$H$5000="Silver")*($D$8:$D$5000=$D8)*(AO$8:AO$5000>0),AO$8:AO$5000)),0,AO8)) -> 0 | DE8: =IF(OR($H8<>"Silver",AP8=0),0,IF(AP8=MIN(IF(($H$8:$H$5000="Silver")*($D$8:$D$5000=$D8)*(AP$8:AP$5000>0),AP$8:AP$5000)),0,AP8)) -> 0 | DF8: =IF(OR($H8<>"Silver",AQ8=0),0,IF(AQ8=MIN(IF(($H$8:$H$5000="Silver")*($D$8:$D$5000=$D8)*(AQ$8:AQ$5000>0),AQ$8:AQ$5000)),0,AQ8)) -> 0 | DG8: =IF(OR($H8<>"Silver",AR8=0),0,IF(AR8=MIN(IF(($H$8:$H$5000="Silver")*($D$8:$D$5000=$D8)*(AR$8:AR$5000>0),AR$8:AR$5000)),0,AR8)) -> 0 | DH8: =IF(OR($H8<>"Silver",AS8=0),0,IF(AS8=MIN(IF(($H$8:$H$5000="Silver")*($D$8:$D$5000=$D8)*(AS$8:AS$5000>0),AS$8:AS$5000)),0,AS8)) -> 0 | DI8: =IF(OR($H8<>"Silver",AT8=0),0,IF(AT8=MIN(IF(($H$8:$H$5000="Silver")*($D$8:$D$5000=$D8)*(AT$8:AT$5000>0),AT$8:AT$5000)),0,AT8)) -> 0 | DJ8: =IF(OR($H8<>"Silver",AU8=0),0,IF(AU8=MIN(IF(($H$8:$H$5000="Silver")*($D$8:$D$5000=$D8)*(AU$8:AU$5000>0),AU$8:AU$5000)),0,AU8)) -> 0 | DK8: =IF(OR($H8<>"Silver",AV8=0),0,IF(AV8=MIN(IF(($H$8:$H$5000="Silver")*($D$8:$D$5000=$D8)*(AV$8:AV$5000>0),AV$8:AV$5000)),0,AV8)) -> 0 | DL8: =IF(OR($H8<>"Silver",AW8=0),0,IF(AW8=MIN(IF(($H$8:$H$5000="Silver")*($D$8:$D$5000=$D8)*(AW$8:AW$5000>0),AW$8:AW$5000)),0,AW8)) -> 0 | DM8: =IF(OR($H8<>"Silver",AX8=0),0,IF(AX8=MIN(IF(($H$8:$H$5000="Silver")*($D$8:$D$5000=$D8)*(AX$8:AX$5000>0),AX$8:AX$5000)),0,AX8)) -> 0 | DN8: =IF(OR($H8<>"Silver",AY8=0),0,IF(AY8=MIN(IF(($H$8:$H$5000="Silver")*($D$8:$D$5000=$D8)*(AY$8:AY$5000>0),AY$8:AY$5000)),0,AY8)) -> 0 | DO8: =IF(OR($H8<>"Silver",AZ8=0),0,IF(AZ8=MIN(IF(($H$8:$H$5000="Silver")*($D$8:$D$5000=$D8)*(AZ$8:AZ$5000>0),AZ$8:AZ$5000)),0,AZ8)) -> 0 | DP8: =IF(OR($H8<>"Silver",BA8=0),0,IF(BA8=MIN(IF(($H$8:$H$5000="Silver")*($D$8:$D$5000=$D8)*(BA$8:BA$5000>0),BA$8:BA$5000)),0,BA8)) -> 0 | DQ8: =IF(OR($H8<>"Silver",BB8=0),0,IF(BB8=MIN(IF(($H$8:$H$5000="Silver")*($D$8:$D$5000=$D8)*(BB$8:BB$5000>0),BB$8:BB$5000)),0,BB8)) -> 0 | DR8: =IF(OR($H8<>"Silver",BC8=0),0,IF(BC8=MIN(IF(($H$8:$H$5000="Silver")*($D$8:$D$5000=$D8)*(BC$8:BC$5000>0),BC$8:BC$5000)),0,BC8)) -> 0 | DS8: =IF(OR($H8<>"Silver",BD8=0),0,IF(BD8=MIN(IF(($H$8:$H$5000="Silver")*($D$8:$D$5000=$D8)*(BD$8:BD$5000>0),BD$8:BD$5000)),0,BD8)) -> 0 | DT8: =IF(OR($H8<>"Silver",BE8=0),0,IF(BE8=MIN(IF(($H$8:$H$5000="Silver")*($D$8:$D$5000=$D8)*(BE$8:BE$5000>0),BE$8:BE$5000)),0,BE8)) -> 0 | DU8: =IF(OR($H8<>"Silver",BF8=0),0,IF(BF8=MIN(IF(($H$8:$H$5000="Silver")*($D$8:$D$5000=$D8)*(BF$8:BF$5000>0),BF$8:BF$5000)),0,BF8)) -> 0 | DV8: =IF(OR($H8<>"Silver",BG8=0),0,IF(BG8=MIN(IF(($H$8:$H$5000="Silver")*($D$8:$D$5000=$D8)*(BG$8:BG$5000>0),BG$8:BG$5000)),0,BG8)) -> 0 | DW8: =IF(OR($H8<>"Silver",BH8=0),0,IF(BH8=MIN(IF(($H$8:$H$5000="Silver")*($D$8:$D$5000=$D8)*(BH$8:BH$5000>0),BH$8:BH$5000)),0,BH8)) -> 0 | DX8: =IF(OR($H8<>"Silver",BI8=0),0,IF(BI8=MIN(IF(($H$8:$H$5000="Silver")*($D$8:$D$5000=$D8)*(BI$8:BI$5000>0),BI$8:BI$5000)),0,BI8)) -> 0 | DY8: =IF(OR($H8<>"Silver",BJ8=0),0,IF(BJ8=MIN(IF(($H$8:$H$5000="Silver")*($D$8:$D$5000=$D8)*(BJ$8:BJ$5000>0),BJ$8:BJ$5000)),0,BJ8)) -> 0 | DZ8: =IF(OR($H8<>"Silver",BK8=0),0,IF(BK8=MIN(IF(($H$8:$H$5000="Silver")*($D$8:$D$5000=$D8)*(BK$8:BK$5000>0),BK$8:BK$5000)),0,BK8)) -> 0 | EA8: =IF(OR($H8<>"Silver",BL8=0),0,IF(BL8=MIN(IF(($H$8:$H$5000="Silver")*($D$8:$D$5000=$D8)*(BL$8:BL$5000>0),BL$8:BL$5000)),0,BL8)) -> 0 | EB8: =IF(OR($H8<>"Silver",BM8=0),0,IF(BM8=MIN(IF(($H$8:$H$5000="Silver")*($D$8:$D$5000=$D8)*(BM$8:BM$5000>0),BM$8:BM$5000)),0,BM8)) -> 0 | EC8: =IF(OR($H8<>"Silver",BN8=0),0,IF(BN8=MIN(IF(($H$8:$H$5000="Silver")*($D$8:$D$5000=$D8)*(BN$8:BN$5000>0),BN$8:BN$5000)),0,BN8)) -> 0 | ED8: =IF(OR($H8<>"Silver",BO8=0),0,IF(BO8=MIN(IF(($H$8:$H$5000="Silver")*($D$8:$D$5000=$D8)*(BO$8:BO$5000>0),BO$8:BO$5000)),0,BO8)) -> 0 | EE8: =IF(OR($H8<>"Silver",BP8=0),0,IF(BP8=MIN(IF(($H$8:$H$5000="Silver")*($D$8:$D$5000=$D8)*(BP$8:BP$5000>0),BP$8:BP$5000)),0,BP8)) -> 0 | EF8: =IF(OR($H8<>"Silver",BQ8=0),0,IF(BQ8=MIN(IF(($H$8:$H$5000="Silver")*($D$8:$D$5000=$D8)*(BQ$8:BQ$5000>0),BQ$8:BQ$5000)),0,BQ8)) -> 0 | EG8: =IF(OR($H8<>"Silver",BR8=0),0,IF(BR8=MIN(IF(($H$8:$H$5000="Silver")*($D$8:$D$5000=$D8)*(BR$8:BR$5000>0),BR$8:BR$5000)),0,BR8)) -> 0 | EH8: =IF(OR($H8<>"Silver",BS8=0),0,IF(BS8=MIN(IF(($H$8:$H$5000="Silver")*($D$8:$D$5000=$D8)*(BS$8:BS$5000>0),BS$8:BS$5000)),0,BS8)) -> 0 | EI8: =IF(OR($H8<>"Silver",BT8=0),0,IF(BT8=MIN(IF(($H$8:$H$5000="Silver")*($D$8:$D$5000=$D8)*(BT$8:BT$5000>0),BT$8:BT$5000)),0,BT8)) -> 0 | EJ8: =IF(OR($H8<>"Silver",BU8=0),0,IF(BU8=MIN(IF(($H$8:$H$5000="Silver")*($D$8:$D$5000=$D8)*(BU$8:BU$5000>0),BU$8:BU$5000)),0,BU8)) -> 0 | EK8: =IF(OR($H8<>"Silver",BV8=0),0,IF(BV8=MIN(IF(($H$8:$H$5000="Silver")*($D$8:$D$5000=$D8)*(BV$8:BV$5000>0),BV$8:BV$5000)),0,BV8)) -> 0 | EL8: =IF(OR($H8<>"Silver",BW8=0),0,IF(BW8=MIN(IF(($H$8:$H$5000="Silver")*($D$8:$D$5000=$D8)*(BW$8:BW$5000>0),BW$8:BW$5000)),0,BW8)) -> 0 | EM8: =IF(OR($H8<>"Silver",BX8=0),0,IF(BX8=MIN(IF(($H$8:$H$5000="Silver")*($D$8:$D$5000=$D8)*(BX$8:BX$5000>0),BX$8:BX$5000)),0,BX8)) -> 0 | EN8: =IF(OR($H8<>"Silver",BY8=0),0,IF(BY8=MIN(IF(($H$8:$H$5000="Silver")*($D$8:$D$5000=$D8)*(BY$8:BY$5000>0),BY$8:BY$5000)),0,BY8)) -> 0
B9: IBC | C9: QCC | D9: Individual | E9: 31609PA0070002 | F9: Personal Choice PPO Gold | G9: PPO | H9: Gold | I9: On | K9: 0 | L9: 0 | M9: 0 | N9: 0 | O9: 0 | P9: 0 | Q9: 0 | R9: 0 | S9: 0 | T9: 0 | U9: 0 | V9: 0 | W9: 0 | X9: 0 | Y9: 0 | Z9: 0 | AA9: 0 | AB9: 0 | AC9: 0 | AD9: 0 | AE9: 0 | AF9: 0 | AG9: 0 | AH9: 0 | AI9: 0 | AJ9: 0 | AK9: 0 | AL9: 0 | AM9: 0 | AN9: 0 | AO9: 0 | AP9: 0 | AQ9: 0 | AR9: 0 | AS9: 0 | AT9: 0 | AU9: 0 | AV9: 0 | AW9: 0 | AX9: 0 | AY9: 0 | AZ9: 0 | BA9: 0 | BB9: 0 | BC9: 0 | BD9: 0 | BE9: 0 | BF9: 0 | BG9: 0 | BH9: 0 | BI9: 0 | BJ9: 0 | BK9: 0 | BL9: 0 | BM9: 0 | BN9: 469.33 | BO9: 469.33 | BP9: 469.33 | BQ9: 469.33 | BR9: 469.33 | BS9: 0 | BT9: 0 | BU9: 0 | BV9: 0 | BW9: 0 | BX9: 0 | BY9: 0 | BZ9: =IF(OR($H9<>"Silver",K9=0),0,IF(K9=MIN(IF(($H$8:$H$5000="Silver")*($D$8:$D$5000=$D9)*(K$8:K$5000>0),K$8:K$5000)),0,K9)) -> 0 | CA9: =IF(OR($H9<>"Silver",L9=0),0,IF(L9=MIN(IF(($H$8:$H$5000="Silver")*($D$8:$D$5000=$D9)*(L$8:L$5000>0),L$8:L$5000)),0,L9)) -> 0 | CB9: =IF(OR($H9<>"Silver",M9=0),0,IF(M9=MIN(IF(($H$8:$H$5000="Silver")*($D$8:$D$5000=$D9)*(M$8:M$5000>0),M$8:M$5000)),0,M9)) -> 0 | CC9: =IF(OR($H9<>"Silver",N9=0),0,IF(N9=MIN(IF(($H$8:$H$5000="Silver")*($D$8:$D$5000=$D9)*(N$8:N$5000>0),N$8:N$5000)),0,N9)) -> 0 | CD9: =IF(OR($H9<>"Silver",O9=0),0,IF(O9=MIN(IF(($H$8:$H$5000="Silver")*($D$8:$D$5000=$D9)*(O$8:O$5000>0),O$8:O$5000)),0,O9)) -> 0 | CE9: =IF(OR($H9<>"Silver",P9=0),0,IF(P9=MIN(IF(($H$8:$H$5000="Silver")*($D$8:$D$5000=$D9)*(P$8:P$5000>0),P$8:P$5000)),0,P9)) -> 0 | CF9: =IF(OR($H9<>"Silver",Q9=0),0,IF(Q9=MIN(IF(($H$8:$H$5000="Silver")*($D$8:$D$5000=$D9)*(Q$8:Q$5000>0),Q$8:Q$5000)),0,Q9)) -> 0 | CG9: =IF(OR($H9<>"Silver",R9=0),0,IF(R9=MIN(IF(($H$8:$H$5000="Silver")*($D$8:$D$5000=$D9)*(R$8:R$5000>0),R$8:R$5000)),0,R9)) -> 0 | CH9: =IF(OR($H9<>"Silver",S9=0),0,IF(S9=MIN(IF(($H$8:$H$5000="Silver")*($D$8:$D$5000=$D9)*(S$8:S$5000>0),S$8:S$5000)),0,S9)) -> 0 | CI9: =IF(OR($H9<>"Silver",T9=0),0,IF(T9=MIN(IF(($H$8:$H$5000="Silver")*($D$8:$D$5000=$D9)*(T$8:T$5000>0),T$8:T$5000)),0,T9)) -> 0 | CJ9: =IF(OR($H9<>"Silver",U9=0),0,IF(U9=MIN(IF(($H$8:$H$5000="Silver")*($D$8:$D$5000=$D9)*(U$8:U$5000>0),U$8:U$5000)),0,U9)) -> 0 | CK9: =IF(OR($H9<>"Silver",V9=0),0,IF(V9=MIN(IF(($H$8:$H$5000="Silver")*($D$8:$D$5000=$D9)*(V$8:V$5000>0),V$8:V$5000)),0,V9)) -> 0 | CL9: =IF(OR($H9<>"Silver",W9=0),0,IF(W9=MIN(IF(($H$8:$H$5000="Silver")*($D$8:$D$5000=$D9)*(W$8:W$5000>0),W$8:W$5000)),0,W9)) -> 0 | CM9: =IF(OR($H9<>"Silver",X9=0),0,IF(X9=MIN(IF(($H$8:$H$5000="Silver")*($D$8:$D$5000=$D9)*(X$8:X$5000>0),X$8:X$5000)),0,X9)) -> 0 | CN9: =IF(OR($H9<>"Silver",Y9=0),0,IF(Y9=MIN(IF(($H$8:$H$5000="Silver")*($D$8:$D$5000=$D9)*(Y$8:Y$5000>0),Y$8:Y$5000)),0,Y9)) -> 0 | CO9: =IF(OR($H9<>"Silver",Z9=0),0,IF(Z9=MIN(IF(($H$8:$H$5000="Silver")*($D$8:$D$5000=$D9)*(Z$8:Z$5000>0),Z$8:Z$5000)),0,Z9)) -> 0 | CP9: =IF(OR($H9<>"Silver",AA9=0),0,IF(AA9=MIN(IF(($H$8:$H$5000="Silver")*($D$8:$D$5000=$D9)*(AA$8:AA$5000>0),AA$8:AA$5000)),0,AA9)) -> 0 | CQ9: =IF(OR($H9<>"Silver",AB9=0),0,IF(AB9=MIN(IF(($H$8:$H$5000="Silver")*($D$8:$D$5000=$D9)*(AB$8:AB$5000>0),AB$8:AB$5000)),0,AB9)) -> 0 | CR9: =IF(OR($H9<>"Silver",AC9=0),0,IF(AC9=MIN(IF(($H$8:$H$5000="Silver")*($D$8:$D$5000=$D9)*(AC$8:AC$5000>0),AC$8:AC$5000)),0,AC9)) -> 0 | CS9: =IF(OR($H9<>"Silver",AD9=0),0,IF(AD9=MIN(IF(($H$8:$H$5000="Silver")*($D$8:$D$5000=$D9)*(AD$8:AD$5000>0),AD$8:AD$5000)),0,AD9)) -> 0 | CT9: =IF(OR($H9<>"Silver",AE9=0),0,IF(AE9=MIN(IF(($H$8:$H$5000="Silver")*($D$8:$D$5000=$D9)*(AE$8:AE$5000>0),AE$8:AE$5000)),0,AE9)) -> 0 | CU9: =IF(OR($H9<>"Silver",AF9=0),0,IF(AF9=MIN(IF(($H$8:$H$5000="Silver")*($D$8:$D$5000=$D9)*(AF$8:AF$5000>0),AF$8:AF$5000)),0,AF9)) -> 0 | CV9: =IF(OR($H9<>"Silver",AG9=0),0,IF(AG9=MIN(IF(($H$8:$H$5000="Silver")*($D$8:$D$5000=$D9)*(AG$8:AG$5000>0),AG$8:AG$5000)),0,AG9)) -> 0 | CW9: =IF(OR($H9<>"Silver",AH9=0),0,IF(AH9=MIN(IF(($H$8:$H$5000="Silver")*($D$8:$D$5000=$D9)*(AH$8:AH$5000>0),AH$8:AH$5000)),0,AH9)) -> 0 | CX9: =IF(OR($H9<>"Silver",AI9=0),0,IF(AI9=MIN(IF(($H$8:$H$5000="Silver")*($D$8:$D$5000=$D9)*(AI$8:AI$5000>0),AI$8:AI$5000)),0,AI9)) -> 0 | CY9: =IF(OR($H9<>"Silver",AJ9=0),0,IF(AJ9=MIN(IF(($H$8:$H$5000="Silver")*($D$8:$D$5000=$D9)*(AJ$8:AJ$5000>0),AJ$8:AJ$5000)),0,AJ9)) -> 0 | CZ9: =IF(OR($H9<>"Silver",AK9=0),0,IF(AK9=MIN(IF(($H$8:$H$5000="Silver")*($D$8:$D$5000=$D9)*(AK$8:AK$5000>0),AK$8:AK$5000)),0,AK9)) -> 0 | DA9: =IF(OR($H9<>"Silver",AL9=0),0,IF(AL9=MIN(IF(($H$8:$H$5000="Silver")*($D$8:$D$5000=$D9)*(AL$8:AL$5000>0),AL$8:AL$5000)),0,AL9)) -> 0 | DB9: =IF(OR($H9<>"Silver",AM9=0),0,IF(AM9=MIN(IF(($H$8:$H$5000="Silver")*($D$8:$D$5000=$D9)*(AM$8:AM$5000>0),AM$8:AM$5000)),0,AM9)) -> 0 | DC9: =IF(OR($H9<>"Silver",AN9=0),0,IF(AN9=MIN(IF(($H$8:$H$5000="Silver")*($D$8:$D$5000=$D9)*(AN$8:AN$5000>0),AN$8:AN$5000)),0,AN9)) -> 0 | DD9: =IF(OR($H9<>"Silver",AO9=0),0,IF(AO9=MIN(IF(($H$8:$H$5000="Silver")*($D$8:$D$5000=$D9)*(AO$8:AO$5000>0),AO$8:AO$5000)),0,AO9)) -> 0 | DE9: =IF(OR($H9<>"Silver",AP9=0),0,IF(AP9=MIN(IF(($H$8:$H$5000="Silver")*($D$8:$D$5000=$D9)*(AP$8:AP$5000>0),AP$8:AP$5000)),0,AP9)) -> 0 | DF9: =IF(OR($H9<>"Silver",AQ9=0),0,IF(AQ9=MIN(IF(($H$8:$H$5000="Silver")*($D$8:$D$5000=$D9)*(AQ$8:AQ$5000>0),AQ$8:AQ$5000)),0,AQ9)) -> 0 | DG9: =IF(OR($H9<>"Silver",AR9=0),0,IF(AR9=MIN(IF(($H$8:$H$5000="Silver")*($D$8:$D$5000=$D9)*(AR$8:AR$5000>0),AR$8:AR$5000)),0,AR9)) -> 0 | DH9: =IF(OR($H9<>"Silver",AS9=0),0,IF(AS9=MIN(IF(($H$8:$H$5000="Silver")*($D$8:$D$5000=$D9)*(AS$8:AS$5000>0),AS$8:AS$5000)),0,AS9)) -> 0 | DI9: =IF(OR($H9<>"Silver",AT9=0),0,IF(AT9=MIN(IF(($H$8:$H$5000="Silver")*($D$8:$D$5000=$D9)*(AT$8:AT$5000>0),AT$8:AT$5000)),0,AT9)) -> 0 | DJ9: =IF(OR($H9<>"Silver",AU9=0),0,IF(AU9=MIN(IF(($H$8:$H$5000="Silver")*($D$8:$D$5000=$D9)*(AU$8:AU$5000>0),AU$8:AU$5000)),0,AU9)) -> 0 | DK9: =IF(OR($H9<>"Silver",AV9=0),0,IF(AV9=MIN(IF(($H$8:$H$5000="Silver")*($D$8:$D$5000=$D9)*(AV$8:AV$5000>0),AV$8:AV$5000)),0,AV9)) -> 0 | DL9: =IF(OR($H9<>"Silver",AW9=0),0,IF(AW9=MIN(IF(($H$8:$H$5000="Silver")*($D$8:$D$5000=$D9)*(AW$8:AW$5000>0),AW$8:AW$5000)),0,AW9)) -> 0 | DM9: =IF(OR($H9<>"Silver",AX9=0),0,IF(AX9=MIN(IF(($H$8:$H$5000="Silver")*($D$8:$D$5000=$D9)*(AX$8:AX$5000>0),AX$8:AX$5000)),0,AX9)) -> 0 | DN9: =IF(OR($H9<>"Silver",AY9=0),0,IF(AY9=MIN(IF(($H$8:$H$5000="Silver")*($D$8:$D$5000=$D9)*(AY$8:AY$5000>0),AY$8:AY$5000)),0,AY9)) -> 0 | DO9: =IF(OR($H9<>"Silver",AZ9=0),0,IF(AZ9=MIN(IF(($H$8:$H$5000="Silver")*($D$8:$D$5000=$D9)*(AZ$8:AZ$5000>0),AZ$8:AZ$5000)),0,AZ9)) -> 0 | DP9: =IF(OR($H9<>"Silver",BA9=0),0,IF(BA9=MIN(IF(($H$8:$H$5000="Silver")*($D$8:$D$5000=$D9)*(BA$8:BA$5000>0),BA$8:BA$5000)),0,BA9)) -> 0 | DQ9: =IF(OR($H9<>"Silver",BB9=0),0,IF(BB9=MIN(IF(($H$8:$H$5000="Silver")*($D$8:$D$5000=$D9)*(BB$8:BB$5000>0),BB$8:BB$5000)),0,BB9)) -> 0 | DR9: =IF(OR($H9<>"Silver",BC9=0),0,IF(BC9=MIN(IF(($H$8:$H$5000="Silver")*($D$8:$D$5000=$D9)*(BC$8:BC$5000>0),BC$8:BC$5000)),0,BC9)) -> 0 | DS9: =IF(OR($H9<>"Silver",BD9=0),0,IF(BD9=MIN(IF(($H$8:$H$5000="Silver")*($D$8:$D$5000=$D9)*(BD$8:BD$5000>0),BD$8:BD$5000)),0,BD9)) -> 0 | DT9: =IF(OR($H9<>"Silver",BE9=0),0,IF(BE9=MIN(IF(($H$8:$H$5000="Silver")*($D$8:$D$5000=$D9)*(BE$8:BE$5000>0),BE$8:BE$5000)),0,BE9)) -> 0 | DU9: =IF(OR($H9<>"Silver",BF9=0),0,IF(BF9=MIN(IF(($H$8:$H$5000="Silver")*($D$8:$D$5000=$D9)*(BF$8:BF$5000>0),BF$8:BF$5000)),0,BF9)) -> 0 | DV9: =IF(OR($H9<>"Silver",BG9=0),0,IF(BG9=MIN(IF(($H$8:$H$5000="Silver")*($D$8:$D$5000=$D9)*(BG$8:BG$5000>0),BG$8:BG$5000)),0,BG9)) -> 0 | DW9: =IF(OR($H9<>"Silver",BH9=0),0,IF(BH9=MIN(IF(($H$8:$H$5000="Silver")*($D$8:$D$5000=$D9)*(BH$8:BH$5000>0),BH$8:BH$5000)),0,BH9)) -> 0 | DX9: =IF(OR($H9<>"Silver",BI9=0),0,IF(BI9=MIN(IF(($H$8:$H$5000="Silver")*($D$8:$D$5000=$D9)*(BI$8:BI$5000>0),BI$8:BI$5000)),0,BI9)) -> 0 | DY9: =IF(OR($H9<>"Silver",BJ9=0),0,IF(BJ9=MIN(IF(($H$8:$H$5000="Silver")*($D$8:$D$5000=$D9)*(BJ$8:BJ$5000>0),BJ$8:BJ$5000)),0,BJ9)) -> 0 | DZ9: =IF(OR($H9<>"Silver",BK9=0),0,IF(BK9=MIN(IF(($H$8:$H$5000="Silver")*($D$8:$D$5000=$D9)*(BK$8:BK$5000>0),BK$8:BK$5000)),0,BK9)) -> 0 | EA9: =IF(OR($H9<>"Silver",BL9=0),0,IF(BL9=MIN(IF(($H$8:$H$5000="Silver")*($D$8:$D$5000=$D9)*(BL$8:BL$5000>0),BL$8:BL$5000)),0,BL9)) -> 0 | EB9: =IF(OR($H9<>"Silver",BM9=0),0,IF(BM9=MIN(IF(($H$8:$H$5000="Silver")*($D$8:$D$5000=$D9)*(BM$8:BM$5000>0),BM$8:BM$5000)),0,BM9)) -> 0 | EC9: =IF(OR($H9<>"Silver",BN9=0),0,IF(BN9=MIN(IF(($H$8:$H$5000="Silver")*($D$8:$D$5000=$D9)*(BN$8:BN$5000>0),BN$8:BN$5000)),0,BN9)) -> 0 | ED9: =IF(OR($H9<>"Silver",BO9=0),0,IF(BO9=MIN(IF(($H$8:$H$5000="Silver")*($D$8:$D$5000=$D9)*(BO$8:BO$5000>0),BO$8:BO$5000)),0,BO9)) -> 0 | EE9: =IF(OR($H9<>"Silver",BP9=0),0,IF(BP9=MIN(IF(($H$8:$H$5000="Silver")*($D$8:$D$5000=$D9)*(BP$8:BP$5000>0),BP$8:BP$5000)),0,BP9)) -> 0 | EF9: =IF(OR($H9<>"Silver",BQ9=0),0,IF(BQ9=MIN(IF(($H$8:$H$5000="Silver")*($D$8:$D$5000=$D9)*(BQ$8:BQ$5000>0),BQ$8:BQ$5000)),0,BQ9)) -> 0 | EG9: =IF(OR($H9<>"Silver",BR9=0),0,IF(BR9=MIN(IF(($H$8:$H$5000="Silver")*($D$8:$D$5000=$D9)*(BR$8:BR$5000>0),BR$8:BR$5000)),0,BR9)) -> 0 | EH9: =IF(OR($H9<>"Silver",BS9=0),0,IF(BS9=MIN(IF(($H$8:$H$5000="Silver")*($D$8:$D$5000=$D9)*(BS$8:BS$5000>0),BS$8:BS$5000)),0,BS9)) -> 0 | EI9: =IF(OR($H9<>"Silver",BT9=0),0,IF(BT9=MIN(IF(($H$8:$H$5000="Silver")*($D$8:$D$5000=$D9)*(BT$8:BT$5000>0),BT$8:BT$5000)),0,BT9)) -> 0 | EJ9: =IF(OR($H9<>"Silver",BU9=0),0,IF(BU9=MIN(IF(($H$8:$H$5000="Silver")*($D$8:$D$5000=$D9)*(BU$8:BU$5000>0),BU$8:BU$5000)),0,BU9)) -> 0 | EK9: =IF(OR($H9<>"Silver",BV9=0),0,IF(BV9=MIN(IF(($H$8:$H$5000="Silver")*($D$8:$D$5000=$D9)*(BV$8:BV$5000>0),BV$8:BV$5000)),0,BV9)) -> 0 | EL9: =IF(OR($H9<>"Silver",BW9=0),0,IF(BW9=MIN(IF(($H$8:$H$5000="Silver")*($D$8:$D$5000=$D9)*(BW$8:BW$5000>0),BW$8:BW$5000)),0,BW9)) -> 0 | EM9: =IF(OR($H9<>"Silver",BX9=0),0,IF(BX9=MIN(IF(($H$8:$H$5000="Silver")*($D$8:$D$5000=$D9)*(BX$8:BX$5000>0),BX$8:BX$5000)),0,BX9)) -> 0 | EN9: =IF(OR($H9<>"Silver",BY9=0),0,IF(BY9=MIN(IF(($H$8:$H$5000="Silver")*($D$8:$D$5000=$D9)*(BY$8:BY$5000>0),BY$8:BY$5000)),0,BY9)) -> 0
B10: IBC | C10: QCC | D10: Individual | E10: 31609PA0070003 | F10: Personal Choice PPO Silver | G10: PPO | H10: Silver | I10: On | K10: 0 | L10: 0 | M10: 0 | N10: 0 | O10: 0 | P10: 0 | Q10: 0 | R10: 0 | S10: 0 | T10: 0 | U10: 0 | V10: 0 | W10: 0 | X10: 0 | Y10: 0 | Z10: 0 | AA10: 0 | AB10: 0 | AC10: 0 | AD10: 0 | AE10: 0 | AF10: 0 | AG10: 0 | AH10: 0 | AI10: 0 | AJ10: 0 | AK10: 0 | AL10: 0 | AM10: 0 | AN10: 0 | AO10: 0 | AP10: 0 | AQ10: 0 | AR10: 0 | AS10: 0 | AT10: 0 | AU10: 0 | AV10: 0 | AW10: 0 | AX10: 0 | AY10: 0 | AZ10: 0 | BA10: 0 | BB10: 0 | BC10: 0 | BD10: 0 | BE10: 0 | BF10: 0 | BG10: 0 | BH10: 0 | BI10: 0 | BJ10: 0 | BK10: 0 | BL10: 0 | BM10: 0 | BN10: 355.2 | BO10: 355.2 | BP10: 355.2 | BQ10: 355.2 | BR10: 355.2 | BS10: 0 | BT10: 0 | BU10: 0 | BV10: 0 | BW10: 0 | BX10: 0 | BY10: 0 | BZ10: =IF(OR($H10<>"Silver",K10=0),0,IF(K10=MIN(IF(($H$8:$H$5000="Silver")*($D$8:$D$5000=$D10)*(K$8:K$5000>0),K$8:K$5000)),0,K10)) -> 0 | CA10: =IF(OR($H10<>"Silver",L10=0),0,IF(L10=MIN(IF(($H$8:$H$5000="Silver")*($D$8:$D$5000=$D10)*(L$8:L$5000>0),L$8:L$5000)),0,L10)) -> 0 | CB10: =IF(OR($H10<>"Silver",M10=0),0,IF(M10=MIN(IF(($H$8:$H$5000="Silver")*($D$8:$D$5000=$D10)*(M$8:M$5000>0),M$8:M$5000)),0,M10)) -> 0 | CC10: =IF(OR($H10<>"Silver",N10=0),0,IF(N10=MIN(IF(($H$8:$H$5000="Silver")*($D$8:$D$5000=$D10)*(N$8:N$5000>0),N$8:N$5000)),0,N10)) -> 0 | CD10: =IF(OR($H10<>"Silver",O10=0),0,IF(O10=MIN(IF(($H$8:$H$5000="Silver")*($D$8:$D$5000=$D10)*(O$8:O$5000>0),O$8:O$5000)),0,O10)) -> 0 | CE10: =IF(OR($H10<>"Silver",P10=0),0,IF(P10=MIN(IF(($H$8:$H$5000="Silver")*($D$8:$D$5000=$D10)*(P$8:P$5000>0),P$8:P$5000)),0,P10)) -> 0 | CF10: =IF(OR($H10<>"Silver",Q10=0),0,IF(Q10=MIN(IF(($H$8:$H$5000="Silver")*($D$8:$D$5000=$D10)*(Q$8:Q$5000>0),Q$8:Q$5000)),0,Q10)) -> 0 | CG10: =IF(OR($H10<>"Silver",R10=0),0,IF(R10=MIN(IF(($H$8:$H$5000="Silver")*($D$8:$D$5000=$D10)*(R$8:R$5000>0),R$8:R$5000)),0,R10)) -> 0 | CH10: =IF(OR($H10<>"Silver",S10=0),0,IF(S10=MIN(IF(($H$8:$H$5000="Silver")*($D$8:$D$5000=$D10)*(S$8:S$5000>0),S$8:S$5000)),0,S10)) -> 0 | CI10: =IF(OR($H10<>"Silver",T10=0),0,IF(T10=MIN(IF(($H$8:$H$5000="Silver")*($D$8:$D$5000=$D10)*(T$8:T$5000>0),T$8:T$5000)),0,T10)) -> 0 | CJ10: =IF(OR($H10<>"Silver",U10=0),0,IF(U10=MIN(IF(($H$8:$H$5000="Silver")*($D$8:$D$5000=$D10)*(U$8:U$5000>0),U$8:U$5000)),0,U10)) -> 0 | CK10: =IF(OR($H10<>"Silver",V10=0),0,IF(V10=MIN(IF(($H$8:$H$5000="Silver")*($D$8:$D$5000=$D10)*(V$8:V$5000>0),V$8:V$5000)),0,V10)) -> 0 | CL10: =IF(OR($H10<>"Silver",W10=0),0,IF(W10=MIN(IF(($H$8:$H$5000="Silver")*($D$8:$D$5000=$D10)*(W$8:W$5000>0),W$8:W$5000)),0,W10)) -> 0 | CM10: =IF(OR($H10<>"Silver",X10=0),0,IF(X10=MIN(IF(($H$8:$H$5000="Silver")*($D$8:$D$5000=$D10)*(X$8:X$5000>0),X$8:X$5000)),0,X10)) -> 0 | CN10: =IF(OR($H10<>"Silver",Y10=0),0,IF(Y10=MIN(IF(($H$8:$H$5000="Silver")*($D$8:$D$5000=$D10)*(Y$8:Y$5000>0),Y$8:Y$5000)),0,Y10)) -> 0 | CO10: =IF(OR($H10<>"Silver",Z10=0),0,IF(Z10=MIN(IF(($H$8:$H$5000="Silver")*($D$8:$D$5000=$D10)*(Z$8:Z$5000>0),Z$8:Z$5000)),0,Z10)) -> 0 | CP10: =IF(OR($H10<>"Silver",AA10=0),0,IF(AA10=MIN(IF(($H$8:$H$5000="Silver")*($D$8:$D$5000=$D10)*(AA$8:AA$5000>0),AA$8:AA$5000)),0,AA10)) -> 0 | CQ10: =IF(OR($H10<>"Silver",AB10=0),0,IF(AB10=MIN(IF(($H$8:$H$5000="Silver")*($D$8:$D$5000=$D10)*(AB$8:AB$5000>0),AB$8:AB$5000)),0,AB10)) -> 0 | CR10: =IF(OR($H10<>"Silver",AC10=0),0,IF(AC10=MIN(IF(($H$8:$H$5000="Silver")*($D$8:$D$5000=$D10)*(AC$8:AC$5000>0),AC$8:AC$5000)),0,AC10)) -> 0 | CS10: =IF(OR($H10<>"Silver",AD10=0),0,IF(AD10=MIN(IF(($H$8:$H$5000="Silver")*($D$8:$D$5000=$D10)*(AD$8:AD$5000>0),AD$8:AD$5000)),0,AD10)) -> 0 | CT10: =IF(OR($H10<>"Silver",AE10=0),0,IF(AE10=MIN(IF(($H$8:$H$5000="Silver")*($D$8:$D$5000=$D10)*(AE$8:AE$5000>0),AE$8:AE$5000)),0,AE10)) -> 0 | CU10: =IF(OR($H10<>"Silver",AF10=0),0,IF(AF10=MIN(IF(($H$8:$H$5000="Silver")*($D$8:$D$5000=$D10)*(AF$8:AF$5000>0),AF$8:AF$5000)),0,AF10)) -> 0 | CV10: =IF(OR($H10<>"Silver",AG10=0),0,IF(AG10=MIN(IF(($H$8:$H$5000="Silver")*($D$8:$D$5000=$D10)*(AG$8:AG$5000>0),AG$8:AG$5000)),0,AG10)) -> 0 | CW10: =IF(OR($H10<>"Silver",AH10=0),0,IF(AH10=MIN(IF(($H$8:$H$5000="Silver")*($D$8:$D$5000=$D10)*(AH$8:AH$5000>0),AH$8:AH$5000)),0,AH10)) -> 0 | CX10: =IF(OR($H10<>"Silver",AI10=0),0,IF(AI10=MIN(IF(($H$8:$H$5000="Silver")*($D$8:$D$5000=$D10)*(AI$8:AI$5000>0),AI$8:AI$5000)),0,AI10)) -> 0 | CY10: =IF(OR($H10<>"Silver",AJ10=0),0,IF(AJ10=MIN(IF(($H$8:$H$5000="Silver")*($D$8:$D$5000=$D10)*(AJ$8:AJ$5000>0),AJ$8:AJ$5000)),0,AJ10)) -> 0 | CZ10: =IF(OR($H10<>"Silver",AK10=0),0,IF(AK10=MIN(IF(($H$8:$H$5000="Silver")*($D$8:$D$5000=$D10)*(AK$8:AK$5000>0),AK$8:AK$5000)),0,AK10)) -> 0 | DA10: =IF(OR($H10<>"Silver",AL10=0),0,IF(AL10=MIN(IF(($H$8:$H$5000="Silver")*($D$8:$D$5000=$D10)*(AL$8:AL$5000>0),AL$8:AL$5000)),0,AL10)) -> 0 | DB10: =IF(OR($H10<>"Silver",AM10=0),0,IF(AM10=MIN(IF(($H$8:$H$5000="Silver")*($D$8:$D$5000=$D10)*(AM$8:AM$5000>0),AM$8:AM$5000)),0,AM10)) -> 0 | DC10: =IF(OR($H10<>"Silver",AN10=0),0,IF(AN10=MIN(IF(($H$8:$H$5000="Silver")*($D$8:$D$5000=$D10)*(AN$8:AN$5000>0),AN$8:AN$5000)),0,AN10)) -> 0 | DD10: =IF(OR($H10<>"Silver",AO10=0),0,IF(AO10=MIN(IF(($H$8:$H$5000="Silver")*($D$8:$D$5000=$D10)*(AO$8:AO$5000>0),AO$8:AO$5000)),0,AO10)) -> 0 | DE10: =IF(OR($H10<>"Silver",AP10=0),0,IF(AP10=MIN(IF(($H$8:$H$5000="Silver")*($D$8:$D$5000=$D10)*(AP$8:AP$5000>0),AP$8:AP$5000)),0,AP10)) -> 0 | DF10: =IF(OR($H10<>"Silver",AQ10=0),0,IF(AQ10=MIN(IF(($H$8:$H$5000="Silver")*($D$8:$D$5000=$D10)*(AQ$8:AQ$5000>0),AQ$8:AQ$5000)),0,AQ10)) -> 0 | DG10: =IF(OR($H10<>"Silver",AR10=0),0,IF(AR10=MIN(IF(($H$8:$H$5000="Silver")*($D$8:$D$5000=$D10)*(AR$8:AR$5000>0),AR$8:AR$5000)),0,AR10)) -> 0 | DH10: =IF(OR($H10<>"Silver",AS10=0),0,IF(AS10=MIN(IF(($H$8:$H$5000="Silver")*($D$8:$D$5000=$D10)*(AS$8:AS$5000>0),AS$8:AS$5000)),0,AS10)) -> 0 | DI10: =IF(OR($H10<>"Silver",AT10=0),0,IF(AT10=MIN(IF(($H$8:$H$5000="Silver")*($D$8:$D$5000=$D10)*(AT$8:AT$5000>0),AT$8:AT$5000)),0,AT10)) -> 0 | DJ10: =IF(OR($H10<>"Silver",AU10=0),0,IF(AU10=MIN(IF(($H$8:$H$5000="Silver")*($D$8:$D$5000=$D10)*(AU$8:AU$5000>0),AU$8:AU$5000)),0,AU10)) -> 0 | DK10: =IF(OR($H10<>"Silver",AV10=0),0,IF(AV10=MIN(IF(($H$8:$H$5000="Silver")*($D$8:$D$5000=$D10)*(AV$8:AV$5000>0),AV$8:AV$5000)),0,AV10)) -> 0 | DL10: =IF(OR($H10<>"Silver",AW10=0),0,IF(AW10=MIN(IF(($H$8:$H$5000="Silver")*($D$8:$D$5000=$D10)*(AW$8:AW$5000>0),AW$8:AW$5000)),0,AW10)) -> 0 | DM10: =IF(OR($H10<>"Silver",AX10=0),0,IF(AX10=MIN(IF(($H$8:$H$5000="Silver")*($D$8:$D$5000=$D10)*(AX$8:AX$5000>0),AX$8:AX$5000)),0,AX10)) -> 0 | DN10: =IF(OR($H10<>"Silver",AY10=0),0,IF(AY10=MIN(IF(($H$8:$H$5000="Silver")*($D$8:$D$5000=$D10)*(AY$8:AY$5000>0),AY$8:AY$5000)),0,AY10)) -> 0 | DO10: =IF(OR($H10<>"Silver",AZ10=0),0,IF(AZ10=MIN(IF(($H$8:$H$5000="Silver")*($D$8:$D$5000=$D10)*(AZ$8:AZ$5000>0),AZ$8:AZ$5000)),0,AZ10)) -> 0 | DP10: =IF(OR($H10<>"Silver",BA10=0),0,IF(BA10=MIN(IF(($H$8:$H$5000="Silver")*($D$8:$D$5000=$D10)*(BA$8:BA$5000>0),BA$8:BA$5000)),0,BA10)) -> 0 | DQ10: =IF(OR($H10<>"Silver",BB10=0),0,IF(BB10=MIN(IF(($H$8:$H$5000="Silver")*($D$8:$D$5000=$D10)*(BB$8:BB$5000>0),BB$8:BB$5000)),0,BB10)) -> 0 | DR10: =IF(OR($H10<>"Silver",BC10=0),0,IF(BC10=MIN(IF(($H$8:$H$5000="Silver")*($D$8:$D$5000=$D10)*(BC$8:BC$5000>0),BC$8:BC$5000)),0,BC10)) -> 0 | DS10: =IF(OR($H10<>"Silver",BD10=0),0,IF(BD10=MIN(IF(($H$8:$H$5000="Silver")*($D$8:$D$5000=$D10)*(BD$8:BD$5000>0),BD$8:BD$5000)),0,BD10)) -> 0 | DT10: =IF(OR($H10<>"Silver",BE10=0),0,IF(BE10=MIN(IF(($H$8:$H$5000="Silver")*($D$8:$D$5000=$D10)*(BE$8:BE$5000>0),BE$8:BE$5000)),0,BE10)) -> 0 | DU10: =IF(OR($H10<>"Silver",BF10=0),0,IF(BF10=MIN(IF(($H$8:$H$5000="Silver")*($D$8:$D$5000=$D10)*(BF$8:BF$5000>0),BF$8:BF$5000)),0,BF10)) -> 0 | DV10: =IF(OR($H10<>"Silver",BG10=0),0,IF(BG10=MIN(IF(($H$8:$H$5000="Silver")*($D$8:$D$5000=$D10)*(BG$8:BG$5000>0),BG$8:BG$5000)),0,BG10)) -> 0 | DW10: =IF(OR($H10<>"Silver",BH10=0),0,IF(BH10=MIN(IF(($H$8:$H$5000="Silver")*($D$8:$D$5000=$D10)*(BH$8:BH$5000>0),BH$8:BH$5000)),0,BH10)) -> 0 | DX10: =IF(OR($H10<>"Silver",BI10=0),0,IF(BI10=MIN(IF(($H$8:$H$5000="Silver")*($D$8:$D$5000=$D10)*(BI$8:BI$5000>0),BI$8:BI$5000)),0,BI10)) -> 0 | DY10: =IF(OR($H10<>"Silver",BJ10=0),0,IF(BJ10=MIN(IF(($H$8:$H$5000="Silver")*($D$8:$D$5000=$D10)*(BJ$8:BJ$5000>0),BJ$8:BJ$5000)),0,BJ10)) -> 0 | DZ10: =IF(OR($H10<>"Silver",BK10=0),0,IF(BK10=MIN(IF(($H$8:$H$5000="Silver")*($D$8:$D$5000=$D10)*(BK$8:BK$5000>0),BK$8:BK$5000)),0,BK10)) -> 0 | EA10: =IF(OR($H10<>"Silver",BL10=0),0,IF(BL10=MIN(IF(($H$8:$H$5000="Silver")*($D$8:$D$5000=$D10)*(BL$8:BL$5000>0),BL$8:BL$5000)),0,BL10)) -> 0 | EB10: =IF(OR($H10<>"Silver",BM10=0),0,IF(BM10=MIN(IF(($H$8:$H$5000="Silver")*($D$8:$D$5000=$D10)*(BM$8:BM$5000>0),BM$8:BM$5000)),0,BM10)) -> 0 | EC10: =IF(OR($H10<>"Silver",BN10=0),0,IF(BN10=MIN(IF(($H$8:$H$5000="Silver")*($D$8:$D$5000=$D10)*(BN$8:BN$5000>0),BN$8:BN$5000)),0,BN10)) -> 355.2 | ED10: =IF(OR($H10<>"Silver",BO10=0),0,IF(BO10=MIN(IF(($H$8:$H$5000="Silver")*($D$8:$D$5000=$D10)*(BO$8:BO$5000>0),BO$8:BO$5000)),0,BO10)) -> 355.2 | EE10: =IF(OR($H10<>"Silver",BP10=0),0,IF(BP10=MIN(IF(($H$8:$H$5000="Silver")*($D$8:$D$5000=$D10)*(BP$8:BP$5000>0),BP$8:BP$5000)),0,BP10)) -> 355.2 | EF10: =IF(OR($H10<>"Silver",BQ10=0),0,IF(BQ10=MIN(IF(($H$8:$H$5000="Silver")*($D$8:$D$5000=$D10)*(BQ$8:BQ$5000>0),BQ$8:BQ$5000)),0,BQ10)) -> 355.2 | EG10: =IF(OR($H10<>"Silver",BR10=0),0,IF(BR10=MIN(IF(($H$8:$H$5000="Silver")*($D$8:$D$5000=$D10)*(BR$8:BR$5000>0),BR$8:BR$5000)),0,BR10)) -> 355.2 | EH10: =IF(OR($H10<>"Silver",BS10=0),0,IF(BS10=MIN(IF(($H$8:$H$5000="Silver")*($D$8:$D$5000=$D10)*(BS$8:BS$5000>0),BS$8:BS$5000)),0,BS10)) -> 0 | EI10: =IF(OR($H10<>"Silver",BT10=0),0,IF(BT10=MIN(IF(($H$8:$H$5000="Silver")*($D$8:$D$5000=$D10)*(BT$8:BT$5000>0),BT$8:BT$5000)),0,BT10)) -> 0 | EJ10: =IF(OR($H10<>"Silver",BU10=0),0,IF(BU10=MIN(IF(($H$8:$H$5000="Silver")*($D$8:$D$5000=$D10)*(BU$8:BU$5000>0),BU$8:BU$5000)),0,BU10)) -> 0 | EK10: =IF(OR($H10<>"Silver",BV10=0),0,IF(BV10=MIN(IF(($H$8:$H$5000="Silver")*($D$8:$D$5000=$D10)*(BV$8:BV$5000>0),BV$8:BV$5000)),0,BV10)) -> 0 | EL10: =IF(OR($H10<>"Silver",BW10=0),0,IF(BW10=MIN(IF(($H$8:$H$5000="Silver")*($D$8:$D$5000=$D10)*(BW$8:BW$5000>0),BW$8:BW$5000)),0,BW10)) -> 0 | EM10: =IF(OR($H10<>"Silver",BX10=0),0,IF(BX10=MIN(IF(($H$8:$H$5000="Silver")*($D$8:$D$5000=$D10)*(BX$8:BX$5000>0),BX$8:BX$5000)),0,BX10)) -> 0 | EN10: =IF(OR($H10<>"Silver",BY10=0),0,IF(BY10=MIN(IF(($H$8:$H$5000="Silver")*($D$8:$D$5000=$D10)*(BY$8:BY$5000>0),BY$8:BY$5000)),0,BY10)) -> 0
B11: IBC | C11: QCC | D11: Individual | E11: 31609PA0070004 | F11: Personal Choice PPO Bronze | G11: PPO | H11: Bronze | I11: On | K11: 0 | L11: 0 | M11: 0 | N11: 0 | O11: 0 | P11: 0 | Q11: 0 | R11: 0 | S11: 0 | T11: 0 | U11: 0 | V11: 0 | W11: 0 | X11: 0 | Y11: 0 | Z11: 0 | AA11: 0 | AB11: 0 | AC11: 0 | AD11: 0 | AE11: 0 | AF11: 0 | AG11: 0 | AH11: 0 | AI11: 0 | AJ11: 0 | AK11: 0 | AL11: 0 | AM11: 0 | AN11: 0 | AO11: 0 | AP11: 0 | AQ11: 0 | AR11: 0 | AS11: 0 | AT11: 0 | AU11: 0 | AV11: 0 | AW11: 0 | AX11: 0 | AY11: 0 | AZ11: 0 | BA11: 0 | BB11: 0 | BC11: 0 | BD11: 0 | BE11: 0 | BF11: 0 | BG11: 0 | BH11: 0 | BI11: 0 | BJ11: 0 | BK11: 0 | BL11: 0 | BM11: 0 | BN11: 278.94 | BO11: 278.94 | BP11: 278.94 | BQ11: 278.94 | BR11: 278.94 | BS11: 0 | BT11: 0 | BU11: 0 | BV11: 0 | BW11: 0 | BX11: 0 | BY11: 0 | BZ11: =IF(OR($H11<>"Silver",K11=0),0,IF(K11=MIN(IF(($H$8:$H$5000="Silver")*($D$8:$D$5000=$D11)*(K$8:K$5000>0),K$8:K$5000)),0,K11)) -> 0 | CA11: =IF(OR($H11<>"Silver",L11=0),0,IF(L11=MIN(IF(($H$8:$H$5000="Silver")*($D$8:$D$5000=$D11)*(L$8:L$5000>0),L$8:L$5000)),0,L11)) -> 0 | CB11: =IF(OR($H11<>"Silver",M11=0),0,IF(M11=MIN(IF(($H$8:$H$5000="Silver")*($D$8:$D$5000=$D11)*(M$8:M$5000>0),M$8:M$5000)),0,M11)) -> 0 | CC11: =IF(OR($H11<>"Silver",N11=0),0,IF(N11=MIN(IF(($H$8:$H$5000="Silver")*($D$8:$D$5000=$D11)*(N$8:N$5000>0),N$8:N$5000)),0,N11)) -> 0 | CD11: =IF(OR($H11<>"Silver",O11=0),0,IF(O11=MIN(IF(($H$8:$H$5000="Silver")*($D$8:$D$5000=$D11)*(O$8:O$5000>0),O$8:O$5000)),0,O11)) -> 0 | CE11: =IF(OR($H11<>"Silver",P11=0),0,IF(P11=MIN(IF(($H$8:$H$5000="Silver")*($D$8:$D$5000=$D11)*(P$8:P$5000>0),P$8:P$5000)),0,P11)) -> 0 | CF11: =IF(OR($H11<>"Silver",Q11=0),0,IF(Q11=MIN(IF(($H$8:$H$5000="Silver")*($D$8:$D$5000=$D11)*(Q$8:Q$5000>0),Q$8:Q$5000)),0,Q11)) -> 0 | CG11: =IF(OR($H11<>"Silver",R11=0),0,IF(R11=MIN(IF(($H$8:$H$5000="Silver")*($D$8:$D$5000=$D11)*(R$8:R$5000>0),R$8:R$5000)),0,R11)) -> 0 | CH11: =IF(OR($H11<>"Silver",S11=0),0,IF(S11=MIN(IF(($H$8:$H$5000="Silver")*($D$8:$D$5000=$D11)*(S$8:S$5000>0),S$8:S$5000)),0,S11)) -> 0 | CI11: =IF(OR($H11<>"Silver",T11=0),0,IF(T11=MIN(IF(($H$8:$H$5000="Silver")*($D$8:$D$5000=$D11)*(T$8:T$5000>0),T$8:T$5000)),0,T11)) -> 0 | CJ11: =IF(OR($H11<>"Silver",U11=0),0,IF(U11=MIN(IF(($H$8:$H$5000="Silver")*($D$8:$D$5000=$D11)*(U$8:U$5000>0),U$8:U$5000)),0,U11)) -> 0 | CK11: =IF(OR($H11<>"Silver",V11=0),0,IF(V11=MIN(IF(($H$8:$H$5000="Silver")*($D$8:$D$5000=$D11)*(V$8:V$5000>0),V$8:V$5000)),0,V11)) -> 0 | CL11: =IF(OR($H11<>"Silver",W11=0),0,IF(W11=MIN(IF(($H$8:$H$5000="Silver")*($D$8:$D$5000=$D11)*(W$8:W$5000>0),W$8:W$5000)),0,W11)) -> 0 | CM11: =IF(OR($H11<>"Silver",X11=0),0,IF(X11=MIN(IF(($H$8:$H$5000="Silver")*($D$8:$D$5000=$D11)*(X$8:X$5000>0),X$8:X$5000)),0,X11)) -> 0 | CN11: =IF(OR($H11<>"Silver",Y11=0),0,IF(Y11=MIN(IF(($H$8:$H$5000="Silver")*($D$8:$D$5000=$D11)*(Y$8:Y$5000>0),Y$8:Y$5000)),0,Y11)) -> 0 | CO11: =IF(OR($H11<>"Silver",Z11=0),0,IF(Z11=MIN(IF(($H$8:$H$5000="Silver")*($D$8:$D$5000=$D11)*(Z$8:Z$5000>0),Z$8:Z$5000)),0,Z11)) -> 0 | CP11: =IF(OR($H11<>"Silver",AA11=0),0,IF(AA11=MIN(IF(($H$8:$H$5000="Silver")*($D$8:$D$5000=$D11)*(AA$8:AA$5000>0),AA$8:AA$5000)),0,AA11)) -> 0 | CQ11: =IF(OR($H11<>"Silver",AB11=0),0,IF(AB11=MIN(IF(($H$8:$H$5000="Silver")*($D$8:$D$5000=$D11)*(AB$8:AB$5000>0),AB$8:AB$5000)),0,AB11)) -> 0 | CR11: =IF(OR($H11<>"Silver",AC11=0),0,IF(AC11=MIN(IF(($H$8:$H$5000="Silver")*($D$8:$D$5000=$D11)*(AC$8:AC$5000>0),AC$8:AC$5000)),0,AC11)) -> 0 | CS11: =IF(OR($H11<>"Silver",AD11=0),0,IF(AD11=MIN(IF(($H$8:$H$5000="Silver")*($D$8:$D$5000=$D11)*(AD$8:AD$5000>0),AD$8:AD$5000)),0,AD11)) -> 0 | CT11: =IF(OR($H11<>"Silver",AE11=0),0,IF(AE11=MIN(IF(($H$8:$H$5000="Silver")*($D$8:$D$5000=$D11)*(AE$8:AE$5000>0),AE$8:AE$5000)),0,AE11)) -> 0 | CU11: =IF(OR($H11<>"Silver",AF11=0),0,IF(AF11=MIN(IF(($H$8:$H$5000="Silver")*($D$8:$D$5000=$D11)*(AF$8:AF$5000>0),AF$8:AF$5000)),0,AF11)) -> 0 | CV11: =IF(OR($H11<>"Silver",AG11=0),0,IF(AG11=MIN(IF(($H$8:$H$5000="Silver")*($D$8:$D$5000=$D11)*(AG$8:AG$5000>0),AG$8:AG$5000)),0,AG11)) -> 0 | CW11: =IF(OR($H11<>"Silver",AH11=0),0,IF(AH11=MIN(IF(($H$8:$H$5000="Silver")*($D$8:$D$5000=$D11)*(AH$8:AH$5000>0),AH$8:AH$5000)),0,AH11)) -> 0 | CX11: =IF(OR($H11<>"Silver",AI11=0),0,IF(AI11=MIN(IF(($H$8:$H$5000="Silver")*($D$8:$D$5000=$D11)*(AI$8:AI$5000>0),AI$8:AI$5000)),0,AI11)) -> 0 | CY11: =IF(OR($H11<>"Silver",AJ11=0),0,IF(AJ11=MIN(IF(($H$8:$H$5000="Silver")*($D$8:$D$5000=$D11)*(AJ$8:AJ$5000>0),AJ$8:AJ$5000)),0,AJ11)) -> 0 | CZ11: =IF(OR($H11<>"Silver",AK11=0),0,IF(AK11=MIN(IF(($H$8:$H$5000="Silver")*($D$8:$D$5000=$D11)*(AK$8:AK$5000>0),AK$8:AK$5000)),0,AK11)) -> 0 | DA11: =IF(OR($H11<>"Silver",AL11=0),0,IF(AL11=MIN(IF(($H$8:$H$5000="Silver")*($D$8:$D$5000=$D11)*(AL$8:AL$5000>0),AL$8:AL$5000)),0,AL11)) -> 0 | DB11: =IF(OR($H11<>"Silver",AM11=0),0,IF(AM11=MIN(IF(($H$8:$H$5000="Silver")*($D$8:$D$5000=$D11)*(AM$8:AM$5000>0),AM$8:AM$5000)),0,AM11)) -> 0 | DC11: =IF(OR($H11<>"Silver",AN11=0),0,IF(AN11=MIN(IF(($H$8:$H$5000="Silver")*($D$8:$D$5000=$D11)*(AN$8:AN$5000>0),AN$8:AN$5000)),0,AN11)) -> 0 | DD11: =IF(OR($H11<>"Silver",AO11=0),0,IF(AO11=MIN(IF(($H$8:$H$5000="Silver")*($D$8:$D$5000=$D11)*(AO$8:AO$5000>0),AO$8:AO$5000)),0,AO11)) -> 0 | DE11: =IF(OR($H11<>"Silver",AP11=0),0,IF(AP11=MIN(IF(($H$8:$H$5000="Silver")*($D$8:$D$5000=$D11)*(AP$8:AP$5000>0),AP$8:AP$5000)),0,AP11)) -> 0 | DF11: =IF(OR($H11<>"Silver",AQ11=0),0,IF(AQ11=MIN(IF(($H$8:$H$5000="Silver")*($D$8:$D$5000=$D11)*(AQ$8:AQ$5000>0),AQ$8:AQ$5000)),0,AQ11)) -> 0 | DG11: =IF(OR($H11<>"Silver",AR11=0),0,IF(AR11=MIN(IF(($H$8:$H$5000="Silver")*($D$8:$D$5000=$D11)*(AR$8:AR$5000>0),AR$8:AR$5000)),0,AR11)) -> 0 | DH11: =IF(OR($H11<>"Silver",AS11=0),0,IF(AS11=MIN(IF(($H$8:$H$5000="Silver")*($D$8:$D$5000=$D11)*(AS$8:AS$5000>0),AS$8:AS$5000)),0,AS11)) -> 0 | DI11: =IF(OR($H11<>"Silver",AT11=0),0,IF(AT11=MIN(IF(($H$8:$H$5000="Silver")*($D$8:$D$5000=$D11)*(AT$8:AT$5000>0),AT$8:AT$5000)),0,AT11)) -> 0 | DJ11: =IF(OR($H11<>"Silver",AU11=0),0,IF(AU11=MIN(IF(($H$8:$H$5000="Silver")*($D$8:$D$5000=$D11)*(AU$8:AU$5000>0),AU$8:AU$5000)),0,AU11)) -> 0 | DK11: =IF(OR($H11<>"Silver",AV11=0),0,IF(AV11=MIN(IF(($H$8:$H$5000="Silver")*($D$8:$D$5000=$D11)*(AV$8:AV$5000>0),AV$8:AV$5000)),0,AV11)) -> 0 | DL11: =IF(OR($H11<>"Silver",AW11=0),0,IF(AW11=MIN(IF(($H$8:$H$5000="Silver")*($D$8:$D$5000=$D11)*(AW$8:AW$5000>0),AW$8:AW$5000)),0,AW11)) -> 0 | DM11: =IF(OR($H11<>"Silver",AX11=0),0,IF(AX11=MIN(IF(($H$8:$H$5000="Silver")*($D$8:$D$5000=$D11)*(AX$8:AX$5000>0),AX$8:AX$5000)),0,AX11)) -> 0 | DN11: =IF(OR($H11<>"Silver",AY11=0),0,IF(AY11=MIN(IF(($H$8:$H$5000="Silver")*($D$8:$D$5000=$D11)*(AY$8:AY$5000>0),AY$8:AY$5000)),0,AY11)) -> 0 | DO11: =IF(OR($H11<>"Silver",AZ11=0),0,IF(AZ11=MIN(IF(($H$8:$H$5000="Silver")*($D$8:$D$5000=$D11)*(AZ$8:AZ$5000>0),AZ$8:AZ$5000)),0,AZ11)) -> 0 | DP11: =IF(OR($H11<>"Silver",BA11=0),0,IF(BA11=MIN(IF(($H$8:$H$5000="Silver")*($D$8:$D$5000=$D11)*(BA$8:BA$5000>0),BA$8:BA$5000)),0,BA11)) -> 0 | DQ11: =IF(OR($H11<>"Silver",BB11=0),0,IF(BB11=MIN(IF(($H$8:$H$5000="Silver")*($D$8:$D$5000=$D11)*(BB$8:BB$5000>0),BB$8:BB$5000)),0,BB11)) -> 0 | DR11: =IF(OR($H11<>"Silver",BC11=0),0,IF(BC11=MIN(IF(($H$8:$H$5000="Silver")*($D$8:$D$5000=$D11)*(BC$8:BC$5000>0),BC$8:BC$5000)),0,BC11)) -> 0 | DS11: =IF(OR($H11<>"Silver",BD11=0),0,IF(BD11=MIN(IF(($H$8:$H$5000="Silver")*($D$8:$D$5000=$D11)*(BD$8:BD$5000>0),BD$8:BD$5000)),0,BD11)) -> 0 | DT11: =IF(OR($H11<>"Silver",BE11=0),0,IF(BE11=MIN(IF(($H$8:$H$5000="Silver")*($D$8:$D$5000=$D11)*(BE$8:BE$5000>0),BE$8:BE$5000)),0,BE11)) -> 0 | DU11: =IF(OR($H11<>"Silver",BF11=0),0,IF(BF11=MIN(IF(($H$8:$H$5000="Silver")*($D$8:$D$5000=$D11)*(BF$8:BF$5000>0),BF$8:BF$5000)),0,BF11)) -> 0 | DV11: =IF(OR($H11<>"Silver",BG11=0),0,IF(BG11=MIN(IF(($H$8:$H$5000="Silver")*($D$8:$D$5000=$D11)*(BG$8:BG$5000>0),BG$8:BG$5000)),0,BG11)) -> 0 | DW11: =IF(OR($H11<>"Silver",BH11=0),0,IF(BH11=MIN(IF(($H$8:$H$5000="Silver")*($D$8:$D$5000=$D11)*(BH$8:BH$5000>0),BH$8:BH$5000)),0,BH11)) -> 0 | DX11: =IF(OR($H11<>"Silver",BI11=0),0,IF(BI11=MIN(IF(($H$8:$H$5000="Silver")*($D$8:$D$5000=$D11)*(BI$8:BI$5000>0),BI$8:BI$5000)),0,BI11)) -> 0 | DY11: =IF(OR($H11<>"Silver",BJ11=0),0,IF(BJ11=MIN(IF(($H$8:$H$5000="Silver")*($D$8:$D$5000=$D11)*(BJ$8:BJ$5000>0),BJ$8:BJ$5000)),0,BJ11)) -> 0 | DZ11: =IF(OR($H11<>"Silver",BK11=0),0,IF(BK11=MIN(IF(($H$8:$H$5000="Silver")*($D$8:$D$5000=$D11)*(BK$8:BK$5000>0),BK$8:BK$5000)),0,BK11)) -> 0 | EA11: =IF(OR($H11<>"Silver",BL11=0),0,IF(BL11=MIN(IF(($H$8:$H$5000="Silver")*($D$8:$D$5000=$D11)*(BL$8:BL$5000>0),BL$8:BL$5000)),0,BL11)) -> 0 | EB11: =IF(OR($H11<>"Silver",BM11=0),0,IF(BM11=MIN(IF(($H$8:$H$5000="Silver")*($D$8:$D$5000=$D11)*(BM$8:BM$5000>0),BM$8:BM$5000)),0,BM11)) -> 0 | EC11: =IF(OR($H11<>"Silver",BN11=0),0,IF(BN11=MIN(IF(($H$8:$H$5000="Silver")*($D$8:$D$5000=$D11)*(BN$8:BN$5000>0),BN$8:BN$5000)),0,BN11)) -> 0 | ED11: =IF(OR($H11<>"Silver",BO11=0),0,IF(BO11=MIN(IF(($H$8:$H$5000="Silver")*($D$8:$D$5000=$D11)*(BO$8:BO$5000>0),BO$8:BO$5000)),0,BO11)) -> 0 | EE11: =IF(OR($H11<>"Silver",BP11=0),0,IF(BP11=MIN(IF(($H$8:$H$5000="Silver")*($D$8:$D$5000=$D11)*(BP$8:BP$5000>0),BP$8:BP$5000)),0,BP11)) -> 0 | EF11: =IF(OR($H11<>"Silver",BQ11=0),0,IF(BQ11=MIN(IF(($H$8:$H$5000="Silver")*($D$8:$D$5000=$D11)*(BQ$8:BQ$5000>0),BQ$8:BQ$5000)),0,BQ11)) -> 0 | EG11: =IF(OR($H11<>"Silver",BR11=0),0,IF(BR11=MIN(IF(($H$8:$H$5000="Silver")*($D$8:$D$5000=$D11)*(BR$8:BR$5000>0),BR$8:BR$5000)),0,BR11)) -> 0 | EH11: =IF(OR($H11<>"Silver",BS11=0),0,IF(BS11=MIN(IF(($H$8:$H$5000="Silver")*($D$8:$D$5000=$D11)*(BS$8:BS$5000>0),BS$8:BS$5000)),0,BS11)) -> 0 | EI11: =IF(OR($H11<>"Silver",BT11=0),0,IF(BT11=MIN(IF(($H$8:$H$5000="Silver")*($D$8:$D$5000=$D11)*(BT$8:BT$5000>0),BT$8:BT$5000)),0,BT11)) -> 0 | EJ11: =IF(OR($H11<>"Silver",BU11=0),0,IF(BU11=MIN(IF(($H$8:$H$5000="Silver")*($D$8:$D$5000=$D11)*(BU$8:BU$5000>0),BU$8:BU$5000)),0,BU11)) -> 0 | EK11: =IF(OR($H11<>"Silver",BV11=0),0,IF(BV11=MIN(IF(($H$8:$H$5000="Silver")*($D$8:$D$5000=$D11)*(BV$8:BV$5000>0),BV$8:BV$5000)),0,BV11)) -> 0 | EL11: =IF(OR($H11<>"Silver",BW11=0),0,IF(BW11=MIN(IF(($H$8:$H$5000="Silver")*($D$8:$D$5000=$D11)*(BW$8:BW$5000>0),BW$8:BW$5000)),0,BW11)) -> 0 | EM11: =IF(OR($H11<>"Silver",BX11=0),0,IF(BX11=MIN(IF(($H$8:$H$5000="Silver")*($D$8:$D$5000=$D11)*(BX$8:BX$5000>0),BX$8:BX$5000)),0,BX11)) -> 0 | EN11: =IF(OR($H11<>"Silver",BY11=0),0,IF(BY11=MIN(IF(($H$8:$H$5000="Silver")*($D$8:$D$5000=$D11)*(BY$8:BY$5000>0),BY$8:BY$5000)),0,BY11)) -> 0
B12: IBC | C12: QCC | D12: Individual | E12: 31609PA0070006 | F12: Personal Choice PPO Bronze Reserve | G12: PPO | H12: Bronze | I12: On | K12: 0 | L12: 0 | M12: 0 | N12: 0 | O12: 0 | P12: 0 | Q12: 0 | R12: 0 | S12: 0 | T12: 0 | U12: 0 | V12: 0 | W12: 0 | X12: 0 | Y12: 0 | Z12: 0 | AA12: 0 | AB12: 0 | AC12: 0 | AD12: 0 | AE12: 0 | AF12: 0 | AG12: 0 | AH12: 0 | AI12: 0 | AJ12: 0 | AK12: 0 | AL12: 0 | AM12: 0 | AN12: 0 | AO12: 0 | AP12: 0 | AQ12: 0 | AR12: 0 | AS12: 0 | AT12: 0 | AU12: 0 | AV12: 0 | AW12: 0 | AX12: 0 | AY12: 0 | AZ12: 0 | BA12: 0 | BB12: 0 | BC12: 0 | BD12: 0 | BE12: 0 | BF12: 0 | BG12: 0 | BH12: 0 | BI12: 0 | BJ12: 0 | BK12: 0 | BL12: 0 | BM12: 0 | BN12: 261.44 | BO12: 261.44 | BP12: 261.44 | BQ12: 261.44 | BR12: 261.44 | BS12: 0 | BT12: 0 | BU12: 0 | BV12: 0 | BW12: 0 | BX12: 0 | BY12: 0 | BZ12: =IF(OR($H12<>"Silver",K12=0),0,IF(K12=MIN(IF(($H$8:$H$5000="Silver")*($D$8:$D$5000=$D12)*(K$8:K$5000>0),K$8:K$5000)),0,K12)) -> 0 | CA12: =IF(OR($H12<>"Silver",L12=0),0,IF(L12=MIN(IF(($H$8:$H$5000="Silver")*($D$8:$D$5000=$D12)*(L$8:L$5000>0),L$8:L$5000)),0,L12)) -> 0 | CB12: =IF(OR($H12<>"Silver",M12=0),0,IF(M12=MIN(IF(($H$8:$H$5000="Silver")*($D$8:$D$5000=$D12)*(M$8:M$5000>0),M$8:M$5000)),0,M12)) -> 0 | CC12: =IF(OR($H12<>"Silver",N12=0),0,IF(N12=MIN(IF(($H$8:$H$5000="Silver")*($D$8:$D$5000=$D12)*(N$8:N$5000>0),N$8:N$5000)),0,N12)) -> 0 | CD12: =IF(OR($H12<>"Silver",O12=0),0,IF(O12=MIN(IF(($H$8:$H$5000="Silver")*($D$8:$D$5000=$D12)*(O$8:O$5000>0),O$8:O$5000)),0,O12)) -> 0 | CE12: =IF(OR($H12<>"Silver",P12=0),0,IF(P12=MIN(IF(($H$8:$H$5000="Silver")*($D$8:$D$5000=$D12)*(P$8:P$5000>0),P$8:P$5000)),0,P12)) -> 0 | CF12: =IF(OR($H12<>"Silver",Q12=0),0,IF(Q12=MIN(IF(($H$8:$H$5000="Silver")*($D$8:$D$5000=$D12)*(Q$8:Q$5000>0),Q$8:Q$5000)),0,Q12)) -> 0 | CG12: =IF(OR($H12<>"Silver",R12=0),0,IF(R12=MIN(IF(($H$8:$H$5000="Silver")*($D$8:$D$5000=$D12)*(R$8:R$5000>0),R$8:R$5000)),0,R12)) -> 0 | CH12: =IF(OR($H12<>"Silver",S12=0),0,IF(S12=MIN(IF(($H$8:$H$5000="Silver")*($D$8:$D$5000=$D12)*(S$8:S$5000>0),S$8:S$5000)),0,S12)) -> 0 | CI12: =IF(OR($H12<>"Silver",T12=0),0,IF(T12=MIN(IF(($H$8:$H$5000="Silver")*($D$8:$D$5000=$D12)*(T$8:T$5000>0),T$8:T$5000)),0,T12)) -> 0 | CJ12: =IF(OR($H12<>"Silver",U12=0),0,IF(U12=MIN(IF(($H$8:$H$5000="Silver")*($D$8:$D$5000=$D12)*(U$8:U$5000>0),U$8:U$5000)),0,U12)) -> 0 | CK12: =IF(OR($H12<>"Silver",V12=0),0,IF(V12=MIN(IF(($H$8:$H$5000="Silver")*($D$8:$D$5000=$D12)*(V$8:V$5000>0),V$8:V$5000)),0,V12)) -> 0 | CL12: =IF(OR($H12<>"Silver",W12=0),0,IF(W12=MIN(IF(($H$8:$H$5000="Silver")*($D$8:$D$5000=$D12)*(W$8:W$5000>0),W$8:W$5000)),0,W12)) -> 0 | CM12: =IF(OR($H12<>"Silver",X12=0),0,IF(X12=MIN(IF(($H$8:$H$5000="Silver")*($D$8:$D$5000=$D12)*(X$8:X$5000>0),X$8:X$5000)),0,X12)) -> 0 | CN12: =IF(OR($H12<>"Silver",Y12=0),0,IF(Y12=MIN(IF(($H$8:$H$5000="Silver")*($D$8:$D$5000=$D12)*(Y$8:Y$5000>0),Y$8:Y$5000)),0,Y12)) -> 0 | CO12: =IF(OR($H12<>"Silver",Z12=0),0,IF(Z12=MIN(IF(($H$8:$H$5000="Silver")*($D$8:$D$5000=$D12)*(Z$8:Z$5000>0),Z$8:Z$5000)),0,Z12)) -> 0 | CP12: =IF(OR($H12<>"Silver",AA12=0),0,IF(AA12=MIN(IF(($H$8:$H$5000="Silver")*($D$8:$D$5000=$D12)*(AA$8:AA$5000>0),AA$8:AA$5000)),0,AA12)) -> 0 | CQ12: =IF(OR($H12<>"Silver",AB12=0),0,IF(AB12=MIN(IF(($H$8:$H$5000="Silver")*($D$8:$D$5000=$D12)*(AB$8:AB$5000>0),AB$8:AB$5000)),0,AB12)) -> 0 | CR12: =IF(OR($H12<>"Silver",AC12=0),0,IF(AC12=MIN(IF(($H$8:$H$5000="Silver")*($D$8:$D$5000=$D12)*(AC$8:AC$5000>0),AC$8:AC$5000)),0,AC12)) -> 0 | CS12: =IF(OR($H12<>"Silver",AD12=0),0,IF(AD12=MIN(IF(($H$8:$H$5000="Silver")*($D$8:$D$5000=$D12)*(AD$8:AD$5000>0),AD$8:AD$5000)),0,AD12)) -> 0 | CT12: =IF(OR($H12<>"Silver",AE12=0),0,IF(AE12=MIN(IF(($H$8:$H$5000="Silver")*($D$8:$D$5000=$D12)*(AE$8:AE$5000>0),AE$8:AE$5000)),0,AE12)) -> 0 | CU12: =IF(OR($H12<>"Silver",AF12=0),0,IF(AF12=MIN(IF(($H$8:$H$5000="Silver")*($D$8:$D$5000=$D12)*(AF$8:AF$5000>0),AF$8:AF$5000)),0,AF12)) -> 0 | CV12: =IF(OR($H12<>"Silver",AG12=0),0,IF(AG12=MIN(IF(($H$8:$H$5000="Silver")*($D$8:$D$5000=$D12)*(AG$8:AG$5000>0),AG$8:AG$5000)),0,AG12)) -> 0 | CW12: =IF(OR($H12<>"Silver",AH12=0),0,IF(AH12=MIN(IF(($H$8:$H$5000="Silver")*($D$8:$D$5000=$D12)*(AH$8:AH$5000>0),AH$8:AH$5000)),0,AH12)) -> 0 | CX12: =IF(OR($H12<>"Silver",AI12=0),0,IF(AI12=MIN(IF(($H$8:$H$5000="Silver")*($D$8:$D$5000=$D12)*(AI$8:AI$5000>0),AI$8:AI$5000)),0,AI12)) -> 0 | CY12: =IF(OR($H12<>"Silver",AJ12=0),0,IF(AJ12=MIN(IF(($H$8:$H$5000="Silver")*($D$8:$D$5000=$D12)*(AJ$8:AJ$5000>0),AJ$8:AJ$5000)),0,AJ12)) -> 0 | CZ12: =IF(OR($H12<>"Silver",AK12=0),0,IF(AK12=MIN(IF(($H$8:$H$5000="Silver")*($D$8:$D$5000=$D12)*(AK$8:AK$5000>0),AK$8:AK$5000)),0,AK12)) -> 0 | DA12: =IF(OR($H12<>"Silver",AL12=0),0,IF(AL12=MIN(IF(($H$8:$H$5000="Silver")*($D$8:$D$5000=$D12)*(AL$8:AL$5000>0),AL$8:AL$5000)),0,AL12)) -> 0 | DB12: =IF(OR($H12<>"Silver",AM12=0),0,IF(AM12=MIN(IF(($H$8:$H$5000="Silver")*($D$8:$D$5000=$D12)*(AM$8:AM$5000>0),AM$8:AM$5000)),0,AM12)) -> 0 | DC12: =IF(OR($H12<>"Silver",AN12=0),0,IF(AN12=MIN(IF(($H$8:$H$5000="Silver")*($D$8:$D$5000=$D12)*(AN$8:AN$5000>0),AN$8:AN$5000)),0,AN12)) -> 0 | DD12: =IF(OR($H12<>"Silver",AO12=0),0,IF(AO12=MIN(IF(($H$8:$H$5000="Silver")*($D$8:$D$5000=$D12)*(AO$8:AO$5000>0),AO$8:AO$5000)),0,AO12)) -> 0 | DE12: =IF(OR($H12<>"Silver",AP12=0),0,IF(AP12=MIN(IF(($H$8:$H$5000="Silver")*($D$8:$D$5000=$D12)*(AP$8:AP$5000>0),AP$8:AP$5000)),0,AP12)) -> 0 | DF12: =IF(OR($H12<>"Silver",AQ12=0),0,IF(AQ12=MIN(IF(($H$8:$H$5000="Silver")*($D$8:$D$5000=$D12)*(AQ$8:AQ$5000>0),AQ$8:AQ$5000)),0,AQ12)) -> 0 | DG12: =IF(OR($H12<>"Silver",AR12=0),0,IF(AR12=MIN(IF(($H$8:$H$5000="Silver")*($D$8:$D$5000=$D12)*(AR$8:AR$5000>0),AR$8:AR$5000)),0,AR12)) -> 0 | DH12: =IF(OR($H12<>"Silver",AS12=0),0,IF(AS12=MIN(IF(($H$8:$H$5000="Silver")*($D$8:$D$5000=$D12)*(AS$8:AS$5000>0),AS$8:AS$5000)),0,AS12)) -> 0 | DI12: =IF(OR($H12<>"Silver",AT12=0),0,IF(AT12=MIN(IF(($H$8:$H$5000="Silver")*($D$8:$D$5000=$D12)*(AT$8:AT$5000>0),AT$8:AT$5000)),0,AT12)) -> 0 | DJ12: =IF(OR($H12<>"Silver",AU12=0),0,IF(AU12=MIN(IF(($H$8:$H$5000="Silver")*($D$8:$D$5000=$D12)*(AU$8:AU$5000>0),AU$8:AU$5000)),0,AU12)) -> 0 | DK12: =IF(OR($H12<>"Silver",AV12=0),0,IF(AV12=MIN(IF(($H$8:$H$5000="Silver")*($D$8:$D$5000=$D12)*(AV$8:AV$5000>0),AV$8:AV$5000)),0,AV12)) -> 0 | DL12: =IF(OR($H12<>"Silver",AW12=0),0,IF(AW12=MIN(IF(($H$8:$H$5000="Silver")*($D$8:$D$5000=$D12)*(AW$8:AW$5000>0),AW$8:AW$5000)),0,AW12)) -> 0 | DM12: =IF(OR($H12<>"Silver",AX12=0),0,IF(AX12=MIN(IF(($H$8:$H$5000="Silver")*($D$8:$D$5000=$D12)*(AX$8:AX$5000>0),AX$8:AX$5000)),0,AX12)) -> 0 | DN12: =IF(OR($H12<>"Silver",AY12=0),0,IF(AY12=MIN(IF(($H$8:$H$5000="Silver")*($D$8:$D$5000=$D12)*(AY$8:AY$5000>0),AY$8:AY$5000)),0,AY12)) -> 0 | DO12: =IF(OR($H12<>"Silver",AZ12=0),0,IF(AZ12=MIN(IF(($H$8:$H$5000="Silver")*($D$8:$D$5000=$D12)*(AZ$8:AZ$5000>0),AZ$8:AZ$5000)),0,AZ12)) -> 0 | DP12: =IF(OR($H12<>"Silver",BA12=0),0,IF(BA12=MIN(IF(($H$8:$H$5000="Silver")*($D$8:$D$5000=$D12)*(BA$8:BA$5000>0),BA$8:BA$5000)),0,BA12)) -> 0 | DQ12: =IF(OR($H12<>"Silver",BB12=0),0,IF(BB12=MIN(IF(($H$8:$H$5000="Silver")*($D$8:$D$5000=$D12)*(BB$8:BB$5000>0),BB$8:BB$5000)),0,BB12)) -> 0 | DR12: =IF(OR($H12<>"Silver",BC12=0),0,IF(BC12=MIN(IF(($H$8:$H$5000="Silver")*($D$8:$D$5000=$D12)*(BC$8:BC$5000>0),BC$8:BC$5000)),0,BC12)) -> 0 | DS12: =IF(OR($H12<>"Silver",BD12=0),0,IF(BD12=MIN(IF(($H$8:$H$5000="Silver")*($D$8:$D$5000=$D12)*(BD$8:BD$5000>0),BD$8:BD$5000)),0,BD12)) -> 0 | DT12: =IF(OR($H12<>"Silver",BE12=0),0,IF(BE12=MIN(IF(($H$8:$H$5000="Silver")*($D$8:$D$5000=$D12)*(BE$8:BE$5000>0),BE$8:BE$5000)),0,BE12)) -> 0 | DU12: =IF(OR($H12<>"Silver",BF12=0),0,IF(BF12=MIN(IF(($H$8:$H$5000="Silver")*($D$8:$D$5000=$D12)*(BF$8:BF$5000>0),BF$8:BF$5000)),0,BF12)) -> 0 | DV12: =IF(OR($H12<>"Silver",BG12=0),0,IF(BG12=MIN(IF(($H$8:$H$5000="Silver")*($D$8:$D$5000=$D12)*(BG$8:BG$5000>0),BG$8:BG$5000)),0,BG12)) -> 0 | DW12: =IF(OR($H12<>"Silver",BH12=0),0,IF(BH12=MIN(IF(($H$8:$H$5000="Silver")*($D$8:$D$5000=$D12)*(BH$8:BH$5000>0),BH$8:BH$5000)),0,BH12)) -> 0 | DX12: =IF(OR($H12<>"Silver",BI12=0),0,IF(BI12=MIN(IF(($H$8:$H$5000="Silver")*($D$8:$D$5000=$D12)*(BI$8:BI$5000>0),BI$8:BI$5000)),0,BI12)) -> 0 | DY12: =IF(OR($H12<>"Silver",BJ12=0),0,IF(BJ12=MIN(IF(($H$8:$H$5000="Silver")*($D$8:$D$5000=$D12)*(BJ$8:BJ$5000>0),BJ$8:BJ$5000)),0,BJ12)) -> 0 | DZ12: =IF(OR($H12<>"Silver",BK12=0),0,IF(BK12=MIN(IF(($H$8:$H$5000="Silver")*($D$8:$D$5000=$D12)*(BK$8:BK$5000>0),BK$8:BK$5000)),0,BK12)) -> 0 | EA12: =IF(OR($H12<>"Silver",BL12=0),0,IF(BL12=MIN(IF(($H$8:$H$5000="Silver")*($D$8:$D$5000=$D12)*(BL$8:BL$5000>0),BL$8:BL$5000)),0,BL12)) -> 0 | EB12: =IF(OR($H12<>"Silver",BM12=0),0,IF(BM12=MIN(IF(($H$8:$H$5000="Silver")*($D$8:$D$5000=$D12)*(BM$8:BM$5000>0),BM$8:BM$5000)),0,BM12)) -> 0 | EC12: =IF(OR($H12<>"Silver",BN12=0),0,IF(BN12=MIN(IF(($H$8:$H$5000="Silver")*($D$8:$D$5000=$D12)*(BN$8:BN$5000>0),BN$8:BN$5000)),0,BN12)) -> 0 | ED12: =IF(OR($H12<>"Silver",BO12=0),0,IF(BO12=MIN(IF(($H$8:$H$5000="Silver")*($D$8:$D$5000=$D12)*(BO$8:BO$5000>0),BO$8:BO$5000)),0,BO12)) -> 0 | EE12: =IF(OR($H12<>"Silver",BP12=0),0,IF(BP12=MIN(IF(($H$8:$H$5000="Silver")*($D$8:$D$5000=$D12)*(BP$8:BP$5000>0),BP$8:BP$5000)),0,BP12)) -> 0 | EF12: =IF(OR($H12<>"Silver",BQ12=0),0,IF(BQ12=MIN(IF(($H$8:$H$5000="Silver")*($D$8:$D$5000=$D12)*(BQ$8:BQ$5000>0),BQ$8:BQ$5000)),0,BQ12)) -> 0 | EG12: =IF(OR($H12<>"Silver",BR12=0),0,IF(BR12=MIN(IF(($H$8:$H$5000="Silver")*($D$8:$D$5000=$D12)*(BR$8:BR$5000>0),BR$8:BR$5000)),0,BR12)) -> 0 | EH12: =IF(OR($H12<>"Silver",BS12=0),0,IF(BS12=MIN(IF(($H$8:$H$5000="Silver")*($D$8:$D$5000=$D12)*(BS$8:BS$5000>0),BS$8:BS$5000)),0,BS12)) -> 0 | EI12: =IF(OR($H12<>"Silver",BT12=0),0,IF(BT12=MIN(IF(($H$8:$H$5000="Silver")*($D$8:$D$5000=$D12)*(BT$8:BT$5000>0),BT$8:BT$5000)),0,BT12)) -> 0 | EJ12: =IF(OR($H12<>"Silver",BU12=0),0,IF(BU12=MIN(IF(($H$8:$H$5000="Silver")*($D$8:$D$5000=$D12)*(BU$8:BU$5000>0),BU$8:BU$5000)),0,BU12)) -> 0 | EK12: =IF(OR($H12<>"Silver",BV12=0),0,IF(BV12=MIN(IF(($H$8:$H$5000="Silver")*($D$8:$D$5000=$D12)*(BV$8:BV$5000>0),BV$8:BV$5000)),0,BV12)) -> 0 | EL12: =IF(OR($H12<>"Silver",BW12=0),0,IF(BW12=MIN(IF(($H$8:$H$5000="Silver")*($D$8:$D$5000=$D12)*(BW$8:BW$5000>0),BW$8:BW$5000)),0,BW12)) -> 0 | EM12: =IF(OR($H12<>"Silver",BX12=0),0,IF(BX12=MIN(IF(($H$8:$H$5000="Silver")*($D$8:$D$5000=$D12)*(BX$8:BX$5000>0),BX$8:BX$5000)),0,BX12)) -> 0 | EN12: =IF(OR($H12<>"Silver",BY12=0),0,IF(BY12=MIN(IF(($H$8:$H$5000="Silver")*($D$8:$D$5000=$D12)*(BY$8:BY$5000>0),BY$8:BY$5000)),0,BY12)) -> 0
B13: IBC | C13: QCC | D13: Individual | E13: 31609PA0160001 | F13: Personal Choice Catastrophic | G13: PPO | H13: Catastrophic | I13: On | K13: 0 | L13: 0 | M13: 0 | N13: 0 | O13: 0 | P13: 0 | Q13: 0 | R13: 0 | S13: 0 | T13: 0 | U13: 0 | V13: 0 | W13: 0 | X13: 0 | Y13: 0 | Z13: 0 | AA13: 0 | AB13: 0 | AC13: 0 | AD13: 0 | AE13: 0 | AF13: 0 | AG13: 0 | AH13: 0 | AI13: 0 | AJ13: 0 | AK13: 0 | AL13: 0 | AM13: 0 | AN13: 0 | AO13: 0 | AP13: 0 | AQ13: 0 | AR13: 0 | AS13: 0 | AT13: 0 | AU13: 0 | AV13: 0 | AW13: 0 | AX13: 0 | AY13: 0 | AZ13: 0 | BA13: 0 | BB13: 0 | BC13: 0 | BD13: 0 | BE13: 0 | BF13: 0 | BG13: 0 | BH13: 0 | BI13: 0 | BJ13: 0 | BK13: 0 | BL13: 0 | BM13: 0 | BN13: 232.13 | BO13: 232.13 | BP13: 232.13 | BQ13: 232.13 | BR13: 232.13 | BS13: 0 | BT13: 0 | BU13: 0 | BV13: 0 | BW13: 0 | BX13: 0 | BY13: 0 | BZ13: =IF(OR($H13<>"Silver",K13=0),0,IF(K13=MIN(IF(($H$8:$H$5000="Silver")*($D$8:$D$5000=$D13)*(K$8:K$5000>0),K$8:K$5000)),0,K13)) -> 0 | CA13: =IF(OR($H13<>"Silver",L13=0),0,IF(L13=MIN(IF(($H$8:$H$5000="Silver")*($D$8:$D$5000=$D13)*(L$8:L$5000>0),L$8:L$5000)),0,L13)) -> 0 | CB13: =IF(OR($H13<>"Silver",M13=0),0,IF(M13=MIN(IF(($H$8:$H$5000="Silver")*($D$8:$D$5000=$D13)*(M$8:M$5000>0),M$8:M$5000)),0,M13)) -> 0 | CC13: =IF(OR($H13<>"Silver",N13=0),0,IF(N13=MIN(IF(($H$8:$H$5000="Silver")*($D$8:$D$5000=$D13)*(N$8:N$5000>0),N$8:N$5000)),0,N13)) -> 0 | CD13: =IF(OR($H13<>"Silver",O13=0),0,IF(O13=MIN(IF(($H$8:$H$5000="Silver")*($D$8:$D$5000=$D13)*(O$8:O$5000>0),O$8:O$5000)),0,O13)) -> 0 | CE13: =IF(OR($H13<>"Silver",P13=0),0,IF(P13=MIN(IF(($H$8:$H$5000="Silver")*($D$8:$D$5000=$D13)*(P$8:P$5000>0),P$8:P$5000)),0,P13)) -> 0 | CF13: =IF(OR($H13<>"Silver",Q13=0),0,IF(Q13=MIN(IF(($H$8:$H$5000="Silver")*($D$8:$D$5000=$D13)*(Q$8:Q$5000>0),Q$8:Q$5000)),0,Q13)) -> 0 | CG13: =IF(OR($H13<>"Silver",R13=0),0,IF(R13=MIN(IF(($H$8:$H$5000="Silver")*($D$8:$D$5000=$D13)*(R$8:R$5000>0),R$8:R$5000)),0,R13)) -> 0 | CH13: =IF(OR($H13<>"Silver",S13=0),0,IF(S13=MIN(IF(($H$8:$H$5000="Silver")*($D$8:$D$5000=$D13)*(S$8:S$5000>0),S$8:S$5000)),0,S13)) -> 0 | CI13: =IF(OR($H13<>"Silver",T13=0),0,IF(T13=MIN(IF(($H$8:$H$5000="Silver")*($D$8:$D$5000=$D13)*(T$8:T$5000>0),T$8:T$5000)),0,T13)) -> 0 | CJ13: =IF(OR($H13<>"Silver",U13=0),0,IF(U13=MIN(IF(($H$8:$H$5000="Silver")*($D$8:$D$5000=$D13)*(U$8:U$5000>0),U$8:U$5000)),0,U13)) -> 0 | CK13: =IF(OR($H13<>"Silver",V13=0),0,IF(V13=MIN(IF(($H$8:$H$5000="Silver")*($D$8:$D$5000=$D13)*(V$8:V$5000>0),V$8:V$5000)),0,V13)) -> 0 | CL13: =IF(OR($H13<>"Silver",W13=0),0,IF(W13=MIN(IF(($H$8:$H$5000="Silver")*($D$8:$D$5000=$D13)*(W$8:W$5000>0),W$8:W$5000)),0,W13)) -> 0 | CM13: =IF(OR($H13<>"Silver",X13=0),0,IF(X13=MIN(IF(($H$8:$H$5000="Silver")*($D$8:$D$5000=$D13)*(X$8:X$5000>0),X$8:X$5000)),0,X13)) -> 0 | CN13: =IF(OR($H13<>"Silver",Y13=0),0,IF(Y13=MIN(IF(($H$8:$H$5000="Silver")*($D$8:$D$5000=$D13)*(Y$8:Y$5000>0),Y$8:Y$5000)),0,Y13)) -> 0 | CO13: =IF(OR($H13<>"Silver",Z13=0),0,IF(Z13=MIN(IF(($H$8:$H$5000="Silver")*($D$8:$D$5000=$D13)*(Z$8:Z$5000>0),Z$8:Z$5000)),0,Z13)) -> 0 | CP13: =IF(OR($H13<>"Silver",AA13=0),0,IF(AA13=MIN(IF(($H$8:$H$5000="Silver")*($D$8:$D$5000=$D13)*(AA$8:AA$5000>0),AA$8:AA$5000)),0,AA13)) -> 0 | CQ13: =IF(OR($H13<>"Silver",AB13=0),0,IF(AB13=MIN(IF(($H$8:$H$5000="Silver")*($D$8:$D$5000=$D13)*(AB$8:AB$5000>0),AB$8:AB$5000)),0,AB13)) -> 0 | CR13: =IF(OR($H13<>"Silver",AC13=0),0,IF(AC13=MIN(IF(($H$8:$H$5000="Silver")*($D$8:$D$5000=$D13)*(AC$8:AC$5000>0),AC$8:AC$5000)),0,AC13)) -> 0 | CS13: =IF(OR($H13<>"Silver",AD13=0),0,IF(AD13=MIN(IF(($H$8:$H$5000="Silver")*($D$8:$D$5000=$D13)*(AD$8:AD$5000>0),AD$8:AD$5000)),0,AD13)) -> 0 | CT13: =IF(OR($H13<>"Silver",AE13=0),0,IF(AE13=MIN(IF(($H$8:$H$5000="Silver")*($D$8:$D$5000=$D13)*(AE$8:AE$5000>0),AE$8:AE$5000)),0,AE13)) -> 0 | CU13: =IF(OR($H13<>"Silver",AF13=0),0,IF(AF13=MIN(IF(($H$8:$H$5000="Silver")*($D$8:$D$5000=$D13)*(AF$8:AF$5000>0),AF$8:AF$5000)),0,AF13)) -> 0 | CV13: =IF(OR($H13<>"Silver",AG13=0),0,IF(AG13=MIN(IF(($H$8:$H$5000="Silver")*($D$8:$D$5000=$D13)*(AG$8:AG$5000>0),AG$8:AG$5000)),0,AG13)) -> 0 | CW13: =IF(OR($H13<>"Silver",AH13=0),0,IF(AH13=MIN(IF(($H$8:$H$5000="Silver")*($D$8:$D$5000=$D13)*(AH$8:AH$5000>0),AH$8:AH$5000)),0,AH13)) -> 0 | CX13: =IF(OR($H13<>"Silver",AI13=0),0,IF(AI13=MIN(IF(($H$8:$H$5000="Silver")*($D$8:$D$5000=$D13)*(AI$8:AI$5000>0),AI$8:AI$5000)),0,AI13)) -> 0 | CY13: =IF(OR($H13<>"Silver",AJ13=0),0,IF(AJ13=MIN(IF(($H$8:$H$5000="Silver")*($D$8:$D$5000=$D13)*(AJ$8:AJ$5000>0),AJ$8:AJ$5000)),0,AJ13)) -> 0 | CZ13: =IF(OR($H13<>"Silver",AK13=0),0,IF(AK13=MIN(IF(($H$8:$H$5000="Silver")*($D$8:$D$5000=$D13)*(AK$8:AK$5000>0),AK$8:AK$5000)),0,AK13)) -> 0 | DA13: =IF(OR($H13<>"Silver",AL13=0),0,IF(AL13=MIN(IF(($H$8:$H$5000="Silver")*($D$8:$D$5000=$D13)*(AL$8:AL$5000>0),AL$8:AL$5000)),0,AL13)) -> 0 | DB13: =IF(OR($H13<>"Silver",AM13=0),0,IF(AM13=MIN(IF(($H$8:$H$5000="Silver")*($D$8:$D$5000=$D13)*(AM$8:AM$5000>0),AM$8:AM$5000)),0,AM13)) -> 0 | DC13: =IF(OR($H13<>"Silver",AN13=0),0,IF(AN13=MIN(IF(($H$8:$H$5000="Silver")*($D$8:$D$5000=$D13)*(AN$8:AN$5000>0),AN$8:AN$5000)),0,AN13)) -> 0 | DD13: =IF(OR($H13<>"Silver",AO13=0),0,IF(AO13=MIN(IF(($H$8:$H$5000="Silver")*($D$8:$D$5000=$D13)*(AO$8:AO$5000>0),AO$8:AO$5000)),0,AO13)) -> 0 | DE13: =IF(OR($H13<>"Silver",AP13=0),0,IF(AP13=MIN(IF(($H$8:$H$5000="Silver")*($D$8:$D$5000=$D13)*(AP$8:AP$5000>0),AP$8:AP$5000)),0,AP13)) -> 0 | DF13: =IF(OR($H13<>"Silver",AQ13=0),0,IF(AQ13=MIN(IF(($H$8:$H$5000="Silver")*($D$8:$D$5000=$D13)*(AQ$8:AQ$5000>0),AQ$8:AQ$5000)),0,AQ13)) -> 0 | DG13: =IF(OR($H13<>"Silver",AR13=0),0,IF(AR13=MIN(IF(($H$8:$H$5000="Silver")*($D$8:$D$5000=$D13)*(AR$8:AR$5000>0),AR$8:AR$5000)),0,AR13)) -> 0 | DH13: =IF(OR($H13<>"Silver",AS13=0),0,IF(AS13=MIN(IF(($H$8:$H$5000="Silver")*($D$8:$D$5000=$D13)*(AS$8:AS$5000>0),AS$8:AS$5000)),0,AS13)) -> 0 | DI13: =IF(OR($H13<>"Silver",AT13=0),0,IF(AT13=MIN(IF(($H$8:$H$5000="Silver")*($D$8:$D$5000=$D13)*(AT$8:AT$5000>0),AT$8:AT$5000)),0,AT13)) -> 0 | DJ13: =IF(OR($H13<>"Silver",AU13=0),0,IF(AU13=MIN(IF(($H$8:$H$5000="Silver")*($D$8:$D$5000=$D13)*(AU$8:AU$5000>0),AU$8:AU$5000)),0,AU13)) -> 0 | DK13: =IF(OR($H13<>"Silver",AV13=0),0,IF(AV13=MIN(IF(($H$8:$H$5000="Silver")*($D$8:$D$5000=$D13)*(AV$8:AV$5000>0),AV$8:AV$5000)),0,AV13)) -> 0 | DL13: =IF(OR($H13<>"Silver",AW13=0),0,IF(AW13=MIN(IF(($H$8:$H$5000="Silver")*($D$8:$D$5000=$D13)*(AW$8:AW$5000>0),AW$8:AW$5000)),0,AW13)) -> 0 | DM13: =IF(OR($H13<>"Silver",AX13=0),0,IF(AX13=MIN(IF(($H$8:$H$5000="Silver")*($D$8:$D$5000=$D13)*(AX$8:AX$5000>0),AX$8:AX$5000)),0,AX13)) -> 0 | DN13: =IF(OR($H13<>"Silver",AY13=0),0,IF(AY13=MIN(IF(($H$8:$H$5000="Silver")*($D$8:$D$5000=$D13)*(AY$8:AY$5000>0),AY$8:AY$5000)),0,AY13)) -> 0 | DO13: =IF(OR($H13<>"Silver",AZ13=0),0,IF(AZ13=MIN(IF(($H$8:$H$5000="Silver")*($D$8:$D$5000=$D13)*(AZ$8:AZ$5000>0),AZ$8:AZ$5000)),0,AZ13)) -> 0 | DP13: =IF(OR($H13<>"Silver",BA13=0),0,IF(BA13=MIN(IF(($H$8:$H$5000="Silver")*($D$8:$D$5000=$D13)*(BA$8:BA$5000>0),BA$8:BA$5000)),0,BA13)) -> 0 | DQ13: =IF(OR($H13<>"Silver",BB13=0),0,IF(BB13=MIN(IF(($H$8:$H$5000="Silver")*($D$8:$D$5000=$D13)*(BB$8:BB$5000>0),BB$8:BB$5000)),0,BB13)) -> 0 | DR13: =IF(OR($H13<>"Silver",BC13=0),0,IF(BC13=MIN(IF(($H$8:$H$5000="Silver")*($D$8:$D$5000=$D13)*(BC$8:BC$5000>0),BC$8:BC$5000)),0,BC13)) -> 0 | DS13: =IF(OR($H13<>"Silver",BD13=0),0,IF(BD13=MIN(IF(($H$8:$H$5000="Silver")*($D$8:$D$5000=$D13)*(BD$8:BD$5000>0),BD$8:BD$5000)),0,BD13)) -> 0 | DT13: =IF(OR($H13<>"Silver",BE13=0),0,IF(BE13=MIN(IF(($H$8:$H$5000="Silver")*($D$8:$D$5000=$D13)*(BE$8:BE$5000>0),BE$8:BE$5000)),0,BE13)) -> 0 | DU13: =IF(OR($H13<>"Silver",BF13=0),0,IF(BF13=MIN(IF(($H$8:$H$5000="Silver")*($D$8:$D$5000=$D13)*(BF$8:BF$5000>0),BF$8:BF$5000)),0,BF13)) -> 0 | DV13: =IF(OR($H13<>"Silver",BG13=0),0,IF(BG13=MIN(IF(($H$8:$H$5000="Silver")*($D$8:$D$5000=$D13)*(BG$8:BG$5000>0),BG$8:BG$5000)),0,BG13)) -> 0 | DW13: =IF(OR($H13<>"Silver",BH13=0),0,IF(BH13=MIN(IF(($H$8:$H$5000="Silver")*($D$8:$D$5000=$D13)*(BH$8:BH$5000>0),BH$8:BH$5000)),0,BH13)) -> 0 | DX13: =IF(OR($H13<>"Silver",BI13=0),0,IF(BI13=MIN(IF(($H$8:$H$5000="Silver")*($D$8:$D$5000=$D13)*(BI$8:BI$5000>0),BI$8:BI$5000)),0,BI13)) -> 0 | DY13: =IF(OR($H13<>"Silver",BJ13=0),0,IF(BJ13=MIN(IF(($H$8:$H$5000="Silver")*($D$8:$D$5000=$D13)*(BJ$8:BJ$5000>0),BJ$8:BJ$5000)),0,BJ13)) -> 0 | DZ13: =IF(OR($H13<>"Silver",BK13=0),0,IF(BK13=MIN(IF(($H$8:$H$5000="Silver")*($D$8:$D$5000=$D13)*(BK$8:BK$5000>0),BK$8:BK$5000)),0,BK13)) -> 0 | EA13: =IF(OR($H13<>"Silver",BL13=0),0,IF(BL13=MIN(IF(($H$8:$H$5000="Silver")*($D$8:$D$5000=$D13)*(BL$8:BL$5000>0),BL$8:BL$5000)),0,BL13)) -> 0 | EB13: =IF(OR($H13<>"Silver",BM13=0),0,IF(BM13=MIN(IF(($H$8:$H$5000="Silver")*($D$8:$D$5000=$D13)*(BM$8:BM$5000>0),BM$8:BM$5000)),0,BM13)) -> 0 | EC13: =IF(OR($H13<>"Silver",BN13=0),0,IF(BN13=MIN(IF(($H$8:$H$5000="Silver")*($D$8:$D$5000=$D13)*(BN$8:BN$5000>0),BN$8:BN$5000)),0,BN13)) -> 0 | ED13: =IF(OR($H13<>"Silver",BO13=0),0,IF(BO13=MIN(IF(($H$8:$H$5000="Silver")*($D$8:$D$5000=$D13)*(BO$8:BO$5000>0),BO$8:BO$5000)),0,BO13)) -> 0 | EE13: =IF(OR($H13<>"Silver",BP13=0),0,IF(BP13=MIN(IF(($H$8:$H$5000="Silver")*($D$8:$D$5000=$D13)*(BP$8:BP$5000>0),BP$8:BP$5000)),0,BP13)) -> 0 | EF13: =IF(OR($H13<>"Silver",BQ13=0),0,IF(BQ13=MIN(IF(($H$8:$H$5000="Silver")*($D$8:$D$5000=$D13)*(BQ$8:BQ$5000>0),BQ$8:BQ$5000)),0,BQ13)) -> 0 | EG13: =IF(OR($H13<>"Silver",BR13=0),0,IF(BR13=MIN(IF(($H$8:$H$5000="Silver")*($D$8:$D$5000=$D13)*(BR$8:BR$5000>0),BR$8:BR$5000)),0,BR13)) -> 0 | EH13: =IF(OR($H13<>"Silver",BS13=0),0,IF(BS13=MIN(IF(($H$8:$H$5000="Silver")*($D$8:$D$5000=$D13)*(BS$8:BS$5000>0),BS$8:BS$5000)),0,BS13)) -> 0 | EI13: =IF(OR($H13<>"Silver",BT13=0),0,IF(BT13=MIN(IF(($H$8:$H$5000="Silver")*($D$8:$D$5000=$D13)*(BT$8:BT$5000>0),BT$8:BT$5000)),0,BT13)) -> 0 | EJ13: =IF(OR($H13<>"Silver",BU13=0),0,IF(BU13=MIN(IF(($H$8:$H$5000="Silver")*($D$8:$D$5000=$D13)*(BU$8:BU$5000>0),BU$8:BU$5000)),0,BU13)) -> 0 | EK13: =IF(OR($H13<>"Silver",BV13=0),0,IF(BV13=MIN(IF(($H$8:$H$5000="Silver")*($D$8:$D$5000=$D13)*(BV$8:BV$5000>0),BV$8:BV$5000)),0,BV13)) -> 0 | EL13: =IF(OR($H13<>"Silver",BW13=0),0,IF(BW13=MIN(IF(($H$8:$H$5000="Silver")*($D$8:$D$5000=$D13)*(BW$8:BW$5000>0),BW$8:BW$5000)),0,BW13)) -> 0 | EM13: =IF(OR($H13<>"Silver",BX13=0),0,IF(BX13=MIN(IF(($H$8:$H$5000="Silver")*($D$8:$D$5000=$D13)*(BX$8:BX$5000>0),BX$8:BX$5000)),0,BX13)) -> 0 | EN13: =IF(OR($H13<>"Silver",BY13=0),0,IF(BY13=MIN(IF(($H$8:$H$5000="Silver")*($D$8:$D$5000=$D13)*(BY$8:BY$5000>0),BY$8:BY$5000)),0,BY13)) -> 0
B14: IBC | C14: QCC | D14: Individual | E14: 31609PA0160002 | F14: Personal Choice Bronze Basic | G14: PPO | H14: Bronze | I14: On | K14: 0 | L14: 0 | M14: 0 | N14: 0 | O14: 0 | P14: 0 | Q14: 0 | R14: 0 | S14: 0 | T14: 0 | U14: 0 | V14: 0 | W14: 0 | X14: 0 | Y14: 0 | Z14: 0 | AA14: 0 | AB14: 0 | AC14: 0 | AD14: 0 | AE14: 0 | AF14: 0 | AG14: 0 | AH14: 0 | AI14: 0 | AJ14: 0 | AK14: 0 | AL14: 0 | AM14: 0 | AN14: 0 | AO14: 0 | AP14: 0 | AQ14: 0 | AR14: 0 | AS14: 0 | AT14: 0 | AU14: 0 | AV14: 0 | AW14: 0 | AX14: 0 | AY14: 0 | AZ14: 0 | BA14: 0 | BB14: 0 | BC14: 0 | BD14: 0 | BE14: 0 | BF14: 0 | BG14: 0 | BH14: 0 | BI14: 0 | BJ14: 0 | BK14: 0 | BL14: 0 | BM14: 0 | BN14: 237.59 | BO14: 237.59 | BP14: 237.59 | BQ14: 237.59 | BR14: 237.59 | BS14: 0 | BT14: 0 | BU14: 0 | BV14: 0 | BW14: 0 | BX14: 0 | BY14: 0 | BZ14: =IF(OR($H14<>"Silver",K14=0),0,IF(K14=MIN(IF(($H$8:$H$5000="Silver")*($D$8:$D$5000=$D14)*(K$8:K$5000>0),K$8:K$5000)),0,K14)) -> 0 | CA14: =IF(OR($H14<>"Silver",L14=0),0,IF(L14=MIN(IF(($H$8:$H$5000="Silver")*($D$8:$D$5000=$D14)*(L$8:L$5000>0),L$8:L$5000)),0,L14)) -> 0 | CB14: =IF(OR($H14<>"Silver",M14=0),0,IF(M14=MIN(IF(($H$8:$H$5000="Silver")*($D$8:$D$5000=$D14)*(M$8:M$5000>0),M$8:M$5000)),0,M14)) -> 0 | CC14: =IF(OR($H14<>"Silver",N14=0),0,IF(N14=MIN(IF(($H$8:$H$5000="Silver")*($D$8:$D$5000=$D14)*(N$8:N$5000>0),N$8:N$5000)),0,N14)) -> 0 | CD14: =IF(OR($H14<>"Silver",O14=0),0,IF(O14=MIN(IF(($H$8:$H$5000="Silver")*($D$8:$D$5000=$D14)*(O$8:O$5000>0),O$8:O$5000)),0,O14)) -> 0 | CE14: =IF(OR($H14<>"Silver",P14=0),0,IF(P14=MIN(IF(($H$8:$H$5000="Silver")*($D$8:$D$5000=$D14)*(P$8:P$5000>0),P$8:P$5000)),0,P14)) -> 0 | CF14: =IF(OR($H14<>"Silver",Q14=0),0,IF(Q14=MIN(IF(($H$8:$H$5000="Silver")*($D$8:$D$5000=$D14)*(Q$8:Q$5000>0),Q$8:Q$5000)),0,Q14)) -> 0 | CG14: =IF(OR($H14<>"Silver",R14=0),0,IF(R14=MIN(IF(($H$8:$H$5000="Silver")*($D$8:$D$5000=$D14)*(R$8:R$5000>0),R$8:R$5000)),0,R14)) -> 0 | CH14: =IF(OR($H14<>"Silver",S14=0),0,IF(S14=MIN(IF(($H$8:$H$5000="Silver")*($D$8:$D$5000=$D14)*(S$8:S$5000>0),S$8:S$5000)),0,S14)) -> 0 | CI14: =IF(OR($H14<>"Silver",T14=0),0,IF(T14=MIN(IF(($H$8:$H$5000="Silver")*($D$8:$D$5000=$D14)*(T$8:T$5000>0),T$8:T$5000)),0,T14)) -> 0 | CJ14: =IF(OR($H14<>"Silver",U14=0),0,IF(U14=MIN(IF(($H$8:$H$5000="Silver")*($D$8:$D$5000=$D14)*(U$8:U$5000>0),U$8:U$5000)),0,U14)) -> 0 | CK14: =IF(OR($H14<>"Silver",V14=0),0,IF(V14=MIN(IF(($H$8:$H$5000="Silver")*($D$8:$D$5000=$D14)*(V$8:V$5000>0),V$8:V$5000)),0,V14)) -> 0 | CL14: =IF(OR($H14<>"Silver",W14=0),0,IF(W14=MIN(IF(($H$8:$H$5000="Silver")*($D$8:$D$5000=$D14)*(W$8:W$5000>0),W$8:W$5000)),0,W14)) -> 0 | CM14: =IF(OR($H14<>"Silver",X14=0),0,IF(X14=MIN(IF(($H$8:$H$5000="Silver")*($D$8:$D$5000=$D14)*(X$8:X$5000>0),X$8:X$5000)),0,X14)) -> 0 | CN14: =IF(OR($H14<>"Silver",Y14=0),0,IF(Y14=MIN(IF(($H$8:$H$5000="Silver")*($D$8:$D$5000=$D14)*(Y$8:Y$5000>0),Y$8:Y$5000)),0,Y14)) -> 0 | CO14: =IF(OR($H14<>"Silver",Z14=0),0,IF(Z14=MIN(IF(($H$8:$H$5000="Silver")*($D$8:$D$5000=$D14)*(Z$8:Z$5000>0),Z$8:Z$5000)),0,Z14)) -> 0 | CP14: =IF(OR($H14<>"Silver",AA14=0),0,IF(AA14=MIN(IF(($H$8:$H$5000="Silver")*($D$8:$D$5000=$D14)*(AA$8:AA$5000>0),AA$8:AA$5000)),0,AA14)) -> 0 | CQ14: =IF(OR($H14<>"Silver",AB14=0),0,IF(AB14=MIN(IF(($H$8:$H$5000="Silver")*($D$8:$D$5000=$D14)*(AB$8:AB$5000>0),AB$8:AB$5000)),0,AB14)) -> 0 | CR14: =IF(OR($H14<>"Silver",AC14=0),0,IF(AC14=MIN(IF(($H$8:$H$5000="Silver")*($D$8:$D$5000=$D14)*(AC$8:AC$5000>0),AC$8:AC$5000)),0,AC14)) -> 0 | CS14: =IF(OR($H14<>"Silver",AD14=0),0,IF(AD14=MIN(IF(($H$8:$H$5000="Silver")*($D$8:$D$5000=$D14)*(AD$8:AD$5000>0),AD$8:AD$5000)),0,AD14)) -> 0 | CT14: =IF(OR($H14<>"Silver",AE14=0),0,IF(AE14=MIN(IF(($H$8:$H$5000="Silver")*($D$8:$D$5000=$D14)*(AE$8:AE$5000>0),AE$8:AE$5000)),0,AE14)) -> 0 | CU14: =IF(OR($H14<>"Silver",AF14=0),0,IF(AF14=MIN(IF(($H$8:$H$5000="Silver")*($D$8:$D$5000=$D14)*(AF$8:AF$5000>0),AF$8:AF$5000)),0,AF14)) -> 0 | CV14: =IF(OR($H14<>"Silver",AG14=0),0,IF(AG14=MIN(IF(($H$8:$H$5000="Silver")*($D$8:$D$5000=$D14)*(AG$8:AG$5000>0),AG$8:AG$5000)),0,AG14)) -> 0 | CW14: =IF(OR($H14<>"Silver",AH14=0),0,IF(AH14=MIN(IF(($H$8:$H$5000="Silver")*($D$8:$D$5000=$D14)*(AH$8:AH$5000>0),AH$8:AH$5000)),0,AH14)) -> 0 | CX14: =IF(OR($H14<>"Silver",AI14=0),0,IF(AI14=MIN(IF(($H$8:$H$5000="Silver")*($D$8:$D$5000=$D14)*(AI$8:AI$5000>0),AI$8:AI$5000)),0,AI14)) -> 0 | CY14: =IF(OR($H14<>"Silver",AJ14=0),0,IF(AJ14=MIN(IF(($H$8:$H$5000="Silver")*($D$8:$D$5000=$D14)*(AJ$8:AJ$5000>0),AJ$8:AJ$5000)),0,AJ14)) -> 0 | CZ14: =IF(OR($H14<>"Silver",AK14=0),0,IF(AK14=MIN(IF(($H$8:$H$5000="Silver")*($D$8:$D$5000=$D14)*(AK$8:AK$5000>0),AK$8:AK$5000)),0,AK14)) -> 0 | DA14: =IF(OR($H14<>"Silver",AL14=0),0,IF(AL14=MIN(IF(($H$8:$H$5000="Silver")*($D$8:$D$5000=$D14)*(AL$8:AL$5000>0),AL$8:AL$5000)),0,AL14)) -> 0 | DB14: =IF(OR($H14<>"Silver",AM14=0),0,IF(AM14=MIN(IF(($H$8:$H$5000="Silver")*($D$8:$D$5000=$D14)*(AM$8:AM$5000>0),AM$8:AM$5000)),0,AM14)) -> 0 | DC14: =IF(OR($H14<>"Silver",AN14=0),0,IF(AN14=MIN(IF(($H$8:$H$5000="Silver")*($D$8:$D$5000=$D14)*(AN$8:AN$5000>0),AN$8:AN$5000)),0,AN14)) -> 0 | DD14: =IF(OR($H14<>"Silver",AO14=0),0,IF(AO14=MIN(IF(($H$8:$H$5000="Silver")*($D$8:$D$5000=$D14)*(AO$8:AO$5000>0),AO$8:AO$5000)),0,AO14)) -> 0 | DE14: =IF(OR($H14<>"Silver",AP14=0),0,IF(AP14=MIN(IF(($H$8:$H$5000="Silver")*($D$8:$D$5000=$D14)*(AP$8:AP$5000>0),AP$8:AP$5000)),0,AP14)) -> 0 | DF14: =IF(OR($H14<>"Silver",AQ14=0),0,IF(AQ14=MIN(IF(($H$8:$H$5000="Silver")*($D$8:$D$5000=$D14)*(AQ$8:AQ$5000>0),AQ$8:AQ$5000)),0,AQ14)) -> 0 | DG14: =IF(OR($H14<>"Silver",AR14=0),0,IF(AR14=MIN(IF(($H$8:$H$5000="Silver")*($D$8:$D$5000=$D14)*(AR$8:AR$5000>0),AR$8:AR$5000)),0,AR14)) -> 0 | DH14: =IF(OR($H14<>"Silver",AS14=0),0,IF(AS14=MIN(IF(($H$8:$H$5000="Silver")*($D$8:$D$5000=$D14)*(AS$8:AS$5000>0),AS$8:AS$5000)),0,AS14)) -> 0 | DI14: =IF(OR($H14<>"Silver",AT14=0),0,IF(AT14=MIN(IF(($H$8:$H$5000="Silver")*($D$8:$D$5000=$D14)*(AT$8:AT$5000>0),AT$8:AT$5000)),0,AT14)) -> 0 | DJ14: =IF(OR($H14<>"Silver",AU14=0),0,IF(AU14=MIN(IF(($H$8:$H$5000="Silver")*($D$8:$D$5000=$D14)*(AU$8:AU$5000>0),AU$8:AU$5000)),0,AU14)) -> 0 | DK14: =IF(OR($H14<>"Silver",AV14=0),0,IF(AV14=MIN(IF(($H$8:$H$5000="Silver")*($D$8:$D$5000=$D14)*(AV$8:AV$5000>0),AV$8:AV$5000)),0,AV14)) -> 0 | DL14: =IF(OR($H14<>"Silver",AW14=0),0,IF(AW14=MIN(IF(($H$8:$H$5000="Silver")*($D$8:$D$5000=$D14)*(AW$8:AW$5000>0),AW$8:AW$5000)),0,AW14)) -> 0 | DM14: =IF(OR($H14<>"Silver",AX14=0),0,IF(AX14=MIN(IF(($H$8:$H$5000="Silver")*($D$8:$D$5000=$D14)*(AX$8:AX$5000>0),AX$8:AX$5000)),0,AX14)) -> 0 | DN14: =IF(OR($H14<>"Silver",AY14=0),0,IF(AY14=MIN(IF(($H$8:$H$5000="Silver")*($D$8:$D$5000=$D14)*(AY$8:AY$5000>0),AY$8:AY$5000)),0,AY14)) -> 0 | DO14: =IF(OR($H14<>"Silver",AZ14=0),0,IF(AZ14=MIN(IF(($H$8:$H$5000="Silver")*($D$8:$D$5000=$D14)*(AZ$8:AZ$5000>0),AZ$8:AZ$5000)),0,AZ14)) -> 0 | DP14: =IF(OR($H14<>"Silver",BA14=0),0,IF(BA14=MIN(IF(($H$8:$H$5000="Silver")*($D$8:$D$5000=$D14)*(BA$8:BA$5000>0),BA$8:BA$5000)),0,BA14)) -> 0 | DQ14: =IF(OR($H14<>"Silver",BB14=0),0,IF(BB14=MIN(IF(($H$8:$H$5000="Silver")*($D$8:$D$5000=$D14)*(BB$8:BB$5000>0),BB$8:BB$5000)),0,BB14)) -> 0 | DR14: =IF(OR($H14<>"Silver",BC14=0),0,IF(BC14=MIN(IF(($H$8:$H$5000="Silver")*($D$8:$D$5000=$D14)*(BC$8:BC$5000>0),BC$8:BC$5000)),0,BC14)) -> 0 | DS14: =IF(OR($H14<>"Silver",BD14=0),0,IF(BD14=MIN(IF(($H$8:$H$5000="Silver")*($D$8:$D$5000=$D14)*(BD$8:BD$5000>0),BD$8:BD$5000)),0,BD14)) -> 0 | DT14: =IF(OR($H14<>"Silver",BE14=0),0,IF(BE14=MIN(IF(($H$8:$H$5000="Silver")*($D$8:$D$5000=$D14)*(BE$8:BE$5000>0),BE$8:BE$5000)),0,BE14)) -> 0 | DU14: =IF(OR($H14<>"Silver",BF14=0),0,IF(BF14=MIN(IF(($H$8:$H$5000="Silver")*($D$8:$D$5000=$D14)*(BF$8:BF$5000>0),BF$8:BF$5000)),0,BF14)) -> 0 | DV14: =IF(OR($H14<>"Silver",BG14=0),0,IF(BG14=MIN(IF(($H$8:$H$5000="Silver")*($D$8:$D$5000=$D14)*(BG$8:BG$5000>0),BG$8:BG$5000)),0,BG14)) -> 0 | DW14: =IF(OR($H14<>"Silver",BH14=0),0,IF(BH14=MIN(IF(($H$8:$H$5000="Silver")*($D$8:$D$5000=$D14)*(BH$8:BH$5000>0),BH$8:BH$5000)),0,BH14)) -> 0 | DX14: =IF(OR($H14<>"Silver",BI14=0),0,IF(BI14=MIN(IF(($H$8:$H$5000="Silver")*($D$8:$D$5000=$D14)*(BI$8:BI$5000>0),BI$8:BI$5000)),0,BI14)) -> 0 | DY14: =IF(OR($H14<>"Silver",BJ14=0),0,IF(BJ14=MIN(IF(($H$8:$H$5000="Silver")*($D$8:$D$5000=$D14)*(BJ$8:BJ$5000>0),BJ$8:BJ$5000)),0,BJ14)) -> 0 | DZ14: =IF(OR($H14<>"Silver",BK14=0),0,IF(BK14=MIN(IF(($H$8:$H$5000="Silver")*($D$8:$D$5000=$D14)*(BK$8:BK$5000>0),BK$8:BK$5000)),0,BK14)) -> 0 | EA14: =IF(OR($H14<>"Silver",BL14=0),0,IF(BL14=MIN(IF(($H$8:$H$5000="Silver")*($D$8:$D$5000=$D14)*(BL$8:BL$5000>0),BL$8:BL$5000)),0,BL14)) -> 0 | EB14: =IF(OR($H14<>"Silver",BM14=0),0,IF(BM14=MIN(IF(($H$8:$H$5000="Silver")*($D$8:$D$5000=$D14)*(BM$8:BM$5000>0),BM$8:BM$5000)),0,BM14)) -> 0 | EC14: =IF(OR($H14<>"Silver",BN14=0),0,IF(BN14=MIN(IF(($H$8:$H$5000="Silver")*($D$8:$D$5000=$D14)*(BN$8:BN$5000>0),BN$8:BN$5000)),0,BN14)) -> 0 | ED14: =IF(OR($H14<>"Silver",BO14=0),0,IF(BO14=MIN(IF(($H$8:$H$5000="Silver")*($D$8:$D$5000=$D14)*(BO$8:BO$5000>0),BO$8:BO$5000)),0,BO14)) -> 0 | EE14: =IF(OR($H14<>"Silver",BP14=0),0,IF(BP14=MIN(IF(($H$8:$H$5000="Silver")*($D$8:$D$5000=$D14)*(BP$8:BP$5000>0),BP$8:BP$5000)),0,BP14)) -> 0 | EF14: =IF(OR($H14<>"Silver",BQ14=0),0,IF(BQ14=MIN(IF(($H$8:$H$5000="Silver")*($D$8:$D$5000=$D14)*(BQ$8:BQ$5000>0),BQ$8:BQ$5000)),0,BQ14)) -> 0 | EG14: =IF(OR($H14<>"Silver",BR14=0),0,IF(BR14=MIN(IF(($H$8:$H$5000="Silver")*($D$8:$D$5000=$D14)*(BR$8:BR$5000>0),BR$8:BR$5000)),0,BR14)) -> 0 | EH14: =IF(OR($H14<>"Silver",BS14=0),0,IF(BS14=MIN(IF(($H$8:$H$5000="Silver")*($D$8:$D$5000=$D14)*(BS$8:BS$5000>0),BS$8:BS$5000)),0,BS14)) -> 0 | EI14: =IF(OR($H14<>"Silver",BT14=0),0,IF(BT14=MIN(IF(($H$8:$H$5000="Silver")*($D$8:$D$5000=$D14)*(BT$8:BT$5000>0),BT$8:BT$5000)),0,BT14)) -> 0 | EJ14: =IF(OR($H14<>"Silver",BU14=0),0,IF(BU14=MIN(IF(($H$8:$H$5000="Silver")*($D$8:$D$5000=$D14)*(BU$8:BU$5000>0),BU$8:BU$5000)),0,BU14)) -> 0 | EK14: =IF(OR($H14<>"Silver",BV14=0),0,IF(BV14=MIN(IF(($H$8:$H$5000="Silver")*($D$8:$D$5000=$D14)*(BV$8:BV$5000>0),BV$8:BV$5000)),0,BV14)) -> 0 | EL14: =IF(OR($H14<>"Silver",BW14=0),0,IF(BW14=MIN(IF(($H$8:$H$5000="Silver")*($D$8:$D$5000=$D14)*(BW$8:BW$5000>0),BW$8:BW$5000)),0,BW14)) -> 0 | EM14: =IF(OR($H14<>"Silver",BX14=0),0,IF(BX14=MIN(IF(($H$8:$H$5000="Silver")*($D$8:$D$5000=$D14)*(BX$8:BX$5000>0),BX$8:BX$5000)),0,BX14)) -> 0 | EN14: =IF(OR($H14<>"Silver",BY14=0),0,IF(BY14=MIN(IF(($H$8:$H$5000="Silver")*($D$8:$D$5000=$D14)*(BY$8:BY$5000>0),BY$8:BY$5000)),0,BY14)) -> 0
B15: IBC | C15: QCC | D15: Individual | E15: 31609PA0070020 | F15: Personal Choice PPO Platinum | G15: PPO | H15: Platinum | I15: Off | K15: 0 | L15: 0 | M15: 0 | N15: 0 | O15: 0 | P15: 0 | Q15: 0 | R15: 0 | S15: 0 | T15: 0 | U15: 0 | V15: 0 | W15: 0 | X15: 0 | Y15: 0 | Z15: 0 | AA15: 0 | AB15: 0 | AC15: 0 | AD15: 0 | AE15: 0 | AF15: 0 | AG15: 0 | AH15: 0 | AI15: 0 | AJ15: 0 | AK15: 0 | AL15: 0 | AM15: 0 | AN15: 0 | AO15: 0 | AP15: 0 | AQ15: 0 | AR15: 0 | AS15: 0 | AT15: 0 | AU15: 0 | AV15: 0 | AW15: 0 | AX15: 0 | AY15: 0 | AZ15: 0 | BA15: 0 | BB15: 0 | BC15: 0 | BD15: 0 | BE15: 0 | BF15: 0 | BG15: 0 | BH15: 0 | BI15: 0 | BJ15: 0 | BK15: 0 | BL15: 0 | BM15: 0 | BN15: 620.66 | BO15: 620.66 | BP15: 620.66 | BQ15: 620.66 | BR15: 620.66 | BS15: 0 | BT15: 0 | BU15: 0 | BV15: 0 | BW15: 0 | BX15: 0 | BY15: 0 | BZ15: =IF(OR($H15<>"Silver",K15=0),0,IF(K15=MIN(IF(($H$8:$H$5000="Silver")*($D$8:$D$5000=$D15)*(K$8:K$5000>0),K$8:K$5000)),0,K15)) -> 0 | CA15: =IF(OR($H15<>"Silver",L15=0),0,IF(L15=MIN(IF(($H$8:$H$5000="Silver")*($D$8:$D$5000=$D15)*(L$8:L$5000>0),L$8:L$5000)),0,L15)) -> 0 | CB15: =IF(OR($H15<>"Silver",M15=0),0,IF(M15=MIN(IF(($H$8:$H$5000="Silver")*($D$8:$D$5000=$D15)*(M$8:M$5000>0),M$8:M$5000)),0,M15)) -> 0 | CC15: =IF(OR($H15<>"Silver",N15=0),0,IF(N15=MIN(IF(($H$8:$H$5000="Silver")*($D$8:$D$5000=$D15)*(N$8:N$5000>0),N$8:N$5000)),0,N15)) -> 0 | CD15: =IF(OR($H15<>"Silver",O15=0),0,IF(O15=MIN(IF(($H$8:$H$5000="Silver")*($D$8:$D$5000=$D15)*(O$8:O$5000>0),O$8:O$5000)),0,O15)) -> 0 | CE15: =IF(OR($H15<>"Silver",P15=0),0,IF(P15=MIN(IF(($H$8:$H$5000="Silver")*($D$8:$D$5000=$D15)*(P$8:P$5000>0),P$8:P$5000)),0,P15)) -> 0 | CF15: =IF(OR($H15<>"Silver",Q15=0),0,IF(Q15=MIN(IF(($H$8:$H$5000="Silver")*($D$8:$D$5000=$D15)*(Q$8:Q$5000>0),Q$8:Q$5000)),0,Q15)) -> 0 | CG15: =IF(OR($H15<>"Silver",R15=0),0,IF(R15=MIN(IF(($H$8:$H$5000="Silver")*($D$8:$D$5000=$D15)*(R$8:R$5000>0),R$8:R$5000)),0,R15)) -> 0 | CH15: =IF(OR($H15<>"Silver",S15=0),0,IF(S15=MIN(IF(($H$8:$H$5000="Silver")*($D$8:$D$5000=$D15)*(S$8:S$5000>0),S$8:S$5000)),0,S15)) -> 0 | CI15: =IF(OR($H15<>"Silver",T15=0),0,IF(T15=MIN(IF(($H$8:$H$5000="Silver")*($D$8:$D$5000=$D15)*(T$8:T$5000>0),T$8:T$5000)),0,T15)) -> 0 | CJ15: =IF(OR($H15<>"Silver",U15=0),0,IF(U15=MIN(IF(($H$8:$H$5000="Silver")*($D$8:$D$5000=$D15)*(U$8:U$5000>0),U$8:U$5000)),0,U15)) -> 0 | CK15: =IF(OR($H15<>"Silver",V15=0),0,IF(V15=MIN(IF(($H$8:$H$5000="Silver")*($D$8:$D$5000=$D15)*(V$8:V$5000>0),V$8:V$5000)),0,V15)) -> 0 | CL15: =IF(OR($H15<>"Silver",W15=0),0,IF(W15=MIN(IF(($H$8:$H$5000="Silver")*($D$8:$D$5000=$D15)*(W$8:W$5000>0),W$8:W$5000)),0,W15)) -> 0 | CM15: =IF(OR($H15<>"Silver",X15=0),0,IF(X15=MIN(IF(($H$8:$H$5000="Silver")*($D$8:$D$5000=$D15)*(X$8:X$5000>0),X$8:X$5000)),0,X15)) -> 0 | CN15: =IF(OR($H15<>"Silver",Y15=0),0,IF(Y15=MIN(IF(($H$8:$H$5000="Silver")*($D$8:$D$5000=$D15)*(Y$8:Y$5000>0),Y$8:Y$5000)),0,Y15)) -> 0 | CO15: =IF(OR($H15<>"Silver",Z15=0),0,IF(Z15=MIN(IF(($H$8:$H$5000="Silver")*($D$8:$D$5000=$D15)*(Z$8:Z$5000>0),Z$8:Z$5000)),0,Z15)) -> 0 | CP15: =IF(OR($H15<>"Silver",AA15=0),0,IF(AA15=MIN(IF(($H$8:$H$5000="Silver")*($D$8:$D$5000=$D15)*(AA$8:AA$5000>0),AA$8:AA$5000)),0,AA15)) -> 0 | CQ15: =IF(OR($H15<>"Silver",AB15=0),0,IF(AB15=MIN(IF(($H$8:$H$5000="Silver")*($D$8:$D$5000=$D15)*(AB$8:AB$5000>0),AB$8:AB$5000)),0,AB15)) -> 0 | CR15: =IF(OR($H15<>"Silver",AC15=0),0,IF(AC15=MIN(IF(($H$8:$H$5000="Silver")*($D$8:$D$5000=$D15)*(AC$8:AC$5000>0),AC$8:AC$5000)),0,AC15)) -> 0 | CS15: =IF(OR($H15<>"Silver",AD15=0),0,IF(AD15=MIN(IF(($H$8:$H$5000="Silver")*($D$8:$D$5000=$D15)*(AD$8:AD$5000>0),AD$8:AD$5000)),0,AD15)) -> 0 | CT15: =IF(OR($H15<>"Silver",AE15=0),0,IF(AE15=MIN(IF(($H$8:$H$5000="Silver")*($D$8:$D$5000=$D15)*(AE$8:AE$5000>0),AE$8:AE$5000)),0,AE15)) -> 0 | CU15: =IF(OR($H15<>"Silver",AF15=0),0,IF(AF15=MIN(IF(($H$8:$H$5000="Silver")*($D$8:$D$5000=$D15)*(AF$8:AF$5000>0),AF$8:AF$5000)),0,AF15)) -> 0 | CV15: =IF(OR($H15<>"Silver",AG15=0),0,IF(AG15=MIN(IF(($H$8:$H$5000="Silver")*($D$8:$D$5000=$D15)*(AG$8:AG$5000>0),AG$8:AG$5000)),0,AG15)) -> 0 | CW15: =IF(OR($H15<>"Silver",AH15=0),0,IF(AH15=MIN(IF(($H$8:$H$5000="Silver")*($D$8:$D$5000=$D15)*(AH$8:AH$5000>0),AH$8:AH$5000)),0,AH15)) -> 0 | CX15: =IF(OR($H15<>"Silver",AI15=0),0,IF(AI15=MIN(IF(($H$8:$H$5000="Silver")*($D$8:$D$5000=$D15)*(AI$8:AI$5000>0),AI$8:AI$5000)),0,AI15)) -> 0 | CY15: =IF(OR($H15<>"Silver",AJ15=0),0,IF(AJ15=MIN(IF(($H$8:$H$5000="Silver")*($D$8:$D$5000=$D15)*(AJ$8:AJ$5000>0),AJ$8:AJ$5000)),0,AJ15)) -> 0 | CZ15: =IF(OR($H15<>"Silver",AK15=0),0,IF(AK15=MIN(IF(($H$8:$H$5000="Silver")*($D$8:$D$5000=$D15)*(AK$8:AK$5000>0),AK$8:AK$5000)),0,AK15)) -> 0 | DA15: =IF(OR($H15<>"Silver",AL15=0),0,IF(AL15=MIN(IF(($H$8:$H$5000="Silver")*($D$8:$D$5000=$D15)*(AL$8:AL$5000>0),AL$8:AL$5000)),0,AL15)) -> 0 | DB15: =IF(OR($H15<>"Silver",AM15=0),0,IF(AM15=MIN(IF(($H$8:$H$5000="Silver")*($D$8:$D$5000=$D15)*(AM$8:AM$5000>0),AM$8:AM$5000)),0,AM15)) -> 0 | DC15: =IF(OR($H15<>"Silver",AN15=0),0,IF(AN15=MIN(IF(($H$8:$H$5000="Silver")*($D$8:$D$5000=$D15)*(AN$8:AN$5000>0),AN$8:AN$5000)),0,AN15)) -> 0 | DD15: =IF(OR($H15<>"Silver",AO15=0),0,IF(AO15=MIN(IF(($H$8:$H$5000="Silver")*($D$8:$D$5000=$D15)*(AO$8:AO$5000>0),AO$8:AO$5000)),0,AO15)) -> 0 | DE15: =IF(OR($H15<>"Silver",AP15=0),0,IF(AP15=MIN(IF(($H$8:$H$5000="Silver")*($D$8:$D$5000=$D15)*(AP$8:AP$5000>0),AP$8:AP$5000)),0,AP15)) -> 0 | DF15: =IF(OR($H15<>"Silver",AQ15=0),0,IF(AQ15=MIN(IF(($H$8:$H$5000="Silver")*($D$8:$D$5000=$D15)*(AQ$8:AQ$5000>0),AQ$8:AQ$5000)),0,AQ15)) -> 0 | DG15: =IF(OR($H15<>"Silver",AR15=0),0,IF(AR15=MIN(IF(($H$8:$H$5000="Silver")*($D$8:$D$5000=$D15)*(AR$8:AR$5000>0),AR$8:AR$5000)),0,AR15)) -> 0 | DH15: =IF(OR($H15<>"Silver",AS15=0),0,IF(AS15=MIN(IF(($H$8:$H$5000="Silver")*($D$8:$D$5000=$D15)*(AS$8:AS$5000>0),AS$8:AS$5000)),0,AS15)) -> 0 | DI15: =IF(OR($H15<>"Silver",AT15=0),0,IF(AT15=MIN(IF(($H$8:$H$5000="Silver")*($D$8:$D$5000=$D15)*(AT$8:AT$5000>0),AT$8:AT$5000)),0,AT15)) -> 0 | DJ15: =IF(OR($H15<>"Silver",AU15=0),0,IF(AU15=MIN(IF(($H$8:$H$5000="Silver")*($D$8:$D$5000=$D15)*(AU$8:AU$5000>0),AU$8:AU$5000)),0,AU15)) -> 0 | DK15: =IF(OR($H15<>"Silver",AV15=0),0,IF(AV15=MIN(IF(($H$8:$H$5000="Silver")*($D$8:$D$5000=$D15)*(AV$8:AV$5000>0),AV$8:AV$5000)),0,AV15)) -> 0 | DL15: =IF(OR($H15<>"Silver",AW15=0),0,IF(AW15=MIN(IF(($H$8:$H$5000="Silver")*($D$8:$D$5000=$D15)*(AW$8:AW$5000>0),AW$8:AW$5000)),0,AW15)) -> 0 | DM15: =IF(OR($H15<>"Silver",AX15=0),0,IF(AX15=MIN(IF(($H$8:$H$5000="Silver")*($D$8:$D$5000=$D15)*(AX$8:AX$5000>0),AX$8:AX$5000)),0,AX15)) -> 0 | DN15: =IF(OR($H15<>"Silver",AY15=0),0,IF(AY15=MIN(IF(($H$8:$H$5000="Silver")*($D$8:$D$5000=$D15)*(AY$8:AY$5000>0),AY$8:AY$5000)),0,AY15)) -> 0 | DO15: =IF(OR($H15<>"Silver",AZ15=0),0,IF(AZ15=MIN(IF(($H$8:$H$5000="Silver")*($D$8:$D$5000=$D15)*(AZ$8:AZ$5000>0),AZ$8:AZ$5000)),0,AZ15)) -> 0 | DP15: =IF(OR($H15<>"Silver",BA15=0),0,IF(BA15=MIN(IF(($H$8:$H$5000="Silver")*($D$8:$D$5000=$D15)*(BA$8:BA$5000>0),BA$8:BA$5000)),0,BA15)) -> 0 | DQ15: =IF(OR($H15<>"Silver",BB15=0),0,IF(BB15=MIN(IF(($H$8:$H$5000="Silver")*($D$8:$D$5000=$D15)*(BB$8:BB$5000>0),BB$8:BB$5000)),0,BB15)) -> 0 | DR15: =IF(OR($H15<>"Silver",BC15=0),0,IF(BC15=MIN(IF(($H$8:$H$5000="Silver")*($D$8:$D$5000=$D15)*(BC$8:BC$5000>0),BC$8:BC$5000)),0,BC15)) -> 0 | DS15: =IF(OR($H15<>"Silver",BD15=0),0,IF(BD15=MIN(IF(($H$8:$H$5000="Silver")*($D$8:$D$5000=$D15)*(BD$8:BD$5000>0),BD$8:BD$5000)),0,BD15)) -> 0 | DT15: =IF(OR($H15<>"Silver",BE15=0),0,IF(BE15=MIN(IF(($H$8:$H$5000="Silver")*($D$8:$D$5000=$D15)*(BE$8:BE$5000>0),BE$8:BE$5000)),0,BE15)) -> 0 | DU15: =IF(OR($H15<>"Silver",BF15=0),0,IF(BF15=MIN(IF(($H$8:$H$5000="Silver")*($D$8:$D$5000=$D15)*(BF$8:BF$5000>0),BF$8:BF$5000)),0,BF15)) -> 0 | DV15: =IF(OR($H15<>"Silver",BG15=0),0,IF(BG15=MIN(IF(($H$8:$H$5000="Silver")*($D$8:$D$5000=$D15)*(BG$8:BG$5000>0),BG$8:BG$5000)),0,BG15)) -> 0 | DW15: =IF(OR($H15<>"Silver",BH15=0),0,IF(BH15=MIN(IF(($H$8:$H$5000="Silver")*($D$8:$D$5000=$D15)*(BH$8:BH$5000>0),BH$8:BH$5000)),0,BH15)) -> 0 | DX15: =IF(OR($H15<>"Silver",BI15=0),0,IF(BI15=MIN(IF(($H$8:$H$5000="Silver")*($D$8:$D$5000=$D15)*(BI$8:BI$5000>0),BI$8:BI$5000)),0,BI15)) -> 0 | DY15: =IF(OR($H15<>"Silver",BJ15=0),0,IF(BJ15=MIN(IF(($H$8:$H$5000="Silver")*($D$8:$D$5000=$D15)*(BJ$8:BJ$5000>0),BJ$8:BJ$5000)),0,BJ15)) -> 0 | DZ15: =IF(OR($H15<>"Silver",BK15=0),0,IF(BK15=MIN(IF(($H$8:$H$5000="Silver")*($D$8:$D$5000=$D15)*(BK$8:BK$5000>0),BK$8:BK$5000)),0,BK15)) -> 0 | EA15: =IF(OR($H15<>"Silver",BL15=0),0,IF(BL15=MIN(IF(($H$8:$H$5000="Silver")*($D$8:$D$5000=$D15)*(BL$8:BL$5000>0),BL$8:BL$5000)),0,BL15)) -> 0 | EB15: =IF(OR($H15<>"Silver",BM15=0),0,IF(BM15=MIN(IF(($H$8:$H$5000="Silver")*($D$8:$D$5000=$D15)*(BM$8:BM$5000>0),BM$8:BM$5000)),0,BM15)) -> 0 | EC15: =IF(OR($H15<>"Silver",BN15=0),0,IF(BN15=MIN(IF(($H$8:$H$5000="Silver")*($D$8:$D$5000=$D15)*(BN$8:BN$5000>0),BN$8:BN$5000)),0,BN15)) -> 0 | ED15: =IF(OR($H15<>"Silver",BO15=0),0,IF(BO15=MIN(IF(($H$8:$H$5000="Silver")*($D$8:$D$5000=$D15)*(BO$8:BO$5000>0),BO$8:BO$5000)),0,BO15)) -> 0 | EE15: =IF(OR($H15<>"Silver",BP15=0),0,IF(BP15=MIN(IF(($H$8:$H$5000="Silver")*($D$8:$D$5000=$D15)*(BP$8:BP$5000>0),BP$8:BP$5000)),0,BP15)) -> 0 | EF15: =IF(OR($H15<>"Silver",BQ15=0),0,IF(BQ15=MIN(IF(($H$8:$H$5000="Silver")*($D$8:$D$5000=$D15)*(BQ$8:BQ$5000>0),BQ$8:BQ$5000)),0,BQ15)) -> 0 | EG15: =IF(OR($H15<>"Silver",BR15=0),0,IF(BR15=MIN(IF(($H$8:$H$5000="Silver")*($D$8:$D$5000=$D15)*(BR$8:BR$5000>0),BR$8:BR$5000)),0,BR15)) -> 0 | EH15: =IF(OR($H15<>"Silver",BS15=0),0,IF(BS15=MIN(IF(($H$8:$H$5000="Silver")*($D$8:$D$5000=$D15)*(BS$8:BS$5000>0),BS$8:BS$5000)),0,BS15)) -> 0 | EI15: =IF(OR($H15<>"Silver",BT15=0),0,IF(BT15=MIN(IF(($H$8:$H$5000="Silver")*($D$8:$D$5000=$D15)*(BT$8:BT$5000>0),BT$8:BT$5000)),0,BT15)) -> 0 | EJ15: =IF(OR($H15<>"Silver",BU15=0),0,IF(BU15=MIN(IF(($H$8:$H$5000="Silver")*($D$8:$D$5000=$D15)*(BU$8:BU$5000>0),BU$8:BU$5000)),0,BU15)) -> 0 | EK15: =IF(OR($H15<>"Silver",BV15=0),0,IF(BV15=MIN(IF(($H$8:$H$5000="Silver")*($D$8:$D$5000=$D15)*(BV$8:BV$5000>0),BV$8:BV$5000)),0,BV15)) -> 0 | EL15: =IF(OR($H15<>"Silver",BW15=0),0,IF(BW15=MIN(IF(($H$8:$H$5000="Silver")*($D$8:$D$5000=$D15)*(BW$8:BW$5000>0),BW$8:BW$5000)),0,BW15)) -> 0 | EM15: =IF(OR($H15<>"Silver",BX15=0),0,IF(BX15=MIN(IF(($H$8:$H$5000="Silver")*($D$8:$D$5000=$D15)*(BX$8:BX$5000>0),BX$8:BX$5000)),0,BX15)) -> 0 | EN15: =IF(OR($H15<>"Silver",BY15=0),0,IF(BY15=MIN(IF(($H$8:$H$5000="Silver")*($D$8:$D$5000=$D15)*(BY$8:BY$5000>0),BY$8:BY$5000)),0,BY15)) -> 0
B16: IBC | C16: QCC | D16: Individual | E16: 31609PA0070021 | F16: Personal Choice PPO Gold | G16: PPO | H16: Gold | I16: Off | K16: 0 | L16: 0 | M16: 0 | N16: 0 | O16: 0 | P16: 0 | Q16: 0 | R16: 0 | S16: 0 | T16: 0 | U16: 0 | V16: 0 | W16: 0 | X16: 0 | Y16: 0 | Z16: 0 | AA16: 0 | AB16: 0 | AC16: 0 | AD16: 0 | AE16: 0 | AF16: 0 | AG16: 0 | AH16: 0 | AI16: 0 | AJ16: 0 | AK16: 0 | AL16: 0 | AM16: 0 | AN16: 0 | AO16: 0 | AP16: 0 | AQ16: 0 | AR16: 0 | AS16: 0 | AT16: 0 | AU16: 0 | AV16: 0 | AW16: 0 | AX16: 0 | AY16: 0 | AZ16: 0 | BA16: 0 | BB16: 0 | BC16: 0 | BD16: 0 | BE16: 0 | BF16: 0 | BG16: 0 | BH16: 0 | BI16: 0 | BJ16: 0 | BK16: 0 | BL16: 0 | BM16: 0 | BN16: 469.33 | BO16: 469.33 | BP16: 469.33 | BQ16: 469.33 | BR16: 469.33 | BS16: 0 | BT16: 0 | BU16: 0 | BV16: 0 | BW16: 0 | BX16: 0 | BY16: 0 | BZ16: =IF(OR($H16<>"Silver",K16=0),0,IF(K16=MIN(IF(($H$8:$H$5000="Silver")*($D$8:$D$5000=$D16)*(K$8:K$5000>0),K$8:K$5000)),0,K16)) -> 0 | CA16: =IF(OR($H16<>"Silver",L16=0),0,IF(L16=MIN(IF(($H$8:$H$5000="Silver")*($D$8:$D$5000=$D16)*(L$8:L$5000>0),L$8:L$5000)),0,L16)) -> 0 | CB16: =IF(OR($H16<>"Silver",M16=0),0,IF(M16=MIN(IF(($H$8:$H$5000="Silver")*($D$8:$D$5000=$D16)*(M$8:M$5000>0),M$8:M$5000)),0,M16)) -> 0 | CC16: =IF(OR($H16<>"Silver",N16=0),0,IF(N16=MIN(IF(($H$8:$H$5000="Silver")*($D$8:$D$5000=$D16)*(N$8:N$5000>0),N$8:N$5000)),0,N16)) -> 0 | CD16: =IF(OR($H16<>"Silver",O16=0),0,IF(O16=MIN(IF(($H$8:$H$5000="Silver")*($D$8:$D$5000=$D16)*(O$8:O$5000>0),O$8:O$5000)),0,O16)) -> 0 | CE16: =IF(OR($H16<>"Silver",P16=0),0,IF(P16=MIN(IF(($H$8:$H$5000="Silver")*($D$8:$D$5000=$D16)*(P$8:P$5000>0),P$8:P$5000)),0,P16)) -> 0 | CF16: =IF(OR($H16<>"Silver",Q16=0),0,IF(Q16=MIN(IF(($H$8:$H$5000="Silver")*($D$8:$D$5000=$D16)*(Q$8:Q$5000>0),Q$8:Q$5000)),0,Q16)) -> 0 | CG16: =IF(OR($H16<>"Silver",R16=0),0,IF(R16=MIN(IF(($H$8:$H$5000="Silver")*($D$8:$D$5000=$D16)*(R$8:R$5000>0),R$8:R$5000)),0,R16)) -> 0 | CH16: =IF(OR($H16<>"Silver",S16=0),0,IF(S16=MIN(IF(($H$8:$H$5000="Silver")*($D$8:$D$5000=$D16)*(S$8:S$5000>0),S$8:S$5000)),0,S16)) -> 0 | CI16: =IF(OR($H16<>"Silver",T16=0),0,IF(T16=MIN(IF(($H$8:$H$5000="Silver")*($D$8:$D$5000=$D16)*(T$8:T$5000>0),T$8:T$5000)),0,T16)) -> 0 | CJ16: =IF(OR($H16<>"Silver",U16=0),0,IF(U16=MIN(IF(($H$8:$H$5000="Silver")*($D$8:$D$5000=$D16)*(U$8:U$5000>0),U$8:U$5000)),0,U16)) -> 0 | CK16: =IF(OR($H16<>"Silver",V16=0),0,IF(V16=MIN(IF(($H$8:$H$5000="Silver")*($D$8:$D$5000=$D16)*(V$8:V$5000>0),V$8:V$5000)),0,V16)) -> 0 | CL16: =IF(OR($H16<>"Silver",W16=0),0,IF(W16=MIN(IF(($H$8:$H$5000="Silver")*($D$8:$D$5000=$D16)*(W$8:W$5000>0),W$8:W$5000)),0,W16)) -> 0 | CM16: =IF(OR($H16<>"Silver",X16=0),0,IF(X16=MIN(IF(($H$8:$H$5000="Silver")*($D$8:$D$5000=$D16)*(X$8:X$5000>0),X$8:X$5000)),0,X16)) -> 0 | CN16: =IF(OR($H16<>"Silver",Y16=0),0,IF(Y16=MIN(IF(($H$8:$H$5000="Silver")*($D$8:$D$5000=$D16)*(Y$8:Y$5000>0),Y$8:Y$5000)),0,Y16)) -> 0 | CO16: =IF(OR($H16<>"Silver",Z16=0),0,IF(Z16=MIN(IF(($H$8:$H$5000="Silver")*($D$8:$D$5000=$D16)*(Z$8:Z$5000>0),Z$8:Z$5000)),0,Z16)) -> 0 | CP16: =IF(OR($H16<>"Silver",AA16=0),0,IF(AA16=MIN(IF(($H$8:$H$5000="Silver")*($D$8:$D$5000=$D16)*(AA$8:AA$5000>0),AA$8:AA$5000)),0,AA16)) -> 0 | CQ16: =IF(OR($H16<>"Silver",AB16=0),0,IF(AB16=MIN(IF(($H$8:$H$5000="Silver")*($D$8:$D$5000=$D16)*(AB$8:AB$5000>0),AB$8:AB$5000)),0,AB16)) -> 0 | CR16: =IF(OR($H16<>"Silver",AC16=0),0,IF(AC16=MIN(IF(($H$8:$H$5000="Silver")*($D$8:$D$5000=$D16)*(AC$8:AC$5000>0),AC$8:AC$5000)),0,AC16)) -> 0 | CS16: =IF(OR($H16<>"Silver",AD16=0),0,IF(AD16=MIN(IF(($H$8:$H$5000="Silver")*($D$8:$D$5000=$D16)*(AD$8:AD$5000>0),AD$8:AD$5000)),0,AD16)) -> 0 | CT16: =IF(OR($H16<>"Silver",AE16=0),0,IF(AE16=MIN(IF(($H$8:$H$5000="Silver")*($D$8:$D$5000=$D16)*(AE$8:AE$5000>0),AE$8:AE$5000)),0,AE16)) -> 0 | CU16: =IF(OR($H16<>"Silver",AF16=0),0,IF(AF16=MIN(IF(($H$8:$H$5000="Silver")*($D$8:$D$5000=$D16)*(AF$8:AF$5000>0),AF$8:AF$5000)),0,AF16)) -> 0 | CV16: =IF(OR($H16<>"Silver",AG16=0),0,IF(AG16=MIN(IF(($H$8:$H$5000="Silver")*($D$8:$D$5000=$D16)*(AG$8:AG$5000>0),AG$8:AG$5000)),0,AG16)) -> 0 | CW16: =IF(OR($H16<>"Silver",AH16=0),0,IF(AH16=MIN(IF(($H$8:$H$5000="Silver")*($D$8:$D$5000=$D16)*(AH$8:AH$5000>0),AH$8:AH$5000)),0,AH16)) -> 0 | CX16: =IF(OR($H16<>"Silver",AI16=0),0,IF(AI16=MIN(IF(($H$8:$H$5000="Silver")*($D$8:$D$5000=$D16)*(AI$8:AI$5000>0),AI$8:AI$5000)),0,AI16)) -> 0 | CY16: =IF(OR($H16<>"Silver",AJ16=0),0,IF(AJ16=MIN(IF(($H$8:$H$5000="Silver")*($D$8:$D$5000=$D16)*(AJ$8:AJ$5000>0),AJ$8:AJ$5000)),0,AJ16)) -> 0 | CZ16: =IF(OR($H16<>"Silver",AK16=0),0,IF(AK16=MIN(IF(($H$8:$H$5000="Silver")*($D$8:$D$5000=$D16)*(AK$8:AK$5000>0),AK$8:AK$5000)),0,AK16)) -> 0 | DA16: =IF(OR($H16<>"Silver",AL16=0),0,IF(AL16=MIN(IF(($H$8:$H$5000="Silver")*($D$8:$D$5000=$D16)*(AL$8:AL$5000>0),AL$8:AL$5000)),0,AL16)) -> 0 | DB16: =IF(OR($H16<>"Silver",AM16=0),0,IF(AM16=MIN(IF(($H$8:$H$5000="Silver")*($D$8:$D$5000=$D16)*(AM$8:AM$5000>0),AM$8:AM$5000)),0,AM16)) -> 0 | DC16: =IF(OR($H16<>"Silver",AN16=0),0,IF(AN16=MIN(IF(($H$8:$H$5000="Silver")*($D$8:$D$5000=$D16)*(AN$8:AN$5000>0),AN$8:AN$5000)),0,AN16)) -> 0 | DD16: =IF(OR($H16<>"Silver",AO16=0),0,IF(AO16=MIN(IF(($H$8:$H$5000="Silver")*($D$8:$D$5000=$D16)*(AO$8:AO$5000>0),AO$8:AO$5000)),0,AO16)) -> 0 | DE16: =IF(OR($H16<>"Silver",AP16=0),0,IF(AP16=MIN(IF(($H$8:$H$5000="Silver")*($D$8:$D$5000=$D16)*(AP$8:AP$5000>0),AP$8:AP$5000)),0,AP16)) -> 0 | DF16: =IF(OR($H16<>"Silver",AQ16=0),0,IF(AQ16=MIN(IF(($H$8:$H$5000="Silver")*($D$8:$D$5000=$D16)*(AQ$8:AQ$5000>0),AQ$8:AQ$5000)),0,AQ16)) -> 0 | DG16: =IF(OR($H16<>"Silver",AR16=0),0,IF(AR16=MIN(IF(($H$8:$H$5000="Silver")*($D$8:$D$5000=$D16)*(AR$8:AR$5000>0),AR$8:AR$5000)),0,AR16)) -> 0 | DH16: =IF(OR($H16<>"Silver",AS16=0),0,IF(AS16=MIN(IF(($H$8:$H$5000="Silver")*($D$8:$D$5000=$D16)*(AS$8:AS$5000>0),AS$8:AS$5000)),0,AS16)) -> 0 | DI16: =IF(OR($H16<>"Silver",AT16=0),0,IF(AT16=MIN(IF(($H$8:$H$5000="Silver")*($D$8:$D$5000=$D16)*(AT$8:AT$5000>0),AT$8:AT$5000)),0,AT16)) -> 0 | DJ16: =IF(OR($H16<>"Silver",AU16=0),0,IF(AU16=MIN(IF(($H$8:$H$5000="Silver")*($D$8:$D$5000=$D16)*(AU$8:AU$5000>0),AU$8:AU$5000)),0,AU16)) -> 0 | DK16: =IF(OR($H16<>"Silver",AV16=0),0,IF(AV16=MIN(IF(($H$8:$H$5000="Silver")*($D$8:$D$5000=$D16)*(AV$8:AV$5000>0),AV$8:AV$5000)),0,AV16)) -> 0 | DL16: =IF(OR($H16<>"Silver",AW16=0),0,IF(AW16=MIN(IF(($H$8:$H$5000="Silver")*($D$8:$D$5000=$D16)*(AW$8:AW$5000>0),AW$8:AW$5000)),0,AW16)) -> 0 | DM16: =IF(OR($H16<>"Silver",AX16=0),0,IF(AX16=MIN(IF(($H$8:$H$5000="Silver")*($D$8:$D$5000=$D16)*(AX$8:AX$5000>0),AX$8:AX$5000)),0,AX16)) -> 0 | DN16: =IF(OR($H16<>"Silver",AY16=0),0,IF(AY16=MIN(IF(($H$8:$H$5000="Silver")*($D$8:$D$5000=$D16)*(AY$8:AY$5000>0),AY$8:AY$5000)),0,AY16)) -> 0 | DO16: =IF(OR($H16<>"Silver",AZ16=0),0,IF(AZ16=MIN(IF(($H$8:$H$5000="Silver")*($D$8:$D$5000=$D16)*(AZ$8:AZ$5000>0),AZ$8:AZ$5000)),0,AZ16)) -> 0 | DP16: =IF(OR($H16<>"Silver",BA16=0),0,IF(BA16=MIN(IF(($H$8:$H$5000="Silver")*($D$8:$D$5000=$D16)*(BA$8:BA$5000>0),BA$8:BA$5000)),0,BA16)) -> 0 | DQ16: =IF(OR($H16<>"Silver",BB16=0),0,IF(BB16=MIN(IF(($H$8:$H$5000="Silver")*($D$8:$D$5000=$D16)*(BB$8:BB$5000>0),BB$8:BB$5000)),0,BB16)) -> 0 | DR16: =IF(OR($H16<>"Silver",BC16=0),0,IF(BC16=MIN(IF(($H$8:$H$5000="Silver")*($D$8:$D$5000=$D16)*(BC$8:BC$5000>0),BC$8:BC$5000)),0,BC16)) -> 0 | DS16: =IF(OR($H16<>"Silver",BD16=0),0,IF(BD16=MIN(IF(($H$8:$H$5000="Silver")*($D$8:$D$5000=$D16)*(BD$8:BD$5000>0),BD$8:BD$5000)),0,BD16)) -> 0 | DT16: =IF(OR($H16<>"Silver",BE16=0),0,IF(BE16=MIN(IF(($H$8:$H$5000="Silver")*($D$8:$D$5000=$D16)*(BE$8:BE$5000>0),BE$8:BE$5000)),0,BE16)) -> 0 | DU16: =IF(OR($H16<>"Silver",BF16=0),0,IF(BF16=MIN(IF(($H$8:$H$5000="Silver")*($D$8:$D$5000=$D16)*(BF$8:BF$5000>0),BF$8:BF$5000)),0,BF16)) -> 0 | DV16: =IF(OR($H16<>"Silver",BG16=0),0,IF(BG16=MIN(IF(($H$8:$H$5000="Silver")*($D$8:$D$5000=$D16)*(BG$8:BG$5000>0),BG$8:BG$5000)),0,BG16)) -> 0 | DW16: =IF(OR($H16<>"Silver",BH16=0),0,IF(BH16=MIN(IF(($H$8:$H$5000="Silver")*($D$8:$D$5000=$D16)*(BH$8:BH$5000>0),BH$8:BH$5000)),0,BH16)) -> 0 | DX16: =IF(OR($H16<>"Silver",BI16=0),0,IF(BI16=MIN(IF(($H$8:$H$5000="Silver")*($D$8:$D$5000=$D16)*(BI$8:BI$5000>0),BI$8:BI$5000)),0,BI16)) -> 0 | DY16: =IF(OR($H16<>"Silver",BJ16=0),0,IF(BJ16=MIN(IF(($H$8:$H$5000="Silver")*($D$8:$D$5000=$D16)*(BJ$8:BJ$5000>0),BJ$8:BJ$5000)),0,BJ16)) -> 0 | DZ16: =IF(OR($H16<>"Silver",BK16=0),0,IF(BK16=MIN(IF(($H$8:$H$5000="Silver")*($D$8:$D$5000=$D16)*(BK$8:BK$5000>0),BK$8:BK$5000)),0,BK16)) -> 0 | EA16: =IF(OR($H16<>"Silver",BL16=0),0,IF(BL16=MIN(IF(($H$8:$H$5000="Silver")*($D$8:$D$5000=$D16)*(BL$8:BL$5000>0),BL$8:BL$5000)),0,BL16)) -> 0 | EB16: =IF(OR($H16<>"Silver",BM16=0),0,IF(BM16=MIN(IF(($H$8:$H$5000="Silver")*($D$8:$D$5000=$D16)*(BM$8:BM$5000>0),BM$8:BM$5000)),0,BM16)) -> 0 | EC16: =IF(OR($H16<>"Silver",BN16=0),0,IF(BN16=MIN(IF(($H$8:$H$5000="Silver")*($D$8:$D$5000=$D16)*(BN$8:BN$5000>0),BN$8:BN$5000)),0,BN16)) -> 0 | ED16: =IF(OR($H16<>"Silver",BO16=0),0,IF(BO16=MIN(IF(($H$8:$H$5000="Silver")*($D$8:$D$5000=$D16)*(BO$8:BO$5000>0),BO$8:BO$5000)),0,BO16)) -> 0 | EE16: =IF(OR($H16<>"Silver",BP16=0),0,IF(BP16=MIN(IF(($H$8:$H$5000="Silver")*($D$8:$D$5000=$D16)*(BP$8:BP$5000>0),BP$8:BP$5000)),0,BP16)) -> 0 | EF16: =IF(OR($H16<>"Silver",BQ16=0),0,IF(BQ16=MIN(IF(($H$8:$H$5000="Silver")*($D$8:$D$5000=$D16)*(BQ$8:BQ$5000>0),BQ$8:BQ$5000)),0,BQ16)) -> 0 | EG16: =IF(OR($H16<>"Silver",BR16=0),0,IF(BR16=MIN(IF(($H$8:$H$5000="Silver")*($D$8:$D$5000=$D16)*(BR$8:BR$5000>0),BR$8:BR$5000)),0,BR16)) -> 0 | EH16: =IF(OR($H16<>"Silver",BS16=0),0,IF(BS16=MIN(IF(($H$8:$H$5000="Silver")*($D$8:$D$5000=$D16)*(BS$8:BS$5000>0),BS$8:BS$5000)),0,BS16)) -> 0 | EI16: =IF(OR($H16<>"Silver",BT16=0),0,IF(BT16=MIN(IF(($H$8:$H$5000="Silver")*($D$8:$D$5000=$D16)*(BT$8:BT$5000>0),BT$8:BT$5000)),0,BT16)) -> 0 | EJ16: =IF(OR($H16<>"Silver",BU16=0),0,IF(BU16=MIN(IF(($H$8:$H$5000="Silver")*($D$8:$D$5000=$D16)*(BU$8:BU$5000>0),BU$8:BU$5000)),0,BU16)) -> 0 | EK16: =IF(OR($H16<>"Silver",BV16=0),0,IF(BV16=MIN(IF(($H$8:$H$5000="Silver")*($D$8:$D$5000=$D16)*(BV$8:BV$5000>0),BV$8:BV$5000)),0,BV16)) -> 0 | EL16: =IF(OR($H16<>"Silver",BW16=0),0,IF(BW16=MIN(IF(($H$8:$H$5000="Silver")*($D$8:$D$5000=$D16)*(BW$8:BW$5000>0),BW$8:BW$5000)),0,BW16)) -> 0 | EM16: =IF(OR($H16<>"Silver",BX16=0),0,IF(BX16=MIN(IF(($H$8:$H$5000="Silver")*($D$8:$D$5000=$D16)*(BX$8:BX$5000>0),BX$8:BX$5000)),0,BX16)) -> 0 | EN16: =IF(OR($H16<>"Silver",BY16=0),0,IF(BY16=MIN(IF(($H$8:$H$5000="Silver")*($D$8:$D$5000=$D16)*(BY$8:BY$5000>0),BY$8:BY$5000)),0,BY16)) -> 0
B17: IBC | C17: QCC | D17: Individual | E17: 31609PA0070022 | F17: Personal Choice PPO Silver | G17: PPO | H17: Silver | I17: Off | K17: 0 | L17: 0 | M17: 0 | N17: 0 | O17: 0 | P17: 0 | Q17: 0 | R17: 0 | S17: 0 | T17: 0 | U17: 0 | V17: 0 | W17: 0 | X17: 0 | Y17: 0 | Z17: 0 | AA17: 0 | AB17: 0 | AC17: 0 | AD17: 0 | AE17: 0 | AF17: 0 | AG17: 0 | AH17: 0 | AI17: 0 | AJ17: 0 | AK17: 0 | AL17: 0 | AM17: 0 | AN17: 0 | AO17: 0 | AP17: 0 | AQ17: 0 | AR17: 0 | AS17: 0 | AT17: 0 | AU17: 0 | AV17: 0 | AW17: 0 | AX17: 0 | AY17: 0 | AZ17: 0 | BA17: 0 | BB17: 0 | BC17: 0 | BD17: 0 | BE17: 0 | BF17: 0 | BG17: 0 | BH17: 0 | BI17: 0 | BJ17: 0 | BK17: 0 | BL17: 0 | BM17: 0 | BN17: 355.2 | BO17: 355.2 | BP17: 355.2 | BQ17: 355.2 | BR17: 355.2 | BS17: 0 | BT17: 0 | BU17: 0 | BV17: 0 | BW17: 0 | BX17: 0 | BY17: 0 | BZ17: =IF(OR($H17<>"Silver",K17=0),0,IF(K17=MIN(IF(($H$8:$H$5000="Silver")*($D$8:$D$5000=$D17)*(K$8:K$5000>0),K$8:K$5000)),0,K17)) -> 0 | CA17: =IF(OR($H17<>"Silver",L17=0),0,IF(L17=MIN(IF(($H$8:$H$5000="Silver")*($D$8:$D$5000=$D17)*(L$8:L$5000>0),L$8:L$5000)),0,L17)) -> 0 | CB17: =IF(OR($H17<>"Silver",M17=0),0,IF(M17=MIN(IF(($H$8:$H$5000="Silver")*($D$8:$D$5000=$D17)*(M$8:M$5000>0),M$8:M$5000)),0,M17)) -> 0 | CC17: =IF(OR($H17<>"Silver",N17=0),0,IF(N17=MIN(IF(($H$8:$H$5000="Silver")*($D$8:$D$5000=$D17)*(N$8:N$5000>0),N$8:N$5000)),0,N17)) -> 0 | CD17: =IF(OR($H17<>"Silver",O17=0),0,IF(O17=MIN(IF(($H$8:$H$5000="Silver")*($D$8:$D$5000=$D17)*(O$8:O$5000>0),O$8:O$5000)),0,O17)) -> 0 | CE17: =IF(OR($H17<>"Silver",P17=0),0,IF(P17=MIN(IF(($H$8:$H$5000="Silver")*($D$8:$D$5000=$D17)*(P$8:P$5000>0),P$8:P$5000)),0,P17)) -> 0 | CF17: =IF(OR($H17<>"Silver",Q17=0),0,IF(Q17=MIN(IF(($H$8:$H$5000="Silver")*($D$8:$D$5000=$D17)*(Q$8:Q$5000>0),Q$8:Q$5000)),0,Q17)) -> 0 | CG17: =IF(OR($H17<>"Silver",R17=0),0,IF(R17=MIN(IF(($H$8:$H$5000="Silver")*($D$8:$D$5000=$D17)*(R$8:R$5000>0),R$8:R$5000)),0,R17)) -> 0 | CH17: =IF(OR($H17<>"Silver",S17=0),0,IF(S17=MIN(IF(($H$8:$H$5000="Silver")*($D$8:$D$5000=$D17)*(S$8:S$5000>0),S$8:S$5000)),0,S17)) -> 0 | CI17: =IF(OR($H17<>"Silver",T17=0),0,IF(T17=MIN(IF(($H$8:$H$5000="Silver")*($D$8:$D$5000=$D17)*(T$8:T$5000>0),T$8:T$5000)),0,T17)) -> 0 | CJ17: =IF(OR($H17<>"Silver",U17=0),0,IF(U17=MIN(IF(($H$8:$H$5000="Silver")*($D$8:$D$5000=$D17)*(U$8:U$5000>0),U$8:U$5000)),0,U17)) -> 0 | CK17: =IF(OR($H17<>"Silver",V17=0),0,IF(V17=MIN(IF(($H$8:$H$5000="Silver")*($D$8:$D$5000=$D17)*(V$8:V$5000>0),V$8:V$5000)),0,V17)) -> 0 | CL17: =IF(OR($H17<>"Silver",W17=0),0,IF(W17=MIN(IF(($H$8:$H$5000="Silver")*($D$8:$D$5000=$D17)*(W$8:W$5000>0),W$8:W$5000)),0,W17)) -> 0 | CM17: =IF(OR($H17<>"Silver",X17=0),0,IF(X17=MIN(IF(($H$8:$H$5000="Silver")*($D$8:$D$5000=$D17)*(X$8:X$5000>0),X$8:X$5000)),0,X17)) -> 0 | CN17: =IF(OR($H17<>"Silver",Y17=0),0,IF(Y17=MIN(IF(($H$8:$H$5000="Silver")*($D$8:$D$5000=$D17)*(Y$8:Y$5000>0),Y$8:Y$5000)),0,Y17)) -> 0 | CO17: =IF(OR($H17<>"Silver",Z17=0),0,IF(Z17=MIN(IF(($H$8:$H$5000="Silver")*($D$8:$D$5000=$D17)*(Z$8:Z$5000>0),Z$8:Z$5000)),0,Z17)) -> 0 | CP17: =IF(OR($H17<>"Silver",AA17=0),0,IF(AA17=MIN(IF(($H$8:$H$5000="Silver")*($D$8:$D$5000=$D17)*(AA$8:AA$5000>0),AA$8:AA$5000)),0,AA17)) -> 0 | CQ17: =IF(OR($H17<>"Silver",AB17=0),0,IF(AB17=MIN(IF(($H$8:$H$5000="Silver")*($D$8:$D$5000=$D17)*(AB$8:AB$5000>0),AB$8:AB$5000)),0,AB17)) -> 0 | CR17: =IF(OR($H17<>"Silver",AC17=0),0,IF(AC17=MIN(IF(($H$8:$H$5000="Silver")*($D$8:$D$5000=$D17)*(AC$8:AC$5000>0),AC$8:AC$5000)),0,AC17)) -> 0 | CS17: =IF(OR($H17<>"Silver",AD17=0),0,IF(AD17=MIN(IF(($H$8:$H$5000="Silver")*($D$8:$D$5000=$D17)*(AD$8:AD$5000>0),AD$8:AD$5000)),0,AD17)) -> 0 | CT17: =IF(OR($H17<>"Silver",AE17=0),0,IF(AE17=MIN(IF(($H$8:$H$5000="Silver")*($D$8:$D$5000=$D17)*(AE$8:AE$5000>0),AE$8:AE$5000)),0,AE17)) -> 0 | CU17: =IF(OR($H17<>"Silver",AF17=0),0,IF(AF17=MIN(IF(($H$8:$H$5000="Silver")*($D$8:$D$5000=$D17)*(AF$8:AF$5000>0),AF$8:AF$5000)),0,AF17)) -> 0 | CV17: =IF(OR($H17<>"Silver",AG17=0),0,IF(AG17=MIN(IF(($H$8:$H$5000="Silver")*($D$8:$D$5000=$D17)*(AG$8:AG$5000>0),AG$8:AG$5000)),0,AG17)) -> 0 | CW17: =IF(OR($H17<>"Silver",AH17=0),0,IF(AH17=MIN(IF(($H$8:$H$5000="Silver")*($D$8:$D$5000=$D17)*(AH$8:AH$5000>0),AH$8:AH$5000)),0,AH17)) -> 0 | CX17: =IF(OR($H17<>"Silver",AI17=0),0,IF(AI17=MIN(IF(($H$8:$H$5000="Silver")*($D$8:$D$5000=$D17)*(AI$8:AI$5000>0),AI$8:AI$5000)),0,AI17)) -> 0 | CY17: =IF(OR($H17<>"Silver",AJ17=0),0,IF(AJ17=MIN(IF(($H$8:$H$5000="Silver")*($D$8:$D$5000=$D17)*(AJ$8:AJ$5000>0),AJ$8:AJ$5000)),0,AJ17)) -> 0 | CZ17: =IF(OR($H17<>"Silver",AK17=0),0,IF(AK17=MIN(IF(($H$8:$H$5000="Silver")*($D$8:$D$5000=$D17)*(AK$8:AK$5000>0),AK$8:AK$5000)),0,AK17)) -> 0 | DA17: =IF(OR($H17<>"Silver",AL17=0),0,IF(AL17=MIN(IF(($H$8:$H$5000="Silver")*($D$8:$D$5000=$D17)*(AL$8:AL$5000>0),AL$8:AL$5000)),0,AL17)) -> 0 | DB17: =IF(OR($H17<>"Silver",AM17=0),0,IF(AM17=MIN(IF(($H$8:$H$5000="Silver")*($D$8:$D$5000=$D17)*(AM$8:AM$5000>0),AM$8:AM$5000)),0,AM17)) -> 0 | DC17: =IF(OR($H17<>"Silver",AN17=0),0,IF(AN17=MIN(IF(($H$8:$H$5000="Silver")*($D$8:$D$5000=$D17)*(AN$8:AN$5000>0),AN$8:AN$5000)),0,AN17)) -> 0 | DD17: =IF(OR($H17<>"Silver",AO17=0),0,IF(AO17=MIN(IF(($H$8:$H$5000="Silver")*($D$8:$D$5000=$D17)*(AO$8:AO$5000>0),AO$8:AO$5000)),0,AO17)) -> 0 | DE17: =IF(OR($H17<>"Silver",AP17=0),0,IF(AP17=MIN(IF(($H$8:$H$5000="Silver")*($D$8:$D$5000=$D17)*(AP$8:AP$5000>0),AP$8:AP$5000)),0,AP17)) -> 0 | DF17: =IF(OR($H17<>"Silver",AQ17=0),0,IF(AQ17=MIN(IF(($H$8:$H$5000="Silver")*($D$8:$D$5000=$D17)*(AQ$8:AQ$5000>0),AQ$8:AQ$5000)),0,AQ17)) -> 0 | DG17: =IF(OR($H17<>"Silver",AR17=0),0,IF(AR17=MIN(IF(($H$8:$H$5000="Silver")*($D$8:$D$5000=$D17)*(AR$8:AR$5000>0),AR$8:AR$5000)),0,AR17)) -> 0 | DH17: =IF(OR($H17<>"Silver",AS17=0),0,IF(AS17=MIN(IF(($H$8:$H$5000="Silver")*($D$8:$D$5000=$D17)*(AS$8:AS$5000>0),AS$8:AS$5000)),0,AS17)) -> 0 | DI17: =IF(OR($H17<>"Silver",AT17=0),0,IF(AT17=MIN(IF(($H$8:$H$5000="Silver")*($D$8:$D$5000=$D17)*(AT$8:AT$5000>0),AT$8:AT$5000)),0,AT17)) -> 0 | DJ17: =IF(OR($H17<>"Silver",AU17=0),0,IF(AU17=MIN(IF(($H$8:$H$5000="Silver")*($D$8:$D$5000=$D17)*(AU$8:AU$5000>0),AU$8:AU$5000)),0,AU17)) -> 0 | DK17: =IF(OR($H17<>"Silver",AV17=0),0,IF(AV17=MIN(IF(($H$8:$H$5000="Silver")*($D$8:$D$5000=$D17)*(AV$8:AV$5000>0),AV$8:AV$5000)),0,AV17)) -> 0 | DL17: =IF(OR($H17<>"Silver",AW17=0),0,IF(AW17=MIN(IF(($H$8:$H$5000="Silver")*($D$8:$D$5000=$D17)*(AW$8:AW$5000>0),AW$8:AW$5000)),0,AW17)) -> 0 | DM17: =IF(OR($H17<>"Silver",AX17=0),0,IF(AX17=MIN(IF(($H$8:$H$5000="Silver")*($D$8:$D$5000=$D17)*(AX$8:AX$5000>0),AX$8:AX$5000)),0,AX17)) -> 0 | DN17: =IF(OR($H17<>"Silver",AY17=0),0,IF(AY17=MIN(IF(($H$8:$H$5000="Silver")*($D$8:$D$5000=$D17)*(AY$8:AY$5000>0),AY$8:AY$5000)),0,AY17)) -> 0 | DO17: =IF(OR($H17<>"Silver",AZ17=0),0,IF(AZ17=MIN(IF(($H$8:$H$5000="Silver")*($D$8:$D$5000=$D17)*(AZ$8:AZ$5000>0),AZ$8:AZ$5000)),0,AZ17)) -> 0 | DP17: =IF(OR($H17<>"Silver",BA17=0),0,IF(BA17=MIN(IF(($H$8:$H$5000="Silver")*($D$8:$D$5000=$D17)*(BA$8:BA$5000>0),BA$8:BA$5000)),0,BA17)) -> 0 | DQ17: =IF(OR($H17<>"Silver",BB17=0),0,IF(BB17=MIN(IF(($H$8:$H$5000="Silver")*($D$8:$D$5000=$D17)*(BB$8:BB$5000>0),BB$8:BB$5000)),0,BB17)) -> 0 | DR17: =IF(OR($H17<>"Silver",BC17=0),0,IF(BC17=MIN(IF(($H$8:$H$5000="Silver")*($D$8:$D$5000=$D17)*(BC$8:BC$5000>0),BC$8:BC$5000)),0,BC17)) -> 0 | DS17: =IF(OR($H17<>"Silver",BD17=0),0,IF(BD17=MIN(IF(($H$8:$H$5000="Silver")*($D$8:$D$5000=$D17)*(BD$8:BD$5000>0),BD$8:BD$5000)),0,BD17)) -> 0 | DT17: =IF(OR($H17<>"Silver",BE17=0),0,IF(BE17=MIN(IF(($H$8:$H$5000="Silver")*($D$8:$D$5000=$D17)*(BE$8:BE$5000>0),BE$8:BE$5000)),0,BE17)) -> 0 | DU17: =IF(OR($H17<>"Silver",BF17=0),0,IF(BF17=MIN(IF(($H$8:$H$5000="Silver")*($D$8:$D$5000=$D17)*(BF$8:BF$5000>0),BF$8:BF$5000)),0,BF17)) -> 0 | DV17: =IF(OR($H17<>"Silver",BG17=0),0,IF(BG17=MIN(IF(($H$8:$H$5000="Silver")*($D$8:$D$5000=$D17)*(BG$8:BG$5000>0),BG$8:BG$5000)),0,BG17)) -> 0 | DW17: =IF(OR($H17<>"Silver",BH17=0),0,IF(BH17=MIN(IF(($H$8:$H$5000="Silver")*($D$8:$D$5000=$D17)*(BH$8:BH$5000>0),BH$8:BH$5000)),0,BH17)) -> 0 | DX17: =IF(OR($H17<>"Silver",BI17=0),0,IF(BI17=MIN(IF(($H$8:$H$5000="Silver")*($D$8:$D$5000=$D17)*(BI$8:BI$5000>0),BI$8:BI$5000)),0,BI17)) -> 0 | DY17: =IF(OR($H17<>"Silver",BJ17=0),0,IF(BJ17=MIN(IF(($H$8:$H$5000="Silver")*($D$8:$D$5000=$D17)*(BJ$8:BJ$5000>0),BJ$8:BJ$5000)),0,BJ17)) -> 0 | DZ17: =IF(OR($H17<>"Silver",BK17=0),0,IF(BK17=MIN(IF(($H$8:$H$5000="Silver")*($D$8:$D$5000=$D17)*(BK$8:BK$5000>0),BK$8:BK$5000)),0,BK17)) -> 0 | EA17: =IF(OR($H17<>"Silver",BL17=0),0,IF(BL17=MIN(IF(($H$8:$H$5000="Silver")*($D$8:$D$5000=$D17)*(BL$8:BL$5000>0),BL$8:BL$5000)),0,BL17)) -> 0 | EB17: =IF(OR($H17<>"Silver",BM17=0),0,IF(BM17=MIN(IF(($H$8:$H$5000="Silver")*($D$8:$D$5000=$D17)*(BM$8:BM$5000>0),BM$8:BM$5000)),0,BM17)) -> 0 | EC17: =IF(OR($H17<>"Silver",BN17=0),0,IF(BN17=MIN(IF(($H$8:$H$5000="Silver")*($D$8:$D$5000=$D17)*(BN$8:BN$5000>0),BN$8:BN$5000)),0,BN17)) -> 355.2 | ED17: =IF(OR($H17<>"Silver",BO17=0),0,IF(BO17=MIN(IF(($H$8:$H$5000="Silver")*($D$8:$D$5000=$D17)*(BO$8:BO$5000>0),BO$8:BO$5000)),0,BO17)) -> 355.2 | EE17: =IF(OR($H17<>"Silver",BP17=0),0,IF(BP17=MIN(IF(($H$8:$H$5000="Silver")*($D$8:$D$5000=$D17)*(BP$8:BP$5000>0),BP$8:BP$5000)),0,BP17)) -> 355.2 | EF17: =IF(OR($H17<>"Silver",BQ17=0),0,IF(BQ17=MIN(IF(($H$8:$H$5000="Silver")*($D$8:$D$5000=$D17)*(BQ$8:BQ$5000>0),BQ$8:BQ$5000)),0,BQ17)) -> 355.2 | EG17: =IF(OR($H17<>"Silver",BR17=0),0,IF(BR17=MIN(IF(($H$8:$H$5000="Silver")*($D$8:$D$5000=$D17)*(BR$8:BR$5000>0),BR$8:BR$5000)),0,BR17)) -> 355.2 | EH17: =IF(OR($H17<>"Silver",BS17=0),0,IF(BS17=MIN(IF(($H$8:$H$5000="Silver")*($D$8:$D$5000=$D17)*(BS$8:BS$5000>0),BS$8:BS$5000)),0,BS17)) -> 0 | EI17: =IF(OR($H17<>"Silver",BT17=0),0,IF(BT17=MIN(IF(($H$8:$H$5000="Silver")*($D$8:$D$5000=$D17)*(BT$8:BT$5000>0),BT$8:BT$5000)),0,BT17)) -> 0 | EJ17: =IF(OR($H17<>"Silver",BU17=0),0,IF(BU17=MIN(IF(($H$8:$H$5000="Silver")*($D$8:$D$5000=$D17)*(BU$8:BU$5000>0),BU$8:BU$5000)),0,BU17)) -> 0 | EK17: =IF(OR($H17<>"Silver",BV17=0),0,IF(BV17=MIN(IF(($H$8:$H$5000="Silver")*($D$8:$D$5000=$D17)*(BV$8:BV$5000>0),BV$8:BV$5000)),0,BV17)) -> 0 | EL17: =IF(OR($H17<>"Silver",BW17=0),0,IF(BW17=MIN(IF(($H$8:$H$5000="Silver")*($D$8:$D$5000=$D17)*(BW$8:BW$5000>0),BW$8:BW$5000)),0,BW17)) -> 0 | EM17: =IF(OR($H17<>"Silver",BX17=0),0,IF(BX17=MIN(IF(($H$8:$H$5000="Silver")*($D$8:$D$5000=$D17)*(BX$8:BX$5000>0),BX$8:BX$5000)),0,BX17)) -> 0 | EN17: =IF(OR($H17<>"Silver",BY17=0),0,IF(BY17=MIN(IF(($H$8:$H$5000="Silver")*($D$8:$D$5000=$D17)*(BY$8:BY$5000>0),BY$8:BY$5000)),0,BY17)) -> 0
B18: IBC | C18: QCC | D18: Individual | E18: 31609PA0070023 | F18: Personal Choice PPO Bronze | G18: PPO | H18: Bronze | I18: Off | K18: 0 | L18: 0 | M18: 0 | N18: 0 | O18: 0 | P18: 0 | Q18: 0 | R18: 0 | S18: 0 | T18: 0 | U18: 0 | V18: 0 | W18: 0 | X18: 0 | Y18: 0 | Z18: 0 | AA18: 0 | AB18: 0 | AC18: 0 | AD18: 0 | AE18: 0 | AF18: 0 | AG18: 0 | AH18: 0 | AI18: 0 | AJ18: 0 | AK18: 0 | AL18: 0 | AM18: 0 | AN18: 0 | AO18: 0 | AP18: 0 | AQ18: 0 | AR18: 0 | AS18: 0 | AT18: 0 | AU18: 0 | AV18: 0 | AW18: 0 | AX18: 0 | AY18: 0 | AZ18: 0 | BA18: 0 | BB18: 0 | BC18: 0 | BD18: 0 | BE18: 0 | BF18: 0 | BG18: 0 | BH18: 0 | BI18: 0 | BJ18: 0 | BK18: 0 | BL18: 0 | BM18: 0 | BN18: 278.94 | BO18: 278.94 | BP18: 278.94 | BQ18: 278.94 | BR18: 278.94 | BS18: 0 | BT18: 0 | BU18: 0 | BV18: 0 | BW18: 0 | BX18: 0 | BY18: 0 | BZ18: =IF(OR($H18<>"Silver",K18=0),0,IF(K18=MIN(IF(($H$8:$H$5000="Silver")*($D$8:$D$5000=$D18)*(K$8:K$5000>0),K$8:K$5000)),0,K18)) -> 0 | CA18: =IF(OR($H18<>"Silver",L18=0),0,IF(L18=MIN(IF(($H$8:$H$5000="Silver")*($D$8:$D$5000=$D18)*(L$8:L$5000>0),L$8:L$5000)),0,L18)) -> 0 | CB18: =IF(OR($H18<>"Silver",M18=0),0,IF(M18=MIN(IF(($H$8:$H$5000="Silver")*($D$8:$D$5000=$D18)*(M$8:M$5000>0),M$8:M$5000)),0,M18)) -> 0 | CC18: =IF(OR($H18<>"Silver",N18=0),0,IF(N18=MIN(IF(($H$8:$H$5000="Silver")*($D$8:$D$5000=$D18)*(N$8:N$5000>0),N$8:N$5000)),0,N18)) -> 0 | CD18: =IF(OR($H18<>"Silver",O18=0),0,IF(O18=MIN(IF(($H$8:$H$5000="Silver")*($D$8:$D$5000=$D18)*(O$8:O$5000>0),O$8:O$5000)),0,O18)) -> 0 | CE18: =IF(OR($H18<>"Silver",P18=0),0,IF(P18=MIN(IF(($H$8:$H$5000="Silver")*($D$8:$D$5000=$D18)*(P$8:P$5000>0),P$8:P$5000)),0,P18)) -> 0 | CF18: =IF(OR($H18<>"Silver",Q18=0),0,IF(Q18=MIN(IF(($H$8:$H$5000="Silver")*($D$8:$D$5000=$D18)*(Q$8:Q$5000>0),Q$8:Q$5000)),0,Q18)) -> 0 | CG18: =IF(OR($H18<>"Silver",R18=0),0,IF(R18=MIN(IF(($H$8:$H$5000="Silver")*($D$8:$D$5000=$D18)*(R$8:R$5000>0),R$8:R$5000)),0,R18)) -> 0 | CH18: =IF(OR($H18<>"Silver",S18=0),0,IF(S18=MIN(IF(($H$8:$H$5000="Silver")*($D$8:$D$5000=$D18)*(S$8:S$5000>0),S$8:S$5000)),0,S18)) -> 0 | CI18: =IF(OR($H18<>"Silver",T18=0),0,IF(T18=MIN(IF(($H$8:$H$5000="Silver")*($D$8:$D$5000=$D18)*(T$8:T$5000>0),T$8:T$5000)),0,T18)) -> 0 | CJ18: =IF(OR($H18<>"Silver",U18=0),0,IF(U18=MIN(IF(($H$8:$H$5000="Silver")*($D$8:$D$5000=$D18)*(U$8:U$5000>0),U$8:U$5000)),0,U18)) -> 0 | CK18: =IF(OR($H18<>"Silver",V18=0),0,IF(V18=MIN(IF(($H$8:$H$5000="Silver")*($D$8:$D$5000=$D18)*(V$8:V$5000>0),V$8:V$5000)),0,V18)) -> 0 | CL18: =IF(OR($H18<>"Silver",W18=0),0,IF(W18=MIN(IF(($H$8:$H$5000="Silver")*($D$8:$D$5000=$D18)*(W$8:W$5000>0),W$8:W$5000)),0,W18)) -> 0 | CM18: =IF(OR($H18<>"Silver",X18=0),0,IF(X18=MIN(IF(($H$8:$H$5000="Silver")*($D$8:$D$5000=$D18)*(X$8:X$5000>0),X$8:X$5000)),0,X18)) -> 0 | CN18: =IF(OR($H18<>"Silver",Y18=0),0,IF(Y18=MIN(IF(($H$8:$H$5000="Silver")*($D$8:$D$5000=$D18)*(Y$8:Y$5000>0),Y$8:Y$5000)),0,Y18)) -> 0 | CO18: =IF(OR($H18<>"Silver",Z18=0),0,IF(Z18=MIN(IF(($H$8:$H$5000="Silver")*($D$8:$D$5000=$D18)*(Z$8:Z$5000>0),Z$8:Z$5000)),0,Z18)) -> 0 | CP18: =IF(OR($H18<>"Silver",AA18=0),0,IF(AA18=MIN(IF(($H$8:$H$5000="Silver")*($D$8:$D$5000=$D18)*(AA$8:AA$5000>0),AA$8:AA$5000)),0,AA18)) -> 0 | CQ18: =IF(OR($H18<>"Silver",AB18=0),0,IF(AB18=MIN(IF(($H$8:$H$5000="Silver")*($D$8:$D$5000=$D18)*(AB$8:AB$5000>0),AB$8:AB$5000)),0,AB18)) -> 0 | CR18: =IF(OR($H18<>"Silver",AC18=0),0,IF(AC18=MIN(IF(($H$8:$H$5000="Silver")*($D$8:$D$5000=$D18)*(AC$8:AC$5000>0),AC$8:AC$5000)),0,AC18)) -> 0 | CS18: =IF(OR($H18<>"Silver",AD18=0),0,IF(AD18=MIN(IF(($H$8:$H$5000="Silver")*($D$8:$D$5000=$D18)*(AD$8:AD$5000>0),AD$8:AD$5000)),0,AD18)) -> 0 | CT18: =IF(OR($H18<>"Silver",AE18=0),0,IF(AE18=MIN(IF(($H$8:$H$5000="Silver")*($D$8:$D$5000=$D18)*(AE$8:AE$5000>0),AE$8:AE$5000)),0,AE18)) -> 0 | CU18: =IF(OR($H18<>"Silver",AF18=0),0,IF(AF18=MIN(IF(($H$8:$H$5000="Silver")*($D$8:$D$5000=$D18)*(AF$8:AF$5000>0),AF$8:AF$5000)),0,AF18)) -> 0 | CV18: =IF(OR($H18<>"Silver",AG18=0),0,IF(AG18=MIN(IF(($H$8:$H$5000="Silver")*($D$8:$D$5000=$D18)*(AG$8:AG$5000>0),AG$8:AG$5000)),0,AG18)) -> 0 | CW18: =IF(OR($H18<>"Silver",AH18=0),0,IF(AH18=MIN(IF(($H$8:$H$5000="Silver")*($D$8:$D$5000=$D18)*(AH$8:AH$5000>0),AH$8:AH$5000)),0,AH18)) -> 0 | CX18: =IF(OR($H18<>"Silver",AI18=0),0,IF(AI18=MIN(IF(($H$8:$H$5000="Silver")*($D$8:$D$5000=$D18)*(AI$8:AI$5000>0),AI$8:AI$5000)),0,AI18)) -> 0 | CY18: =IF(OR($H18<>"Silver",AJ18=0),0,IF(AJ18=MIN(IF(($H$8:$H$5000="Silver")*($D$8:$D$5000=$D18)*(AJ$8:AJ$5000>0),AJ$8:AJ$5000)),0,AJ18)) -> 0 | CZ18: =IF(OR($H18<>"Silver",AK18=0),0,IF(AK18=MIN(IF(($H$8:$H$5000="Silver")*($D$8:$D$5000=$D18)*(AK$8:AK$5000>0),AK$8:AK$5000)),0,AK18)) -> 0 | DA18: =IF(OR($H18<>"Silver",AL18=0),0,IF(AL18=MIN(IF(($H$8:$H$5000="Silver")*($D$8:$D$5000=$D18)*(AL$8:AL$5000>0),AL$8:AL$5000)),0,AL18)) -> 0 | DB18: =IF(OR($H18<>"Silver",AM18=0),0,IF(AM18=MIN(IF(($H$8:$H$5000="Silver")*($D$8:$D$5000=$D18)*(AM$8:AM$5000>0),AM$8:AM$5000)),0,AM18)) -> 0 | DC18: =IF(OR($H18<>"Silver",AN18=0),0,IF(AN18=MIN(IF(($H$8:$H$5000="Silver")*($D$8:$D$5000=$D18)*(AN$8:AN$5000>0),AN$8:AN$5000)),0,AN18)) -> 0 | DD18: =IF(OR($H18<>"Silver",AO18=0),0,IF(AO18=MIN(IF(($H$8:$H$5000="Silver")*($D$8:$D$5000=$D18)*(AO$8:AO$5000>0),AO$8:AO$5000)),0,AO18)) -> 0 | DE18: =IF(OR($H18<>"Silver",AP18=0),0,IF(AP18=MIN(IF(($H$8:$H$5000="Silver")*($D$8:$D$5000=$D18)*(AP$8:AP$5000>0),AP$8:AP$5000)),0,AP18)) -> 0 | DF18: =IF(OR($H18<>"Silver",AQ18=0),0,IF(AQ18=MIN(IF(($H$8:$H$5000="Silver")*($D$8:$D$5000=$D18)*(AQ$8:AQ$5000>0),AQ$8:AQ$5000)),0,AQ18)) -> 0 | DG18: =IF(OR($H18<>"Silver",AR18=0),0,IF(AR18=MIN(IF(($H$8:$H$5000="Silver")*($D$8:$D$5000=$D18)*(AR$8:AR$5000>0),AR$8:AR$5000)),0,AR18)) -> 0 | DH18: =IF(OR($H18<>"Silver",AS18=0),0,IF(AS18=MIN(IF(($H$8:$H$5000="Silver")*($D$8:$D$5000=$D18)*(AS$8:AS$5000>0),AS$8:AS$5000)),0,AS18)) -> 0 | DI18: =IF(OR($H18<>"Silver",AT18=0),0,IF(AT18=MIN(IF(($H$8:$H$5000="Silver")*($D$8:$D$5000=$D18)*(AT$8:AT$5000>0),AT$8:AT$5000)),0,AT18)) -> 0 | DJ18: =IF(OR($H18<>"Silver",AU18=0),0,IF(AU18=MIN(IF(($H$8:$H$5000="Silver")*($D$8:$D$5000=$D18)*(AU$8:AU$5000>0),AU$8:AU$5000)),0,AU18)) -> 0 | DK18: =IF(OR($H18<>"Silver",AV18=0),0,IF(AV18=MIN(IF(($H$8:$H$5000="Silver")*($D$8:$D$5000=$D18)*(AV$8:AV$5000>0),AV$8:AV$5000)),0,AV18)) -> 0 | DL18: =IF(OR($H18<>"Silver",AW18=0),0,IF(AW18=MIN(IF(($H$8:$H$5000="Silver")*($D$8:$D$5000=$D18)*(AW$8:AW$5000>0),AW$8:AW$5000)),0,AW18)) -> 0 | DM18: =IF(OR($H18<>"Silver",AX18=0),0,IF(AX18=MIN(IF(($H$8:$H$5000="Silver")*($D$8:$D$5000=$D18)*(AX$8:AX$5000>0),AX$8:AX$5000)),0,AX18)) -> 0 | DN18: =IF(OR($H18<>"Silver",AY18=0),0,IF(AY18=MIN(IF(($H$8:$H$5000="Silver")*($D$8:$D$5000=$D18)*(AY$8:AY$5000>0),AY$8:AY$5000)),0,AY18)) -> 0 | DO18: =IF(OR($H18<>"Silver",AZ18=0),0,IF(AZ18=MIN(IF(($H$8:$H$5000="Silver")*($D$8:$D$5000=$D18)*(AZ$8:AZ$5000>0),AZ$8:AZ$5000)),0,AZ18)) -> 0 | DP18: =IF(OR($H18<>"Silver",BA18=0),0,IF(BA18=MIN(IF(($H$8:$H$5000="Silver")*($D$8:$D$5000=$D18)*(BA$8:BA$5000>0),BA$8:BA$5000)),0,BA18)) -> 0 | DQ18: =IF(OR($H18<>"Silver",BB18=0),0,IF(BB18=MIN(IF(($H$8:$H$5000="Silver")*($D$8:$D$5000=$D18)*(BB$8:BB$5000>0),BB$8:BB$5000)),0,BB18)) -> 0 | DR18: =IF(OR($H18<>"Silver",BC18=0),0,IF(BC18=MIN(IF(($H$8:$H$5000="Silver")*($D$8:$D$5000=$D18)*(BC$8:BC$5000>0),BC$8:BC$5000)),0,BC18)) -> 0 | DS18: =IF(OR($H18<>"Silver",BD18=0),0,IF(BD18=MIN(IF(($H$8:$H$5000="Silver")*($D$8:$D$5000=$D18)*(BD$8:BD$5000>0),BD$8:BD$5000)),0,BD18)) -> 0 | DT18: =IF(OR($H18<>"Silver",BE18=0),0,IF(BE18=MIN(IF(($H$8:$H$5000="Silver")*($D$8:$D$5000=$D18)*(BE$8:BE$5000>0),BE$8:BE$5000)),0,BE18)) -> 0 | DU18: =IF(OR($H18<>"Silver",BF18=0),0,IF(BF18=MIN(IF(($H$8:$H$5000="Silver")*($D$8:$D$5000=$D18)*(BF$8:BF$5000>0),BF$8:BF$5000)),0,BF18)) -> 0 | DV18: =IF(OR($H18<>"Silver",BG18=0),0,IF(BG18=MIN(IF(($H$8:$H$5000="Silver")*($D$8:$D$5000=$D18)*(BG$8:BG$5000>0),BG$8:BG$5000)),0,BG18)) -> 0 | DW18: =IF(OR($H18<>"Silver",BH18=0),0,IF(BH18=MIN(IF(($H$8:$H$5000="Silver")*($D$8:$D$5000=$D18)*(BH$8:BH$5000>0),BH$8:BH$5000)),0,BH18)) -> 0 | DX18: =IF(OR($H18<>"Silver",BI18=0),0,IF(BI18=MIN(IF(($H$8:$H$5000="Silver")*($D$8:$D$5000=$D18)*(BI$8:BI$5000>0),BI$8:BI$5000)),0,BI18)) -> 0 | DY18: =IF(OR($H18<>"Silver",BJ18=0),0,IF(BJ18=MIN(IF(($H$8:$H$5000="Silver")*($D$8:$D$5000=$D18)*(BJ$8:BJ$5000>0),BJ$8:BJ$5000)),0,BJ18)) -> 0 | DZ18: =IF(OR($H18<>"Silver",BK18=0),0,IF(BK18=MIN(IF(($H$8:$H$5000="Silver")*($D$8:$D$5000=$D18)*(BK$8:BK$5000>0),BK$8:BK$5000)),0,BK18)) -> 0 | EA18: =IF(OR($H18<>"Silver",BL18=0),0,IF(BL18=MIN(IF(($H$8:$H$5000="Silver")*($D$8:$D$5000=$D18)*(BL$8:BL$5000>0),BL$8:BL$5000)),0,BL18)) -> 0 | EB18: =IF(OR($H18<>"Silver",BM18=0),0,IF(BM18=MIN(IF(($H$8:$H$5000="Silver")*($D$8:$D$5000=$D18)*(BM$8:BM$5000>0),BM$8:BM$5000)),0,BM18)) -> 0 | EC18: =IF(OR($H18<>"Silver",BN18=0),0,IF(BN18=MIN(IF(($H$8:$H$5000="Silver")*($D$8:$D$5000=$D18)*(BN$8:BN$5000>0),BN$8:BN$5000)),0,BN18)) -> 0 | ED18: =IF(OR($H18<>"Silver",BO18=0),0,IF(BO18=MIN(IF(($H$8:$H$5000="Silver")*($D$8:$D$5000=$D18)*(BO$8:BO$5000>0),BO$8:BO$5000)),0,BO18)) -> 0 | EE18: =IF(OR($H18<>"Silver",BP18=0),0,IF(BP18=MIN(IF(($H$8:$H$5000="Silver")*($D$8:$D$5000=$D18)*(BP$8:BP$5000>0),BP$8:BP$5000)),0,BP18)) -> 0 | EF18: =IF(OR($H18<>"Silver",BQ18=0),0,IF(BQ18=MIN(IF(($H$8:$H$5000="Silver")*($D$8:$D$5000=$D18)*(BQ$8:BQ$5000>0),BQ$8:BQ$5000)),0,BQ18)) -> 0 | EG18: =IF(OR($H18<>"Silver",BR18=0),0,IF(BR18=MIN(IF(($H$8:$H$5000="Silver")*($D$8:$D$5000=$D18)*(BR$8:BR$5000>0),BR$8:BR$5000)),0,BR18)) -> 0 | EH18: =IF(OR($H18<>"Silver",BS18=0),0,IF(BS18=MIN(IF(($H$8:$H$5000="Silver")*($D$8:$D$5000=$D18)*(BS$8:BS$5000>0),BS$8:BS$5000)),0,BS18)) -> 0 | EI18: =IF(OR($H18<>"Silver",BT18=0),0,IF(BT18=MIN(IF(($H$8:$H$5000="Silver")*($D$8:$D$5000=$D18)*(BT$8:BT$5000>0),BT$8:BT$5000)),0,BT18)) -> 0 | EJ18: =IF(OR($H18<>"Silver",BU18=0),0,IF(BU18=MIN(IF(($H$8:$H$5000="Silver")*($D$8:$D$5000=$D18)*(BU$8:BU$5000>0),BU$8:BU$5000)),0,BU18)) -> 0 | EK18: =IF(OR($H18<>"Silver",BV18=0),0,IF(BV18=MIN(IF(($H$8:$H$5000="Silver")*($D$8:$D$5000=$D18)*(BV$8:BV$5000>0),BV$8:BV$5000)),0,BV18)) -> 0 | EL18: =IF(OR($H18<>"Silver",BW18=0),0,IF(BW18=MIN(IF(($H$8:$H$5000="Silver")*($D$8:$D$5000=$D18)*(BW$8:BW$5000>0),BW$8:BW$5000)),0,BW18)) -> 0 | EM18: =IF(OR($H18<>"Silver",BX18=0),0,IF(BX18=MIN(IF(($H$8:$H$5000="Silver")*($D$8:$D$5000=$D18)*(BX$8:BX$5000>0),BX$8:BX$5000)),0,BX18)) -> 0 | EN18: =IF(OR($H18<>"Silver",BY18=0),0,IF(BY18=MIN(IF(($H$8:$H$5000="Silver")*($D$8:$D$5000=$D18)*(BY$8:BY$5000>0),BY$8:BY$5000)),0,BY18)) -> 0
B19: IBC | C19: QCC | D19: Individual | E19: 31609PA0160020 | F19: Personal Choice Catastrophic | G19: PPO | H19: Catastrophic | I19: Off | K19: 0 | L19: 0 | M19: 0 | N19: 0 | O19: 0 | P19: 0 | Q19: 0 | R19: 0 | S19: 0 | T19: 0 | U19: 0 | V19: 0 | W19: 0 | X19: 0 | Y19: 0 | Z19: 0 | AA19: 0 | AB19: 0 | AC19: 0 | AD19: 0 | AE19: 0 | AF19: 0 | AG19: 0 | AH19: 0 | AI19: 0 | AJ19: 0 | AK19: 0 | AL19: 0 | AM19: 0 | AN19: 0 | AO19: 0 | AP19: 0 | AQ19: 0 | AR19: 0 | AS19: 0 | AT19: 0 | AU19: 0 | AV19: 0 | AW19: 0 | AX19: 0 | AY19: 0 | AZ19: 0 | BA19: 0 | BB19: 0 | BC19: 0 | BD19: 0 | BE19: 0 | BF19: 0 | BG19: 0 | BH19: 0 | BI19: 0 | BJ19: 0 | BK19: 0 | BL19: 0 | BM19: 0 | BN19: 232.13 | BO19: 232.13 | BP19: 232.13 | BQ19: 232.13 | BR19: 232.13 | BS19: 0 | BT19: 0 | BU19: 0 | BV19: 0 | BW19: 0 | BX19: 0 | BY19: 0 | BZ19: =IF(OR($H19<>"Silver",K19=0),0,IF(K19=MIN(IF(($H$8:$H$5000="Silver")*($D$8:$D$5000=$D19)*(K$8:K$5000>0),K$8:K$5000)),0,K19)) -> 0 | CA19: =IF(OR($H19<>"Silver",L19=0),0,IF(L19=MIN(IF(($H$8:$H$5000="Silver")*($D$8:$D$5000=$D19)*(L$8:L$5000>0),L$8:L$5000)),0,L19)) -> 0 | CB19: =IF(OR($H19<>"Silver",M19=0),0,IF(M19=MIN(IF(($H$8:$H$5000="Silver")*($D$8:$D$5000=$D19)*(M$8:M$5000>0),M$8:M$5000)),0,M19)) -> 0 | CC19: =IF(OR($H19<>"Silver",N19=0),0,IF(N19=MIN(IF(($H$8:$H$5000="Silver")*($D$8:$D$5000=$D19)*(N$8:N$5000>0),N$8:N$5000)),0,N19)) -> 0 | CD19: =IF(OR($H19<>"Silver",O19=0),0,IF(O19=MIN(IF(($H$8:$H$5000="Silver")*($D$8:$D$5000=$D19)*(O$8:O$5000>0),O$8:O$5000)),0,O19)) -> 0 | CE19: =IF(OR($H19<>"Silver",P19=0),0,IF(P19=MIN(IF(($H$8:$H$5000="Silver")*($D$8:$D$5000=$D19)*(P$8:P$5000>0),P$8:P$5000)),0,P19)) -> 0 | CF19: =IF(OR($H19<>"Silver",Q19=0),0,IF(Q19=MIN(IF(($H$8:$H$5000="Silver")*($D$8:$D$5000=$D19)*(Q$8:Q$5000>0),Q$8:Q$5000)),0,Q19)) -> 0 | CG19: =IF(OR($H19<>"Silver",R19=0),0,IF(R19=MIN(IF(($H$8:$H$5000="Silver")*($D$8:$D$5000=$D19)*(R$8:R$5000>0),R$8:R$5000)),0,R19)) -> 0 | CH19: =IF(OR($H19<>"Silver",S19=0),0,IF(S19=MIN(IF(($H$8:$H$5000="Silver")*($D$8:$D$5000=$D19)*(S$8:S$5000>0),S$8:S$5000)),0,S19)) -> 0 | CI19: =IF(OR($H19<>"Silver",T19=0),0,IF(T19=MIN(IF(($H$8:$H$5000="Silver")*($D$8:$D$5000=$D19)*(T$8:T$5000>0),T$8:T$5000)),0,T19)) -> 0 | CJ19: =IF(OR($H19<>"Silver",U19=0),0,IF(U19=MIN(IF(($H$8:$H$5000="Silver")*($D$8:$D$5000=$D19)*(U$8:U$5000>0),U$8:U$5000)),0,U19)) -> 0 | CK19: =IF(OR($H19<>"Silver",V19=0),0,IF(V19=MIN(IF(($H$8:$H$5000="Silver")*($D$8:$D$5000=$D19)*(V$8:V$5000>0),V$8:V$5000)),0,V19)) -> 0 | CL19: =IF(OR($H19<>"Silver",W19=0),0,IF(W19=MIN(IF(($H$8:$H$5000="Silver")*($D$8:$D$5000=$D19)*(W$8:W$5000>0),W$8:W$5000)),0,W19)) -> 0 | CM19: =IF(OR($H19<>"Silver",X19=0),0,IF(X19=MIN(IF(($H$8:$H$5000="Silver")*($D$8:$D$5000=$D19)*(X$8:X$5000>0),X$8:X$5000)),0,X19)) -> 0 | CN19: =IF(OR($H19<>"Silver",Y19=0),0,IF(Y19=MIN(IF(($H$8:$H$5000="Silver")*($D$8:$D$5000=$D19)*(Y$8:Y$5000>0),Y$8:Y$5000)),0,Y19)) -> 0 | CO19: =IF(OR($H19<>"Silver",Z19=0),0,IF(Z19=MIN(IF(($H$8:$H$5000="Silver")*($D$8:$D$5000=$D19)*(Z$8:Z$5000>0),Z$8:Z$5000)),0,Z19)) -> 0 | CP19: =IF(OR($H19<>"Silver",AA19=0),0,IF(AA19=MIN(IF(($H$8:$H$5000="Silver")*($D$8:$D$5000=$D19)*(AA$8:AA$5000>0),AA$8:AA$5000)),0,AA19)) -> 0 | CQ19: =IF(OR($H19<>"Silver",AB19=0),0,IF(AB19=MIN(IF(($H$8:$H$5000="Silver")*($D$8:$D$5000=$D19)*(AB$8:AB$5000>0),AB$8:AB$5000)),0,AB19)) -> 0 | CR19: =IF(OR($H19<>"Silver",AC19=0),0,IF(AC19=MIN(IF(($H$8:$H$5000="Silver")*($D$8:$D$5000=$D19)*(AC$8:AC$5000>0),AC$8:AC$5000)),0,AC19)) -> 0 | CS19: =IF(OR($H19<>"Silver",AD19=0),0,IF(AD19=MIN(IF(($H$8:$H$5000="Silver")*($D$8:$D$5000=$D19)*(AD$8:AD$5000>0),AD$8:AD$5000)),0,AD19)) -> 0 | CT19: =IF(OR($H19<>"Silver",AE19=0),0,IF(AE19=MIN(IF(($H$8:$H$5000="Silver")*($D$8:$D$5000=$D19)*(AE$8:AE$5000>0),AE$8:AE$5000)),0,AE19)) -> 0 | CU19: =IF(OR($H19<>"Silver",AF19=0),0,IF(AF19=MIN(IF(($H$8:$H$5000="Silver")*($D$8:$D$5000=$D19)*(AF$8:AF$5000>0),AF$8:AF$5000)),0,AF19)) -> 0 | CV19: =IF(OR($H19<>"Silver",AG19=0),0,IF(AG19=MIN(IF(($H$8:$H$5000="Silver")*($D$8:$D$5000=$D19)*(AG$8:AG$5000>0),AG$8:AG$5000)),0,AG19)) -> 0 | CW19: =IF(OR($H19<>"Silver",AH19=0),0,IF(AH19=MIN(IF(($H$8:$H$5000="Silver")*($D$8:$D$5000=$D19)*(AH$8:AH$5000>0),AH$8:AH$5000)),0,AH19)) -> 0 | CX19: =IF(OR($H19<>"Silver",AI19=0),0,IF(AI19=MIN(IF(($H$8:$H$5000="Silver")*($D$8:$D$5000=$D19)*(AI$8:AI$5000>0),AI$8:AI$5000)),0,AI19)) -> 0 | CY19: =IF(OR($H19<>"Silver",AJ19=0),0,IF(AJ19=MIN(IF(($H$8:$H$5000="Silver")*($D$8:$D$5000=$D19)*(AJ$8:AJ$5000>0),AJ$8:AJ$5000)),0,AJ19)) -> 0 | CZ19: =IF(OR($H19<>"Silver",AK19=0),0,IF(AK19=MIN(IF(($H$8:$H$5000="Silver")*($D$8:$D$5000=$D19)*(AK$8:AK$5000>0),AK$8:AK$5000)),0,AK19)) -> 0 | DA19: =IF(OR($H19<>"Silver",AL19=0),0,IF(AL19=MIN(IF(($H$8:$H$5000="Silver")*($D$8:$D$5000=$D19)*(AL$8:AL$5000>0),AL$8:AL$5000)),0,AL19)) -> 0 | DB19: =IF(OR($H19<>"Silver",AM19=0),0,IF(AM19=MIN(IF(($H$8:$H$5000="Silver")*($D$8:$D$5000=$D19)*(AM$8:AM$5000>0),AM$8:AM$5000)),0,AM19)) -> 0 | DC19: =IF(OR($H19<>"Silver",AN19=0),0,IF(AN19=MIN(IF(($H$8:$H$5000="Silver")*($D$8:$D$5000=$D19)*(AN$8:AN$5000>0),AN$8:AN$5000)),0,AN19)) -> 0 | DD19: =IF(OR($H19<>"Silver",AO19=0),0,IF(AO19=MIN(IF(($H$8:$H$5000="Silver")*($D$8:$D$5000=$D19)*(AO$8:AO$5000>0),AO$8:AO$5000)),0,AO19)) -> 0 | DE19: =IF(OR($H19<>"Silver",AP19=0),0,IF(AP19=MIN(IF(($H$8:$H$5000="Silver")*($D$8:$D$5000=$D19)*(AP$8:AP$5000>0),AP$8:AP$5000)),0,AP19)) -> 0 | DF19: =IF(OR($H19<>"Silver",AQ19=0),0,IF(AQ19=MIN(IF(($H$8:$H$5000="Silver")*($D$8:$D$5000=$D19)*(AQ$8:AQ$5000>0),AQ$8:AQ$5000)),0,AQ19)) -> 0 | DG19: =IF(OR($H19<>"Silver",AR19=0),0,IF(AR19=MIN(IF(($H$8:$H$5000="Silver")*($D$8:$D$5000=$D19)*(AR$8:AR$5000>0),AR$8:AR$5000)),0,AR19)) -> 0 | DH19: =IF(OR($H19<>"Silver",AS19=0),0,IF(AS19=MIN(IF(($H$8:$H$5000="Silver")*($D$8:$D$5000=$D19)*(AS$8:AS$5000>0),AS$8:AS$5000)),0,AS19)) -> 0 | DI19: =IF(OR($H19<>"Silver",AT19=0),0,IF(AT19=MIN(IF(($H$8:$H$5000="Silver")*($D$8:$D$5000=$D19)*(AT$8:AT$5000>0),AT$8:AT$5000)),0,AT19)) -> 0 | DJ19: =IF(OR($H19<>"Silver",AU19=0),0,IF(AU19=MIN(IF(($H$8:$H$5000="Silver")*($D$8:$D$5000=$D19)*(AU$8:AU$5000>0),AU$8:AU$5000)),0,AU19)) -> 0 | DK19: =IF(OR($H19<>"Silver",AV19=0),0,IF(AV19=MIN(IF(($H$8:$H$5000="Silver")*($D$8:$D$5000=$D19)*(AV$8:AV$5000>0),AV$8:AV$5000)),0,AV19)) -> 0 | DL19: =IF(OR($H19<>"Silver",AW19=0),0,IF(AW19=MIN(IF(($H$8:$H$5000="Silver")*($D$8:$D$5000=$D19)*(AW$8:AW$5000>0),AW$8:AW$5000)),0,AW19)) -> 0 | DM19: =IF(OR($H19<>"Silver",AX19=0),0,IF(AX19=MIN(IF(($H$8:$H$5000="Silver")*($D$8:$D$5000=$D19)*(AX$8:AX$5000>0),AX$8:AX$5000)),0,AX19)) -> 0 | DN19: =IF(OR($H19<>"Silver",AY19=0),0,IF(AY19=MIN(IF(($H$8:$H$5000="Silver")*($D$8:$D$5000=$D19)*(AY$8:AY$5000>0),AY$8:AY$5000)),0,AY19)) -> 0 | DO19: =IF(OR($H19<>"Silver",AZ19=0),0,IF(AZ19=MIN(IF(($H$8:$H$5000="Silver")*($D$8:$D$5000=$D19)*(AZ$8:AZ$5000>0),AZ$8:AZ$5000)),0,AZ19)) -> 0 | DP19: =IF(OR($H19<>"Silver",BA19=0),0,IF(BA19=MIN(IF(($H$8:$H$5000="Silver")*($D$8:$D$5000=$D19)*(BA$8:BA$5000>0),BA$8:BA$5000)),0,BA19)) -> 0 | DQ19: =IF(OR($H19<>"Silver",BB19=0),0,IF(BB19=MIN(IF(($H$8:$H$5000="Silver")*($D$8:$D$5000=$D19)*(BB$8:BB$5000>0),BB$8:BB$5000)),0,BB19)) -> 0 | DR19: =IF(OR($H19<>"Silver",BC19=0),0,IF(BC19=MIN(IF(($H$8:$H$5000="Silver")*($D$8:$D$5000=$D19)*(BC$8:BC$5000>0),BC$8:BC$5000)),0,BC19)) -> 0 | DS19: =IF(OR($H19<>"Silver",BD19=0),0,IF(BD19=MIN(IF(($H$8:$H$5000="Silver")*($D$8:$D$5000=$D19)*(BD$8:BD$5000>0),BD$8:BD$5000)),0,BD19)) -> 0 | DT19: =IF(OR($H19<>"Silver",BE19=0),0,IF(BE19=MIN(IF(($H$8:$H$5000="Silver")*($D$8:$D$5000=$D19)*(BE$8:BE$5000>0),BE$8:BE$5000)),0,BE19)) -> 0 | DU19: =IF(OR($H19<>"Silver",BF19=0),0,IF(BF19=MIN(IF(($H$8:$H$5000="Silver")*($D$8:$D$5000=$D19)*(BF$8:BF$5000>0),BF$8:BF$5000)),0,BF19)) -> 0 | DV19: =IF(OR($H19<>"Silver",BG19=0),0,IF(BG19=MIN(IF(($H$8:$H$5000="Silver")*($D$8:$D$5000=$D19)*(BG$8:BG$5000>0),BG$8:BG$5000)),0,BG19)) -> 0 | DW19: =IF(OR($H19<>"Silver",BH19=0),0,IF(BH19=MIN(IF(($H$8:$H$5000="Silver")*($D$8:$D$5000=$D19)*(BH$8:BH$5000>0),BH$8:BH$5000)),0,BH19)) -> 0 | DX19: =IF(OR($H19<>"Silver",BI19=0),0,IF(BI19=MIN(IF(($H$8:$H$5000="Silver")*($D$8:$D$5000=$D19)*(BI$8:BI$5000>0),BI$8:BI$5000)),0,BI19)) -> 0 | DY19: =IF(OR($H19<>"Silver",BJ19=0),0,IF(BJ19=MIN(IF(($H$8:$H$5000="Silver")*($D$8:$D$5000=$D19)*(BJ$8:BJ$5000>0),BJ$8:BJ$5000)),0,BJ19)) -> 0 | DZ19: =IF(OR($H19<>"Silver",BK19=0),0,IF(BK19=MIN(IF(($H$8:$H$5000="Silver")*($D$8:$D$5000=$D19)*(BK$8:BK$5000>0),BK$8:BK$5000)),0,BK19)) -> 0 | EA19: =IF(OR($H19<>"Silver",BL19=0),0,IF(BL19=MIN(IF(($H$8:$H$5000="Silver")*($D$8:$D$5000=$D19)*(BL$8:BL$5000>0),BL$8:BL$5000)),0,BL19)) -> 0 | EB19: =IF(OR($H19<>"Silver",BM19=0),0,IF(BM19=MIN(IF(($H$8:$H$5000="Silver")*($D$8:$D$5000=$D19)*(BM$8:BM$5000>0),BM$8:BM$5000)),0,BM19)) -> 0 | EC19: =IF(OR($H19<>"Silver",BN19=0),0,IF(BN19=MIN(IF(($H$8:$H$5000="Silver")*($D$8:$D$5000=$D19)*(BN$8:BN$5000>0),BN$8:BN$5000)),0,BN19)) -> 0 | ED19: =IF(OR($H19<>"Silver",BO19=0),0,IF(BO19=MIN(IF(($H$8:$H$5000="Silver")*($D$8:$D$5000=$D19)*(BO$8:BO$5000>0),BO$8:BO$5000)),0,BO19)) -> 0 | EE19: =IF(OR($H19<>"Silver",BP19=0),0,IF(BP19=MIN(IF(($H$8:$H$5000="Silver")*($D$8:$D$5000=$D19)*(BP$8:BP$5000>0),BP$8:BP$5000)),0,BP19)) -> 0 | EF19: =IF(OR($H19<>"Silver",BQ19=0),0,IF(BQ19=MIN(IF(($H$8:$H$5000="Silver")*($D$8:$D$5000=$D19)*(BQ$8:BQ$5000>0),BQ$8:BQ$5000)),0,BQ19)) -> 0 | EG19: =IF(OR($H19<>"Silver",BR19=0),0,IF(BR19=MIN(IF(($H$8:$H$5000="Silver")*($D$8:$D$5000=$D19)*(BR$8:BR$5000>0),BR$8:BR$5000)),0,BR19)) -> 0 | EH19: =IF(OR($H19<>"Silver",BS19=0),0,IF(BS19=MIN(IF(($H$8:$H$5000="Silver")*($D$8:$D$5000=$D19)*(BS$8:BS$5000>0),BS$8:BS$5000)),0,BS19)) -> 0 | EI19: =IF(OR($H19<>"Silver",BT19=0),0,IF(BT19=MIN(IF(($H$8:$H$5000="Silver")*($D$8:$D$5000=$D19)*(BT$8:BT$5000>0),BT$8:BT$5000)),0,BT19)) -> 0 | EJ19: =IF(OR($H19<>"Silver",BU19=0),0,IF(BU19=MIN(IF(($H$8:$H$5000="Silver")*($D$8:$D$5000=$D19)*(BU$8:BU$5000>0),BU$8:BU$5000)),0,BU19)) -> 0 | EK19: =IF(OR($H19<>"Silver",BV19=0),0,IF(BV19=MIN(IF(($H$8:$H$5000="Silver")*($D$8:$D$5000=$D19)*(BV$8:BV$5000>0),BV$8:BV$5000)),0,BV19)) -> 0 | EL19: =IF(OR($H19<>"Silver",BW19=0),0,IF(BW19=MIN(IF(($H$8:$H$5000="Silver")*($D$8:$D$5000=$D19)*(BW$8:BW$5000>0),BW$8:BW$5000)),0,BW19)) -> 0 | EM19: =IF(OR($H19<>"Silver",BX19=0),0,IF(BX19=MIN(IF(($H$8:$H$5000="Silver")*($D$8:$D$5000=$D19)*(BX$8:BX$5000>0),BX$8:BX$5000)),0,BX19)) -> 0 | EN19: =IF(OR($H19<>"Silver",BY19=0),0,IF(BY19=MIN(IF(($H$8:$H$5000="Silver")*($D$8:$D$5000=$D19)*(BY$8:BY$5000>0),BY$8:BY$5000)),0,BY19)) -> 0
B20: IBC | C20: QCC | D20: Individual | E20: 31609PA0070027 | F20: Personal Choice PPO Bronze Reserve | G20: PPO | H20: Bronze | I20: Off | K20: 0 | L20: 0 | M20: 0 | N20: 0 | O20: 0 | P20: 0 | Q20: 0 | R20: 0 | S20: 0 | T20: 0 | U20: 0 | V20: 0 | W20: 0 | X20: 0 | Y20: 0 | Z20: 0 | AA20: 0 | AB20: 0 | AC20: 0 | AD20: 0 | AE20: 0 | AF20: 0 | AG20: 0 | AH20: 0 | AI20: 0 | AJ20: 0 | AK20: 0 | AL20: 0 | AM20: 0 | AN20: 0 | AO20: 0 | AP20: 0 | AQ20: 0 | AR20: 0 | AS20: 0 | AT20: 0 | AU20: 0 | AV20: 0 | AW20: 0 | AX20: 0 | AY20: 0 | AZ20: 0 | BA20: 0 | BB20: 0 | BC20: 0 | BD20: 0 | BE20: 0 | BF20: 0 | BG20: 0 | BH20: 0 | BI20: 0 | BJ20: 0 | BK20: 0 | BL20: 0 | BM20: 0 | BN20: 261.44 | BO20: 261.44 | BP20: 261.44 | BQ20: 261.44 | BR20: 261.44 | BS20: 0 | BT20: 0 | BU20: 0 | BV20: 0 | BW20: 0 | BX20: 0 | BY20: 0 | BZ20: =IF(OR($H20<>"Silver",K20=0),0,IF(K20=MIN(IF(($H$8:$H$5000="Silver")*($D$8:$D$5000=$D20)*(K$8:K$5000>0),K$8:K$5000)),0,K20)) -> 0 | CA20: =IF(OR($H20<>"Silver",L20=0),0,IF(L20=MIN(IF(($H$8:$H$5000="Silver")*($D$8:$D$5000=$D20)*(L$8:L$5000>0),L$8:L$5000)),0,L20)) -> 0 | CB20: =IF(OR($H20<>"Silver",M20=0),0,IF(M20=MIN(IF(($H$8:$H$5000="Silver")*($D$8:$D$5000=$D20)*(M$8:M$5000>0),M$8:M$5000)),0,M20)) -> 0 | CC20: =IF(OR($H20<>"Silver",N20=0),0,IF(N20=MIN(IF(($H$8:$H$5000="Silver")*($D$8:$D$5000=$D20)*(N$8:N$5000>0),N$8:N$5000)),0,N20)) -> 0 | CD20: =IF(OR($H20<>"Silver",O20=0),0,IF(O20=MIN(IF(($H$8:$H$5000="Silver")*($D$8:$D$5000=$D20)*(O$8:O$5000>0),O$8:O$5000)),0,O20)) -> 0 | CE20: =IF(OR($H20<>"Silver",P20=0),0,IF(P20=MIN(IF(($H$8:$H$5000="Silver")*($D$8:$D$5000=$D20)*(P$8:P$5000>0),P$8:P$5000)),0,P20)) -> 0 | CF20: =IF(OR($H20<>"Silver",Q20=0),0,IF(Q20=MIN(IF(($H$8:$H$5000="Silver")*($D$8:$D$5000=$D20)*(Q$8:Q$5000>0),Q$8:Q$5000)),0,Q20)) -> 0 | CG20: =IF(OR($H20<>"Silver",R20=0),0,IF(R20=MIN(IF(($H$8:$H$5000="Silver")*($D$8:$D$5000=$D20)*(R$8:R$5000>0),R$8:R$5000)),0,R20)) -> 0 | CH20: =IF(OR($H20<>"Silver",S20=0),0,IF(S20=MIN(IF(($H$8:$H$5000="Silver")*($D$8:$D$5000=$D20)*(S$8:S$5000>0),S$8:S$5000)),0,S20)) -> 0 | CI20: =IF(OR($H20<>"Silver",T20=0),0,IF(T20=MIN(IF(($H$8:$H$5000="Silver")*($D$8:$D$5000=$D20)*(T$8:T$5000>0),T$8:T$5000)),0,T20)) -> 0 | CJ20: =IF(OR($H20<>"Silver",U20=0),0,IF(U20=MIN(IF(($H$8:$H$5000="Silver")*($D$8:$D$5000=$D20)*(U$8:U$5000>0),U$8:U$5000)),0,U20)) -> 0 | CK20: =IF(OR($H20<>"Silver",V20=0),0,IF(V20=MIN(IF(($H$8:$H$5000="Silver")*($D$8:$D$5000=$D20)*(V$8:V$5000>0),V$8:V$5000)),0,V20)) -> 0 | CL20: =IF(OR($H20<>"Silver",W20=0),0,IF(W20=MIN(IF(($H$8:$H$5000="Silver")*($D$8:$D$5000=$D20)*(W$8:W$5000>0),W$8:W$5000)),0,W20)) -> 0 | CM20: =IF(OR($H20<>"Silver",X20=0),0,IF(X20=MIN(IF(($H$8:$H$5000="Silver")*($D$8:$D$5000=$D20)*(X$8:X$5000>0),X$8:X$5000)),0,X20)) -> 0 | CN20: =IF(OR($H20<>"Silver",Y20=0),0,IF(Y20=MIN(IF(($H$8:$H$5000="Silver")*($D$8:$D$5000=$D20)*(Y$8:Y$5000>0),Y$8:Y$5000)),0,Y20)) -> 0 | CO20: =IF(OR($H20<>"Silver",Z20=0),0,IF(Z20=MIN(IF(($H$8:$H$5000="Silver")*($D$8:$D$5000=$D20)*(Z$8:Z$5000>0),Z$8:Z$5000)),0,Z20)) -> 0 | CP20: =IF(OR($H20<>"Silver",AA20=0),0,IF(AA20=MIN(IF(($H$8:$H$5000="Silver")*($D$8:$D$5000=$D20)*(AA$8:AA$5000>0),AA$8:AA$5000)),0,AA20)) -> 0 | CQ20: =IF(OR($H20<>"Silver",AB20=0),0,IF(AB20=MIN(IF(($H$8:$H$5000="Silver")*($D$8:$D$5000=$D20)*(AB$8:AB$5000>0),AB$8:AB$5000)),0,AB20)) -> 0 | CR20: =IF(OR($H20<>"Silver",AC20=0),0,IF(AC20=MIN(IF(($H$8:$H$5000="Silver")*($D$8:$D$5000=$D20)*(AC$8:AC$5000>0),AC$8:AC$5000)),0,AC20)) -> 0 | CS20: =IF(OR($H20<>"Silver",AD20=0),0,IF(AD20=MIN(IF(($H$8:$H$5000="Silver")*($D$8:$D$5000=$D20)*(AD$8:AD$5000>0),AD$8:AD$5000)),0,AD20)) -> 0 | CT20: =IF(OR($H20<>"Silver",AE20=0),0,IF(AE20=MIN(IF(($H$8:$H$5000="Silver")*($D$8:$D$5000=$D20)*(AE$8:AE$5000>0),AE$8:AE$5000)),0,AE20)) -> 0 | CU20: =IF(OR($H20<>"Silver",AF20=0),0,IF(AF20=MIN(IF(($H$8:$H$5000="Silver")*($D$8:$D$5000=$D20)*(AF$8:AF$5000>0),AF$8:AF$5000)),0,AF20)) -> 0 | CV20: =IF(OR($H20<>"Silver",AG20=0),0,IF(AG20=MIN(IF(($H$8:$H$5000="Silver")*($D$8:$D$5000=$D20)*(AG$8:AG$5000>0),AG$8:AG$5000)),0,AG20)) -> 0 | CW20: =IF(OR($H20<>"Silver",AH20=0),0,IF(AH20=MIN(IF(($H$8:$H$5000="Silver")*($D$8:$D$5000=$D20)*(AH$8:AH$5000>0),AH$8:AH$5000)),0,AH20)) -> 0 | CX20: =IF(OR($H20<>"Silver",AI20=0),0,IF(AI20=MIN(IF(($H$8:$H$5000="Silver")*($D$8:$D$5000=$D20)*(AI$8:AI$5000>0),AI$8:AI$5000)),0,AI20)) -> 0 | CY20: =IF(OR($H20<>"Silver",AJ20=0),0,IF(AJ20=MIN(IF(($H$8:$H$5000="Silver")*($D$8:$D$5000=$D20)*(AJ$8:AJ$5000>0),AJ$8:AJ$5000)),0,AJ20)) -> 0 | CZ20: =IF(OR($H20<>"Silver",AK20=0),0,IF(AK20=MIN(IF(($H$8:$H$5000="Silver")*($D$8:$D$5000=$D20)*(AK$8:AK$5000>0),AK$8:AK$5000)),0,AK20)) -> 0 | DA20: =IF(OR($H20<>"Silver",AL20=0),0,IF(AL20=MIN(IF(($H$8:$H$5000="Silver")*($D$8:$D$5000=$D20)*(AL$8:AL$5000>0),AL$8:AL$5000)),0,AL20)) -> 0 | DB20: =IF(OR($H20<>"Silver",AM20=0),0,IF(AM20=MIN(IF(($H$8:$H$5000="Silver")*($D$8:$D$5000=$D20)*(AM$8:AM$5000>0),AM$8:AM$5000)),0,AM20)) -> 0 | DC20: =IF(OR($H20<>"Silver",AN20=0),0,IF(AN20=MIN(IF(($H$8:$H$5000="Silver")*($D$8:$D$5000=$D20)*(AN$8:AN$5000>0),AN$8:AN$5000)),0,AN20)) -> 0 | DD20: =IF(OR($H20<>"Silver",AO20=0),0,IF(AO20=MIN(IF(($H$8:$H$5000="Silver")*($D$8:$D$5000=$D20)*(AO$8:AO$5000>0),AO$8:AO$5000)),0,AO20)) -> 0 | DE20: =IF(OR($H20<>"Silver",AP20=0),0,IF(AP20=MIN(IF(($H$8:$H$5000="Silver")*($D$8:$D$5000=$D20)*(AP$8:AP$5000>0),AP$8:AP$5000)),0,AP20)) -> 0 | DF20: =IF(OR($H20<>"Silver",AQ20=0),0,IF(AQ20=MIN(IF(($H$8:$H$5000="Silver")*($D$8:$D$5000=$D20)*(AQ$8:AQ$5000>0),AQ$8:AQ$5000)),0,AQ20)) -> 0 | DG20: =IF(OR($H20<>"Silver",AR20=0),0,IF(AR20=MIN(IF(($H$8:$H$5000="Silver")*($D$8:$D$5000=$D20)*(AR$8:AR$5000>0),AR$8:AR$5000)),0,AR20)) -> 0 | DH20: =IF(OR($H20<>"Silver",AS20=0),0,IF(AS20=MIN(IF(($H$8:$H$5000="Silver")*($D$8:$D$5000=$D20)*(AS$8:AS$5000>0),AS$8:AS$5000)),0,AS20)) -> 0 | DI20: =IF(OR($H20<>"Silver",AT20=0),0,IF(AT20=MIN(IF(($H$8:$H$5000="Silver")*($D$8:$D$5000=$D20)*(AT$8:AT$5000>0),AT$8:AT$5000)),0,AT20)) -> 0 | DJ20: =IF(OR($H20<>"Silver",AU20=0),0,IF(AU20=MIN(IF(($H$8:$H$5000="Silver")*($D$8:$D$5000=$D20)*(AU$8:AU$5000>0),AU$8:AU$5000)),0,AU20)) -> 0 | DK20: =IF(OR($H20<>"Silver",AV20=0),0,IF(AV20=MIN(IF(($H$8:$H$5000="Silver")*($D$8:$D$5000=$D20)*(AV$8:AV$5000>0),AV$8:AV$5000)),0,AV20)) -> 0 | DL20: =IF(OR($H20<>"Silver",AW20=0),0,IF(AW20=MIN(IF(($H$8:$H$5000="Silver")*($D$8:$D$5000=$D20)*(AW$8:AW$5000>0),AW$8:AW$5000)),0,AW20)) -> 0 | DM20: =IF(OR($H20<>"Silver",AX20=0),0,IF(AX20=MIN(IF(($H$8:$H$5000="Silver")*($D$8:$D$5000=$D20)*(AX$8:AX$5000>0),AX$8:AX$5000)),0,AX20)) -> 0 | DN20: =IF(OR($H20<>"Silver",AY20=0),0,IF(AY20=MIN(IF(($H$8:$H$5000="Silver")*($D$8:$D$5000=$D20)*(AY$8:AY$5000>0),AY$8:AY$5000)),0,AY20)) -> 0 | DO20: =IF(OR($H20<>"Silver",AZ20=0),0,IF(AZ20=MIN(IF(($H$8:$H$5000="Silver")*($D$8:$D$5000=$D20)*(AZ$8:AZ$5000>0),AZ$8:AZ$5000)),0,AZ20)) -> 0 | DP20: =IF(OR($H20<>"Silver",BA20=0),0,IF(BA20=MIN(IF(($H$8:$H$5000="Silver")*($D$8:$D$5000=$D20)*(BA$8:BA$5000>0),BA$8:BA$5000)),0,BA20)) -> 0 | DQ20: =IF(OR($H20<>"Silver",BB20=0),0,IF(BB20=MIN(IF(($H$8:$H$5000="Silver")*($D$8:$D$5000=$D20)*(BB$8:BB$5000>0),BB$8:BB$5000)),0,BB20)) -> 0 | DR20: =IF(OR($H20<>"Silver",BC20=0),0,IF(BC20=MIN(IF(($H$8:$H$5000="Silver")*($D$8:$D$5000=$D20)*(BC$8:BC$5000>0),BC$8:BC$5000)),0,BC20)) -> 0 | DS20: =IF(OR($H20<>"Silver",BD20=0),0,IF(BD20=MIN(IF(($H$8:$H$5000="Silver")*($D$8:$D$5000=$D20)*(BD$8:BD$5000>0),BD$8:BD$5000)),0,BD20)) -> 0 | DT20: =IF(OR($H20<>"Silver",BE20=0),0,IF(BE20=MIN(IF(($H$8:$H$5000="Silver")*($D$8:$D$5000=$D20)*(BE$8:BE$5000>0),BE$8:BE$5000)),0,BE20)) -> 0 | DU20: =IF(OR($H20<>"Silver",BF20=0),0,IF(BF20=MIN(IF(($H$8:$H$5000="Silver")*($D$8:$D$5000=$D20)*(BF$8:BF$5000>0),BF$8:BF$5000)),0,BF20)) -> 0 | DV20: =IF(OR($H20<>"Silver",BG20=0),0,IF(BG20=MIN(IF(($H$8:$H$5000="Silver")*($D$8:$D$5000=$D20)*(BG$8:BG$5000>0),BG$8:BG$5000)),0,BG20)) -> 0 | DW20: =IF(OR($H20<>"Silver",BH20=0),0,IF(BH20=MIN(IF(($H$8:$H$5000="Silver")*($D$8:$D$5000=$D20)*(BH$8:BH$5000>0),BH$8:BH$5000)),0,BH20)) -> 0 | DX20: =IF(OR($H20<>"Silver",BI20=0),0,IF(BI20=MIN(IF(($H$8:$H$5000="Silver")*($D$8:$D$5000=$D20)*(BI$8:BI$5000>0),BI$8:BI$5000)),0,BI20)) -> 0 | DY20: =IF(OR($H20<>"Silver",BJ20=0),0,IF(BJ20=MIN(IF(($H$8:$H$5000="Silver")*($D$8:$D$5000=$D20)*(BJ$8:BJ$5000>0),BJ$8:BJ$5000)),0,BJ20)) -> 0 | DZ20: =IF(OR($H20<>"Silver",BK20=0),0,IF(BK20=MIN(IF(($H$8:$H$5000="Silver")*($D$8:$D$5000=$D20)*(BK$8:BK$5000>0),BK$8:BK$5000)),0,BK20)) -> 0 | EA20: =IF(OR($H20<>"Silver",BL20=0),0,IF(BL20=MIN(IF(($H$8:$H$5000="Silver")*($D$8:$D$5000=$D20)*(BL$8:BL$5000>0),BL$8:BL$5000)),0,BL20)) -> 0 | EB20: =IF(OR($H20<>"Silver",BM20=0),0,IF(BM20=MIN(IF(($H$8:$H$5000="Silver")*($D$8:$D$5000=$D20)*(BM$8:BM$5000>0),BM$8:BM$5000)),0,BM20)) -> 0 | EC20: =IF(OR($H20<>"Silver",BN20=0),0,IF(BN20=MIN(IF(($H$8:$H$5000="Silver")*($D$8:$D$5000=$D20)*(BN$8:BN$5000>0),BN$8:BN$5000)),0,BN20)) -> 0 | ED20: =IF(OR($H20<>"Silver",BO20=0),0,IF(BO20=MIN(IF(($H$8:$H$5000="Silver")*($D$8:$D$5000=$D20)*(BO$8:BO$5000>0),BO$8:BO$5000)),0,BO20)) -> 0 | EE20: =IF(OR($H20<>"Silver",BP20=0),0,IF(BP20=MIN(IF(($H$8:$H$5000="Silver")*($D$8:$D$5000=$D20)*(BP$8:BP$5000>0),BP$8:BP$5000)),0,BP20)) -> 0 | EF20: =IF(OR($H20<>"Silver",BQ20=0),0,IF(BQ20=MIN(IF(($H$8:$H$5000="Silver")*($D$8:$D$5000=$D20)*(BQ$8:BQ$5000>0),BQ$8:BQ$5000)),0,BQ20)) -> 0 | EG20: =IF(OR($H20<>"Silver",BR20=0),0,IF(BR20=MIN(IF(($H$8:$H$5000="Silver")*($D$8:$D$5000=$D20)*(BR$8:BR$5000>0),BR$8:BR$5000)),0,BR20)) -> 0 | EH20: =IF(OR($H20<>"Silver",BS20=0),0,IF(BS20=MIN(IF(($H$8:$H$5000="Silver")*($D$8:$D$5000=$D20)*(BS$8:BS$5000>0),BS$8:BS$5000)),0,BS20)) -> 0 | EI20: =IF(OR($H20<>"Silver",BT20=0),0,IF(BT20=MIN(IF(($H$8:$H$5000="Silver")*($D$8:$D$5000=$D20)*(BT$8:BT$5000>0),BT$8:BT$5000)),0,BT20)) -> 0 | EJ20: =IF(OR($H20<>"Silver",BU20=0),0,IF(BU20=MIN(IF(($H$8:$H$5000="Silver")*($D$8:$D$5000=$D20)*(BU$8:BU$5000>0),BU$8:BU$5000)),0,BU20)) -> 0 | EK20: =IF(OR($H20<>"Silver",BV20=0),0,IF(BV20=MIN(IF(($H$8:$H$5000="Silver")*($D$8:$D$5000=$D20)*(BV$8:BV$5000>0),BV$8:BV$5000)),0,BV20)) -> 0 | EL20: =IF(OR($H20<>"Silver",BW20=0),0,IF(BW20=MIN(IF(($H$8:$H$5000="Silver")*($D$8:$D$5000=$D20)*(BW$8:BW$5000>0),BW$8:BW$5000)),0,BW20)) -> 0 | EM20: =IF(OR($H20<>"Silver",BX20=0),0,IF(BX20=MIN(IF(($H$8:$H$5000="Silver")*($D$8:$D$5000=$D20)*(BX$8:BX$5000>0),BX$8:BX$5000)),0,BX20)) -> 0 | EN20: =IF(OR($H20<>"Silver",BY20=0),0,IF(BY20=MIN(IF(($H$8:$H$5000="Silver")*($D$8:$D$5000=$D20)*(BY$8:BY$5000>0),BY$8:BY$5000)),0,BY20)) -> 0
B21: UPMC | C21: UPMC Health Coverage, Inc. | D21: Individual | E21: 62560PA0030003 | F21: UPMC Advantage Essential Bronze | G21: HMO | H21: Bronze | I21: Off | K21: 224.29 | L21: 224.29 | M21: 224.29 | N21: 224.29 | O21: 224.29 | P21: 224.29 | Q21: 224.29 | R21: 224.29 | S21: 224.29 | T21: 224.29 | U21: 224.29 | V21: 0 | W21: 0 | X21: 0 | Y21: 0 | Z21: 0 | AA21: 0 | AB21: 0 | AC21: 0 | AD21: 0 | AE21: 0 | AF21: 0 | AG21: 0 | AH21: 0 | AI21: 224.29 | AJ21: 224.29 | AK21: 224.29 | AL21: 224.29 | AM21: 224.29 | AN21: 224.29 | AO21: 224.29 | AP21: 224.29 | AQ21: 224.29 | AR21: 224.29 | AS21: 224.29 | AT21: 224.29 | AU21: 224.29 | AV21: 224.29 | AW21: 224.29 | AX21: 224.29 | AY21: 224.29 | AZ21: 0 | BA21: 0 | BB21: 0 | BC21: 0 | BD21: 0 | BE21: 0 | BF21: 0 | BG21: 0 | BH21: 0 | BI21: 0 | BJ21: 0 | BK21: 0 | BL21: 0 | BM21: 0 | BN21: 0 | BO21: 0 | BP21: 0 | BQ21: 0 | BR21: 0 | BS21: 0 | BT21: 0 | BU21: 0 | BV21: 0 | BW21: 0 | BX21: 0 | BY21: 0 | BZ21: =IF(OR($H21<>"Silver",K21=0),0,IF(K21=MIN(IF(($H$8:$H$5000="Silver")*($D$8:$D$5000=$D21)*(K$8:K$5000>0),K$8:K$5000)),0,K21)) -> 0 | CA21: =IF(OR($H21<>"Silver",L21=0),0,IF(L21=MIN(IF(($H$8:$H$5000="Silver")*($D$8:$D$5000=$D21)*(L$8:L$5000>0),L$8:L$5000)),0,L21)) -> 0 | CB21: =IF(OR($H21<>"Silver",M21=0),0,IF(M21=MIN(IF(($H$8:$H$5000="Silver")*($D$8:$D$5000=$D21)*(M$8:M$5000>0),M$8:M$5000)),0,M21)) -> 0 | CC21: =IF(OR($H21<>"Silver",N21=0),0,IF(N21=MIN(IF(($H$8:$H$5000="Silver")*($D$8:$D$5000=$D21)*(N$8:N$5000>0),N$8:N$5000)),0,N21)) -> 0 | CD21: =IF(OR($H21<>"Silver",O21=0),0,IF(O21=MIN(IF(($H$8:$H$5000="Silver")*($D$8:$D$5000=$D21)*(O$8:O$5000>0),O$8:O$5000)),0,O21)) -> 0 | CE21: =IF(OR($H21<>"Silver",P21=0),0,IF(P21=MIN(IF(($H$8:$H$5000="Silver")*($D$8:$D$5000=$D21)*(P$8:P$5000>0),P$8:P$5000)),0,P21)) -> 0 | CF21: =IF(OR($H21<>"Silver",Q21=0),0,IF(Q21=MIN(IF(($H$8:$H$5000="Silver")*($D$8:$D$5000=$D21)*(Q$8:Q$5000>0),Q$8:Q$5000)),0,Q21)) -> 0 | CG21: =IF(OR($H21<>"Silver",R21=0),0,IF(R21=MIN(IF(($H$8:$H$5000="Silver")*($D$8:$D$5000=$D21)*(R$8:R$5000>0),R$8:R$5000)),0,R21)) -> 0 | CH21: =IF(OR($H21<>"Silver",S21=0),0,IF(S21=MIN(IF(($H$8:$H$5000="Silver")*($D$8:$D$5000=$D21)*(S$8:S$5000>0),S$8:S$5000)),0,S21)) -> 0 | CI21: =IF(OR($H21<>"Silver",T21=0),0,IF(T21=MIN(IF(($H$8:$H$5000="Silver")*($D$8:$D$5000=$D21)*(T$8:T$5000>0),T$8:T$5000)),0,T21)) -> 0 | CJ21: =IF(OR($H21<>"Silver",U21=0),0,IF(U21=MIN(IF(($H$8:$H$5000="Silver")*($D$8:$D$5000=$D21)*(U$8:U$5000>0),U$8:U$5000)),0,U21)) -> 0 | CK21: =IF(OR($H21<>"Silver",V21=0),0,IF(V21=MIN(IF(($H$8:$H$5000="Silver")*($D$8:$D$5000=$D21)*(V$8:V$5000>0),V$8:V$5000)),0,V21)) -> 0 | CL21: =IF(OR($H21<>"Silver",W21=0),0,IF(W21=MIN(IF(($H$8:$H$5000="Silver")*($D$8:$D$5000=$D21)*(W$8:W$5000>0),W$8:W$5000)),0,W21)) -> 0 | CM21: =IF(OR($H21<>"Silver",X21=0),0,IF(X21=MIN(IF(($H$8:$H$5000="Silver")*($D$8:$D$5000=$D21)*(X$8:X$5000>0),X$8:X$5000)),0,X21)) -> 0 | CN21: =IF(OR($H21<>"Silver",Y21=0),0,IF(Y21=MIN(IF(($H$8:$H$5000="Silver")*($D$8:$D$5000=$D21)*(Y$8:Y$5000>0),Y$8:Y$5000)),0,Y21)) -> 0 | CO21: =IF(OR($H21<>"Silver",Z21=0),0,IF(Z21=MIN(IF(($H$8:$H$5000="Silver")*($D$8:$D$5000=$D21)*(Z$8:Z$5000>0),Z$8:Z$5000)),0,Z21)) -> 0 | CP21: =IF(OR($H21<>"Silver",AA21=0),0,IF(AA21=MIN(IF(($H$8:$H$5000="Silver")*($D$8:$D$5000=$D21)*(AA$8:AA$5000>0),AA$8:AA$5000)),0,AA21)) -> 0 | CQ21: =IF(OR($H21<>"Silver",AB21=0),0,IF(AB21=MIN(IF(($H$8:$H$5000="Silver")*($D$8:$D$5000=$D21)*(AB$8:AB$5000>0),AB$8:AB$5000)),0,AB21)) -> 0 | CR21: =IF(OR($H21<>"Silver",AC21=0),0,IF(AC21=MIN(IF(($H$8:$H$5000="Silver")*($D$8:$D$5000=$D21)*(AC$8:AC$5000>0),AC$8:AC$5000)),0,AC21)) -> 0 | CS21: =IF(OR($H21<>"Silver",AD21=0),0,IF(AD21=MIN(IF(($H$8:$H$5000="Silver")*($D$8:$D$5000=$D21)*(AD$8:AD$5000>0),AD$8:AD$5000)),0,AD21)) -> 0 | CT21: =IF(OR($H21<>"Silver",AE21=0),0,IF(AE21=MIN(IF(($H$8:$H$5000="Silver")*($D$8:$D$5000=$D21)*(AE$8:AE$5000>0),AE$8:AE$5000)),0,AE21)) -> 0 | CU21: =IF(OR($H21<>"Silver",AF21=0),0,IF(AF21=MIN(IF(($H$8:$H$5000="Silver")*($D$8:$D$5000=$D21)*(AF$8:AF$5000>0),AF$8:AF$5000)),0,AF21)) -> 0 | CV21: =IF(OR($H21<>"Silver",AG21=0),0,IF(AG21=MIN(IF(($H$8:$H$5000="Silver")*($D$8:$D$5000=$D21)*(AG$8:AG$5000>0),AG$8:AG$5000)),0,AG21)) -> 0 | CW21: =IF(OR($H21<>"Silver",AH21=0),0,IF(AH21=MIN(IF(($H$8:$H$5000="Silver")*($D$8:$D$5000=$D21)*(AH$8:AH$5000>0),AH$8:AH$5000)),0,AH21)) -> 0 | CX21: =IF(OR($H21<>"Silver",AI21=0),0,IF(AI21=MIN(IF(($H$8:$H$5000="Silver")*($D$8:$D$5000=$D21)*(AI$8:AI$5000>0),AI$8:AI$5000)),0,AI21)) -> 0 | CY21: =IF(OR($H21<>"Silver",AJ21=0),0,IF(AJ21=MIN(IF(($H$8:$H$5000="Silver")*($D$8:$D$5000=$D21)*(AJ$8:AJ$5000>0),AJ$8:AJ$5000)),0,AJ21)) -> 0 | CZ21: =IF(OR($H21<>"Silver",AK21=0),0,IF(AK21=MIN(IF(($H$8:$H$5000="Silver")*($D$8:$D$5000=$D21)*(AK$8:AK$5000>0),AK$8:AK$5000)),0,AK21)) -> 0 | DA21: =IF(OR($H21<>"Silver",AL21=0),0,IF(AL21=MIN(IF(($H$8:$H$5000="Silver")*($D$8:$D$5000=$D21)*(AL$8:AL$5000>0),AL$8:AL$5000)),0,AL21)) -> 0 | DB21: =IF(OR($H21<>"Silver",AM21=0),0,IF(AM21=MIN(IF(($H$8:$H$5000="Silver")*($D$8:$D$5000=$D21)*(AM$8:AM$5000>0),AM$8:AM$5000)),0,AM21)) -> 0 | DC21: =IF(OR($H21<>"Silver",AN21=0),0,IF(AN21=MIN(IF(($H$8:$H$5000="Silver")*($D$8:$D$5000=$D21)*(AN$8:AN$5000>0),AN$8:AN$5000)),0,AN21)) -> 0 | DD21: =IF(OR($H21<>"Silver",AO21=0),0,IF(AO21=MIN(IF(($H$8:$H$5000="Silver")*($D$8:$D$5000=$D21)*(AO$8:AO$5000>0),AO$8:AO$5000)),0,AO21)) -> 0 | DE21: =IF(OR($H21<>"Silver",AP21=0),0,IF(AP21=MIN(IF(($H$8:$H$5000="Silver")*($D$8:$D$5000=$D21)*(AP$8:AP$5000>0),AP$8:AP$5000)),0,AP21)) -> 0 | DF21: =IF(OR($H21<>"Silver",AQ21=0),0,IF(AQ21=MIN(IF(($H$8:$H$5000="Silver")*($D$8:$D$5000=$D21)*(AQ$8:AQ$5000>0),AQ$8:AQ$5000)),0,AQ21)) -> 0 | DG21: =IF(OR($H21<>"Silver",AR21=0),0,IF(AR21=MIN(IF(($H$8:$H$5000="Silver")*($D$8:$D$5000=$D21)*(AR$8:AR$5000>0),AR$8:AR$5000)),0,AR21)) -> 0 | DH21: =IF(OR($H21<>"Silver",AS21=0),0,IF(AS21=MIN(IF(($H$8:$H$5000="Silver")*($D$8:$D$5000=$D21)*(AS$8:AS$5000>0),AS$8:AS$5000)),0,AS21)) -> 0 | DI21: =IF(OR($H21<>"Silver",AT21=0),0,IF(AT21=MIN(IF(($H$8:$H$5000="Silver")*($D$8:$D$5000=$D21)*(AT$8:AT$5000>0),AT$8:AT$5000)),0,AT21)) -> 0 | DJ21: =IF(OR($H21<>"Silver",AU21=0),0,IF(AU21=MIN(IF(($H$8:$H$5000="Silver")*($D$8:$D$5000=$D21)*(AU$8:AU$5000>0),AU$8:AU$5000)),0,AU21)) -> 0 | DK21: =IF(OR($H21<>"Silver",AV21=0),0,IF(AV21=MIN(IF(($H$8:$H$5000="Silver")*($D$8:$D$5000=$D21)*(AV$8:AV$5000>0),AV$8:AV$5000)),0,AV21)) -> 0 | DL21: =IF(OR($H21<>"Silver",AW21=0),0,IF(AW21=MIN(IF(($H$8:$H$5000="Silver")*($D$8:$D$5000=$D21)*(AW$8:AW$5000>0),AW$8:AW$5000)),0,AW21)) -> 0 | DM21: =IF(OR($H21<>"Silver",AX21=0),0,IF(AX21=MIN(IF(($H$8:$H$5000="Silver")*($D$8:$D$5000=$D21)*(AX$8:AX$5000>0),AX$8:AX$5000)),0,AX21)) -> 0 | DN21: =IF(OR($H21<>"Silver",AY21=0),0,IF(AY21=MIN(IF(($H$8:$H$5000="Silver")*($D$8:$D$5000=$D21)*(AY$8:AY$5000>0),AY$8:AY$5000)),0,AY21)) -> 0 | DO21: =IF(OR($H21<>"Silver",AZ21=0),0,IF(AZ21=MIN(IF(($H$8:$H$5000="Silver")*($D$8:$D$5000=$D21)*(AZ$8:AZ$5000>0),AZ$8:AZ$5000)),0,AZ21)) -> 0 | DP21: =IF(OR($H21<>"Silver",BA21=0),0,IF(BA21=MIN(IF(($H$8:$H$5000="Silver")*($D$8:$D$5000=$D21)*(BA$8:BA$5000>0),BA$8:BA$5000)),0,BA21)) -> 0 | DQ21: =IF(OR($H21<>"Silver",BB21=0),0,IF(BB21=MIN(IF(($H$8:$H$5000="Silver")*($D$8:$D$5000=$D21)*(BB$8:BB$5000>0),BB$8:BB$5000)),0,BB21)) -> 0 | DR21: =IF(OR($H21<>"Silver",BC21=0),0,IF(BC21=MIN(IF(($H$8:$H$5000="Silver")*($D$8:$D$5000=$D21)*(BC$8:BC$5000>0),BC$8:BC$5000)),0,BC21)) -> 0 | DS21: =IF(OR($H21<>"Silver",BD21=0),0,IF(BD21=MIN(IF(($H$8:$H$5000="Silver")*($D$8:$D$5000=$D21)*(BD$8:BD$5000>0),BD$8:BD$5000)),0,BD21)) -> 0 | DT21: =IF(OR($H21<>"Silver",BE21=0),0,IF(BE21=MIN(IF(($H$8:$H$5000="Silver")*($D$8:$D$5000=$D21)*(BE$8:BE$5000>0),BE$8:BE$5000)),0,BE21)) -> 0 | DU21: =IF(OR($H21<>"Silver",BF21=0),0,IF(BF21=MIN(IF(($H$8:$H$5000="Silver")*($D$8:$D$5000=$D21)*(BF$8:BF$5000>0),BF$8:BF$5000)),0,BF21)) -> 0 | DV21: =IF(OR($H21<>"Silver",BG21=0),0,IF(BG21=MIN(IF(($H$8:$H$5000="Silver")*($D$8:$D$5000=$D21)*(BG$8:BG$5000>0),BG$8:BG$5000)),0,BG21)) -> 0 | DW21: =IF(OR($H21<>"Silver",BH21=0),0,IF(BH21=MIN(IF(($H$8:$H$5000="Silver")*($D$8:$D$5000=$D21)*(BH$8:BH$5000>0),BH$8:BH$5000)),0,BH21)) -> 0 | DX21: =IF(OR($H21<>"Silver",BI21=0),0,IF(BI21=MIN(IF(($H$8:$H$5000="Silver")*($D$8:$D$5000=$D21)*(BI$8:BI$5000>0),BI$8:BI$5000)),0,BI21)) -> 0 | DY21: =IF(OR($H21<>"Silver",BJ21=0),0,IF(BJ21=MIN(IF(($H$8:$H$5000="Silver")*($D$8:$D$5000=$D21)*(BJ$8:BJ$5000>0),BJ$8:BJ$5000)),0,BJ21)) -> 0 | DZ21: =IF(OR($H21<>"Silver",BK21=0),0,IF(BK21=MIN(IF(($H$8:$H$5000="Silver")*($D$8:$D$5000=$D21)*(BK$8:BK$5000>0),BK$8:BK$5000)),0,BK21)) -> 0 | EA21: =IF(OR($H21<>"Silver",BL21=0),0,IF(BL21=MIN(IF(($H$8:$H$5000="Silver")*($D$8:$D$5000=$D21)*(BL$8:BL$5000>0),BL$8:BL$5000)),0,BL21)) -> 0 | EB21: =IF(OR($H21<>"Silver",BM21=0),0,IF(BM21=MIN(IF(($H$8:$H$5000="Silver")*($D$8:$D$5000=$D21)*(BM$8:BM$5000>0),BM$8:BM$5000)),0,BM21)) -> 0 | EC21: =IF(OR($H21<>"Silver",BN21=0),0,IF(BN21=MIN(IF(($H$8:$H$5000="Silver")*($D$8:$D$5000=$D21)*(BN$8:BN$5000>0),BN$8:BN$5000)),0,BN21)) -> 0 | ED21: =IF(OR($H21<>"Silver",BO21=0),0,IF(BO21=MIN(IF(($H$8:$H$5000="Silver")*($D$8:$D$5000=$D21)*(BO$8:BO$5000>0),BO$8:BO$5000)),0,BO21)) -> 0 | EE21: =IF(OR($H21<>"Silver",BP21=0),0,IF(BP21=MIN(IF(($H$8:$H$5000="Silver")*($D$8:$D$5000=$D21)*(BP$8:BP$5000>0),BP$8:BP$5000)),0,BP21)) -> 0 | EF21: =IF(OR($H21<>"Silver",BQ21=0),0,IF(BQ21=MIN(IF(($H$8:$H$5000="Silver")*($D$8:$D$5000=$D21)*(BQ$8:BQ$5000>0),BQ$8:BQ$5000)),0,BQ21)) -> 0 | EG21: =IF(OR($H21<>"Silver",BR21=0),0,IF(BR21=MIN(IF(($H$8:$H$5000="Silver")*($D$8:$D$5000=$D21)*(BR$8:BR$5000>0),BR$8:BR$5000)),0,BR21)) -> 0 | EH21: =IF(OR($H21<>"Silver",BS21=0),0,IF(BS21=MIN(IF(($H$8:$H$5000="Silver")*($D$8:$D$5000=$D21)*(BS$8:BS$5000>0),BS$8:BS$5000)),0,BS21)) -> 0 | EI21: =IF(OR($H21<>"Silver",BT21=0),0,IF(BT21=MIN(IF(($H$8:$H$5000="Silver")*($D$8:$D$5000=$D21)*(BT$8:BT$5000>0),BT$8:BT$5000)),0,BT21)) -> 0 | EJ21: =IF(OR($H21<>"Silver",BU21=0),0,IF(BU21=MIN(IF(($H$8:$H$5000="Silver")*($D$8:$D$5000=$D21)*(BU$8:BU$5000>0),BU$8:BU$5000)),0,BU21)) -> 0 | EK21: =IF(OR($H21<>"Silver",BV21=0),0,IF(BV21=MIN(IF(($H$8:$H$5000="Silver")*($D$8:$D$5000=$D21)*(BV$8:BV$5000>0),BV$8:BV$5000)),0,BV21)) -> 0 | EL21: =IF(OR($H21<>"Silver",BW21=0),0,IF(BW21=MIN(IF(($H$8:$H$5000="Silver")*($D$8:$D$5000=$D21)*(BW$8:BW$5000>0),BW$8:BW$5000)),0,BW21)) -> 0 | EM21: =IF(OR($H21<>"Silver",BX21=0),0,IF(BX21=MIN(IF(($H$8:$H$5000="Silver")*($D$8:$D$5000=$D21)*(BX$8:BX$5000>0),BX$8:BX$5000)),0,BX21)) -> 0 | EN21: =IF(OR($H21<>"Silver",BY21=0),0,IF(BY21=MIN(IF(($H$8:$H$5000="Silver")*($D$8:$D$5000=$D21)*(BY$8:BY$5000>0),BY$8:BY$5000)),0,BY21)) -> 0
B22: UPMC | C22: UPMC Health Options, Inc. | D22: Individual | E22: 16322PA0040006 | F22: UPMC Advantage Silver $0/$50 - Premium Network | G22: PPO | H22: Silver | I22: On/Off | J22: Columbia, Lehigh, Mifflin, Montour, Northampton, Northumberland, Schuylkill, Snyder, Union | K22: 233.68 | L22: 233.68 | M22: 233.68 | N22: 233.68 | O22: 233.68 | P22: 233.68 | Q22: 233.68 | R22: 233.68 | S22: 233.68 | T22: 233.68 | U22: 233.68 | V22: 0 | W22: 0 | X22: 0 | Y22: 0 | Z22: 0 | AA22: 0 | AB22: 0 | AC22: 0 | AD22: 0 | AE22: 0 | AF22: 0 | AG22: 0 | AH22: 0 | AI22: 233.68 | AJ22: 233.68 | AK22: 233.68 | AL22: 233.68 | AM22: 233.68 | AN22: 233.68 | AO22: 233.68 | AP22: 233.68 | AQ22: 233.68 | AR22: 233.68 | AS22: 233.68 | AT22: 233.68 | AU22: 233.68 | AV22: 233.68 | AW22: 233.68 | AX22: 233.68 | AY22: 233.68 | AZ22: 233.68 | BA22: 0 | BB22: 0 | BC22: 0 | BD22: 0 | BE22: 0 | BF22: 0 | BG22: 0 | BH22: 0 | BI22: 0 | BJ22: 0 | BK22: 0 | BL22: 0 | BM22: 0 | BN22: 0 | BO22: 0 | BP22: 0 | BQ22: 0 | BR22: 0 | BS22: 0 | BT22: 0 | BU22: 0 | BV22: 0 | BW22: 0 | BX22: 0 | BY22: 0 | BZ22: =IF(OR($H22<>"Silver",K22=0),0,IF(K22=MIN(IF(($H$8:$H$5000="Silver")*($D$8:$D$5000=$D22)*(K$8:K$5000>0),K$8:K$5000)),0,K22)) -> 233.68 | CA22: =IF(OR($H22<>"Silver",L22=0),0,IF(L22=MIN(IF(($H$8:$H$5000="Silver")*($D$8:$D$5000=$D22)*(L$8:L$5000>0),L$8:L$5000)),0,L22)) -> 233.68 | CB22: =IF(OR($H22<>"Silver",M22=0),0,IF(M22=MIN(IF(($H$8:$H$5000="Silver")*($D$8:$D$5000=$D22)*(M$8:M$5000>0),M$8:M$5000)),0,M22)) -> 233.68 | CC22: =IF(OR($H22<>"Silver",N22=0),0,IF(N22=MIN(IF(($H$8:$H$5000="Silver")*($D$8:$D$5000=$D22)*(N$8:N$5000>0),N$8:N$5000)),0,N22)) -> 233.68 | CD22: =IF(OR($H22<>"Silver",O22=0),0,IF(O22=MIN(IF(($H$8:$H$5000="Silver")*($D$8:$D$5000=$D22)*(O$8:O$5000>0),O$8:O$5000)),0,O22)) -> 233.68 | CE22: =IF(OR($H22<>"Silver",P22=0),0,IF(P22=MIN(IF(($H$8:$H$5000="Silver")*($D$8:$D$5000=$D22)*(P$8:P$5000>0),P$8:P$5000)),0,P22)) -> 233.68 | CF22: =IF(OR($H22<>"Silver",Q22=0),0,IF(Q22=MIN(IF(($H$8:$H$5000="Silver")*($D$8:$D$5000=$D22)*(Q$8:Q$5000>0),Q$8:Q$5000)),0,Q22)) -> 233.68 | CG22: =IF(OR($H22<>"Silver",R22=0),0,IF(R22=MIN(IF(($H$8:$H$5000="Silver")*($D$8:$D$5000=$D22)*(R$8:R$5000>0),R$8:R$5000)),0,R22)) -> 233.68 | CH22: =IF(OR($H22<>"Silver",S22=0),0,IF(S22=MIN(IF(($H$8:$H$5000="Silver")*($D$8:$D$5000=$D22)*(S$8:S$5000>0),S$8:S$5000)),0,S22)) -> 233.68 | CI22: =IF(OR($H22<>"Silver",T22=0),0,IF(T22=MIN(IF(($H$8:$H$5000="Silver")*($D$8:$D$5000=$D22)*(T$8:T$5000>0),T$8:T$5000)),0,T22)) -> 233.68 | CJ22: =IF(OR($H22<>"Silver",U22=0),0,IF(U22=MIN(IF(($H$8:$H$5000="Silver")*($D$8:$D$5000=$D22)*(U$8:U$5000>0),U$8:U$5000)),0,U22)) -> 233.68 | CK22: =IF(OR($H22<>"Silver",V22=0),0,IF(V22=MIN(IF(($H$8:$H$5000="Silver")*($D$8:$D$5000=$D22)*(V$8:V$5000>0),V$8:V$5000)),0,V22)) -> 0 | CL22: =IF(OR($H22<>"Silver",W22=0),0,IF(W22=MIN(IF(($H$8:$H$5000="Silver")*($D$8:$D$5000=$D22)*(W$8:W$5000>0),W$8:W$5000)),0,W22)) -> 0 | CM22: =IF(OR($H22<>"Silver",X22=0),0,IF(X22=MIN(IF(($H$8:$H$5000="Silver")*($D$8:$D$5000=$D22)*(X$8:X$5000>0),X$8:X$5000)),0,X22)) -> 0 | CN22: =IF(OR($H22<>"Silver",Y22=0),0,IF(Y22=MIN(IF(($H$8:$H$5000="Silver")*($D$8:$D$5000=$D22)*(Y$8:Y$5000>0),Y$8:Y$5000)),0,Y22)) -> 0 | CO22: =IF(OR($H22<>"Silver",Z22=0),0,IF(Z22=MIN(IF(($H$8:$H$5000="Silver")*($D$8:$D$5000=$D22)*(Z$8:Z$5000>0),Z$8:Z$5000)),0,Z22)) -> 0 | CP22: =IF(OR($H22<>"Silver",AA22=0),0,IF(AA22=MIN(IF(($H$8:$H$5000="Silver")*($D$8:$D$5000=$D22)*(AA$8:AA$5000>0),AA$8:AA$5000)),0,AA22)) -> 0 | CQ22: =IF(OR($H22<>"Silver",AB22=0),0,IF(AB22=MIN(IF(($H$8:$H$5000="Silver")*($D$8:$D$5000=$D22)*(AB$8:AB$5000>0),AB$8:AB$5000)),0,AB22)) -> 0 | CR22: =IF(OR($H22<>"Silver",AC22=0),0,IF(AC22=MIN(IF(($H$8:$H$5000="Silver")*($D$8:$D$5000=$D22)*(AC$8:AC$5000>0),AC$8:AC$5000)),0,AC22)) -> 0 | CS22: =IF(OR($H22<>"Silver",AD22=0),0,IF(AD22=MIN(IF(($H$8:$H$5000="Silver")*($D$8:$D$5000=$D22)*(AD$8:AD$5000>0),AD$8:AD$5000)),0,AD22)) -> 0 | CT22: =IF(OR($H22<>"Silver",AE22=0),0,IF(AE22=MIN(IF(($H$8:$H$5000="Silver")*($D$8:$D$5000=$D22)*(AE$8:AE$5000>0),AE$8:AE$5000)),0,AE22)) -> 0 | CU22: =IF(OR($H22<>"Silver",AF22=0),0,IF(AF22=MIN(IF(($H$8:$H$5000="Silver")*($D$8:$D$5000=$D22)*(AF$8:AF$5000>0),AF$8:AF$5000)),0,AF22)) -> 0 | CV22: =IF(OR($H22<>"Silver",AG22=0),0,IF(AG22=MIN(IF(($H$8:$H$5000="Silver")*($D$8:$D$5000=$D22)*(AG$8:AG$5000>0),AG$8:AG$5000)),0,AG22)) -> 0 | CW22: =IF(OR($H22<>"Silver",AH22=0),0,IF(AH22=MIN(IF(($H$8:$H$5000="Silver")*($D$8:$D$5000=$D22)*(AH$8:AH$5000>0),AH$8:AH$5000)),0,AH22)) -> 0 | CX22: =IF(OR($H22<>"Silver",AI22=0),0,IF(AI22=MIN(IF(($H$8:$H$5000="Silver")*($D$8:$D$5000=$D22)*(AI$8:AI$5000>0),AI$8:AI$5000)),0,AI22)) -> 233.68 | CY22: =IF(OR($H22<>"Silver",AJ22=0),0,IF(AJ22=MIN(IF(($H$8:$H$5000="Silver")*($D$8:$D$5000=$D22)*(AJ$8:AJ$5000>0),AJ$8:AJ$5000)),0,AJ22)) -> 233.68 | CZ22: =IF(OR($H22<>"Silver",AK22=0),0,IF(AK22=MIN(IF(($H$8:$H$5000="Silver")*($D$8:$D$5000=$D22)*(AK$8:AK$5000>0),AK$8:AK$5000)),0,AK22)) -> 233.68 | DA22: =IF(OR($H22<>"Silver",AL22=0),0,IF(AL22=MIN(IF(($H$8:$H$5000="Silver")*($D$8:$D$5000=$D22)*(AL$8:AL$5000>0),AL$8:AL$5000)),0,AL22)) -> 233.68 | DB22: =IF(OR($H22<>"Silver",AM22=0),0,IF(AM22=MIN(IF(($H$8:$H$5000="Silver")*($D$8:$D$5000=$D22)*(AM$8:AM$5000>0),AM$8:AM$5000)),0,AM22)) -> 233.68 | DC22: =IF(OR($H22<>"Silver",AN22=0),0,IF(AN22=MIN(IF(($H$8:$H$5000="Silver")*($D$8:$D$5000=$D22)*(AN$8:AN$5000>0),AN$8:AN$5000)),0,AN22)) -> 233.68 | DD22: =IF(OR($H22<>"Silver",AO22=0),0,IF(AO22=MIN(IF(($H$8:$H$5000="Silver")*($D$8:$D$5000=$D22)*(AO$8:AO$5000>0),AO$8:AO$5000)),0,AO22)) -> 233.68 | DE22: =IF(OR($H22<>"Silver",AP22=0),0,IF(AP22=MIN(IF(($H$8:$H$5000="Silver")*($D$8:$D$5000=$D22)*(AP$8:AP$5000>0),AP$8:AP$5000)),0,AP22)) -> 233.68 | DF22: =IF(OR($H22<>"Silver",AQ22=0),0,IF(AQ22=MIN(IF(($H$8:$H$5000="Silver")*($D$8:$D$5000=$D22)*(AQ$8:AQ$5000>0),AQ$8:AQ$5000)),0,AQ22)) -> 233.68 | DG22: =IF(OR($H22<>"Silver",AR22=0),0,IF(AR22=MIN(IF(($H$8:$H$5000="Silver")*($D$8:$D$5000=$D22)*(AR$8:AR$5000>0),AR$8:AR$5000)),0,AR22)) -> 233.68 | DH22: =IF(OR($H22<>"Silver",AS22=0),0,IF(AS22=MIN(IF(($H$8:$H$5000="Silver")*($D$8:$D$5000=$D22)*(AS$8:AS$5000>0),AS$8:AS$5000)),0,AS22)) -> 233.68 | DI22: =IF(OR($H22<>"Silver",AT22=0),0,IF(AT22=MIN(IF(($H$8:$H$5000="Silver")*($D$8:$D$5000=$D22)*(AT$8:AT$5000>0),AT$8:AT$5000)),0,AT22)) -> 233.68 | DJ22: =IF(OR($H22<>"Silver",AU22=0),0,IF(AU22=MIN(IF(($H$8:$H$5000="Silver")*($D$8:$D$5000=$D22)*(AU$8:AU$5000>0),AU$8:AU$5000)),0,AU22)) -> 233.68 | DK22: =IF(OR($H22<>"Silver",AV22=0),0,IF(AV22=MIN(IF(($H$8:$H$5000="Silver")*($D$8:$D$5000=$D22)*(AV$8:AV$5000>0),AV$8:AV$5000)),0,AV22)) -> 233.68 | DL22: =IF(OR($H22<>"Silver",AW22=0),0,IF(AW22=MIN(IF(($H$8:$H$5000="Silver")*($D$8:$D$5000=$D22)*(AW$8:AW$5000>0),AW$8:AW$5000)),0,AW22)) -> 233.68 | DM22: =IF(OR($H22<>"Silver",AX22=0),0,IF(AX22=MIN(IF(($H$8:$H$5000="Silver")*($D$8:$D$5000=$D22)*(AX$8:AX$5000>0),AX$8:AX$5000)),0,AX22)) -> 233.68 | DN22: =IF(OR($H22<>"Silver",AY22=0),0,IF(AY22=MIN(IF(($H$8:$H$5000="Silver")*($D$8:$D$5000=$D22)*(AY$8:AY$5000>0),AY$8:AY$5000)),0,AY22)) -> 233.68 | DO22: =IF(OR($H22<>"Silver",AZ22=0),0,IF(AZ22=MIN(IF(($H$8:$H$5000="Silver")*($D$8:$D$5000=$D22)*(AZ$8:AZ$5000>0),AZ$8:AZ$5000)),0,AZ22)) -> 233.68 | DP22: =IF(OR($H22<>"Silver",BA22=0),0,IF(BA22=MIN(IF(($H$8:$H$5000="Silver")*($D$8:$D$5000=$D22)*(BA$8:BA$5000>0),BA$8:BA$5000)),0,BA22)) -> 0 | DQ22: =IF(OR($H22<>"Silver",BB22=0),0,IF(BB22=MIN(IF(($H$8:$H$5000="Silver")*($D$8:$D$5000=$D22)*(BB$8:BB$5000>0),BB$8:BB$5000)),0,BB22)) -> 0 | DR22: =IF(OR($H22<>"Silver",BC22=0),0,IF(BC22=MIN(IF(($H$8:$H$5000="Silver")*($D$8:$D$5000=$D22)*(BC$8:BC$5000>0),BC$8:BC$5000)),0,BC22)) -> 0 | DS22: =IF(OR($H22<>"Silver",BD22=0),0,IF(BD22=MIN(IF(($H$8:$H$5000="Silver")*($D$8:$D$5000=$D22)*(BD$8:BD$5000>0),BD$8:BD$5000)),0,BD22)) -> 0 | DT22: =IF(OR($H22<>"Silver",BE22=0),0,IF(BE22=MIN(IF(($H$8:$H$5000="Silver")*($D$8:$D$5000=$D22)*(BE$8:BE$5000>0),BE$8:BE$5000)),0,BE22)) -> 0 | DU22: =IF(OR($H22<>"Silver",BF22=0),0,IF(BF22=MIN(IF(($H$8:$H$5000="Silver")*($D$8:$D$5000=$D22)*(BF$8:BF$5000>0),BF$8:BF$5000)),0,BF22)) -> 0 | DV22: =IF(OR($H22<>"Silver",BG22=0),0,IF(BG22=MIN(IF(($H$8:$H$5000="Silver")*($D$8:$D$5000=$D22)*(BG$8:BG$5000>0),BG$8:BG$5000)),0,BG22)) -> 0 | DW22: =IF(OR($H22<>"Silver",BH22=0),0,IF(BH22=MIN(IF(($H$8:$H$5000="Silver")*($D$8:$D$5000=$D22)*(BH$8:BH$5000>0),BH$8:BH$5000)),0,BH22)) -> 0 | DX22: =IF(OR($H22<>"Silver",BI22=0),0,IF(BI22=MIN(IF(($H$8:$H$5000="Silver")*($D$8:$D$5000=$D22)*(BI$8:BI$5000>0),BI$8:BI$5000)),0,BI22)) -> 0 | DY22: =IF(OR($H22<>"Silver",BJ22=0),0,IF(BJ22=MIN(IF(($H$8:$H$5000="Silver")*($D$8:$D$5000=$D22)*(BJ$8:BJ$5000>0),BJ$8:BJ$5000)),0,BJ22)) -> 0 | DZ22: =IF(OR($H22<>"Silver",BK22=0),0,IF(BK22=MIN(IF(($H$8:$H$5000="Silver")*($D$8:$D$5000=$D22)*(BK$8:BK$5000>0),BK$8:BK$5000)),0,BK22)) -> 0 | EA22: =IF(OR($H22<>"Silver",BL22=0),0,IF(BL22=MIN(IF(($H$8:$H$5000="Silver")*($D$8:$D$5000=$D22)*(BL$8:BL$5000>0),BL$8:BL$5000)),0,BL22)) -> 0 | EB22: =IF(OR($H22<>"Silver",BM22=0),0,IF(BM22=MIN(IF(($H$8:$H$5000="Silver")*($D$8:$D$5000=$D22)*(BM$8:BM$5000>0),BM$8:BM$5000)),0,BM22)) -> 0 | EC22: =IF(OR($H22<>"Silver",BN22=0),0,IF(BN22=MIN(IF(($H$8:$H$5000="Silver")*($D$8:$D$5000=$D22)*(BN$8:BN$5000>0),BN$8:BN$5000)),0,BN22)) -> 0 | ED22: =IF(OR($H22<>"Silver",BO22=0),0,IF(BO22=MIN(IF(($H$8:$H$5000="Silver")*($D$8:$D$5000=$D22)*(BO$8:BO$5000>0),BO$8:BO$5000)),0,BO22)) -> 0 | EE22: =IF(OR($H22<>"Silver",BP22=0),0,IF(BP22=MIN(IF(($H$8:$H$5000="Silver")*($D$8:$D$5000=$D22)*(BP$8:BP$5000>0),BP$8:BP$5000)),0,BP22)) -> 0 | EF22: =IF(OR($H22<>"Silver",BQ22=0),0,IF(BQ22=MIN(IF(($H$8:$H$5000="Silver")*($D$8:$D$5000=$D22)*(BQ$8:BQ$5000>0),BQ$8:BQ$5000)),0,BQ22)) -> 0 | EG22: =IF(OR($H22<>"Silver",BR22=0),0,IF(BR22=MIN(IF(($H$8:$H$5000="Silver")*($D$8:$D$5000=$D22)*(BR$8:BR$5000>0),BR$8:BR$5000)),0,BR22)) -> 0 | EH22: =IF(OR($H22<>"Silver",BS22=0),0,IF(BS22=MIN(IF(($H$8:$H$5000="Silver")*($D$8:$D$5000=$D22)*(BS$8:BS$5000>0),BS$8:BS$5000)),0,BS22)) -> 0 | EI22: =IF(OR($H22<>"Silver",BT22=0),0,IF(BT22=MIN(IF(($H$8:$H$5000="Silver")*($D$8:$D$5000=$D22)*(BT$8:BT$5000>0),BT$8:BT$5000)),0,BT22)) -> 0 | EJ22: =IF(OR($H22<>"Silver",BU22=0),0,IF(BU22=MIN(IF(($H$8:$H$5000="Silver")*($D$8:$D$5000=$D22)*(BU$8:BU$5000>0),BU$8:BU$5000)),0,BU22)) -> 0 | EK22: =IF(OR($H22<>"Silver",BV22=0),0,IF(BV22=MIN(IF(($H$8:$H$5000="Silver")*($D$8:$D$5000=$D22)*(BV$8:BV$5000>0),BV$8:BV$5000)),0,BV22)) -> 0 | EL22: =IF(OR($H22<>"Silver",BW22=0),0,IF(BW22=MIN(IF(($H$8:$H$5000="Silver")*($D$8:$D$5000=$D22)*(BW$8:BW$5000>0),BW$8:BW$5000)),0,BW22)) -> 0 | EM22: =IF(OR($H22<>"Silver",BX22=0),0,IF(BX22=MIN(IF(($H$8:$H$5000="Silver")*($D$8:$D$5000=$D22)*(BX$8:BX$5000>0),BX$8:BX$5000)),0,BX22)) -> 0 | EN22: =IF(OR($H22<>"Silver",BY22=0),0,IF(BY22=MIN(IF(($H$8:$H$5000="Silver")*($D$8:$D$5000=$D22)*(BY$8:BY$5000>0),BY$8:BY$5000)),0,BY22)) -> 0
B23: UPMC | C23: UPMC Health Options, Inc. | D23: Individual | E23: 16322PA0040007 | F23: UPMC Advantage Silver $1,750/$30 - Premium Network | G23: PPO | H23: Silver | I23: On/Off | J23: Columbia, Lehigh, Mifflin, Montour, Northampton, Northumberland, Schuylkill, Snyder, Union | K23: 232.84 | L23: 232.84 | M23: 232.84 | N23: 232.84 | O23: 232.84 | P23: 232.84 | Q23: 232.84 | R23: 232.84 | S23: 232.84 | T23: 232.84 | U23: 232.84 | V23: 0 | W23: 0 | X23: 0 | Y23: 0 | Z23: 0 | AA23: 0 | AB23: 0 | AC23: 0 | AD23: 0 | AE23: 0 | AF23: 0 | AG23: 0 | AH23: 0 | AI23: 232.84 | AJ23: 232.84 | AK23: 232.84 | AL23: 232.84 | AM23: 232.84 | AN23: 232.84 | AO23: 232.84 | AP23: 232.84 | AQ23: 232.84 | AR23: 232.84 | AS23: 232.84 | AT23: 232.84 | AU23: 232.84 | AV23: 232.84 | AW23: 232.84 | AX23: 232.84 | AY23: 232.84 | AZ23: 232.84 | BA23: 0 | BB23: 0 | BC23: 0 | BD23: 0 | BE23: 0 | BF23: 0 | BG23: 0 | BH23: 0 | BI23: 0 | BJ23: 0 | BK23: 0 | BL23: 0 | BM23: 0 | BN23: 0 | BO23: 0 | BP23: 0 | BQ23: 0 | BR23: 0 | BS23: 0 | BT23: 0 | BU23: 0 | BV23: 0 | BW23: 0 | BX23: 0 | BY23: 0 | BZ23: =IF(OR($H23<>"Silver",K23=0),0,IF(K23=MIN(IF(($H$8:$H$5000="Silver")*($D$8:$D$5000=$D23)*(K$8:K$5000>0),K$8:K$5000)),0,K23)) -> 232.84 | CA23: =IF(OR($H23<>"Silver",L23=0),0,IF(L23=MIN(IF(($H$8:$H$5000="Silver")*($D$8:$D$5000=$D23)*(L$8:L$5000>0),L$8:L$5000)),0,L23)) -> 232.84 | CB23: =IF(OR($H23<>"Silver",M23=0),0,IF(M23=MIN(IF(($H$8:$H$5000="Silver")*($D$8:$D$5000=$D23)*(M$8:M$5000>0),M$8:M$5000)),0,M23)) -> 232.84 | CC23: =IF(OR($H23<>"Silver",N23=0),0,IF(N23=MIN(IF(($H$8:$H$5000="Silver")*($D$8:$D$5000=$D23)*(N$8:N$5000>0),N$8:N$5000)),0,N23)) -> 232.84 | CD23: =IF(OR($H23<>"Silver",O23=0),0,IF(O23=MIN(IF(($H$8:$H$5000="Silver")*($D$8:$D$5000=$D23)*(O$8:O$5000>0),O$8:O$5000)),0,O23)) -> 232.84 | CE23: =IF(OR($H23<>"Silver",P23=0),0,IF(P23=MIN(IF(($H$8:$H$5000="Silver")*($D$8:$D$5000=$D23)*(P$8:P$5000>0),P$8:P$5000)),0,P23)) -> 232.84 | CF23: =IF(OR($H23<>"Silver",Q23=0),0,IF(Q23=MIN(IF(($H$8:$H$5000="Silver")*($D$8:$D$5000=$D23)*(Q$8:Q$5000>0),Q$8:Q$5000)),0,Q23)) -> 232.84 | CG23: =IF(OR($H23<>"Silver",R23=0),0,IF(R23=MIN(IF(($H$8:$H$5000="Silver")*($D$8:$D$5000=$D23)*(R$8:R$5000>0),R$8:R$5000)),0,R23)) -> 232.84 | CH23: =IF(OR($H23<>"Silver",S23=0),0,IF(S23=MIN(IF(($H$8:$H$5000="Silver")*($D$8:$D$5000=$D23)*(S$8:S$5000>0),S$8:S$5000)),0,S23)) -> 232.84 | CI23: =IF(OR($H23<>"Silver",T23=0),0,IF(T23=MIN(IF(($H$8:$H$5000="Silver")*($D$8:$D$5000=$D23)*(T$8:T$5000>0),T$8:T$5000)),0,T23)) -> 232.84 | CJ23: =IF(OR($H23<>"Silver",U23=0),0,IF(U23=MIN(IF(($H$8:$H$5000="Silver")*($D$8:$D$5000=$D23)*(U$8:U$5000>0),U$8:U$5000)),0,U23)) -> 232.84 | CK23: =IF(OR($H23<>"Silver",V23=0),0,IF(V23=MIN(IF(($H$8:$H$5000="Silver")*($D$8:$D$5000=$D23)*(V$8:V$5000>0),V$8:V$5000)),0,V23)) -> 0 | CL23: =IF(OR($H23<>"Silver",W23=0),0,IF(W23=MIN(IF(($H$8:$H$5000="Silver")*($D$8:$D$5000=$D23)*(W$8:W$5000>0),W$8:W$5000)),0,W23)) -> 0 | CM23: =IF(OR($H23<>"Silver",X23=0),0,IF(X23=MIN(IF(($H$8:$H$5000="Silver")*($D$8:$D$5000=$D23)*(X$8:X$5000>0),X$8:X$5000)),0,X23)) -> 0 | CN23: =IF(OR($H23<>"Silver",Y23=0),0,IF(Y23=MIN(IF(($H$8:$H$5000="Silver")*($D$8:$D$5000=$D23)*(Y$8:Y$5000>0),Y$8:Y$5000)),0,Y23)) -> 0 | CO23: =IF(OR($H23<>"Silver",Z23=0),0,IF(Z23=MIN(IF(($H$8:$H$5000="Silver")*($D$8:$D$5000=$D23)*(Z$8:Z$5000>0),Z$8:Z$5000)),0,Z23)) -> 0 | CP23: =IF(OR($H23<>"Silver",AA23=0),0,IF(AA23=MIN(IF(($H$8:$H$5000="Silver")*($D$8:$D$5000=$D23)*(AA$8:AA$5000>0),AA$8:AA$5000)),0,AA23)) -> 0 | CQ23: =IF(OR($H23<>"Silver",AB23=0),0,IF(AB23=MIN(IF(($H$8:$H$5000="Silver")*($D$8:$D$5000=$D23)*(AB$8:AB$5000>0),AB$8:AB$5000)),0,AB23)) -> 0 | CR23: =IF(OR($H23<>"Silver",AC23=0),0,IF(AC23=MIN(IF(($H$8:$H$5000="Silver")*($D$8:$D$5000=$D23)*(AC$8:AC$5000>0),AC$8:AC$5000)),0,AC23)) -> 0 | CS23: =IF(OR($H23<>"Silver",AD23=0),0,IF(AD23=MIN(IF(($H$8:$H$5000="Silver")*($D$8:$D$5000=$D23)*(AD$8:AD$5000>0),AD$8:AD$5000)),0,AD23)) -> 0 | CT23: =IF(OR($H23<>"Silver",AE23=0),0,IF(AE23=MIN(IF(($H$8:$H$5000="Silver")*($D$8:$D$5000=$D23)*(AE$8:AE$5000>0),AE$8:AE$5000)),0,AE23)) -> 0 | CU23: =IF(OR($H23<>"Silver",AF23=0),0,IF(AF23=MIN(IF(($H$8:$H$5000="Silver")*($D$8:$D$5000=$D23)*(AF$8:AF$5000>0),AF$8:AF$5000)),0,AF23)) -> 0 | CV23: =IF(OR($H23<>"Silver",AG23=0),0,IF(AG23=MIN(IF(($H$8:$H$5000="Silver")*($D$8:$D$5000=$D23)*(AG$8:AG$5000>0),AG$8:AG$5000)),0,AG23)) -> 0 | CW23: =IF(OR($H23<>"Silver",AH23=0),0,IF(AH23=MIN(IF(($H$8:$H$5000="Silver")*($D$8:$D$5000=$D23)*(AH$8:AH$5000>0),AH$8:AH$5000)),0,AH23)) -> 0 | CX23: =IF(OR($H23<>"Silver",AI23=0),0,IF(AI23=MIN(IF(($H$8:$H$5000="Silver")*($D$8:$D$5000=$D23)*(AI$8:AI$5000>0),AI$8:AI$5000)),0,AI23)) -> 232.84 | CY23: =IF(OR($H23<>"Silver",AJ23=0),0,IF(AJ23=MIN(IF(($H$8:$H$5000="Silver")*($D$8:$D$5000=$D23)*(AJ$8:AJ$5000>0),AJ$8:AJ$5000)),0,AJ23)) -> 232.84 | CZ23: =IF(OR($H23<>"Silver",AK23=0),0,IF(AK23=MIN(IF(($H$8:$H$5000="Silver")*($D$8:$D$5000=$D23)*(AK$8:AK$5000>0),AK$8:AK$5000)),0,AK23)) -> 232.84 | DA23: =IF(OR($H23<>"Silver",AL23=0),0,IF(AL23=MIN(IF(($H$8:$H$5000="Silver")*($D$8:$D$5000=$D23)*(AL$8:AL$5000>0),AL$8:AL$5000)),0,AL23)) -> 232.84 | DB23: =IF(OR($H23<>"Silver",AM23=0),0,IF(AM23=MIN(IF(($H$8:$H$5000="Silver")*($D$8:$D$5000=$D23)*(AM$8:AM$5000>0),AM$8:AM$5000)),0,AM23)) -> 232.84 | DC23: =IF(OR($H23<>"Silver",AN23=0),0,IF(AN23=MIN(IF(($H$8:$H$5000="Silver")*($D$8:$D$5000=$D23)*(AN$8:AN$5000>0),AN$8:AN$5000)),0,AN23)) -> 232.84 | DD23: =IF(OR($H23<>"Silver",AO23=0),0,IF(AO23=MIN(IF(($H$8:$H$5000="Silver")*($D$8:$D$5000=$D23)*(AO$8:AO$5000>0),AO$8:AO$5000)),0,AO23)) -> 232.84 | DE23: =IF(OR($H23<>"Silver",AP23=0),0,IF(AP23=MIN(IF(($H$8:$H$5000="Silver")*($D$8:$D$5000=$D23)*(AP$8:AP$5000>0),AP$8:AP$5000)),0,AP23)) -> 232.84 | DF23: =IF(OR($H23<>"Silver",AQ23=0),0,IF(AQ23=MIN(IF(($H$8:$H$5000="Silver")*($D$8:$D$5000=$D23)*(AQ$8:AQ$5000>0),AQ$8:AQ$5000)),0,AQ23)) -> 232.84 | DG23: =IF(OR($H23<>"Silver",AR23=0),0,IF(AR23=MIN(IF(($H$8:$H$5000="Silver")*($D$8:$D$5000=$D23)*(AR$8:AR$5000>0),AR$8:AR$5000)),0,AR23)) -> 232.84 | DH23: =IF(OR($H23<>"Silver",AS23=0),0,IF(AS23=MIN(IF(($H$8:$H$5000="Silver")*($D$8:$D$5000=$D23)*(AS$8:AS$5000>0),AS$8:AS$5000)),0,AS23)) -> 232.84 | DI23: =IF(OR($H23<>"Silver",AT23=0),0,IF(AT23=MIN(IF(($H$8:$H$5000="Silver")*($D$8:$D$5000=$D23)*(AT$8:AT$5000>0),AT$8:AT$5000)),0,AT23)) -> 232.84 | DJ23: =IF(OR($H23<>"Silver",AU23=0),0,IF(AU23=MIN(IF(($H$8:$H$5000="Silver")*($D$8:$D$5000=$D23)*(AU$8:AU$5000>0),AU$8:AU$5000)),0,AU23)) -> 232.84 | DK23: =IF(OR($H23<>"Silver",AV23=0),0,IF(AV23=MIN(IF(($H$8:$H$5000="Silver")*($D$8:$D$5000=$D23)*(AV$8:AV$5000>0),AV$8:AV$5000)),0,AV23)) -> 232.84 | DL23: =IF(OR($H23<>"Silver",AW23=0),0,IF(AW23=MIN(IF(($H$8:$H$5000="Silver")*($D$8:$D$5000=$D23)*(AW$8:AW$5000>0),AW$8:AW$5000)),0,AW23)) -> 232.84 | DM23: =IF(OR($H23<>"Silver",AX23=0),0,IF(AX23=MIN(IF(($H$8:$H$5000="Silver")*($D$8:$D$5000=$D23)*(AX$8:AX$5000>0),AX$8:AX$5000)),0,AX23)) -> 232.84 | DN23: =IF(OR($H23<>"Silver",AY23=0),0,IF(AY23=MIN(IF(($H$8:$H$5000="Silver")*($D$8:$D$5000=$D23)*(AY$8:AY$5000>0),AY$8:AY$5000)),0,AY23)) -> 232.84 | DO23: =IF(OR($H23<>"Silver",AZ23=0),0,IF(AZ23=MIN(IF(($H$8:$H$5000="Silver")*($D$8:$D$5000=$D23)*(AZ$8:AZ$5000>0),AZ$8:AZ$5000)),0,AZ23)) -> 232.84 | DP23: =IF(OR($H23<>"Silver",BA23=0),0,IF(BA23=MIN(IF(($H$8:$H$5000="Silver")*($D$8:$D$5000=$D23)*(BA$8:BA$5000>0),BA$8:BA$5000)),0,BA23)) -> 0 | DQ23: =IF(OR($H23<>"Silver",BB23=0),0,IF(BB23=MIN(IF(($H$8:$H$5000="Silver")*($D$8:$D$5000=$D23)*(BB$8:BB$5000>0),BB$8:BB$5000)),0,BB23)) -> 0 | DR23: =IF(OR($H23<>"Silver",BC23=0),0,IF(BC23=MIN(IF(($H$8:$H$5000="Silver")*($D$8:$D$5000=$D23)*(BC$8:BC$5000>0),BC$8:BC$5000)),0,BC23)) -> 0 | DS23: =IF(OR($H23<>"Silver",BD23=0),0,IF(BD23=MIN(IF(($H$8:$H$5000="Silver")*($D$8:$D$5000=$D23)*(BD$8:BD$5000>0),BD$8:BD$5000)),0,BD23)) -> 0 | DT23: =IF(OR($H23<>"Silver",BE23=0),0,IF(BE23=MIN(IF(($H$8:$H$5000="Silver")*($D$8:$D$5000=$D23)*(BE$8:BE$5000>0),BE$8:BE$5000)),0,BE23)) -> 0 | DU23: =IF(OR($H23<>"Silver",BF23=0),0,IF(BF23=MIN(IF(($H$8:$H$5000="Silver")*($D$8:$D$5000=$D23)*(BF$8:BF$5000>0),BF$8:BF$5000)),0,BF23)) -> 0 | DV23: =IF(OR($H23<>"Silver",BG23=0),0,IF(BG23=MIN(IF(($H$8:$H$5000="Silver")*($D$8:$D$5000=$D23)*(BG$8:BG$5000>0),BG$8:BG$5000)),0,BG23)) -> 0 | DW23: =IF(OR($H23<>"Silver",BH23=0),0,IF(BH23=MIN(IF(($H$8:$H$5000="Silver")*($D$8:$D$5000=$D23)*(BH$8:BH$5000>0),BH$8:BH$5000)),0,BH23)) -> 0 | DX23: =IF(OR($H23<>"Silver",BI23=0),0,IF(BI23=MIN(IF(($H$8:$H$5000="Silver")*($D$8:$D$5000=$D23)*(BI$8:BI$5000>0),BI$8:BI$5000)),0,BI23)) -> 0 | DY23: =IF(OR($H23<>"Silver",BJ23=0),0,IF(BJ23=MIN(IF(($H$8:$H$5000="Silver")*($D$8:$D$5000=$D23)*(BJ$8:BJ$5000>0),BJ$8:BJ$5000)),0,BJ23)) -> 0 | DZ23: =IF(OR($H23<>"Silver",BK23=0),0,IF(BK23=MIN(IF(($H$8:$H$5000="Silver")*($D$8:$D$5000=$D23)*(BK$8:BK$5000>0),BK$8:BK$5000)),0,BK23)) -> 0 | EA23: =IF(OR($H23<>"Silver",BL23=0),0,IF(BL23=MIN(IF(($H$8:$H$5000="Silver")*($D$8:$D$5000=$D23)*(BL$8:BL$5000>0),BL$8:BL$5000)),0,BL23)) -> 0 | EB23: =IF(OR($H23<>"Silver",BM23=0),0,IF(BM23=MIN(IF(($H$8:$H$5000="Silver")*($D$8:$D$5000=$D23)*(BM$8:BM$5000>0),BM$8:BM$5000)),0,BM23)) -> 0 | EC23: =IF(OR($H23<>"Silver",BN23=0),0,IF(BN23=MIN(IF(($H$8:$H$5000="Silver")*($D$8:$D$5000=$D23)*(BN$8:BN$5000>0),BN$8:BN$5000)),0,BN23)) -> 0 | ED23: =IF(OR($H23<>"Silver",BO23=0),0,IF(BO23=MIN(IF(($H$8:$H$5000="Silver")*($D$8:$D$5000=$D23)*(BO$8:BO$5000>0),BO$8:BO$5000)),0,BO23)) -> 0 | EE23: =IF(OR($H23<>"Silver",BP23=0),0,IF(BP23=MIN(IF(($H$8:$H$5000="Silver")*($D$8:$D$5000=$D23)*(BP$8:BP$5000>0),BP$8:BP$5000)),0,BP23)) -> 0 | EF23: =IF(OR($H23<>"Silver",BQ23=0),0,IF(BQ23=MIN(IF(($H$8:$H$5000="Silver")*($D$8:$D$5000=$D23)*(BQ$8:BQ$5000>0),BQ$8:BQ$5000)),0,BQ23)) -> 0 | EG23: =IF(OR($H23<>"Silver",BR23=0),0,IF(BR23=MIN(IF(($H$8:$H$5000="Silver")*($D$8:$D$5000=$D23)*(BR$8:BR$5000>0),BR$8:BR$5000)),0,BR23)) -> 0 | EH23: =IF(OR($H23<>"Silver",BS23=0),0,IF(BS23=MIN(IF(($H$8:$H$5000="Silver")*($D$8:$D$5000=$D23)*(BS$8:BS$5000>0),BS$8:BS$5000)),0,BS23)) -> 0 | EI23: =IF(OR($H23<>"Silver",BT23=0),0,IF(BT23=MIN(IF(($H$8:$H$5000="Silver")*($D$8:$D$5000=$D23)*(BT$8:BT$5000>0),BT$8:BT$5000)),0,BT23)) -> 0 | EJ23: =IF(OR($H23<>"Silver",BU23=0),0,IF(BU23=MIN(IF(($H$8:$H$5000="Silver")*($D$8:$D$5000=$D23)*(BU$8:BU$5000>0),BU$8:BU$5000)),0,BU23)) -> 0 | EK23: =IF(OR($H23<>"Silver",BV23=0),0,IF(BV23=MIN(IF(($H$8:$H$5000="Silver")*($D$8:$D$5000=$D23)*(BV$8:BV$5000>0),BV$8:BV$5000)),0,BV23)) -> 0 | EL23: =IF(OR($H23<>"Silver",BW23=0),0,IF(BW23=MIN(IF(($H$8:$H$5000="Silver")*($D$8:$D$5000=$D23)*(BW$8:BW$5000>0),BW$8:BW$5000)),0,BW23)) -> 0 | EM23: =IF(OR($H23<>"Silver",BX23=0),0,IF(BX23=MIN(IF(($H$8:$H$5000="Silver")*($D$8:$D$5000=$D23)*(BX$8:BX$5000>0),BX$8:BX$5000)),0,BX23)) -> 0 | EN23: =IF(OR($H23<>"Silver",BY23=0),0,IF(BY23=MIN(IF(($H$8:$H$5000="Silver")*($D$8:$D$5000=$D23)*(BY$8:BY$5000>0),BY$8:BY$5000)),0,BY23)) -> 0
B24: UPMC | C24: UPMC Health Options, Inc. | D24: Individual | E24: 16322PA0040008 | F24: UPMC Advantage Silver $3,250/$10 - Premium Network | G24: PPO | H24: Silver | I24: On/Off | J24: Columbia, Lehigh, Mifflin, Montour, Northampton, Northumberland, Schuylkill, Snyder, Union | K24: 229.07 | L24: 229.07 | M24: 229.07 | N24: 229.07 | O24: 229.07 | P24: 229.07 | Q24: 229.07 | R24: 229.07 | S24: 229.07 | T24: 229.07 | U24: 229.07 | V24: 0 | W24: 0 | X24: 0 | Y24: 0 | Z24: 0 | AA24: 0 | AB24: 0 | AC24: 0 | AD24: 0 | AE24: 0 | AF24: 0 | AG24: 0 | AH24: 0 | AI24: 229.07 | AJ24: 229.07 | AK24: 229.07 | AL24: 229.07 | AM24: 229.07 | AN24: 229.07 | AO24: 229.07 | AP24: 229.07 | AQ24: 229.07 | AR24: 229.07 | AS24: 229.07 | AT24: 229.07 | AU24: 229.07 | AV24: 229.07 | AW24: 229.07 | AX24: 229.07 | AY24: 229.07 | AZ24: 229.07 | BA24: 0 | BB24: 0 | BC24: 0 | BD24: 0 | BE24: 0 | BF24: 0 | BG24: 0 | BH24: 0 | BI24: 0 | BJ24: 0 | BK24: 0 | BL24: 0 | BM24: 0 | BN24: 0 | BO24: 0 | BP24: 0 | BQ24: 0 | BR24: 0 | BS24: 0 | BT24: 0 | BU24: 0 | BV24: 0 | BW24: 0 | BX24: 0 | BY24: 0 | BZ24: =IF(OR($H24<>"Silver",K24=0),0,IF(K24=MIN(IF(($H$8:$H$5000="Silver")*($D$8:$D$5000=$D24)*(K$8:K$5000>0),K$8:K$5000)),0,K24)) -> 229.07 | CA24: =IF(OR($H24<>"Silver",L24=0),0,IF(L24=MIN(IF(($H$8:$H$5000="Silver")*($D$8:$D$5000=$D24)*(L$8:L$5000>0),L$8:L$5000)),0,L24)) -> 229.07 | CB24: =IF(OR($H24<>"Silver",M24=0),0,IF(M24=MIN(IF(($H$8:$H$5000="Silver")*($D$8:$D$5000=$D24)*(M$8:M$5000>0),M$8:M$5000)),0,M24)) -> 229.07 | CC24: =IF(OR($H24<>"Silver",N24=0),0,IF(N24=MIN(IF(($H$8:$H$5000="Silver")*($D$8:$D$5000=$D24)*(N$8:N$5000>0),N$8:N$5000)),0,N24)) -> 229.07 | CD24: =IF(OR($H24<>"Silver",O24=0),0,IF(O24=MIN(IF(($H$8:$H$5000="Silver")*($D$8:$D$5000=$D24)*(O$8:O$5000>0),O$8:O$5000)),0,O24)) -> 229.07 | CE24: =IF(OR($H24<>"Silver",P24=0),0,IF(P24=MIN(IF(($H$8:$H$5000="Silver")*($D$8:$D$5000=$D24)*(P$8:P$5000>0),P$8:P$5000)),0,P24)) -> 229.07 | CF24: =IF(OR($H24<>"Silver",Q24=0),0,IF(Q24=MIN(IF(($H$8:$H$5000="Silver")*($D$8:$D$5000=$D24)*(Q$8:Q$5000>0),Q$8:Q$5000)),0,Q24)) -> 229.07 | CG24: =IF(OR($H24<>"Silver",R24=0),0,IF(R24=MIN(IF(($H$8:$H$5000="Silver")*($D$8:$D$5000=$D24)*(R$8:R$5000>0),R$8:R$5000)),0,R24)) -> 229.07 | CH24: =IF(OR($H24<>"Silver",S24=0),0,IF(S24=MIN(IF(($H$8:$H$5000="Silver")*($D$8:$D$5000=$D24)*(S$8:S$5000>0),S$8:S$5000)),0,S24)) -> 229.07 | CI24: =IF(OR($H24<>"Silver",T24=0),0,IF(T24=MIN(IF(($H$8:$H$5000="Silver")*($D$8:$D$5000=$D24)*(T$8:T$5000>0),T$8:T$5000)),0,T24)) -> 229.07 | CJ24: =IF(OR($H24<>"Silver",U24=0),0,IF(U24=MIN(IF(($H$8:$H$5000="Silver")*($D$8:$D$5000=$D24)*(U$8:U$5000>0),U$8:U$5000)),0,U24)) -> 229.07 | CK24: =IF(OR($H24<>"Silver",V24=0),0,IF(V24=MIN(IF(($H$8:$H$5000="Silver")*($D$8:$D$5000=$D24)*(V$8:V$5000>0),V$8:V$5000)),0,V24)) -> 0 | CL24: =IF(OR($H24<>"Silver",W24=0),0,IF(W24=MIN(IF(($H$8:$H$5000="Silver")*($D$8:$D$5000=$D24)*(W$8:W$5000>0),W$8:W$5000)),0,W24)) -> 0 | CM24: =IF(OR($H24<>"Silver",X24=0),0,IF(X24=MIN(IF(($H$8:$H$5000="Silver")*($D$8:$D$5000=$D24)*(X$8:X$5000>0),X$8:X$5000)),0,X24)) -> 0 | CN24: =IF(OR($H24<>"Silver",Y24=0),0,IF(Y24=MIN(IF(($H$8:$H$5000="Silver")*($D$8:$D$5000=$D24)*(Y$8:Y$5000>0),Y$8:Y$5000)),0,Y24)) -> 0 | CO24: =IF(OR($H24<>"Silver",Z24=0),0,IF(Z24=MIN(IF(($H$8:$H$5000="Silver")*($D$8:$D$5000=$D24)*(Z$8:Z$5000>0),Z$8:Z$5000)),0,Z24)) -> 0 | CP24: =IF(OR($H24<>"Silver",AA24=0),0,IF(AA24=MIN(IF(($H$8:$H$5000="Silver")*($D$8:$D$5000=$D24)*(AA$8:AA$5000>0),AA$8:AA$5000)),0,AA24)) -> 0 | CQ24: =IF(OR($H24<>"Silver",AB24=0),0,IF(AB24=MIN(IF(($H$8:$H$5000="Silver")*($D$8:$D$5000=$D24)*(AB$8:AB$5000>0),AB$8:AB$5000)),0,AB24)) -> 0 | CR24: =IF(OR($H24<>"Silver",AC24=0),0,IF(AC24=MIN(IF(($H$8:$H$5000="Silver")*($D$8:$D$5000=$D24)*(AC$8:AC$5000>0),AC$8:AC$5000)),0,AC24)) -> 0 | CS24: =IF(OR($H24<>"Silver",AD24=0),0,IF(AD24=MIN(IF(($H$8:$H$5000="Silver")*($D$8:$D$5000=$D24)*(AD$8:AD$5000>0),AD$8:AD$5000)),0,AD24)) -> 0 | CT24: =IF(OR($H24<>"Silver",AE24=0),0,IF(AE24=MIN(IF(($H$8:$H$5000="Silver")*($D$8:$D$5000=$D24)*(AE$8:AE$5000>0),AE$8:AE$5000)),0,AE24)) -> 0 | CU24: =IF(OR($H24<>"Silver",AF24=0),0,IF(AF24=MIN(IF(($H$8:$H$5000="Silver")*($D$8:$D$5000=$D24)*(AF$8:AF$5000>0),AF$8:AF$5000)),0,AF24)) -> 0 | CV24: =IF(OR($H24<>"Silver",AG24=0),0,IF(AG24=MIN(IF(($H$8:$H$5000="Silver")*($D$8:$D$5000=$D24)*(AG$8:AG$5000>0),AG$8:AG$5000)),0,AG24)) -> 0 | CW24: =IF(OR($H24<>"Silver",AH24=0),0,IF(AH24=MIN(IF(($H$8:$H$5000="Silver")*($D$8:$D$5000=$D24)*(AH$8:AH$5000>0),AH$8:AH$5000)),0,AH24)) -> 0 | CX24: =IF(OR($H24<>"Silver",AI24=0),0,IF(AI24=MIN(IF(($H$8:$H$5000="Silver")*($D$8:$D$5000=$D24)*(AI$8:AI$5000>0),AI$8:AI$5000)),0,AI24)) -> 229.07 | CY24: =IF(OR($H24<>"Silver",AJ24=0),0,IF(AJ24=MIN(IF(($H$8:$H$5000="Silver")*($D$8:$D$5000=$D24)*(AJ$8:AJ$5000>0),AJ$8:AJ$5000)),0,AJ24)) -> 229.07 | CZ24: =IF(OR($H24<>"Silver",AK24=0),0,IF(AK24=MIN(IF(($H$8:$H$5000="Silver")*($D$8:$D$5000=$D24)*(AK$8:AK$5000>0),AK$8:AK$5000)),0,AK24)) -> 229.07 | DA24: =IF(OR($H24<>"Silver",AL24=0),0,IF(AL24=MIN(IF(($H$8:$H$5000="Silver")*($D$8:$D$5000=$D24)*(AL$8:AL$5000>0),AL$8:AL$5000)),0,AL24)) -> 229.07 | DB24: =IF(OR($H24<>"Silver",AM24=0),0,IF(AM24=MIN(IF(($H$8:$H$5000="Silver")*($D$8:$D$5000=$D24)*(AM$8:AM$5000>0),AM$8:AM$5000)),0,AM24)) -> 229.07 | DC24: =IF(OR($H24<>"Silver",AN24=0),0,IF(AN24=MIN(IF(($H$8:$H$5000="Silver")*($D$8:$D$5000=$D24)*(AN$8:AN$5000>0),AN$8:AN$5000)),0,AN24)) -> 229.07 | DD24: =IF(OR($H24<>"Silver",AO24=0),0,IF(AO24=MIN(IF(($H$8:$H$5000="Silver")*($D$8:$D$5000=$D24)*(AO$8:AO$5000>0),AO$8:AO$5000)),0,AO24)) -> 229.07 | DE24: =IF(OR($H24<>"Silver",AP24=0),0,IF(AP24=MIN(IF(($H$8:$H$5000="Silver")*($D$8:$D$5000=$D24)*(AP$8:AP$5000>0),AP$8:AP$5000)),0,AP24)) -> 229.07 | DF24: =IF(OR($H24<>"Silver",AQ24=0),0,IF(AQ24=MIN(IF(($H$8:$H$5000="Silver")*($D$8:$D$5000=$D24)*(AQ$8:AQ$5000>0),AQ$8:AQ$5000)),0,AQ24)) -> 229.07 | DG24: =IF(OR($H24<>"Silver",AR24=0),0,IF(AR24=MIN(IF(($H$8:$H$5000="Silver")*($D$8:$D$5000=$D24)*(AR$8:AR$5000>0),AR$8:AR$5000)),0,AR24)) -> 229.07 | DH24: =IF(OR($H24<>"Silver",AS24=0),0,IF(AS24=MIN(IF(($H$8:$H$5000="Silver")*($D$8:$D$5000=$D24)*(AS$8:AS$5000>0),AS$8:AS$5000)),0,AS24)) -> 229.07 | DI24: =IF(OR($H24<>"Silver",AT24=0),0,IF(AT24=MIN(IF(($H$8:$H$5000="Silver")*($D$8:$D$5000=$D24)*(AT$8:AT$5000>0),AT$8:AT$5000)),0,AT24)) -> 229.07 | DJ24: =IF(OR($H24<>"Silver",AU24=0),0,IF(AU24=MIN(IF(($H$8:$H$5000="Silver")*($D$8:$D$5000=$D24)*(AU$8:AU$5000>0),AU$8:AU$5000)),0,AU24)) -> 229.07 | DK24: =IF(OR($H24<>"Silver",AV24=0),0,IF(AV24=MIN(IF(($H$8:$H$5000="Silver")*($D$8:$D$5000=$D24)*(AV$8:AV$5000>0),AV$8:AV$5000)),0,AV24)) -> 229.07 | DL24: =IF(OR($H24<>"Silver",AW24=0),0,IF(AW24=MIN(IF(($H$8:$H$5000="Silver")*($D$8:$D$5000=$D24)*(AW$8:AW$5000>0),AW$8:AW$5000)),0,AW24)) -> 229.07 | DM24: =IF(OR($H24<>"Silver",AX24=0),0,IF(AX24=MIN(IF(($H$8:$H$5000="Silver")*($D$8:$D$5000=$D24)*(AX$8:AX$5000>0),AX$8:AX$5000)),0,AX24)) -> 229.07 | DN24: =IF(OR($H24<>"Silver",AY24=0),0,IF(AY24=MIN(IF(($H$8:$H$5000="Silver")*($D$8:$D$5000=$D24)*(AY$8:AY$5000>0),AY$8:AY$5000)),0,AY24)) -> 229.07 | DO24: =IF(OR($H24<>"Silver",AZ24=0),0,IF(AZ24=MIN(IF(($H$8:$H$5000="Silver")*($D$8:$D$5000=$D24)*(AZ$8:AZ$5000>0),AZ$8:AZ$5000)),0,AZ24)) -> 229.07 | DP24: =IF(OR($H24<>"Silver",BA24=0),0,IF(BA24=MIN(IF(($H$8:$H$5000="Silver")*($D$8:$D$5000=$D24)*(BA$8:BA$5000>0),BA$8:BA$5000)),0,BA24)) -> 0 | DQ24: =IF(OR($H24<>"Silver",BB24=0),0,IF(BB24=MIN(IF(($H$8:$H$5000="Silver")*($D$8:$D$5000=$D24)*(BB$8:BB$5000>0),BB$8:BB$5000)),0,BB24)) -> 0 | DR24: =IF(OR($H24<>"Silver",BC24=0),0,IF(BC24=MIN(IF(($H$8:$H$5000="Silver")*($D$8:$D$5000=$D24)*(BC$8:BC$5000>0),BC$8:BC$5000)),0,BC24)) -> 0 | DS24: =IF(OR($H24<>"Silver",BD24=0),0,IF(BD24=MIN(IF(($H$8:$H$5000="Silver")*($D$8:$D$5000=$D24)*(BD$8:BD$5000>0),BD$8:BD$5000)),0,BD24)) -> 0 | DT24: =IF(OR($H24<>"Silver",BE24=0),0,IF(BE24=MIN(IF(($H$8:$H$5000="Silver")*($D$8:$D$5000=$D24)*(BE$8:BE$5000>0),BE$8:BE$5000)),0,BE24)) -> 0 | DU24: =IF(OR($H24<>"Silver",BF24=0),0,IF(BF24=MIN(IF(($H$8:$H$5000="Silver")*($D$8:$D$5000=$D24)*(BF$8:BF$5000>0),BF$8:BF$5000)),0,BF24)) -> 0 | DV24: =IF(OR($H24<>"Silver",BG24=0),0,IF(BG24=MIN(IF(($H$8:$H$5000="Silver")*($D$8:$D$5000=$D24)*(BG$8:BG$5000>0),BG$8:BG$5000)),0,BG24)) -> 0 | DW24: =IF(OR($H24<>"Silver",BH24=0),0,IF(BH24=MIN(IF(($H$8:$H$5000="Silver")*($D$8:$D$5000=$D24)*(BH$8:BH$5000>0),BH$8:BH$5000)),0,BH24)) -> 0 | DX24: =IF(OR($H24<>"Silver",BI24=0),0,IF(BI24=MIN(IF(($H$8:$H$5000="Silver")*($D$8:$D$5000=$D24)*(BI$8:BI$5000>0),BI$8:BI$5000)),0,BI24)) -> 0 | DY24: =IF(OR($H24<>"Silver",BJ24=0),0,IF(BJ24=MIN(IF(($H$8:$H$5000="Silver")*($D$8:$D$5000=$D24)*(BJ$8:BJ$5000>0),BJ$8:BJ$5000)),0,BJ24)) -> 0 | DZ24: =IF(OR($H24<>"Silver",BK24=0),0,IF(BK24=MIN(IF(($H$8:$H$5000="Silver")*($D$8:$D$5000=$D24)*(BK$8:BK$5000>0),BK$8:BK$5000)),0,BK24)) -> 0 | EA24: =IF(OR($H24<>"Silver",BL24=0),0,IF(BL24=MIN(IF(($H$8:$H$5000="Silver")*($D$8:$D$5000=$D24)*(BL$8:BL$5000>0),BL$8:BL$5000)),0,BL24)) -> 0 | EB24: =IF(OR($H24<>"Silver",BM24=0),0,IF(BM24=MIN(IF(($H$8:$H$5000="Silver")*($D$8:$D$5000=$D24)*(BM$8:BM$5000>0),BM$8:BM$5000)),0,BM24)) -> 0 | EC24: =IF(OR($H24<>"Silver",BN24=0),0,IF(BN24=MIN(IF(($H$8:$H$5000="Silver")*($D$8:$D$5000=$D24)*(BN$8:BN$5000>0),BN$8:BN$5000)),0,BN24)) -> 0 | ED24: =IF(OR($H24<>"Silver",BO24=0),0,IF(BO24=MIN(IF(($H$8:$H$5000="Silver")*($D$8:$D$5000=$D24)*(BO$8:BO$5000>0),BO$8:BO$5000)),0,BO24)) -> 0 | EE24: =IF(OR($H24<>"Silver",BP24=0),0,IF(BP24=MIN(IF(($H$8:$H$5000="Silver")*($D$8:$D$5000=$D24)*(BP$8:BP$5000>0),BP$8:BP$5000)),0,BP24)) -> 0 | EF24: =IF(OR($H24<>"Silver",BQ24=0),0,IF(BQ24=MIN(IF(($H$8:$H$5000="Silver")*($D$8:$D$5000=$D24)*(BQ$8:BQ$5000>0),BQ$8:BQ$5000)),0,BQ24)) -> 0 | EG24: =IF(OR($H24<>"Silver",BR24=0),0,IF(BR24=MIN(IF(($H$8:$H$5000="Silver")*($D$8:$D$5000=$D24)*(BR$8:BR$5000>0),BR$8:BR$5000)),0,BR24)) -> 0 | EH24: =IF(OR($H24<>"Silver",BS24=0),0,IF(BS24=MIN(IF(($H$8:$H$5000="Silver")*($D$8:$D$5000=$D24)*(BS$8:BS$5000>0),BS$8:BS$5000)),0,BS24)) -> 0 | EI24: =IF(OR($H24<>"Silver",BT24=0),0,IF(BT24=MIN(IF(($H$8:$H$5000="Silver")*($D$8:$D$5000=$D24)*(BT$8:BT$5000>0),BT$8:BT$5000)),0,BT24)) -> 0 | EJ24: =IF(OR($H24<>"Silver",BU24=0),0,IF(BU24=MIN(IF(($H$8:$H$5000="Silver")*($D$8:$D$5000=$D24)*(BU$8:BU$5000>0),BU$8:BU$5000)),0,BU24)) -> 0 | EK24: =IF(OR($H24<>"Silver",BV24=0),0,IF(BV24=MIN(IF(($H$8:$H$5000="Silver")*($D$8:$D$5000=$D24)*(BV$8:BV$5000>0),BV$8:BV$5000)),0,BV24)) -> 0 | EL24: =IF(OR($H24<>"Silver",BW24=0),0,IF(BW24=MIN(IF(($H$8:$H$5000="Silver")*($D$8:$D$5000=$D24)*(BW$8:BW$5000>0),BW$8:BW$5000)),0,BW24)) -> 0 | EM24: =IF(OR($H24<>"Silver",BX24=0),0,IF(BX24=MIN(IF(($H$8:$H$5000="Silver")*($D$8:$D$5000=$D24)*(BX$8:BX$5000>0),BX$8:BX$5000)),0,BX24)) -> 0 | EN24: =IF(OR($H24<>"Silver",BY24=0),0,IF(BY24=MIN(IF(($H$8:$H$5000="Silver")*($D$8:$D$5000=$D24)*(BY$8:BY$5000>0),BY$8:BY$5000)),0,BY24)) -> 0
B25: UPMC | C25: UPMC Health Options, Inc. | D25: Individual | E25: 16322PA0040010 | F25: UPMC Advantage Gold $750/$10 - Premium Network | G25: PPO | H25: Gold | I25: On/Off | J25: Columbia, Lehigh, Mifflin, Montour, Northampton, Northumberland, Schuylkill, Snyder, Union | K25: 289.06 | L25: 289.06 | M25: 289.06 | N25: 289.06 | O25: 289.06 | P25: 289.06 | Q25: 289.06 | R25: 289.06 | S25: 289.06 | T25: 289.06 | U25: 289.06 | V25: 0 | W25: 0 | X25: 0 | Y25: 0 | Z25: 0 | AA25: 0 | AB25: 0 | AC25: 0 | AD25: 0 | AE25: 0 | AF25: 0 | AG25: 0 | AH25: 0 | AI25: 289.06 | AJ25: 289.06 | AK25: 289.06 | AL25: 289.06 | AM25: 289.06 | AN25: 289.06 | AO25: 289.06 | AP25: 289.06 | AQ25: 289.06 | AR25: 289.06 | AS25: 289.06 | AT25: 289.06 | AU25: 289.06 | AV25: 289.06 | AW25: 289.06 | AX25: 289.06 | AY25: 289.06 | AZ25: 289.06 | BA25: 0 | BB25: 0 | BC25: 0 | BD25: 0 | BE25: 0 | BF25: 0 | BG25: 0 | BH25: 0 | BI25: 0 | BJ25: 0 | BK25: 0 | BL25: 0 | BM25: 0 | BN25: 0 | BO25: 0 | BP25: 0 | BQ25: 0 | BR25: 0 | BS25: 0 | BT25: 0 | BU25: 0 | BV25: 0 | BW25: 0 | BX25: 0 | BY25: 0 | BZ25: =IF(OR($H25<>"Silver",K25=0),0,IF(K25=MIN(IF(($H$8:$H$5000="Silver")*($D$8:$D$5000=$D25)*(K$8:K$5000>0),K$8:K$5000)),0,K25)) -> 0 | CA25: =IF(OR($H25<>"Silver",L25=0),0,IF(L25=MIN(IF(($H$8:$H$5000="Silver")*($D$8:$D$5000=$D25)*(L$8:L$5000>0),L$8:L$5000)),0,L25)) -> 0 | CB25: =IF(OR($H25<>"Silver",M25=0),0,IF(M25=MIN(IF(($H$8:$H$5000="Silver")*($D$8:$D$5000=$D25)*(M$8:M$5000>0),M$8:M$5000)),0,M25)) -> 0 | CC25: =IF(OR($H25<>"Silver",N25=0),0,IF(N25=MIN(IF(($H$8:$H$5000="Silver")*($D$8:$D$5000=$D25)*(N$8:N$5000>0),N$8:N$5000)),0,N25)) -> 0 | CD25: =IF(OR($H25<>"Silver",O25=0),0,IF(O25=MIN(IF(($H$8:$H$5000="Silver")*($D$8:$D$5000=$D25)*(O$8:O$5000>0),O$8:O$5000)),0,O25)) -> 0 | CE25: =IF(OR($H25<>"Silver",P25=0),0,IF(P25=MIN(IF(($H$8:$H$5000="Silver")*($D$8:$D$5000=$D25)*(P$8:P$5000>0),P$8:P$5000)),0,P25)) -> 0 | CF25: =IF(OR($H25<>"Silver",Q25=0),0,IF(Q25=MIN(IF(($H$8:$H$5000="Silver")*($D$8:$D$5000=$D25)*(Q$8:Q$5000>0),Q$8:Q$5000)),0,Q25)) -> 0 | CG25: =IF(OR($H25<>"Silver",R25=0),0,IF(R25=MIN(IF(($H$8:$H$5000="Silver")*($D$8:$D$5000=$D25)*(R$8:R$5000>0),R$8:R$5000)),0,R25)) -> 0 | CH25: =IF(OR($H25<>"Silver",S25=0),0,IF(S25=MIN(IF(($H$8:$H$5000="Silver")*($D$8:$D$5000=$D25)*(S$8:S$5000>0),S$8:S$5000)),0,S25)) -> 0 | CI25: =IF(OR($H25<>"Silver",T25=0),0,IF(T25=MIN(IF(($H$8:$H$5000="Silver")*($D$8:$D$5000=$D25)*(T$8:T$5000>0),T$8:T$5000)),0,T25)) -> 0 | CJ25: =IF(OR($H25<>"Silver",U25=0),0,IF(U25=MIN(IF(($H$8:$H$5000="Silver")*($D$8:$D$5000=$D25)*(U$8:U$5000>0),U$8:U$5000)),0,U25)) -> 0 | CK25: =IF(OR($H25<>"Silver",V25=0),0,IF(V25=MIN(IF(($H$8:$H$5000="Silver")*($D$8:$D$5000=$D25)*(V$8:V$5000>0),V$8:V$5000)),0,V25)) -> 0 | CL25: =IF(OR($H25<>"Silver",W25=0),0,IF(W25=MIN(IF(($H$8:$H$5000="Silver")*($D$8:$D$5000=$D25)*(W$8:W$5000>0),W$8:W$5000)),0,W25)) -> 0 | CM25: =IF(OR($H25<>"Silver",X25=0),0,IF(X25=MIN(IF(($H$8:$H$5000="Silver")*($D$8:$D$5000=$D25)*(X$8:X$5000>0),X$8:X$5000)),0,X25)) -> 0 | CN25: =IF(OR($H25<>"Silver",Y25=0),0,IF(Y25=MIN(IF(($H$8:$H$5000="Silver")*($D$8:$D$5000=$D25)*(Y$8:Y$5000>0),Y$8:Y$5000)),0,Y25)) -> 0 | CO25: =IF(OR($H25<>"Silver",Z25=0),0,IF(Z25=MIN(IF(($H$8:$H$5000="Silver")*($D$8:$D$5000=$D25)*(Z$8:Z$5000>0),Z$8:Z$5000)),0,Z25)) -> 0 | CP25: =IF(OR($H25<>"Silver",AA25=0),0,IF(AA25=MIN(IF(($H$8:$H$5000="Silver")*($D$8:$D$5000=$D25)*(AA$8:AA$5000>0),AA$8:AA$5000)),0,AA25)) -> 0 | CQ25: =IF(OR($H25<>"Silver",AB25=0),0,IF(AB25=MIN(IF(($H$8:$H$5000="Silver")*($D$8:$D$5000=$D25)*(AB$8:AB$5000>0),AB$8:AB$5000)),0,AB25)) -> 0 | CR25: =IF(OR($H25<>"Silver",AC25=0),0,IF(AC25=MIN(IF(($H$8:$H$5000="Silver")*($D$8:$D$5000=$D25)*(AC$8:AC$5000>0),AC$8:AC$5000)),0,AC25)) -> 0 | CS25: =IF(OR($H25<>"Silver",AD25=0),0,IF(AD25=MIN(IF(($H$8:$H$5000="Silver")*($D$8:$D$5000=$D25)*(AD$8:AD$5000>0),AD$8:AD$5000)),0,AD25)) -> 0 | CT25: =IF(OR($H25<>"Silver",AE25=0),0,IF(AE25=MIN(IF(($H$8:$H$5000="Silver")*($D$8:$D$5000=$D25)*(AE$8:AE$5000>0),AE$8:AE$5000)),0,AE25)) -> 0 | CU25: =IF(OR($H25<>"Silver",AF25=0),0,IF(AF25=MIN(IF(($H$8:$H$5000="Silver")*($D$8:$D$5000=$D25)*(AF$8:AF$5000>0),AF$8:AF$5000)),0,AF25)) -> 0 | CV25: =IF(OR($H25<>"Silver",AG25=0),0,IF(AG25=MIN(IF(($H$8:$H$5000="Silver")*($D$8:$D$5000=$D25)*(AG$8:AG$5000>0),AG$8:AG$5000)),0,AG25)) -> 0 | CW25: =IF(OR($H25<>"Silver",AH25=0),0,IF(AH25=MIN(IF(($H$8:$H$5000="Silver")*($D$8:$D$5000=$D25)*(AH$8:AH$5000>0),AH$8:AH$5000)),0,AH25)) -> 0 | CX25: =IF(OR($H25<>"Silver",AI25=0),0,IF(AI25=MIN(IF(($H$8:$H$5000="Silver")*($D$8:$D$5000=$D25)*(AI$8:AI$5000>0),AI$8:AI$5000)),0,AI25)) -> 0 | CY25: =IF(OR($H25<>"Silver",AJ25=0),0,IF(AJ25=MIN(IF(($H$8:$H$5000="Silver")*($D$8:$D$5000=$D25)*(AJ$8:AJ$5000>0),AJ$8:AJ$5000)),0,AJ25)) -> 0 | CZ25: =IF(OR($H25<>"Silver",AK25=0),0,IF(AK25=MIN(IF(($H$8:$H$5000="Silver")*($D$8:$D$5000=$D25)*(AK$8:AK$5000>0),AK$8:AK$5000)),0,AK25)) -> 0 | DA25: =IF(OR($H25<>"Silver",AL25=0),0,IF(AL25=MIN(IF(($H$8:$H$5000="Silver")*($D$8:$D$5000=$D25)*(AL$8:AL$5000>0),AL$8:AL$5000)),0,AL25)) -> 0 | DB25: =IF(OR($H25<>"Silver",AM25=0),0,IF(AM25=MIN(IF(($H$8:$H$5000="Silver")*($D$8:$D$5000=$D25)*(AM$8:AM$5000>0),AM$8:AM$5000)),0,AM25)) -> 0 | DC25: =IF(OR($H25<>"Silver",AN25=0),0,IF(AN25=MIN(IF(($H$8:$H$5000="Silver")*($D$8:$D$5000=$D25)*(AN$8:AN$5000>0),AN$8:AN$5000)),0,AN25)) -> 0 | DD25: =IF(OR($H25<>"Silver",AO25=0),0,IF(AO25=MIN(IF(($H$8:$H$5000="Silver")*($D$8:$D$5000=$D25)*(AO$8:AO$5000>0),AO$8:AO$5000)),0,AO25)) -> 0 | DE25: =IF(OR($H25<>"Silver",AP25=0),0,IF(AP25=MIN(IF(($H$8:$H$5000="Silver")*($D$8:$D$5000=$D25)*(AP$8:AP$5000>0),AP$8:AP$5000)),0,AP25)) -> 0 | DF25: =IF(OR($H25<>"Silver",AQ25=0),0,IF(AQ25=MIN(IF(($H$8:$H$5000="Silver")*($D$8:$D$5000=$D25)*(AQ$8:AQ$5000>0),AQ$8:AQ$5000)),0,AQ25)) -> 0 | DG25: =IF(OR($H25<>"Silver",AR25=0),0,IF(AR25=MIN(IF(($H$8:$H$5000="Silver")*($D$8:$D$5000=$D25)*(AR$8:AR$5000>0),AR$8:AR$5000)),0,AR25)) -> 0 | DH25: =IF(OR($H25<>"Silver",AS25=0),0,IF(AS25=MIN(IF(($H$8:$H$5000="Silver")*($D$8:$D$5000=$D25)*(AS$8:AS$5000>0),AS$8:AS$5000)),0,AS25)) -> 0 | DI25: =IF(OR($H25<>"Silver",AT25=0),0,IF(AT25=MIN(IF(($H$8:$H$5000="Silver")*($D$8:$D$5000=$D25)*(AT$8:AT$5000>0),AT$8:AT$5000)),0,AT25)) -> 0 | DJ25: =IF(OR($H25<>"Silver",AU25=0),0,IF(AU25=MIN(IF(($H$8:$H$5000="Silver")*($D$8:$D$5000=$D25)*(AU$8:AU$5000>0),AU$8:AU$5000)),0,AU25)) -> 0 | DK25: =IF(OR($H25<>"Silver",AV25=0),0,IF(AV25=MIN(IF(($H$8:$H$5000="Silver")*($D$8:$D$5000=$D25)*(AV$8:AV$5000>0),AV$8:AV$5000)),0,AV25)) -> 0 | DL25: =IF(OR($H25<>"Silver",AW25=0),0,IF(AW25=MIN(IF(($H$8:$H$5000="Silver")*($D$8:$D$5000=$D25)*(AW$8:AW$5000>0),AW$8:AW$5000)),0,AW25)) -> 0 | DM25: =IF(OR($H25<>"Silver",AX25=0),0,IF(AX25=MIN(IF(($H$8:$H$5000="Silver")*($D$8:$D$5000=$D25)*(AX$8:AX$5000>0),AX$8:AX$5000)),0,AX25)) -> 0 | DN25: =IF(OR($H25<>"Silver",AY25=0),0,IF(AY25=MIN(IF(($H$8:$H$5000="Silver")*($D$8:$D$5000=$D25)*(AY$8:AY$5000>0),AY$8:AY$5000)),0,AY25)) -> 0 | DO25: =IF(OR($H25<>"Silver",AZ25=0),0,IF(AZ25=MIN(IF(($H$8:$H$5000="Silver")*($D$8:$D$5000=$D25)*(AZ$8:AZ$5000>0),AZ$8:AZ$5000)),0,AZ25)) -> 0 | DP25: =IF(OR($H25<>"Silver",BA25=0),0,IF(BA25=MIN(IF(($H$8:$H$5000="Silver")*($D$8:$D$5000=$D25)*(BA$8:BA$5000>0),BA$8:BA$5000)),0,BA25)) -> 0 | DQ25: =IF(OR($H25<>"Silver",BB25=0),0,IF(BB25=MIN(IF(($H$8:$H$5000="Silver")*($D$8:$D$5000=$D25)*(BB$8:BB$5000>0),BB$8:BB$5000)),0,BB25)) -> 0 | DR25: =IF(OR($H25<>"Silver",BC25=0),0,IF(BC25=MIN(IF(($H$8:$H$5000="Silver")*($D$8:$D$5000=$D25)*(BC$8:BC$5000>0),BC$8:BC$5000)),0,BC25)) -> 0 | DS25: =IF(OR($H25<>"Silver",BD25=0),0,IF(BD25=MIN(IF(($H$8:$H$5000="Silver")*($D$8:$D$5000=$D25)*(BD$8:BD$5000>0),BD$8:BD$5000)),0,BD25)) -> 0 | DT25: =IF(OR($H25<>"Silver",BE25=0),0,IF(BE25=MIN(IF(($H$8:$H$5000="Silver")*($D$8:$D$5000=$D25)*(BE$8:BE$5000>0),BE$8:BE$5000)),0,BE25)) -> 0 | DU25: =IF(OR($H25<>"Silver",BF25=0),0,IF(BF25=MIN(IF(($H$8:$H$5000="Silver")*($D$8:$D$5000=$D25)*(BF$8:BF$5000>0),BF$8:BF$5000)),0,BF25)) -> 0 | DV25: =IF(OR($H25<>"Silver",BG25=0),0,IF(BG25=MIN(IF(($H$8:$H$5000="Silver")*($D$8:$D$5000=$D25)*(BG$8:BG$5000>0),BG$8:BG$5000)),0,BG25)) -> 0 | DW25: =IF(OR($H25<>"Silver",BH25=0),0,IF(BH25=MIN(IF(($H$8:$H$5000="Silver")*($D$8:$D$5000=$D25)*(BH$8:BH$5000>0),BH$8:BH$5000)),0,BH25)) -> 0 | DX25: =IF(OR($H25<>"Silver",BI25=0),0,IF(BI25=MIN(IF(($H$8:$H$5000="Silver")*($D$8:$D$5000=$D25)*(BI$8:BI$5000>0),BI$8:BI$5000)),0,BI25)) -> 0 | DY25: =IF(OR($H25<>"Silver",BJ25=0),0,IF(BJ25=MIN(IF(($H$8:$H$5000="Silver")*($D$8:$D$5000=$D25)*(BJ$8:BJ$5000>0),BJ$8:BJ$5000)),0,BJ25)) -> 0 | DZ25: =IF(OR($H25<>"Silver",BK25=0),0,IF(BK25=MIN(IF(($H$8:$H$5000="Silver")*($D$8:$D$5000=$D25)*(BK$8:BK$5000>0),BK$8:BK$5000)),0,BK25)) -> 0 | EA25: =IF(OR($H25<>"Silver",BL25=0),0,IF(BL25=MIN(IF(($H$8:$H$5000="Silver")*($D$8:$D$5000=$D25)*(BL$8:BL$5000>0),BL$8:BL$5000)),0,BL25)) -> 0 | EB25: =IF(OR($H25<>"Silver",BM25=0),0,IF(BM25=MIN(IF(($H$8:$H$5000="Silver")*($D$8:$D$5000=$D25)*(BM$8:BM$5000>0),BM$8:BM$5000)),0,BM25)) -> 0 | EC25: =IF(OR($H25<>"Silver",BN25=0),0,IF(BN25=MIN(IF(($H$8:$H$5000="Silver")*($D$8:$D$5000=$D25)*(BN$8:BN$5000>0),BN$8:BN$5000)),0,BN25)) -> 0 | ED25: =IF(OR($H25<>"Silver",BO25=0),0,IF(BO25=MIN(IF(($H$8:$H$5000="Silver")*($D$8:$D$5000=$D25)*(BO$8:BO$5000>0),BO$8:BO$5000)),0,BO25)) -> 0 | EE25: =IF(OR($H25<>"Silver",BP25=0),0,IF(BP25=MIN(IF(($H$8:$H$5000="Silver")*($D$8:$D$5000=$D25)*(BP$8:BP$5000>0),BP$8:BP$5000)),0,BP25)) -> 0 | EF25: =IF(OR($H25<>"Silver",BQ25=0),0,IF(BQ25=MIN(IF(($H$8:$H$5000="Silver")*($D$8:$D$5000=$D25)*(BQ$8:BQ$5000>0),BQ$8:BQ$5000)),0,BQ25)) -> 0 | EG25: =IF(OR($H25<>"Silver",BR25=0),0,IF(BR25=MIN(IF(($H$8:$H$5000="Silver")*($D$8:$D$5000=$D25)*(BR$8:BR$5000>0),BR$8:BR$5000)),0,BR25)) -> 0 | EH25: =IF(OR($H25<>"Silver",BS25=0),0,IF(BS25=MIN(IF(($H$8:$H$5000="Silver")*($D$8:$D$5000=$D25)*(BS$8:BS$5000>0),BS$8:BS$5000)),0,BS25)) -> 0 | EI25: =IF(OR($H25<>"Silver",BT25=0),0,IF(BT25=MIN(IF(($H$8:$H$5000="Silver")*($D$8:$D$5000=$D25)*(BT$8:BT$5000>0),BT$8:BT$5000)),0,BT25)) -> 0 | EJ25: =IF(OR($H25<>"Silver",BU25=0),0,IF(BU25=MIN(IF(($H$8:$H$5000="Silver")*($D$8:$D$5000=$D25)*(BU$8:BU$5000>0),BU$8:BU$5000)),0,BU25)) -> 0 | EK25: =IF(OR($H25<>"Silver",BV25=0),0,IF(BV25=MIN(IF(($H$8:$H$5000="Silver")*($D$8:$D$5000=$D25)*(BV$8:BV$5000>0),BV$8:BV$5000)),0,BV25)) -> 0 | EL25: =IF(OR($H25<>"Silver",BW25=0),0,IF(BW25=MIN(IF(($H$8:$H$5000="Silver")*($D$8:$D$5000=$D25)*(BW$8:BW$5000>0),BW$8:BW$5000)),0,BW25)) -> 0 | EM25: =IF(OR($H25<>"Silver",BX25=0),0,IF(BX25=MIN(IF(($H$8:$H$5000="Silver")*($D$8:$D$5000=$D25)*(BX$8:BX$5000>0),BX$8:BX$5000)),0,BX25)) -> 0 | EN25: =IF(OR($H25<>"Silver",BY25=0),0,IF(BY25=MIN(IF(($H$8:$H$5000="Silver")*($D$8:$D$5000=$D25)*(BY$8:BY$5000>0),BY$8:BY$5000)),0,BY25)) -> 0
B26: UPMC | C26: UPMC Health Options, Inc. | D26: Individual | E26: 16322PA0040012 | F26: UPMC Advantage Platinum $250/$20 - Premium Network | G26: PPO | H26: Platinum | I26: On/Off | J26: Columbia, Lehigh, Mifflin, Montour, Northampton, Northumberland, Schuylkill, Snyder, Union | K26: 490.56 | L26: 490.56 | M26: 490.56 | N26: 490.56 | O26: 490.56 | P26: 490.56 | Q26: 490.56 | R26: 490.56 | S26: 490.56 | T26: 490.56 | U26: 490.56 | V26: 0 | W26: 0 | X26: 0 | Y26: 0 | Z26: 0 | AA26: 0 | AB26: 0 | AC26: 0 | AD26: 0 | AE26: 0 | AF26: 0 | AG26: 0 | AH26: 0 | AI26: 490.56 | AJ26: 490.56 | AK26: 490.56 | AL26: 490.56 | AM26: 490.56 | AN26: 490.56 | AO26: 490.56 | AP26: 490.56 | AQ26: 490.56 | AR26: 490.56 | AS26: 490.56 | AT26: 490.56 | AU26: 490.56 | AV26: 490.56 | AW26: 490.56 | AX26: 490.56 | AY26: 490.56 | AZ26: 490.56 | BA26: 0 | BB26: 0 | BC26: 0 | BD26: 0 | BE26: 0 | BF26: 0 | BG26: 0 | BH26: 0 | BI26: 0 | BJ26: 0 | BK26: 0 | BL26: 0 | BM26: 0 | BN26: 0 | BO26: 0 | BP26: 0 | BQ26: 0 | BR26: 0 | BS26: 0 | BT26: 0 | BU26: 0 | BV26: 0 | BW26: 0 | BX26: 0 | BY26: 0 | BZ26: =IF(OR($H26<>"Silver",K26=0),0,IF(K26=MIN(IF(($H$8:$H$5000="Silver")*($D$8:$D$5000=$D26)*(K$8:K$5000>0),K$8:K$5000)),0,K26)) -> 0 | CA26: =IF(OR($H26<>"Silver",L26=0),0,IF(L26=MIN(IF(($H$8:$H$5000="Silver")*($D$8:$D$5000=$D26)*(L$8:L$5000>0),L$8:L$5000)),0,L26)) -> 0 | CB26: =IF(OR($H26<>"Silver",M26=0),0,IF(M26=MIN(IF(($H$8:$H$5000="Silver")*($D$8:$D$5000=$D26)*(M$8:M$5000>0),M$8:M$5000)),0,M26)) -> 0 | CC26: =IF(OR($H26<>"Silver",N26=0),0,IF(N26=MIN(IF(($H$8:$H$5000="Silver")*($D$8:$D$5000=$D26)*(N$8:N$5000>0),N$8:N$5000)),0,N26)) -> 0 | CD26: =IF(OR($H26<>"Silver",O26=0),0,IF(O26=MIN(IF(($H$8:$H$5000="Silver")*($D$8:$D$5000=$D26)*(O$8:O$5000>0),O$8:O$5000)),0,O26)) -> 0 | CE26: =IF(OR($H26<>"Silver",P26=0),0,IF(P26=MIN(IF(($H$8:$H$5000="Silver")*($D$8:$D$5000=$D26)*(P$8:P$5000>0),P$8:P$5000)),0,P26)) -> 0 | CF26: =IF(OR($H26<>"Silver",Q26=0),0,IF(Q26=MIN(IF(($H$8:$H$5000="Silver")*($D$8:$D$5000=$D26)*(Q$8:Q$5000>0),Q$8:Q$5000)),0,Q26)) -> 0 | CG26: =IF(OR($H26<>"Silver",R26=0),0,IF(R26=MIN(IF(($H$8:$H$5000="Silver")*($D$8:$D$5000=$D26)*(R$8:R$5000>0),R$8:R$5000)),0,R26)) -> 0 | CH26: =IF(OR($H26<>"Silver",S26=0),0,IF(S26=MIN(IF(($H$8:$H$5000="Silver")*($D$8:$D$5000=$D26)*(S$8:S$5000>0),S$8:S$5000)),0,S26)) -> 0 | CI26: =IF(OR($H26<>"Silver",T26=0),0,IF(T26=MIN(IF(($H$8:$H$5000="Silver")*($D$8:$D$5000=$D26)*(T$8:T$5000>0),T$8:T$5000)),0,T26)) -> 0 | CJ26: =IF(OR($H26<>"Silver",U26=0),0,IF(U26=MIN(IF(($H$8:$H$5000="Silver")*($D$8:$D$5000=$D26)*(U$8:U$5000>0),U$8:U$5000)),0,U26)) -> 0 | CK26: =IF(OR($H26<>"Silver",V26=0),0,IF(V26=MIN(IF(($H$8:$H$5000="Silver")*($D$8:$D$5000=$D26)*(V$8:V$5000>0),V$8:V$5000)),0,V26)) -> 0 | CL26: =IF(OR($H26<>"Silver",W26=0),0,IF(W26=MIN(IF(($H$8:$H$5000="Silver")*($D$8:$D$5000=$D26)*(W$8:W$5000>0),W$8:W$5000)),0,W26)) -> 0 | CM26: =IF(OR($H26<>"Silver",X26=0),0,IF(X26=MIN(IF(($H$8:$H$5000="Silver")*($D$8:$D$5000=$D26)*(X$8:X$5000>0),X$8:X$5000)),0,X26)) -> 0 | CN26: =IF(OR($H26<>"Silver",Y26=0),0,IF(Y26=MIN(IF(($H$8:$H$5000="Silver")*($D$8:$D$5000=$D26)*(Y$8:Y$5000>0),Y$8:Y$5000)),0,Y26)) -> 0 | CO26: =IF(OR($H26<>"Silver",Z26=0),0,IF(Z26=MIN(IF(($H$8:$H$5000="Silver")*($D$8:$D$5000=$D26)*(Z$8:Z$5000>0),Z$8:Z$5000)),0,Z26)) -> 0 | CP26: =IF(OR($H26<>"Silver",AA26=0),0,IF(AA26=MIN(IF(($H$8:$H$5000="Silver")*($D$8:$D$5000=$D26)*(AA$8:AA$5000>0),AA$8:AA$5000)),0,AA26)) -> 0 | CQ26: =IF(OR($H26<>"Silver",AB26=0),0,IF(AB26=MIN(IF(($H$8:$H$5000="Silver")*($D$8:$D$5000=$D26)*(AB$8:AB$5000>0),AB$8:AB$5000)),0,AB26)) -> 0 | CR26: =IF(OR($H26<>"Silver",AC26=0),0,IF(AC26=MIN(IF(($H$8:$H$5000="Silver")*($D$8:$D$5000=$D26)*(AC$8:AC$5000>0),AC$8:AC$5000)),0,AC26)) -> 0 | CS26: =IF(OR($H26<>"Silver",AD26=0),0,IF(AD26=MIN(IF(($H$8:$H$5000="Silver")*($D$8:$D$5000=$D26)*(AD$8:AD$5000>0),AD$8:AD$5000)),0,AD26)) -> 0 | CT26: =IF(OR($H26<>"Silver",AE26=0),0,IF(AE26=MIN(IF(($H$8:$H$5000="Silver")*($D$8:$D$5000=$D26)*(AE$8:AE$5000>0),AE$8:AE$5000)),0,AE26)) -> 0 | CU26: =IF(OR($H26<>"Silver",AF26=0),0,IF(AF26=MIN(IF(($H$8:$H$5000="Silver")*($D$8:$D$5000=$D26)*(AF$8:AF$5000>0),AF$8:AF$5000)),0,AF26)) -> 0 | CV26: =IF(OR($H26<>"Silver",AG26=0),0,IF(AG26=MIN(IF(($H$8:$H$5000="Silver")*($D$8:$D$5000=$D26)*(AG$8:AG$5000>0),AG$8:AG$5000)),0,AG26)) -> 0 | CW26: =IF(OR($H26<>"Silver",AH26=0),0,IF(AH26=MIN(IF(($H$8:$H$5000="Silver")*($D$8:$D$5000=$D26)*(AH$8:AH$5000>0),AH$8:AH$5000)),0,AH26)) -> 0 | CX26: =IF(OR($H26<>"Silver",AI26=0),0,IF(AI26=MIN(IF(($H$8:$H$5000="Silver")*($D$8:$D$5000=$D26)*(AI$8:AI$5000>0),AI$8:AI$5000)),0,AI26)) -> 0 | CY26: =IF(OR($H26<>"Silver",AJ26=0),0,IF(AJ26=MIN(IF(($H$8:$H$5000="Silver")*($D$8:$D$5000=$D26)*(AJ$8:AJ$5000>0),AJ$8:AJ$5000)),0,AJ26)) -> 0 | CZ26: =IF(OR($H26<>"Silver",AK26=0),0,IF(AK26=MIN(IF(($H$8:$H$5000="Silver")*($D$8:$D$5000=$D26)*(AK$8:AK$5000>0),AK$8:AK$5000)),0,AK26)) -> 0 | DA26: =IF(OR($H26<>"Silver",AL26=0),0,IF(AL26=MIN(IF(($H$8:$H$5000="Silver")*($D$8:$D$5000=$D26)*(AL$8:AL$5000>0),AL$8:AL$5000)),0,AL26)) -> 0 | DB26: =IF(OR($H26<>"Silver",AM26=0),0,IF(AM26=MIN(IF(($H$8:$H$5000="Silver")*($D$8:$D$5000=$D26)*(AM$8:AM$5000>0),AM$8:AM$5000)),0,AM26)) -> 0 | DC26: =IF(OR($H26<>"Silver",AN26=0),0,IF(AN26=MIN(IF(($H$8:$H$5000="Silver")*($D$8:$D$5000=$D26)*(AN$8:AN$5000>0),AN$8:AN$5000)),0,AN26)) -> 0 | DD26: =IF(OR($H26<>"Silver",AO26=0),0,IF(AO26=MIN(IF(($H$8:$H$5000="Silver")*($D$8:$D$5000=$D26)*(AO$8:AO$5000>0),AO$8:AO$5000)),0,AO26)) -> 0 | DE26: =IF(OR($H26<>"Silver",AP26=0),0,IF(AP26=MIN(IF(($H$8:$H$5000="Silver")*($D$8:$D$5000=$D26)*(AP$8:AP$5000>0),AP$8:AP$5000)),0,AP26)) -> 0 | DF26: =IF(OR($H26<>"Silver",AQ26=0),0,IF(AQ26=MIN(IF(($H$8:$H$5000="Silver")*($D$8:$D$5000=$D26)*(AQ$8:AQ$5000>0),AQ$8:AQ$5000)),0,AQ26)) -> 0 | DG26: =IF(OR($H26<>"Silver",AR26=0),0,IF(AR26=MIN(IF(($H$8:$H$5000="Silver")*($D$8:$D$5000=$D26)*(AR$8:AR$5000>0),AR$8:AR$5000)),0,AR26)) -> 0 | DH26: =IF(OR($H26<>"Silver",AS26=0),0,IF(AS26=MIN(IF(($H$8:$H$5000="Silver")*($D$8:$D$5000=$D26)*(AS$8:AS$5000>0),AS$8:AS$5000)),0,AS26)) -> 0 | DI26: =IF(OR($H26<>"Silver",AT26=0),0,IF(AT26=MIN(IF(($H$8:$H$5000="Silver")*($D$8:$D$5000=$D26)*(AT$8:AT$5000>0),AT$8:AT$5000)),0,AT26)) -> 0 | DJ26: =IF(OR($H26<>"Silver",AU26=0),0,IF(AU26=MIN(IF(($H$8:$H$5000="Silver")*($D$8:$D$5000=$D26)*(AU$8:AU$5000>0),AU$8:AU$5000)),0,AU26)) -> 0 | DK26: =IF(OR($H26<>"Silver",AV26=0),0,IF(AV26=MIN(IF(($H$8:$H$5000="Silver")*($D$8:$D$5000=$D26)*(AV$8:AV$5000>0),AV$8:AV$5000)),0,AV26)) -> 0 | DL26: =IF(OR($H26<>"Silver",AW26=0),0,IF(AW26=MIN(IF(($H$8:$H$5000="Silver")*($D$8:$D$5000=$D26)*(AW$8:AW$5000>0),AW$8:AW$5000)),0,AW26)) -> 0 | DM26: =IF(OR($H26<>"Silver",AX26=0),0,IF(AX26=MIN(IF(($H$8:$H$5000="Silver")*($D$8:$D$5000=$D26)*(AX$8:AX$5000>0),AX$8:AX$5000)),0,AX26)) -> 0 | DN26: =IF(OR($H26<>"Silver",AY26=0),0,IF(AY26=MIN(IF(($H$8:$H$5000="Silver")*($D$8:$D$5000=$D26)*(AY$8:AY$5000>0),AY$8:AY$5000)),0,AY26)) -> 0 | DO26: =IF(OR($H26<>"Silver",AZ26=0),0,IF(AZ26=MIN(IF(($H$8:$H$5000="Silver")*($D$8:$D$5000=$D26)*(AZ$8:AZ$5000>0),AZ$8:AZ$5000)),0,AZ26)) -> 0 | DP26: =IF(OR($H26<>"Silver",BA26=0),0,IF(BA26=MIN(IF(($H$8:$H$5000="Silver")*($D$8:$D$5000=$D26)*(BA$8:BA$5000>0),BA$8:BA$5000)),0,BA26)) -> 0 | DQ26: =IF(OR($H26<>"Silver",BB26=0),0,IF(BB26=MIN(IF(($H$8:$H$5000="Silver")*($D$8:$D$5000=$D26)*(BB$8:BB$5000>0),BB$8:BB$5000)),0,BB26)) -> 0 | DR26: =IF(OR($H26<>"Silver",BC26=0),0,IF(BC26=MIN(IF(($H$8:$H$5000="Silver")*($D$8:$D$5000=$D26)*(BC$8:BC$5000>0),BC$8:BC$5000)),0,BC26)) -> 0 | DS26: =IF(OR($H26<>"Silver",BD26=0),0,IF(BD26=MIN(IF(($H$8:$H$5000="Silver")*($D$8:$D$5000=$D26)*(BD$8:BD$5000>0),BD$8:BD$5000)),0,BD26)) -> 0 | DT26: =IF(OR($H26<>"Silver",BE26=0),0,IF(BE26=MIN(IF(($H$8:$H$5000="Silver")*($D$8:$D$5000=$D26)*(BE$8:BE$5000>0),BE$8:BE$5000)),0,BE26)) -> 0 | DU26: =IF(OR($H26<>"Silver",BF26=0),0,IF(BF26=MIN(IF(($H$8:$H$5000="Silver")*($D$8:$D$5000=$D26)*(BF$8:BF$5000>0),BF$8:BF$5000)),0,BF26)) -> 0 | DV26: =IF(OR($H26<>"Silver",BG26=0),0,IF(BG26=MIN(IF(($H$8:$H$5000="Silver")*($D$8:$D$5000=$D26)*(BG$8:BG$5000>0),BG$8:BG$5000)),0,BG26)) -> 0 | DW26: =IF(OR($H26<>"Silver",BH26=0),0,IF(BH26=MIN(IF(($H$8:$H$5000="Silver")*($D$8:$D$5000=$D26)*(BH$8:BH$5000>0),BH$8:BH$5000)),0,BH26)) -> 0 | DX26: =IF(OR($H26<>"Silver",BI26=0),0,IF(BI26=MIN(IF(($H$8:$H$5000="Silver")*($D$8:$D$5000=$D26)*(BI$8:BI$5000>0),BI$8:BI$5000)),0,BI26)) -> 0 | DY26: =IF(OR($H26<>"Silver",BJ26=0),0,IF(BJ26=MIN(IF(($H$8:$H$5000="Silver")*($D$8:$D$5000=$D26)*(BJ$8:BJ$5000>0),BJ$8:BJ$5000)),0,BJ26)) -> 0 | DZ26: =IF(OR($H26<>"Silver",BK26=0),0,IF(BK26=MIN(IF(($H$8:$H$5000="Silver")*($D$8:$D$5000=$D26)*(BK$8:BK$5000>0),BK$8:BK$5000)),0,BK26)) -> 0 | EA26: =IF(OR($H26<>"Silver",BL26=0),0,IF(BL26=MIN(IF(($H$8:$H$5000="Silver")*($D$8:$D$5000=$D26)*(BL$8:BL$5000>0),BL$8:BL$5000)),0,BL26)) -> 0 | EB26: =IF(OR($H26<>"Silver",BM26=0),0,IF(BM26=MIN(IF(($H$8:$H$5000="Silver")*($D$8:$D$5000=$D26)*(BM$8:BM$5000>0),BM$8:BM$5000)),0,BM26)) -> 0 | EC26: =IF(OR($H26<>"Silver",BN26=0),0,IF(BN26=MIN(IF(($H$8:$H$5000="Silver")*($D$8:$D$5000=$D26)*(BN$8:BN$5000>0),BN$8:BN$5000)),0,BN26)) -> 0 | ED26: =IF(OR($H26<>"Silver",BO26=0),0,IF(BO26=MIN(IF(($H$8:$H$5000="Silver")*($D$8:$D$5000=$D26)*(BO$8:BO$5000>0),BO$8:BO$5000)),0,BO26)) -> 0 | EE26: =IF(OR($H26<>"Silver",BP26=0),0,IF(BP26=MIN(IF(($H$8:$H$5000="Silver")*($D$8:$D$5000=$D26)*(BP$8:BP$5000>0),BP$8:BP$5000)),0,BP26)) -> 0 | EF26: =IF(OR($H26<>"Silver",BQ26=0),0,IF(BQ26=MIN(IF(($H$8:$H$5000="Silver")*($D$8:$D$5000=$D26)*(BQ$8:BQ$5000>0),BQ$8:BQ$5000)),0,BQ26)) -> 0 | EG26: =IF(OR($H26<>"Silver",BR26=0),0,IF(BR26=MIN(IF(($H$8:$H$5000="Silver")*($D$8:$D$5000=$D26)*(BR$8:BR$5000>0),BR$8:BR$5000)),0,BR26)) -> 0 | EH26: =IF(OR($H26<>"Silver",BS26=0),0,IF(BS26=MIN(IF(($H$8:$H$5000="Silver")*($D$8:$D$5000=$D26)*(BS$8:BS$5000>0),BS$8:BS$5000)),0,BS26)) -> 0 | EI26: =IF(OR($H26<>"Silver",BT26=0),0,IF(BT26=MIN(IF(($H$8:$H$5000="Silver")*($D$8:$D$5000=$D26)*(BT$8:BT$5000>0),BT$8:BT$5000)),0,BT26)) -> 0 | EJ26: =IF(OR($H26<>"Silver",BU26=0),0,IF(BU26=MIN(IF(($H$8:$H$5000="Silver")*($D$8:$D$5000=$D26)*(BU$8:BU$5000>0),BU$8:BU$5000)),0,BU26)) -> 0 | EK26: =IF(OR($H26<>"Silver",BV26=0),0,IF(BV26=MIN(IF(($H$8:$H$5000="Silver")*($D$8:$D$5000=$D26)*(BV$8:BV$5000>0),BV$8:BV$5000)),0,BV26)) -> 0 | EL26: =IF(OR($H26<>"Silver",BW26=0),0,IF(BW26=MIN(IF(($H$8:$H$5000="Silver")*($D$8:$D$5000=$D26)*(BW$8:BW$5000>0),BW$8:BW$5000)),0,BW26)) -> 0 | EM26: =IF(OR($H26<>"Silver",BX26=0),0,IF(BX26=MIN(IF(($H$8:$H$5000="Silver")*($D$8:$D$5000=$D26)*(BX$8:BX$5000>0),BX$8:BX$5000)),0,BX26)) -> 0 | EN26: =IF(OR($H26<>"Silver",BY26=0),0,IF(BY26=MIN(IF(($H$8:$H$5000="Silver")*($D$8:$D$5000=$D26)*(BY$8:BY$5000>0),BY$8:BY$5000)),0,BY26)) -> 0
B27: UPMC | C27: UPMC Health Options, Inc. | D27: Individual | E27: 16322PA0040024 | F27: UPMC Advantage Bronze $6,950/$35 – Premium Network | G27: PPO | H27: Bronze | I27: On/Off | J27: Columbia, Lehigh, Mifflin, Montour, Northampton, Northumberland, Schuylkill, Snyder, Union | K27: 204.01 | L27: 204.01 | M27: 204.01 | N27: 204.01 | O27: 204.01 | P27: 204.01 | Q27: 204.01 | R27: 204.01 | S27: 204.01 | T27: 204.01 | U27: 204.01 | V27: 0 | W27: 0 | X27: 0 | Y27: 0 | Z27: 0 | AA27: 0 | AB27: 0 | AC27: 0 | AD27: 0 | AE27: 0 | AF27: 0 | AG27: 0 | AH27: 0 | AI27: 204.01 | AJ27: 204.01 | AK27: 204.01 | AL27: 204.01 | AM27: 204.01 | AN27: 204.01 | AO27: 204.01 | AP27: 204.01 | AQ27: 204.01 | AR27: 204.01 | AS27: 204.01 | AT27: 204.01 | AU27: 204.01 | AV27: 204.01 | AW27: 204.01 | AX27: 204.01 | AY27: 204.01 | AZ27: 204.01 | BA27: 0 | BB27: 0 | BC27: 0 | BD27: 0 | BE27: 0 | BF27: 0 | BG27: 0 | BH27: 0 | BI27: 0 | BJ27: 0 | BK27: 0 | BL27: 0 | BM27: 0 | BN27: 0 | BO27: 0 | BP27: 0 | BQ27: 0 | BR27: 0 | BS27: 0 | BT27: 0 | BU27: 0 | BV27: 0 | BW27: 0 | BX27: 0 | BY27: 0 | BZ27: =IF(OR($H27<>"Silver",K27=0),0,IF(K27=MIN(IF(($H$8:$H$5000="Silver")*($D$8:$D$5000=$D27)*(K$8:K$5000>0),K$8:K$5000)),0,K27)) -> 0 | CA27: =IF(OR($H27<>"Silver",L27=0),0,IF(L27=MIN(IF(($H$8:$H$5000="Silver")*($D$8:$D$5000=$D27)*(L$8:L$5000>0),L$8:L$5000)),0,L27)) -> 0 | CB27: =IF(OR($H27<>"Silver",M27=0),0,IF(M27=MIN(IF(($H$8:$H$5000="Silver")*($D$8:$D$5000=$D27)*(M$8:M$5000>0),M$8:M$5000)),0,M27)) -> 0 | CC27: =IF(OR($H27<>"Silver",N27=0),0,IF(N27=MIN(IF(($H$8:$H$5000="Silver")*($D$8:$D$5000=$D27)*(N$8:N$5000>0),N$8:N$5000)),0,N27)) -> 0 | CD27: =IF(OR($H27<>"Silver",O27=0),0,IF(O27=MIN(IF(($H$8:$H$5000="Silver")*($D$8:$D$5000=$D27)*(O$8:O$5000>0),O$8:O$5000)),0,O27)) -> 0 | CE27: =IF(OR($H27<>"Silver",P27=0),0,IF(P27=MIN(IF(($H$8:$H$5000="Silver")*($D$8:$D$5000=$D27)*(P$8:P$5000>0),P$8:P$5000)),0,P27)) -> 0 | CF27: =IF(OR($H27<>"Silver",Q27=0),0,IF(Q27=MIN(IF(($H$8:$H$5000="Silver")*($D$8:$D$5000=$D27)*(Q$8:Q$5000>0),Q$8:Q$5000)),0,Q27)) -> 0 | CG27: =IF(OR($H27<>"Silver",R27=0),0,IF(R27=MIN(IF(($H$8:$H$5000="Silver")*($D$8:$D$5000=$D27)*(R$8:R$5000>0),R$8:R$5000)),0,R27)) -> 0 | CH27: =IF(OR($H27<>"Silver",S27=0),0,IF(S27=MIN(IF(($H$8:$H$5000="Silver")*($D$8:$D$5000=$D27)*(S$8:S$5000>0),S$8:S$5000)),0,S27)) -> 0 | CI27: =IF(OR($H27<>"Silver",T27=0),0,IF(T27=MIN(IF(($H$8:$H$5000="Silver")*($D$8:$D$5000=$D27)*(T$8:T$5000>0),T$8:T$5000)),0,T27)) -> 0 | CJ27: =IF(OR($H27<>"Silver",U27=0),0,IF(U27=MIN(IF(($H$8:$H$5000="Silver")*($D$8:$D$5000=$D27)*(U$8:U$5000>0),U$8:U$5000)),0,U27)) -> 0 | CK27: =IF(OR($H27<>"Silver",V27=0),0,IF(V27=MIN(IF(($H$8:$H$5000="Silver")*($D$8:$D$5000=$D27)*(V$8:V$5000>0),V$8:V$5000)),0,V27)) -> 0 | CL27: =IF(OR($H27<>"Silver",W27=0),0,IF(W27=MIN(IF(($H$8:$H$5000="Silver")*($D$8:$D$5000=$D27)*(W$8:W$5000>0),W$8:W$5000)),0,W27)) -> 0 | CM27: =IF(OR($H27<>"Silver",X27=0),0,IF(X27=MIN(IF(($H$8:$H$5000="Silver")*($D$8:$D$5000=$D27)*(X$8:X$5000>0),X$8:X$5000)),0,X27)) -> 0 | CN27: =IF(OR($H27<>"Silver",Y27=0),0,IF(Y27=MIN(IF(($H$8:$H$5000="Silver")*($D$8:$D$5000=$D27)*(Y$8:Y$5000>0),Y$8:Y$5000)),0,Y27)) -> 0 | CO27: =IF(OR($H27<>"Silver",Z27=0),0,IF(Z27=MIN(IF(($H$8:$H$5000="Silver")*($D$8:$D$5000=$D27)*(Z$8:Z$5000>0),Z$8:Z$5000)),0,Z27)) -> 0 | CP27: =IF(OR($H27<>"Silver",AA27=0),0,IF(AA27=MIN(IF(($H$8:$H$5000="Silver")*($D$8:$D$5000=$D27)*(AA$8:AA$5000>0),AA$8:AA$5000)),0,AA27)) -> 0 | CQ27: =IF(OR($H27<>"Silver",AB27=0),0,IF(AB27=MIN(IF(($H$8:$H$5000="Silver")*($D$8:$D$5000=$D27)*(AB$8:AB$5000>0),AB$8:AB$5000)),0,AB27)) -> 0 | CR27: =IF(OR($H27<>"Silver",AC27=0),0,IF(AC27=MIN(IF(($H$8:$H$5000="Silver")*($D$8:$D$5000=$D27)*(AC$8:AC$5000>0),AC$8:AC$5000)),0,AC27)) -> 0 | CS27: =IF(OR($H27<>"Silver",AD27=0),0,IF(AD27=MIN(IF(($H$8:$H$5000="Silver")*($D$8:$D$5000=$D27)*(AD$8:AD$5000>0),AD$8:AD$5000)),0,AD27)) -> 0 | CT27: =IF(OR($H27<>"Silver",AE27=0),0,IF(AE27=MIN(IF(($H$8:$H$5000="Silver")*($D$8:$D$5000=$D27)*(AE$8:AE$5000>0),AE$8:AE$5000)),0,AE27)) -> 0 | CU27: =IF(OR($H27<>"Silver",AF27=0),0,IF(AF27=MIN(IF(($H$8:$H$5000="Silver")*($D$8:$D$5000=$D27)*(AF$8:AF$5000>0),AF$8:AF$5000)),0,AF27)) -> 0 | CV27: =IF(OR($H27<>"Silver",AG27=0),0,IF(AG27=MIN(IF(($H$8:$H$5000="Silver")*($D$8:$D$5000=$D27)*(AG$8:AG$5000>0),AG$8:AG$5000)),0,AG27)) -> 0 | CW27: =IF(OR($H27<>"Silver",AH27=0),0,IF(AH27=MIN(IF(($H$8:$H$5000="Silver")*($D$8:$D$5000=$D27)*(AH$8:AH$5000>0),AH$8:AH$5000)),0,AH27)) -> 0 | CX27: =IF(OR($H27<>"Silver",AI27=0),0,IF(AI27=MIN(IF(($H$8:$H$5000="Silver")*($D$8:$D$5000=$D27)*(AI$8:AI$5000>0),AI$8:AI$5000)),0,AI27)) -> 0 | CY27: =IF(OR($H27<>"Silver",AJ27=0),0,IF(AJ27=MIN(IF(($H$8:$H$5000="Silver")*($D$8:$D$5000=$D27)*(AJ$8:AJ$5000>0),AJ$8:AJ$5000)),0,AJ27)) -> 0 | CZ27: =IF(OR($H27<>"Silver",AK27=0),0,IF(AK27=MIN(IF(($H$8:$H$5000="Silver")*($D$8:$D$5000=$D27)*(AK$8:AK$5000>0),AK$8:AK$5000)),0,AK27)) -> 0 | DA27: =IF(OR($H27<>"Silver",AL27=0),0,IF(AL27=MIN(IF(($H$8:$H$5000="Silver")*($D$8:$D$5000=$D27)*(AL$8:AL$5000>0),AL$8:AL$5000)),0,AL27)) -> 0 | DB27: =IF(OR($H27<>"Silver",AM27=0),0,IF(AM27=MIN(IF(($H$8:$H$5000="Silver")*($D$8:$D$5000=$D27)*(AM$8:AM$5000>0),AM$8:AM$5000)),0,AM27)) -> 0 | DC27: =IF(OR($H27<>"Silver",AN27=0),0,IF(AN27=MIN(IF(($H$8:$H$5000="Silver")*($D$8:$D$5000=$D27)*(AN$8:AN$5000>0),AN$8:AN$5000)),0,AN27)) -> 0 | DD27: =IF(OR($H27<>"Silver",AO27=0),0,IF(AO27=MIN(IF(($H$8:$H$5000="Silver")*($D$8:$D$5000=$D27)*(AO$8:AO$5000>0),AO$8:AO$5000)),0,AO27)) -> 0 | DE27: =IF(OR($H27<>"Silver",AP27=0),0,IF(AP27=MIN(IF(($H$8:$H$5000="Silver")*($D$8:$D$5000=$D27)*(AP$8:AP$5000>0),AP$8:AP$5000)),0,AP27)) -> 0 | DF27: =IF(OR($H27<>"Silver",AQ27=0),0,IF(AQ27=MIN(IF(($H$8:$H$5000="Silver")*($D$8:$D$5000=$D27)*(AQ$8:AQ$5000>0),AQ$8:AQ$5000)),0,AQ27)) -> 0 | DG27: =IF(OR($H27<>"Silver",AR27=0),0,IF(AR27=MIN(IF(($H$8:$H$5000="Silver")*($D$8:$D$5000=$D27)*(AR$8:AR$5000>0),AR$8:AR$5000)),0,AR27)) -> 0 | DH27: =IF(OR($H27<>"Silver",AS27=0),0,IF(AS27=MIN(IF(($H$8:$H$5000="Silver")*($D$8:$D$5000=$D27)*(AS$8:AS$5000>0),AS$8:AS$5000)),0,AS27)) -> 0 | DI27: =IF(OR($H27<>"Silver",AT27=0),0,IF(AT27=MIN(IF(($H$8:$H$5000="Silver")*($D$8:$D$5000=$D27)*(AT$8:AT$5000>0),AT$8:AT$5000)),0,AT27)) -> 0 | DJ27: =IF(OR($H27<>"Silver",AU27=0),0,IF(AU27=MIN(IF(($H$8:$H$5000="Silver")*($D$8:$D$5000=$D27)*(AU$8:AU$5000>0),AU$8:AU$5000)),0,AU27)) -> 0 | DK27: =IF(OR($H27<>"Silver",AV27=0),0,IF(AV27=MIN(IF(($H$8:$H$5000="Silver")*($D$8:$D$5000=$D27)*(AV$8:AV$5000>0),AV$8:AV$5000)),0,AV27)) -> 0 | DL27: =IF(OR($H27<>"Silver",AW27=0),0,IF(AW27=MIN(IF(($H$8:$H$5000="Silver")*($D$8:$D$5000=$D27)*(AW$8:AW$5000>0),AW$8:AW$5000)),0,AW27)) -> 0 | DM27: =IF(OR($H27<>"Silver",AX27=0),0,IF(AX27=MIN(IF(($H$8:$H$5000="Silver")*($D$8:$D$5000=$D27)*(AX$8:AX$5000>0),AX$8:AX$5000)),0,AX27)) -> 0 | DN27: =IF(OR($H27<>"Silver",AY27=0),0,IF(AY27=MIN(IF(($H$8:$H$5000="Silver")*($D$8:$D$5000=$D27)*(AY$8:AY$5000>0),AY$8:AY$5000)),0,AY27)) -> 0 | DO27: =IF(OR($H27<>"Silver",AZ27=0),0,IF(AZ27=MIN(IF(($H$8:$H$5000="Silver")*($D$8:$D$5000=$D27)*(AZ$8:AZ$5000>0),AZ$8:AZ$5000)),0,AZ27)) -> 0 | DP27: =IF(OR($H27<>"Silver",BA27=0),0,IF(BA27=MIN(IF(($H$8:$H$5000="Silver")*($D$8:$D$5000=$D27)*(BA$8:BA$5000>0),BA$8:BA$5000)),0,BA27)) -> 0 | DQ27: =IF(OR($H27<>"Silver",BB27=0),0,IF(BB27=MIN(IF(($H$8:$H$5000="Silver")*($D$8:$D$5000=$D27)*(BB$8:BB$5000>0),BB$8:BB$5000)),0,BB27)) -> 0 | DR27: =IF(OR($H27<>"Silver",BC27=0),0,IF(BC27=MIN(IF(($H$8:$H$5000="Silver")*($D$8:$D$5000=$D27)*(BC$8:BC$5000>0),BC$8:BC$5000)),0,BC27)) -> 0 | DS27: =IF(OR($H27<>"Silver",BD27=0),0,IF(BD27=MIN(IF(($H$8:$H$5000="Silver")*($D$8:$D$5000=$D27)*(BD$8:BD$5000>0),BD$8:BD$5000)),0,BD27)) -> 0 | DT27: =IF(OR($H27<>"Silver",BE27=0),0,IF(BE27=MIN(IF(($H$8:$H$5000="Silver")*($D$8:$D$5000=$D27)*(BE$8:BE$5000>0),BE$8:BE$5000)),0,BE27)) -> 0 | DU27: =IF(OR($H27<>"Silver",BF27=0),0,IF(BF27=MIN(IF(($H$8:$H$5000="Silver")*($D$8:$D$5000=$D27)*(BF$8:BF$5000>0),BF$8:BF$5000)),0,BF27)) -> 0 | DV27: =IF(OR($H27<>"Silver",BG27=0),0,IF(BG27=MIN(IF(($H$8:$H$5000="Silver")*($D$8:$D$5000=$D27)*(BG$8:BG$5000>0),BG$8:BG$5000)),0,BG27)) -> 0 | DW27: =IF(OR($H27<>"Silver",BH27=0),0,IF(BH27=MIN(IF(($H$8:$H$5000="Silver")*($D$8:$D$5000=$D27)*(BH$8:BH$5000>0),BH$8:BH$5000)),0,BH27)) -> 0 | DX27: =IF(OR($H27<>"Silver",BI27=0),0,IF(BI27=MIN(IF(($H$8:$H$5000="Silver")*($D$8:$D$5000=$D27)*(BI$8:BI$5000>0),BI$8:BI$5000)),0,BI27)) -> 0 | DY27: =IF(OR($H27<>"Silver",BJ27=0),0,IF(BJ27=MIN(IF(($H$8:$H$5000="Silver")*($D$8:$D$5000=$D27)*(BJ$8:BJ$5000>0),BJ$8:BJ$5000)),0,BJ27)) -> 0 | DZ27: =IF(OR($H27<>"Silver",BK27=0),0,IF(BK27=MIN(IF(($H$8:$H$5000="Silver")*($D$8:$D$5000=$D27)*(BK$8:BK$5000>0),BK$8:BK$5000)),0,BK27)) -> 0 | EA27: =IF(OR($H27<>"Silver",BL27=0),0,IF(BL27=MIN(IF(($H$8:$H$5000="Silver")*($D$8:$D$5000=$D27)*(BL$8:BL$5000>0),BL$8:BL$5000)),0,BL27)) -> 0 | EB27: =IF(OR($H27<>"Silver",BM27=0),0,IF(BM27=MIN(IF(($H$8:$H$5000="Silver")*($D$8:$D$5000=$D27)*(BM$8:BM$5000>0),BM$8:BM$5000)),0,BM27)) -> 0 | EC27: =IF(OR($H27<>"Silver",BN27=0),0,IF(BN27=MIN(IF(($H$8:$H$5000="Silver")*($D$8:$D$5000=$D27)*(BN$8:BN$5000>0),BN$8:BN$5000)),0,BN27)) -> 0 | ED27: =IF(OR($H27<>"Silver",BO27=0),0,IF(BO27=MIN(IF(($H$8:$H$5000="Silver")*($D$8:$D$5000=$D27)*(BO$8:BO$5000>0),BO$8:BO$5000)),0,BO27)) -> 0 | EE27: =IF(OR($H27<>"Silver",BP27=0),0,IF(BP27=MIN(IF(($H$8:$H$5000="Silver")*($D$8:$D$5000=$D27)*(BP$8:BP$5000>0),BP$8:BP$5000)),0,BP27)) -> 0 | EF27: =IF(OR($H27<>"Silver",BQ27=0),0,IF(BQ27=MIN(IF(($H$8:$H$5000="Silver")*($D$8:$D$5000=$D27)*(BQ$8:BQ$5000>0),BQ$8:BQ$5000)),0,BQ27)) -> 0 | EG27: =IF(OR($H27<>"Silver",BR27=0),0,IF(BR27=MIN(IF(($H$8:$H$5000="Silver")*($D$8:$D$5000=$D27)*(BR$8:BR$5000>0),BR$8:BR$5000)),0,BR27)) -> 0 | EH27: =IF(OR($H27<>"Silver",BS27=0),0,IF(BS27=MIN(IF(($H$8:$H$5000="Silver")*($D$8:$D$5000=$D27)*(BS$8:BS$5000>0),BS$8:BS$5000)),0,BS27)) -> 0 | EI27: =IF(OR($H27<>"Silver",BT27=0),0,IF(BT27=MIN(IF(($H$8:$H$5000="Silver")*($D$8:$D$5000=$D27)*(BT$8:BT$5000>0),BT$8:BT$5000)),0,BT27)) -> 0 | EJ27: =IF(OR($H27<>"Silver",BU27=0),0,IF(BU27=MIN(IF(($H$8:$H$5000="Silver")*($D$8:$D$5000=$D27)*(BU$8:BU$5000>0),BU$8:BU$5000)),0,BU27)) -> 0 | EK27: =IF(OR($H27<>"Silver",BV27=0),0,IF(BV27=MIN(IF(($H$8:$H$5000="Silver")*($D$8:$D$5000=$D27)*(BV$8:BV$5000>0),BV$8:BV$5000)),0,BV27)) -> 0 | EL27: =IF(OR($H27<>"Silver",BW27=0),0,IF(BW27=MIN(IF(($H$8:$H$5000="Silver")*($D$8:$D$5000=$D27)*(BW$8:BW$5000>0),BW$8:BW$5000)),0,BW27)) -> 0 | EM27: =IF(OR($H27<>"Silver",BX27=0),0,IF(BX27=MIN(IF(($H$8:$H$5000="Silver")*($D$8:$D$5000=$D27)*(BX$8:BX$5000>0),BX$8:BX$5000)),0,BX27)) -> 0 | EN27: =IF(OR($H27<>"Silver",BY27=0),0,IF(BY27=MIN(IF(($H$8:$H$5000="Silver")*($D$8:$D$5000=$D27)*(BY$8:BY$5000>0),BY$8:BY$5000)),0,BY27)) -> 0
B28: UPMC | C28: UPMC Health Options, Inc. | D28: Individual | E28: 16322PA0040025 | F28: UPMC Advantage Silver HSA $2,600/20% - Premium Network | G28: PPO | H28: Silver | I28: On/Off | J28: Columbia, Lehigh, Mifflin, Montour, Northampton, Northumberland, Schuylkill, Snyder, Union | K28: 233.26 | L28: 233.26 | M28: 233.26 | N28: 233.26 | O28: 233.26 | P28: 233.26 | Q28: 233.26 | R28: 233.26 | S28: 233.26 | T28: 233.26 | U28: 233.26 | V28: 0 | W28: 0 | X28: 0 | Y28: 0 | Z28: 0 | AA28: 0 | AB28: 0 | AC28: 0 | AD28: 0 | AE28: 0 | AF28: 0 | AG28: 0 | AH28: 0 | AI28: 233.26 | AJ28: 233.26 | AK28: 233.26 | AL28: 233.26 | AM28: 233.26 | AN28: 233.26 | AO28: 233.26 | AP28: 233.26 | AQ28: 233.26 | AR28: 233.26 | AS28: 233.26 | AT28: 233.26 | AU28: 233.26 | AV28: 233.26 | AW28: 233.26 | AX28: 233.26 | AY28: 233.26 | AZ28: 233.26 | BA28: 0 | BB28: 0 | BC28: 0 | BD28: 0 | BE28: 0 | BF28: 0 | BG28: 0 | BH28: 0 | BI28: 0 | BJ28: 0 | BK28: 0 | BL28: 0 | BM28: 0 | BN28: 0 | BO28: 0 | BP28: 0 | BQ28: 0 | BR28: 0 | BS28: 0 | BT28: 0 | BU28: 0 | BV28: 0 | BW28: 0 | BX28: 0 | BY28: 0 | BZ28: =IF(OR($H28<>"Silver",K28=0),0,IF(K28=MIN(IF(($H$8:$H$5000="Silver")*($D$8:$D$5000=$D28)*(K$8:K$5000>0),K$8:K$5000)),0,K28)) -> 233.26 | CA28: =IF(OR($H28<>"Silver",L28=0),0,IF(L28=MIN(IF(($H$8:$H$5000="Silver")*($D$8:$D$5000=$D28)*(L$8:L$5000>0),L$8:L$5000)),0,L28)) -> 233.26 | CB28: =IF(OR($H28<>"Silver",M28=0),0,IF(M28=MIN(IF(($H$8:$H$5000="Silver")*($D$8:$D$5000=$D28)*(M$8:M$5000>0),M$8:M$5000)),0,M28)) -> 233.26 | CC28: =IF(OR($H28<>"Silver",N28=0),0,IF(N28=MIN(IF(($H$8:$H$5000="Silver")*($D$8:$D$5000=$D28)*(N$8:N$5000>0),N$8:N$5000)),0,N28)) -> 233.26 | CD28: =IF(OR($H28<>"Silver",O28=0),0,IF(O28=MIN(IF(($H$8:$H$5000="Silver")*($D$8:$D$5000=$D28)*(O$8:O$5000>0),O$8:O$5000)),0,O28)) -> 233.26 | CE28: =IF(OR($H28<>"Silver",P28=0),0,IF(P28=MIN(IF(($H$8:$H$5000="Silver")*($D$8:$D$5000=$D28)*(P$8:P$5000>0),P$8:P$5000)),0,P28)) -> 233.26 | CF28: =IF(OR($H28<>"Silver",Q28=0),0,IF(Q28=MIN(IF(($H$8:$H$5000="Silver")*($D$8:$D$5000=$D28)*(Q$8:Q$5000>0),Q$8:Q$5000)),0,Q28)) -> 233.26 | CG28: =IF(OR($H28<>"Silver",R28=0),0,IF(R28=MIN(IF(($H$8:$H$5000="Silver")*($D$8:$D$5000=$D28)*(R$8:R$5000>0),R$8:R$5000)),0,R28)) -> 233.26 | CH28: =IF(OR($H28<>"Silver",S28=0),0,IF(S28=MIN(IF(($H$8:$H$5000="Silver")*($D$8:$D$5000=$D28)*(S$8:S$5000>0),S$8:S$5000)),0,S28)) -> 233.26 | CI28: =IF(OR($H28<>"Silver",T28=0),0,IF(T28=MIN(IF(($H$8:$H$5000="Silver")*($D$8:$D$5000=$D28)*(T$8:T$5000>0),T$8:T$5000)),0,T28)) -> 233.26 | CJ28: =IF(OR($H28<>"Silver",U28=0),0,IF(U28=MIN(IF(($H$8:$H$5000="Silver")*($D$8:$D$5000=$D28)*(U$8:U$5000>0),U$8:U$5000)),0,U28)) -> 233.26 | CK28: =IF(OR($H28<>"Silver",V28=0),0,IF(V28=MIN(IF(($H$8:$H$5000="Silver")*($D$8:$D$5000=$D28)*(V$8:V$5000>0),V$8:V$5000)),0,V28)) -> 0 | CL28: =IF(OR($H28<>"Silver",W28=0),0,IF(W28=MIN(IF(($H$8:$H$5000="Silver")*($D$8:$D$5000=$D28)*(W$8:W$5000>0),W$8:W$5000)),0,W28)) -> 0 | CM28: =IF(OR($H28<>"Silver",X28=0),0,IF(X28=MIN(IF(($H$8:$H$5000="Silver")*($D$8:$D$5000=$D28)*(X$8:X$5000>0),X$8:X$5000)),0,X28)) -> 0 | CN28: =IF(OR($H28<>"Silver",Y28=0),0,IF(Y28=MIN(IF(($H$8:$H$5000="Silver")*($D$8:$D$5000=$D28)*(Y$8:Y$5000>0),Y$8:Y$5000)),0,Y28)) -> 0 | CO28: =IF(OR($H28<>"Silver",Z28=0),0,IF(Z28=MIN(IF(($H$8:$H$5000="Silver")*($D$8:$D$5000=$D28)*(Z$8:Z$5000>0),Z$8:Z$5000)),0,Z28)) -> 0 | CP28: =IF(OR($H28<>"Silver",AA28=0),0,IF(AA28=MIN(IF(($H$8:$H$5000="Silver")*($D$8:$D$5000=$D28)*(AA$8:AA$5000>0),AA$8:AA$5000)),0,AA28)) -> 0 | CQ28: =IF(OR($H28<>"Silver",AB28=0),0,IF(AB28=MIN(IF(($H$8:$H$5000="Silver")*($D$8:$D$5000=$D28)*(AB$8:AB$5000>0),AB$8:AB$5000)),0,AB28)) -> 0 | CR28: =IF(OR($H28<>"Silver",AC28=0),0,IF(AC28=MIN(IF(($H$8:$H$5000="Silver")*($D$8:$D$5000=$D28)*(AC$8:AC$5000>0),AC$8:AC$5000)),0,AC28)) -> 0 | CS28: =IF(OR($H28<>"Silver",AD28=0),0,IF(AD28=MIN(IF(($H$8:$H$5000="Silver")*($D$8:$D$5000=$D28)*(AD$8:AD$5000>0),AD$8:AD$5000)),0,AD28)) -> 0 | CT28: =IF(OR($H28<>"Silver",AE28=0),0,IF(AE28=MIN(IF(($H$8:$H$5000="Silver")*($D$8:$D$5000=$D28)*(AE$8:AE$5000>0),AE$8:AE$5000)),0,AE28)) -> 0 | CU28: =IF(OR($H28<>"Silver",AF28=0),0,IF(AF28=MIN(IF(($H$8:$H$5000="Silver")*($D$8:$D$5000=$D28)*(AF$8:AF$5000>0),AF$8:AF$5000)),0,AF28)) -> 0 | CV28: =IF(OR($H28<>"Silver",AG28=0),0,IF(AG28=MIN(IF(($H$8:$H$5000="Silver")*($D$8:$D$5000=$D28)*(AG$8:AG$5000>0),AG$8:AG$5000)),0,AG28)) -> 0 | CW28: =IF(OR($H28<>"Silver",AH28=0),0,IF(AH28=MIN(IF(($H$8:$H$5000="Silver")*($D$8:$D$5000=$D28)*(AH$8:AH$5000>0),AH$8:AH$5000)),0,AH28)) -> 0 | CX28: =IF(OR($H28<>"Silver",AI28=0),0,IF(AI28=MIN(IF(($H$8:$H$5000="Silver")*($D$8:$D$5000=$D28)*(AI$8:AI$5000>0),AI$8:AI$5000)),0,AI28)) -> 233.26 | CY28: =IF(OR($H28<>"Silver",AJ28=0),0,IF(AJ28=MIN(IF(($H$8:$H$5000="Silver")*($D$8:$D$5000=$D28)*(AJ$8:AJ$5000>0),AJ$8:AJ$5000)),0,AJ28)) -> 233.26 | CZ28: =IF(OR($H28<>"Silver",AK28=0),0,IF(AK28=MIN(IF(($H$8:$H$5000="Silver")*($D$8:$D$5000=$D28)*(AK$8:AK$5000>0),AK$8:AK$5000)),0,AK28)) -> 233.26 | DA28: =IF(OR($H28<>"Silver",AL28=0),0,IF(AL28=MIN(IF(($H$8:$H$5000="Silver")*($D$8:$D$5000=$D28)*(AL$8:AL$5000>0),AL$8:AL$5000)),0,AL28)) -> 233.26 | DB28: =IF(OR($H28<>"Silver",AM28=0),0,IF(AM28=MIN(IF(($H$8:$H$5000="Silver")*($D$8:$D$5000=$D28)*(AM$8:AM$5000>0),AM$8:AM$5000)),0,AM28)) -> 233.26 | DC28: =IF(OR($H28<>"Silver",AN28=0),0,IF(AN28=MIN(IF(($H$8:$H$5000="Silver")*($D$8:$D$5000=$D28)*(AN$8:AN$5000>0),AN$8:AN$5000)),0,AN28)) -> 233.26 | DD28: =IF(OR($H28<>"Silver",AO28=0),0,IF(AO28=MIN(IF(($H$8:$H$5000="Silver")*($D$8:$D$5000=$D28)*(AO$8:AO$5000>0),AO$8:AO$5000)),0,AO28)) -> 233.26 | DE28: =IF(OR($H28<>"Silver",AP28=0),0,IF(AP28=MIN(IF(($H$8:$H$5000="Silver")*($D$8:$D$5000=$D28)*(AP$8:AP$5000>0),AP$8:AP$5000)),0,AP28)) -> 233.26 | DF28: =IF(OR($H28<>"Silver",AQ28=0),0,IF(AQ28=MIN(IF(($H$8:$H$5000="Silver")*($D$8:$D$5000=$D28)*(AQ$8:AQ$5000>0),AQ$8:AQ$5000)),0,AQ28)) -> 233.26 | DG28: =IF(OR($H28<>"Silver",AR28=0),0,IF(AR28=MIN(IF(($H$8:$H$5000="Silver")*($D$8:$D$5000=$D28)*(AR$8:AR$5000>0),AR$8:AR$5000)),0,AR28)) -> 233.26 | DH28: =IF(OR($H28<>"Silver",AS28=0),0,IF(AS28=MIN(IF(($H$8:$H$5000="Silver")*($D$8:$D$5000=$D28)*(AS$8:AS$5000>0),AS$8:AS$5000)),0,AS28)) -> 233.26 | DI28: =IF(OR($H28<>"Silver",AT28=0),0,IF(AT28=MIN(IF(($H$8:$H$5000="Silver")*($D$8:$D$5000=$D28)*(AT$8:AT$5000>0),AT$8:AT$5000)),0,AT28)) -> 233.26 | DJ28: =IF(OR($H28<>"Silver",AU28=0),0,IF(AU28=MIN(IF(($H$8:$H$5000="Silver")*($D$8:$D$5000=$D28)*(AU$8:AU$5000>0),AU$8:AU$5000)),0,AU28)) -> 233.26 | DK28: =IF(OR($H28<>"Silver",AV28=0),0,IF(AV28=MIN(IF(($H$8:$H$5000="Silver")*($D$8:$D$5000=$D28)*(AV$8:AV$5000>0),AV$8:AV$5000)),0,AV28)) -> 233.26 | DL28: =IF(OR($H28<>"Silver",AW28=0),0,IF(AW28=MIN(IF(($H$8:$H$5000="Silver")*($D$8:$D$5000=$D28)*(AW$8:AW$5000>0),AW$8:AW$5000)),0,AW28)) -> 233.26 | DM28: =IF(OR($H28<>"Silver",AX28=0),0,IF(AX28=MIN(IF(($H$8:$H$5000="Silver")*($D$8:$D$5000=$D28)*(AX$8:AX$5000>0),AX$8:AX$5000)),0,AX28)) -> 233.26 | DN28: =IF(OR($H28<>"Silver",AY28=0),0,IF(AY28=MIN(IF(($H$8:$H$5000="Silver")*($D$8:$D$5000=$D28)*(AY$8:AY$5000>0),AY$8:AY$5000)),0,AY28)) -> 233.26 | DO28: =IF(OR($H28<>"Silver",AZ28=0),0,IF(AZ28=MIN(IF(($H$8:$H$5000="Silver")*($D$8:$D$5000=$D28)*(AZ$8:AZ$5000>0),AZ$8:AZ$5000)),0,AZ28)) -> 233.26 | DP28: =IF(OR($H28<>"Silver",BA28=0),0,IF(BA28=MIN(IF(($H$8:$H$5000="Silver")*($D$8:$D$5000=$D28)*(BA$8:BA$5000>0),BA$8:BA$5000)),0,BA28)) -> 0 | DQ28: =IF(OR($H28<>"Silver",BB28=0),0,IF(BB28=MIN(IF(($H$8:$H$5000="Silver")*($D$8:$D$5000=$D28)*(BB$8:BB$5000>0),BB$8:BB$5000)),0,BB28)) -> 0 | DR28: =IF(OR($H28<>"Silver",BC28=0),0,IF(BC28=MIN(IF(($H$8:$H$5000="Silver")*($D$8:$D$5000=$D28)*(BC$8:BC$5000>0),BC$8:BC$5000)),0,BC28)) -> 0 | DS28: =IF(OR($H28<>"Silver",BD28=0),0,IF(BD28=MIN(IF(($H$8:$H$5000="Silver")*($D$8:$D$5000=$D28)*(BD$8:BD$5000>0),BD$8:BD$5000)),0,BD28)) -> 0 | DT28: =IF(OR($H28<>"Silver",BE28=0),0,IF(BE28=MIN(IF(($H$8:$H$5000="Silver")*($D$8:$D$5000=$D28)*(BE$8:BE$5000>0),BE$8:BE$5000)),0,BE28)) -> 0 | DU28: =IF(OR($H28<>"Silver",BF28=0),0,IF(BF28=MIN(IF(($H$8:$H$5000="Silver")*($D$8:$D$5000=$D28)*(BF$8:BF$5000>0),BF$8:BF$5000)),0,BF28)) -> 0 | DV28: =IF(OR($H28<>"Silver",BG28=0),0,IF(BG28=MIN(IF(($H$8:$H$5000="Silver")*($D$8:$D$5000=$D28)*(BG$8:BG$5000>0),BG$8:BG$5000)),0,BG28)) -> 0 | DW28: =IF(OR($H28<>"Silver",BH28=0),0,IF(BH28=MIN(IF(($H$8:$H$5000="Silver")*($D$8:$D$5000=$D28)*(BH$8:BH$5000>0),BH$8:BH$5000)),0,BH28)) -> 0 | DX28: =IF(OR($H28<>"Silver",BI28=0),0,IF(BI28=MIN(IF(($H$8:$H$5000="Silver")*($D$8:$D$5000=$D28)*(BI$8:BI$5000>0),BI$8:BI$5000)),0,BI28)) -> 0 | DY28: =IF(OR($H28<>"Silver",BJ28=0),0,IF(BJ28=MIN(IF(($H$8:$H$5000="Silver")*($D$8:$D$5000=$D28)*(BJ$8:BJ$5000>0),BJ$8:BJ$5000)),0,BJ28)) -> 0 | DZ28: =IF(OR($H28<>"Silver",BK28=0),0,IF(BK28=MIN(IF(($H$8:$H$5000="Silver")*($D$8:$D$5000=$D28)*(BK$8:BK$5000>0),BK$8:BK$5000)),0,BK28)) -> 0 | EA28: =IF(OR($H28<>"Silver",BL28=0),0,IF(BL28=MIN(IF(($H$8:$H$5000="Silver")*($D$8:$D$5000=$D28)*(BL$8:BL$5000>0),BL$8:BL$5000)),0,BL28)) -> 0 | EB28: =IF(OR($H28<>"Silver",BM28=0),0,IF(BM28=MIN(IF(($H$8:$H$5000="Silver")*($D$8:$D$5000=$D28)*(BM$8:BM$5000>0),BM$8:BM$5000)),0,BM28)) -> 0 | EC28: =IF(OR($H28<>"Silver",BN28=0),0,IF(BN28=MIN(IF(($H$8:$H$5000="Silver")*($D$8:$D$5000=$D28)*(BN$8:BN$5000>0),BN$8:BN$5000)),0,BN28)) -> 0 | ED28: =IF(OR($H28<>"Silver",BO28=0),0,IF(BO28=MIN(IF(($H$8:$H$5000="Silver")*($D$8:$D$5000=$D28)*(BO$8:BO$5000>0),BO$8:BO$5000)),0,BO28)) -> 0 | EE28: =IF(OR($H28<>"Silver",BP28=0),0,IF(BP28=MIN(IF(($H$8:$H$5000="Silver")*($D$8:$D$5000=$D28)*(BP$8:BP$5000>0),BP$8:BP$5000)),0,BP28)) -> 0 | EF28: =IF(OR($H28<>"Silver",BQ28=0),0,IF(BQ28=MIN(IF(($H$8:$H$5000="Silver")*($D$8:$D$5000=$D28)*(BQ$8:BQ$5000>0),BQ$8:BQ$5000)),0,BQ28)) -> 0 | EG28: =IF(OR($H28<>"Silver",BR28=0),0,IF(BR28=MIN(IF(($H$8:$H$5000="Silver")*($D$8:$D$5000=$D28)*(BR$8:BR$5000>0),BR$8:BR$5000)),0,BR28)) -> 0 | EH28: =IF(OR($H28<>"Silver",BS28=0),0,IF(BS28=MIN(IF(($H$8:$H$5000="Silver")*($D$8:$D$5000=$D28)*(BS$8:BS$5000>0),BS$8:BS$5000)),0,BS28)) -> 0 | EI28: =IF(OR($H28<>"Silver",BT28=0),0,IF(BT28=MIN(IF(($H$8:$H$5000="Silver")*($D$8:$D$5000=$D28)*(BT$8:BT$5000>0),BT$8:BT$5000)),0,BT28)) -> 0 | EJ28: =IF(OR($H28<>"Silver",BU28=0),0,IF(BU28=MIN(IF(($H$8:$H$5000="Silver")*($D$8:$D$5000=$D28)*(BU$8:BU$5000>0),BU$8:BU$5000)),0,BU28)) -> 0 | EK28: =IF(OR($H28<>"Silver",BV28=0),0,IF(BV28=MIN(IF(($H$8:$H$5000="Silver")*($D$8:$D$5000=$D28)*(BV$8:BV$5000>0),BV$8:BV$5000)),0,BV28)) -> 0 | EL28: =IF(OR($H28<>"Silver",BW28=0),0,IF(BW28=MIN(IF(($H$8:$H$5000="Silver")*($D$8:$D$5000=$D28)*(BW$8:BW$5000>0),BW$8:BW$5000)),0,BW28)) -> 0 | EM28: =IF(OR($H28<>"Silver",BX28=0),0,IF(BX28=MIN(IF(($H$8:$H$5000="Silver")*($D$8:$D$5000=$D28)*(BX$8:BX$5000>0),BX$8:BX$5000)),0,BX28)) -> 0 | EN28: =IF(OR($H28<>"Silver",BY28=0),0,IF(BY28=MIN(IF(($H$8:$H$5000="Silver")*($D$8:$D$5000=$D28)*(BY$8:BY$5000>0),BY$8:BY$5000)),0,BY28)) -> 0
B29: UPMC | C29: UPMC Health Options, Inc. | D29: Individual | E29: 16322PA0040026 | F29: UPMC Advantage Catastrophic $7,150/$0 - Premium Network | G29: PPO | H29: Catastrophic | I29: On/Off | J29: Columbia, Lehigh, Mifflin, Montour, Northampton, Northumberland, Schuylkill, Snyder, Union | K29: 177.48 | L29: 177.48 | M29: 177.48 | N29: 177.48 | O29: 177.48 | P29: 177.48 | Q29: 177.48 | R29: 177.48 | S29: 177.48 | T29: 177.48 | U29: 177.48 | V29: 0 | W29: 0 | X29: 0 | Y29: 0 | Z29: 0 | AA29: 0 | AB29: 0 | AC29: 0 | AD29: 0 | AE29: 0 | AF29: 0 | AG29: 0 | AH29: 0 | AI29: 177.48 | AJ29: 177.48 | AK29: 177.48 | AL29: 177.48 | AM29: 177.48 | AN29: 177.48 | AO29: 177.48 | AP29: 177.48 | AQ29: 177.48 | AR29: 177.48 | AS29: 177.48 | AT29: 177.48 | AU29: 177.48 | AV29: 177.48 | AW29: 177.48 | AX29: 177.48 | AY29: 177.48 | AZ29: 177.48 | BA29: 0 | BB29: 0 | BC29: 0 | BD29: 0 | BE29: 0 | BF29: 0 | BG29: 0 | BH29: 0 | BI29: 0 | BJ29: 0 | BK29: 0 | BL29: 0 | BM29: 0 | BN29: 0 | BO29: 0 | BP29: 0 | BQ29: 0 | BR29: 0 | BS29: 0 | BT29: 0 | BU29: 0 | BV29: 0 | BW29: 0 | BX29: 0 | BY29: 0 | BZ29: =IF(OR($H29<>"Silver",K29=0),0,IF(K29=MIN(IF(($H$8:$H$5000="Silver")*($D$8:$D$5000=$D29)*(K$8:K$5000>0),K$8:K$5000)),0,K29)) -> 0 | CA29: =IF(OR($H29<>"Silver",L29=0),0,IF(L29=MIN(IF(($H$8:$H$5000="Silver")*($D$8:$D$5000=$D29)*(L$8:L$5000>0),L$8:L$5000)),0,L29)) -> 0 | CB29: =IF(OR($H29<>"Silver",M29=0),0,IF(M29=MIN(IF(($H$8:$H$5000="Silver")*($D$8:$D$5000=$D29)*(M$8:M$5000>0),M$8:M$5000)),0,M29)) -> 0 | CC29: =IF(OR($H29<>"Silver",N29=0),0,IF(N29=MIN(IF(($H$8:$H$5000="Silver")*($D$8:$D$5000=$D29)*(N$8:N$5000>0),N$8:N$5000)),0,N29)) -> 0 | CD29: =IF(OR($H29<>"Silver",O29=0),0,IF(O29=MIN(IF(($H$8:$H$5000="Silver")*($D$8:$D$5000=$D29)*(O$8:O$5000>0),O$8:O$5000)),0,O29)) -> 0 | CE29: =IF(OR($H29<>"Silver",P29=0),0,IF(P29=MIN(IF(($H$8:$H$5000="Silver")*($D$8:$D$5000=$D29)*(P$8:P$5000>0),P$8:P$5000)),0,P29)) -> 0 | CF29: =IF(OR($H29<>"Silver",Q29=0),0,IF(Q29=MIN(IF(($H$8:$H$5000="Silver")*($D$8:$D$5000=$D29)*(Q$8:Q$5000>0),Q$8:Q$5000)),0,Q29)) -> 0 | CG29: =IF(OR($H29<>"Silver",R29=0),0,IF(R29=MIN(IF(($H$8:$H$5000="Silver")*($D$8:$D$5000=$D29)*(R$8:R$5000>0),R$8:R$5000)),0,R29)) -> 0 | CH29: =IF(OR($H29<>"Silver",S29=0),0,IF(S29=MIN(IF(($H$8:$H$5000="Silver")*($D$8:$D$5000=$D29)*(S$8:S$5000>0),S$8:S$5000)),0,S29)) -> 0 | CI29: =IF(OR($H29<>"Silver",T29=0),0,IF(T29=MIN(IF(($H$8:$H$5000="Silver")*($D$8:$D$5000=$D29)*(T$8:T$5000>0),T$8:T$5000)),0,T29)) -> 0 | CJ29: =IF(OR($H29<>"Silver",U29=0),0,IF(U29=MIN(IF(($H$8:$H$5000="Silver")*($D$8:$D$5000=$D29)*(U$8:U$5000>0),U$8:U$5000)),0,U29)) -> 0 | CK29: =IF(OR($H29<>"Silver",V29=0),0,IF(V29=MIN(IF(($H$8:$H$5000="Silver")*($D$8:$D$5000=$D29)*(V$8:V$5000>0),V$8:V$5000)),0,V29)) -> 0 | CL29: =IF(OR($H29<>"Silver",W29=0),0,IF(W29=MIN(IF(($H$8:$H$5000="Silver")*($D$8:$D$5000=$D29)*(W$8:W$5000>0),W$8:W$5000)),0,W29)) -> 0 | CM29: =IF(OR($H29<>"Silver",X29=0),0,IF(X29=MIN(IF(($H$8:$H$5000="Silver")*($D$8:$D$5000=$D29)*(X$8:X$5000>0),X$8:X$5000)),0,X29)) -> 0 | CN29: =IF(OR($H29<>"Silver",Y29=0),0,IF(Y29=MIN(IF(($H$8:$H$5000="Silver")*($D$8:$D$5000=$D29)*(Y$8:Y$5000>0),Y$8:Y$5000)),0,Y29)) -> 0 | CO29: =IF(OR($H29<>"Silver",Z29=0),0,IF(Z29=MIN(IF(($H$8:$H$5000="Silver")*($D$8:$D$5000=$D29)*(Z$8:Z$5000>0),Z$8:Z$5000)),0,Z29)) -> 0 | CP29: =IF(OR($H29<>"Silver",AA29=0),0,IF(AA29=MIN(IF(($H$8:$H$5000="Silver")*($D$8:$D$5000=$D29)*(AA$8:AA$5000>0),AA$8:AA$5000)),0,AA29)) -> 0 | CQ29: =IF(OR($H29<>"Silver",AB29=0),0,IF(AB29=MIN(IF(($H$8:$H$5000="Silver")*($D$8:$D$5000=$D29)*(AB$8:AB$5000>0),AB$8:AB$5000)),0,AB29)) -> 0 | CR29: =IF(OR($H29<>"Silver",AC29=0),0,IF(AC29=MIN(IF(($H$8:$H$5000="Silver")*($D$8:$D$5000=$D29)*(AC$8:AC$5000>0),AC$8:AC$5000)),0,AC29)) -> 0 | CS29: =IF(OR($H29<>"Silver",AD29=0),0,IF(AD29=MIN(IF(($H$8:$H$5000="Silver")*($D$8:$D$5000=$D29)*(AD$8:AD$5000>0),AD$8:AD$5000)),0,AD29)) -> 0 | CT29: =IF(OR($H29<>"Silver",AE29=0),0,IF(AE29=MIN(IF(($H$8:$H$5000="Silver")*($D$8:$D$5000=$D29)*(AE$8:AE$5000>0),AE$8:AE$5000)),0,AE29)) -> 0 | CU29: =IF(OR($H29<>"Silver",AF29=0),0,IF(AF29=MIN(IF(($H$8:$H$5000="Silver")*($D$8:$D$5000=$D29)*(AF$8:AF$5000>0),AF$8:AF$5000)),0,AF29)) -> 0 | CV29: =IF(OR($H29<>"Silver",AG29=0),0,IF(AG29=MIN(IF(($H$8:$H$5000="Silver")*($D$8:$D$5000=$D29)*(AG$8:AG$5000>0),AG$8:AG$5000)),0,AG29)) -> 0 | CW29: =IF(OR($H29<>"Silver",AH29=0),0,IF(AH29=MIN(IF(($H$8:$H$5000="Silver")*($D$8:$D$5000=$D29)*(AH$8:AH$5000>0),AH$8:AH$5000)),0,AH29)) -> 0 | CX29: =IF(OR($H29<>"Silver",AI29=0),0,IF(AI29=MIN(IF(($H$8:$H$5000="Silver")*($D$8:$D$5000=$D29)*(AI$8:AI$5000>0),AI$8:AI$5000)),0,AI29)) -> 0 | CY29: =IF(OR($H29<>"Silver",AJ29=0),0,IF(AJ29=MIN(IF(($H$8:$H$5000="Silver")*($D$8:$D$5000=$D29)*(AJ$8:AJ$5000>0),AJ$8:AJ$5000)),0,AJ29)) -> 0 | CZ29: =IF(OR($H29<>"Silver",AK29=0),0,IF(AK29=MIN(IF(($H$8:$H$5000="Silver")*($D$8:$D$5000=$D29)*(AK$8:AK$5000>0),AK$8:AK$5000)),0,AK29)) -> 0 | DA29: =IF(OR($H29<>"Silver",AL29=0),0,IF(AL29=MIN(IF(($H$8:$H$5000="Silver")*($D$8:$D$5000=$D29)*(AL$8:AL$5000>0),AL$8:AL$5000)),0,AL29)) -> 0 | DB29: =IF(OR($H29<>"Silver",AM29=0),0,IF(AM29=MIN(IF(($H$8:$H$5000="Silver")*($D$8:$D$5000=$D29)*(AM$8:AM$5000>0),AM$8:AM$5000)),0,AM29)) -> 0 | DC29: =IF(OR($H29<>"Silver",AN29=0),0,IF(AN29=MIN(IF(($H$8:$H$5000="Silver")*($D$8:$D$5000=$D29)*(AN$8:AN$5000>0),AN$8:AN$5000)),0,AN29)) -> 0 | DD29: =IF(OR($H29<>"Silver",AO29=0),0,IF(AO29=MIN(IF(($H$8:$H$5000="Silver")*($D$8:$D$5000=$D29)*(AO$8:AO$5000>0),AO$8:AO$5000)),0,AO29)) -> 0 | DE29: =IF(OR($H29<>"Silver",AP29=0),0,IF(AP29=MIN(IF(($H$8:$H$5000="Silver")*($D$8:$D$5000=$D29)*(AP$8:AP$5000>0),AP$8:AP$5000)),0,AP29)) -> 0 | DF29: =IF(OR($H29<>"Silver",AQ29=0),0,IF(AQ29=MIN(IF(($H$8:$H$5000="Silver")*($D$8:$D$5000=$D29)*(AQ$8:AQ$5000>0),AQ$8:AQ$5000)),0,AQ29)) -> 0 | DG29: =IF(OR($H29<>"Silver",AR29=0),0,IF(AR29=MIN(IF(($H$8:$H$5000="Silver")*($D$8:$D$5000=$D29)*(AR$8:AR$5000>0),AR$8:AR$5000)),0,AR29)) -> 0 | DH29: =IF(OR($H29<>"Silver",AS29=0),0,IF(AS29=MIN(IF(($H$8:$H$5000="Silver")*($D$8:$D$5000=$D29)*(AS$8:AS$5000>0),AS$8:AS$5000)),0,AS29)) -> 0 | DI29: =IF(OR($H29<>"Silver",AT29=0),0,IF(AT29=MIN(IF(($H$8:$H$5000="Silver")*($D$8:$D$5000=$D29)*(AT$8:AT$5000>0),AT$8:AT$5000)),0,AT29)) -> 0 | DJ29: =IF(OR($H29<>"Silver",AU29=0),0,IF(AU29=MIN(IF(($H$8:$H$5000="Silver")*($D$8:$D$5000=$D29)*(AU$8:AU$5000>0),AU$8:AU$5000)),0,AU29)) -> 0 | DK29: =IF(OR($H29<>"Silver",AV29=0),0,IF(AV29=MIN(IF(($H$8:$H$5000="Silver")*($D$8:$D$5000=$D29)*(AV$8:AV$5000>0),AV$8:AV$5000)),0,AV29)) -> 0 | DL29: =IF(OR($H29<>"Silver",AW29=0),0,IF(AW29=MIN(IF(($H$8:$H$5000="Silver")*($D$8:$D$5000=$D29)*(AW$8:AW$5000>0),AW$8:AW$5000)),0,AW29)) -> 0 | DM29: =IF(OR($H29<>"Silver",AX29=0),0,IF(AX29=MIN(IF(($H$8:$H$5000="Silver")*($D$8:$D$5000=$D29)*(AX$8:AX$5000>0),AX$8:AX$5000)),0,AX29)) -> 0 | DN29: =IF(OR($H29<>"Silver",AY29=0),0,IF(AY29=MIN(IF(($H$8:$H$5000="Silver")*($D$8:$D$5000=$D29)*(AY$8:AY$5000>0),AY$8:AY$5000)),0,AY29)) -> 0 | DO29: =IF(OR($H29<>"Silver",AZ29=0),0,IF(AZ29=MIN(IF(($H$8:$H$5000="Silver")*($D$8:$D$5000=$D29)*(AZ$8:AZ$5000>0),AZ$8:AZ$5000)),0,AZ29)) -> 0 | DP29: =IF(OR($H29<>"Silver",BA29=0),0,IF(BA29=MIN(IF(($H$8:$H$5000="Silver")*($D$8:$D$5000=$D29)*(BA$8:BA$5000>0),BA$8:BA$5000)),0,BA29)) -> 0 | DQ29: =IF(OR($H29<>"Silver",BB29=0),0,IF(BB29=MIN(IF(($H$8:$H$5000="Silver")*($D$8:$D$5000=$D29)*(BB$8:BB$5000>0),BB$8:BB$5000)),0,BB29)) -> 0 | DR29: =IF(OR($H29<>"Silver",BC29=0),0,IF(BC29=MIN(IF(($H$8:$H$5000="Silver")*($D$8:$D$5000=$D29)*(BC$8:BC$5000>0),BC$8:BC$5000)),0,BC29)) -> 0 | DS29: =IF(OR($H29<>"Silver",BD29=0),0,IF(BD29=MIN(IF(($H$8:$H$5000="Silver")*($D$8:$D$5000=$D29)*(BD$8:BD$5000>0),BD$8:BD$5000)),0,BD29)) -> 0 | DT29: =IF(OR($H29<>"Silver",BE29=0),0,IF(BE29=MIN(IF(($H$8:$H$5000="Silver")*($D$8:$D$5000=$D29)*(BE$8:BE$5000>0),BE$8:BE$5000)),0,BE29)) -> 0 | DU29: =IF(OR($H29<>"Silver",BF29=0),0,IF(BF29=MIN(IF(($H$8:$H$5000="Silver")*($D$8:$D$5000=$D29)*(BF$8:BF$5000>0),BF$8:BF$5000)),0,BF29)) -> 0 | DV29: =IF(OR($H29<>"Silver",BG29=0),0,IF(BG29=MIN(IF(($H$8:$H$5000="Silver")*($D$8:$D$5000=$D29)*(BG$8:BG$5000>0),BG$8:BG$5000)),0,BG29)) -> 0 | DW29: =IF(OR($H29<>"Silver",BH29=0),0,IF(BH29=MIN(IF(($H$8:$H$5000="Silver")*($D$8:$D$5000=$D29)*(BH$8:BH$5000>0),BH$8:BH$5000)),0,BH29)) -> 0 | DX29: =IF(OR($H29<>"Silver",BI29=0),0,IF(BI29=MIN(IF(($H$8:$H$5000="Silver")*($D$8:$D$5000=$D29)*(BI$8:BI$5000>0),BI$8:BI$5000)),0,BI29)) -> 0 | DY29: =IF(OR($H29<>"Silver",BJ29=0),0,IF(BJ29=MIN(IF(($H$8:$H$5000="Silver")*($D$8:$D$5000=$D29)*(BJ$8:BJ$5000>0),BJ$8:BJ$5000)),0,BJ29)) -> 0 | DZ29: =IF(OR($H29<>"Silver",BK29=0),0,IF(BK29=MIN(IF(($H$8:$H$5000="Silver")*($D$8:$D$5000=$D29)*(BK$8:BK$5000>0),BK$8:BK$5000)),0,BK29)) -> 0 | EA29: =IF(OR($H29<>"Silver",BL29=0),0,IF(BL29=MIN(IF(($H$8:$H$5000="Silver")*($D$8:$D$5000=$D29)*(BL$8:BL$5000>0),BL$8:BL$5000)),0,BL29)) -> 0 | EB29: =IF(OR($H29<>"Silver",BM29=0),0,IF(BM29=MIN(IF(($H$8:$H$5000="Silver")*($D$8:$D$5000=$D29)*(BM$8:BM$5000>0),BM$8:BM$5000)),0,BM29)) -> 0 | EC29: =IF(OR($H29<>"Silver",BN29=0),0,IF(BN29=MIN(IF(($H$8:$H$5000="Silver")*($D$8:$D$5000=$D29)*(BN$8:BN$5000>0),BN$8:BN$5000)),0,BN29)) -> 0 | ED29: =IF(OR($H29<>"Silver",BO29=0),0,IF(BO29=MIN(IF(($H$8:$H$5000="Silver")*($D$8:$D$5000=$D29)*(BO$8:BO$5000>0),BO$8:BO$5000)),0,BO29)) -> 0 | EE29: =IF(OR($H29<>"Silver",BP29=0),0,IF(BP29=MIN(IF(($H$8:$H$5000="Silver")*($D$8:$D$5000=$D29)*(BP$8:BP$5000>0),BP$8:BP$5000)),0,BP29)) -> 0 | EF29: =IF(OR($H29<>"Silver",BQ29=0),0,IF(BQ29=MIN(IF(($H$8:$H$5000="Silver")*($D$8:$D$5000=$D29)*(BQ$8:BQ$5000>0),BQ$8:BQ$5000)),0,BQ29)) -> 0 | EG29: =IF(OR($H29<>"Silver",BR29=0),0,IF(BR29=MIN(IF(($H$8:$H$5000="Silver")*($D$8:$D$5000=$D29)*(BR$8:BR$5000>0),BR$8:BR$5000)),0,BR29)) -> 0 | EH29: =IF(OR($H29<>"Silver",BS29=0),0,IF(BS29=MIN(IF(($H$8:$H$5000="Silver")*($D$8:$D$5000=$D29)*(BS$8:BS$5000>0),BS$8:BS$5000)),0,BS29)) -> 0 | EI29: =IF(OR($H29<>"Silver",BT29=0),0,IF(BT29=MIN(IF(($H$8:$H$5000="Silver")*($D$8:$D$5000=$D29)*(BT$8:BT$5000>0),BT$8:BT$5000)),0,BT29)) -> 0 | EJ29: =IF(OR($H29<>"Silver",BU29=0),0,IF(BU29=MIN(IF(($H$8:$H$5000="Silver")*($D$8:$D$5000=$D29)*(BU$8:BU$5000>0),BU$8:BU$5000)),0,BU29)) -> 0 | EK29: =IF(OR($H29<>"Silver",BV29=0),0,IF(BV29=MIN(IF(($H$8:$H$5000="Silver")*($D$8:$D$5000=$D29)*(BV$8:BV$5000>0),BV$8:BV$5000)),0,BV29)) -> 0 | EL29: =IF(OR($H29<>"Silver",BW29=0),0,IF(BW29=MIN(IF(($H$8:$H$5000="Silver")*($D$8:$D$5000=$D29)*(BW$8:BW$5000>0),BW$8:BW$5000)),0,BW29)) -> 0 | EM29: =IF(OR($H29<>"Silver",BX29=0),0,IF(BX29=MIN(IF(($H$8:$H$5000="Silver")*($D$8:$D$5000=$D29)*(BX$8:BX$5000>0),BX$8:BX$5000)),0,BX29)) -> 0 | EN29: =IF(OR($H29<>"Silver",BY29=0),0,IF(BY29=MIN(IF(($H$8:$H$5000="Silver")*($D$8:$D$5000=$D29)*(BY$8:BY$5000>0),BY$8:BY$5000)),0,BY29)) -> 0
B30: UPMC | C30: UPMC Health Options, Inc. | D30: Individual | E30: 16322PA0040027 | F30: UPMC Advantage Silver $3,500/$30 - Premium Network | G30: PPO | H30: Silver | I30: On/Off | J30: Columbia, Lehigh, Mifflin, Montour, Northampton, Northumberland, Schuylkill, Snyder, Union | K30: 226.19 | L30: 226.19 | M30: 226.19 | N30: 226.19 | O30: 226.19 | P30: 226.19 | Q30: 226.19 | R30: 226.19 | S30: 226.19 | T30: 226.19 | U30: 226.19 | V30: 0 | W30: 0 | X30: 0 | Y30: 0 | Z30: 0 | AA30: 0 | AB30: 0 | AC30: 0 | AD30: 0 | AE30: 0 | AF30: 0 | AG30: 0 | AH30: 0 | AI30: 226.19 | AJ30: 226.19 | AK30: 226.19 | AL30: 226.19 | AM30: 226.19 | AN30: 226.19 | AO30: 226.19 | AP30: 226.19 | AQ30: 226.19 | AR30: 226.19 | AS30: 226.19 | AT30: 226.19 | AU30: 226.19 | AV30: 226.19 | AW30: 226.19 | AX30: 226.19 | AY30: 226.19 | AZ30: 226.19 | BA30: 0 | BB30: 0 | BC30: 0 | BD30: 0 | BE30: 0 | BF30: 0 | BG30: 0 | BH30: 0 | BI30: 0 | BJ30: 0 | BK30: 0 | BL30: 0 | BM30: 0 | BN30: 0 | BO30: 0 | BP30: 0 | BQ30: 0 | BR30: 0 | BS30: 0 | BT30: 0 | BU30: 0 | BV30: 0 | BW30: 0 | BX30: 0 | BY30: 0 | BZ30: =IF(OR($H30<>"Silver",K30=0),0,IF(K30=MIN(IF(($H$8:$H$5000="Silver")*($D$8:$D$5000=$D30)*(K$8:K$5000>0),K$8:K$5000)),0,K30)) -> 0 | CA30: =IF(OR($H30<>"Silver",L30=0),0,IF(L30=MIN(IF(($H$8:$H$5000="Silver")*($D$8:$D$5000=$D30)*(L$8:L$5000>0),L$8:L$5000)),0,L30)) -> 0 | CB30: =IF(OR($H30<>"Silver",M30=0),0,IF(M30=MIN(IF(($H$8:$H$5000="Silver")*($D$8:$D$5000=$D30)*(M$8:M$5000>0),M$8:M$5000)),0,M30)) -> 226.19 | CC30: =IF(OR($H30<>"Silver",N30=0),0,IF(N30=MIN(IF(($H$8:$H$5000="Silver")*($D$8:$D$5000=$D30)*(N$8:N$5000>0),N$8:N$5000)),0,N30)) -> 0 | CD30: =IF(OR($H30<>"Silver",O30=0),0,IF(O30=MIN(IF(($H$8:$H$5000="Silver")*($D$8:$D$5000=$D30)*(O$8:O$5000>0),O$8:O$5000)),0,O30)) -> 0 | CE30: =IF(OR($H30<>"Silver",P30=0),0,IF(P30=MIN(IF(($H$8:$H$5000="Silver")*($D$8:$D$5000=$D30)*(P$8:P$5000>0),P$8:P$5000)),0,P30)) -> 226.19 | CF30: =IF(OR($H30<>"Silver",Q30=0),0,IF(Q30=MIN(IF(($H$8:$H$5000="Silver")*($D$8:$D$5000=$D30)*(Q$8:Q$5000>0),Q$8:Q$5000)),0,Q30)) -> 226.19 | CG30: =IF(OR($H30<>"Silver",R30=0),0,IF(R30=MIN(IF(($H$8:$H$5000="Silver")*($D$8:$D$5000=$D30)*(R$8:R$5000>0),R$8:R$5000)),0,R30)) -> 0 | CH30: =IF(OR($H30<>"Silver",S30=0),0,IF(S30=MIN(IF(($H$8:$H$5000="Silver")*($D$8:$D$5000=$D30)*(S$8:S$5000>0),S$8:S$5000)),0,S30)) -> 0 | CI30: =IF(OR($H30<>"Silver",T30=0),0,IF(T30=MIN(IF(($H$8:$H$5000="Silver")*($D$8:$D$5000=$D30)*(T$8:T$5000>0),T$8:T$5000)),0,T30)) -> 0 | CJ30: =IF(OR($H30<>"Silver",U30=0),0,IF(U30=MIN(IF(($H$8:$H$5000="Silver")*($D$8:$D$5000=$D30)*(U$8:U$5000>0),U$8:U$5000)),0,U30)) -> 0 | CK30: =IF(OR($H30<>"Silver",V30=0),0,IF(V30=MIN(IF(($H$8:$H$5000="Silver")*($D$8:$D$5000=$D30)*(V$8:V$5000>0),V$8:V$5000)),0,V30)) -> 0 | CL30: =IF(OR($H30<>"Silver",W30=0),0,IF(W30=MIN(IF(($H$8:$H$5000="Silver")*($D$8:$D$5000=$D30)*(W$8:W$5000>0),W$8:W$5000)),0,W30)) -> 0 | CM30: =IF(OR($H30<>"Silver",X30=0),0,IF(X30=MIN(IF(($H$8:$H$5000="Silver")*($D$8:$D$5000=$D30)*(X$8:X$5000>0),X$8:X$5000)),0,X30)) -> 0 | CN30: =IF(OR($H30<>"Silver",Y30=0),0,IF(Y30=MIN(IF(($H$8:$H$5000="Silver")*($D$8:$D$5000=$D30)*(Y$8:Y$5000>0),Y$8:Y$5000)),0,Y30)) -> 0 | CO30: =IF(OR($H30<>"Silver",Z30=0),0,IF(Z30=MIN(IF(($H$8:$H$5000="Silver")*($D$8:$D$5000=$D30)*(Z$8:Z$5000>0),Z$8:Z$5000)),0,Z30)) -> 0 | CP30: =IF(OR($H30<>"Silver",AA30=0),0,IF(AA30=MIN(IF(($H$8:$H$5000="Silver")*($D$8:$D$5000=$D30)*(AA$8:AA$5000>0),AA$8:AA$5000)),0,AA30)) -> 0 | CQ30: =IF(OR($H30<>"Silver",AB30=0),0,IF(AB30=MIN(IF(($H$8:$H$5000="Silver")*($D$8:$D$5000=$D30)*(AB$8:AB$5000>0),AB$8:AB$5000)),0,AB30)) -> 0 | CR30: =IF(OR($H30<>"Silver",AC30=0),0,IF(AC30=MIN(IF(($H$8:$H$5000="Silver")*($D$8:$D$5000=$D30)*(AC$8:AC$5000>0),AC$8:AC$5000)),0,AC30)) -> 0 | CS30: =IF(OR($H30<>"Silver",AD30=0),0,IF(AD30=MIN(IF(($H$8:$H$5000="Silver")*($D$8:$D$5000=$D30)*(AD$8:AD$5000>0),AD$8:AD$5000)),0,AD30)) -> 0 | CT30: =IF(OR($H30<>"Silver",AE30=0),0,IF(AE30=MIN(IF(($H$8:$H$5000="Silver")*($D$8:$D$5000=$D30)*(AE$8:AE$5000>0),AE$8:AE$5000)),0,AE30)) -> 0 | CU30: =IF(OR($H30<>"Silver",AF30=0),0,IF(AF30=MIN(IF(($H$8:$H$5000="Silver")*($D$8:$D$5000=$D30)*(AF$8:AF$5000>0),AF$8:AF$5000)),0,AF30)) -> 0 | CV30: =IF(OR($H30<>"Silver",AG30=0),0,IF(AG30=MIN(IF(($H$8:$H$5000="Silver")*($D$8:$D$5000=$D30)*(AG$8:AG$5000>0),AG$8:AG$5000)),0,AG30)) -> 0 | CW30: =IF(OR($H30<>"Silver",AH30=0),0,IF(AH30=MIN(IF(($H$8:$H$5000="Silver")*($D$8:$D$5000=$D30)*(AH$8:AH$5000>0),AH$8:AH$5000)),0,AH30)) -> 0 | CX30: =IF(OR($H30<>"Silver",AI30=0),0,IF(AI30=MIN(IF(($H$8:$H$5000="Silver")*($D$8:$D$5000=$D30)*(AI$8:AI$5000>0),AI$8:AI$5000)),0,AI30)) -> 226.19 | CY30: =IF(OR($H30<>"Silver",AJ30=0),0,IF(AJ30=MIN(IF(($H$8:$H$5000="Silver")*($D$8:$D$5000=$D30)*(AJ$8:AJ$5000>0),AJ$8:AJ$5000)),0,AJ30)) -> 0 | CZ30: =IF(OR($H30<>"Silver",AK30=0),0,IF(AK30=MIN(IF(($H$8:$H$5000="Silver")*($D$8:$D$5000=$D30)*(AK$8:AK$5000>0),AK$8:AK$5000)),0,AK30)) -> 226.19 | DA30: =IF(OR($H30<>"Silver",AL30=0),0,IF(AL30=MIN(IF(($H$8:$H$5000="Silver")*($D$8:$D$5000=$D30)*(AL$8:AL$5000>0),AL$8:AL$5000)),0,AL30)) -> 226.19 | DB30: =IF(OR($H30<>"Silver",AM30=0),0,IF(AM30=MIN(IF(($H$8:$H$5000="Silver")*($D$8:$D$5000=$D30)*(AM$8:AM$5000>0),AM$8:AM$5000)),0,AM30)) -> 0 | DC30: =IF(OR($H30<>"Silver",AN30=0),0,IF(AN30=MIN(IF(($H$8:$H$5000="Silver")*($D$8:$D$5000=$D30)*(AN$8:AN$5000>0),AN$8:AN$5000)),0,AN30)) -> 0 | DD30: =IF(OR($H30<>"Silver",AO30=0),0,IF(AO30=MIN(IF(($H$8:$H$5000="Silver")*($D$8:$D$5000=$D30)*(AO$8:AO$5000>0),AO$8:AO$5000)),0,AO30)) -> 0 | DE30: =IF(OR($H30<>"Silver",AP30=0),0,IF(AP30=MIN(IF(($H$8:$H$5000="Silver")*($D$8:$D$5000=$D30)*(AP$8:AP$5000>0),AP$8:AP$5000)),0,AP30)) -> 226.19 | DF30: =IF(OR($H30<>"Silver",AQ30=0),0,IF(AQ30=MIN(IF(($H$8:$H$5000="Silver")*($D$8:$D$5000=$D30)*(AQ$8:AQ$5000>0),AQ$8:AQ$5000)),0,AQ30)) -> 226.19 | DG30: =IF(OR($H30<>"Silver",AR30=0),0,IF(AR30=MIN(IF(($H$8:$H$5000="Silver")*($D$8:$D$5000=$D30)*(AR$8:AR$5000>0),AR$8:AR$5000)),0,AR30)) -> 226.19 | DH30: =IF(OR($H30<>"Silver",AS30=0),0,IF(AS30=MIN(IF(($H$8:$H$5000="Silver")*($D$8:$D$5000=$D30)*(AS$8:AS$5000>0),AS$8:AS$5000)),0,AS30)) -> 226.19 | DI30: =IF(OR($H30<>"Silver",AT30=0),0,IF(AT30=MIN(IF(($H$8:$H$5000="Silver")*($D$8:$D$5000=$D30)*(AT$8:AT$5000>0),AT$8:AT$5000)),0,AT30)) -> 226.19 | DJ30: =IF(OR($H30<>"Silver",AU30=0),0,IF(AU30=MIN(IF(($H$8:$H$5000="Silver")*($D$8:$D$5000=$D30)*(AU$8:AU$5000>0),AU$8:AU$5000)),0,AU30)) -> 0 | DK30: =IF(OR($H30<>"Silver",AV30=0),0,IF(AV30=MIN(IF(($H$8:$H$5000="Silver")*($D$8:$D$5000=$D30)*(AV$8:AV$5000>0),AV$8:AV$5000)),0,AV30)) -> 0 | DL30: =IF(OR($H30<>"Silver",AW30=0),0,IF(AW30=MIN(IF(($H$8:$H$5000="Silver")*($D$8:$D$5000=$D30)*(AW$8:AW$5000>0),AW$8:AW$5000)),0,AW30)) -> 0 | DM30: =IF(OR($H30<>"Silver",AX30=0),0,IF(AX30=MIN(IF(($H$8:$H$5000="Silver")*($D$8:$D$5000=$D30)*(AX$8:AX$5000>0),AX$8:AX$5000)),0,AX30)) -> 0 | DN30: =IF(OR($H30<>"Silver",AY30=0),0,IF(AY30=MIN(IF(($H$8:$H$5000="Silver")*($D$8:$D$5000=$D30)*(AY$8:AY$5000>0),AY$8:AY$5000)),0,AY30)) -> 0 | DO30: =IF(OR($H30<>"Silver",AZ30=0),0,IF(AZ30=MIN(IF(($H$8:$H$5000="Silver")*($D$8:$D$5000=$D30)*(AZ$8:AZ$5000>0),AZ$8:AZ$5000)),0,AZ30)) -> 0 | DP30: =IF(OR($H30<>"Silver",BA30=0),0,IF(BA30=MIN(IF(($H$8:$H$5000="Silver")*($D$8:$D$5000=$D30)*(BA$8:BA$5000>0),BA$8:BA$5000)),0,BA30)) -> 0 | DQ30: =IF(OR($H30<>"Silver",BB30=0),0,IF(BB30=MIN(IF(($H$8:$H$5000="Silver")*($D$8:$D$5000=$D30)*(BB$8:BB$5000>0),BB$8:BB$5000)),0,BB30)) -> 0 | DR30: =IF(OR($H30<>"Silver",BC30=0),0,IF(BC30=MIN(IF(($H$8:$H$5000="Silver")*($D$8:$D$5000=$D30)*(BC$8:BC$5000>0),BC$8:BC$5000)),0,BC30)) -> 0 | DS30: =IF(OR($H30<>"Silver",BD30=0),0,IF(BD30=MIN(IF(($H$8:$H$5000="Silver")*($D$8:$D$5000=$D30)*(BD$8:BD$5000>0),BD$8:BD$5000)),0,BD30)) -> 0 | DT30: =IF(OR($H30<>"Silver",BE30=0),0,IF(BE30=MIN(IF(($H$8:$H$5000="Silver")*($D$8:$D$5000=$D30)*(BE$8:BE$5000>0),BE$8:BE$5000)),0,BE30)) -> 0 | DU30: =IF(OR($H30<>"Silver",BF30=0),0,IF(BF30=MIN(IF(($H$8:$H$5000="Silver")*($D$8:$D$5000=$D30)*(BF$8:BF$5000>0),BF$8:BF$5000)),0,BF30)) -> 0 | DV30: =IF(OR($H30<>"Silver",BG30=0),0,IF(BG30=MIN(IF(($H$8:$H$5000="Silver")*($D$8:$D$5000=$D30)*(BG$8:BG$5000>0),BG$8:BG$5000)),0,BG30)) -> 0 | DW30: =IF(OR($H30<>"Silver",BH30=0),0,IF(BH30=MIN(IF(($H$8:$H$5000="Silver")*($D$8:$D$5000=$D30)*(BH$8:BH$5000>0),BH$8:BH$5000)),0,BH30)) -> 0 | DX30: =IF(OR($H30<>"Silver",BI30=0),0,IF(BI30=MIN(IF(($H$8:$H$5000="Silver")*($D$8:$D$5000=$D30)*(BI$8:BI$5000>0),BI$8:BI$5000)),0,BI30)) -> 0 | DY30: =IF(OR($H30<>"Silver",BJ30=0),0,IF(BJ30=MIN(IF(($H$8:$H$5000="Silver")*($D$8:$D$5000=$D30)*(BJ$8:BJ$5000>0),BJ$8:BJ$5000)),0,BJ30)) -> 0 | DZ30: =IF(OR($H30<>"Silver",BK30=0),0,IF(BK30=MIN(IF(($H$8:$H$5000="Silver")*($D$8:$D$5000=$D30)*(BK$8:BK$5000>0),BK$8:BK$5000)),0,BK30)) -> 0 | EA30: =IF(OR($H30<>"Silver",BL30=0),0,IF(BL30=MIN(IF(($H$8:$H$5000="Silver")*($D$8:$D$5000=$D30)*(BL$8:BL$5000>0),BL$8:BL$5000)),0,BL30)) -> 0 | EB30: =IF(OR($H30<>"Silver",BM30=0),0,IF(BM30=MIN(IF(($H$8:$H$5000="Silver")*($D$8:$D$5000=$D30)*(BM$8:BM$5000>0),BM$8:BM$5000)),0,BM30)) -> 0 | EC30: =IF(OR($H30<>"Silver",BN30=0),0,IF(BN30=MIN(IF(($H$8:$H$5000="Silver")*($D$8:$D$5000=$D30)*(BN$8:BN$5000>0),BN$8:BN$5000)),0,BN30)) -> 0 | ED30: =IF(OR($H30<>"Silver",BO30=0),0,IF(BO30=MIN(IF(($H$8:$H$5000="Silver")*($D$8:$D$5000=$D30)*(BO$8:BO$5000>0),BO$8:BO$5000)),0,BO30)) -> 0 | EE30: =IF(OR($H30<>"Silver",BP30=0),0,IF(BP30=MIN(IF(($H$8:$H$5000="Silver")*($D$8:$D$5000=$D30)*(BP$8:BP$5000>0),BP$8:BP$5000)),0,BP30)) -> 0 | EF30: =IF(OR($H30<>"Silver",BQ30=0),0,IF(BQ30=MIN(IF(($H$8:$H$5000="Silver")*($D$8:$D$5000=$D30)*(BQ$8:BQ$5000>0),BQ$8:BQ$5000)),0,BQ30)) -> 0 | EG30: =IF(OR($H30<>"Silver",BR30=0),0,IF(BR30=MIN(IF(($H$8:$H$5000="Silver")*($D$8:$D$5000=$D30)*(BR$8:BR$5000>0),BR$8:BR$5000)),0,BR30)) -> 0 | EH30: =IF(OR($H30<>"Silver",BS30=0),0,IF(BS30=MIN(IF(($H$8:$H$5000="Silver")*($D$8:$D$5000=$D30)*(BS$8:BS$5000>0),BS$8:BS$5000)),0,BS30)) -> 0 | EI30: =IF(OR($H30<>"Silver",BT30=0),0,IF(BT30=MIN(IF(($H$8:$H$5000="Silver")*($D$8:$D$5000=$D30)*(BT$8:BT$5000>0),BT$8:BT$5000)),0,BT30)) -> 0 | EJ30: =IF(OR($H30<>"Silver",BU30=0),0,IF(BU30=MIN(IF(($H$8:$H$5000="Silver")*($D$8:$D$5000=$D30)*(BU$8:BU$5000>0),BU$8:BU$5000)),0,BU30)) -> 0 | EK30: =IF(OR($H30<>"Silver",BV30=0),0,IF(BV30=MIN(IF(($H$8:$H$5000="Silver")*($D$8:$D$5000=$D30)*(BV$8:BV$5000>0),BV$8:BV$5000)),0,BV30)) -> 0 | EL30: =IF(OR($H30<>"Silver",BW30=0),0,IF(BW30=MIN(IF(($H$8:$H$5000="Silver")*($D$8:$D$5000=$D30)*(BW$8:BW$5000>0),BW$8:BW$5000)),0,BW30)) -> 0 | EM30: =IF(OR($H30<>"Silver",BX30=0),0,IF(BX30=MIN(IF(($H$8:$H$5000="Silver")*($D$8:$D$5000=$D30)*(BX$8:BX$5000>0),BX$8:BX$5000)),0,BX30)) -> 0 | EN30: =IF(OR($H30<>"Silver",BY30=0),0,IF(BY30=MIN(IF(($H$8:$H$5000="Silver")*($D$8:$D$5000=$D30)*(BY$8:BY$5000>0),BY$8:BY$5000)),0,BY30)) -> 0
B31: UPMC | C31: UPMC Health Options, Inc. | D31: Individual | E31: 16322PA0050029 | F31: UPMC Advantage Silver $0/$50 - Select Network | G31: EPO | H31: Silver | I31: On/Off | J31: Armstrong, Fayette, Greene, Lawrence, Indiana | K31: 0 | L31: 0 | M31: 0 | N31: 0 | O31: 0 | P31: 0 | Q31: 0 | R31: 0 | S31: 0 | T31: 0 | U31: 0 | V31: 0 | W31: 0 | X31: 0 | Y31: 0 | Z31: 0 | AA31: 0 | AB31: 0 | AC31: 0 | AD31: 0 | AE31: 0 | AF31: 0 | AG31: 0 | AH31: 0 | AI31: 194.76 | AJ31: 0 | AK31: 194.76 | AL31: 194.76 | AM31: 0 | AN31: 0 | AO31: 0 | AP31: 0 | AQ31: 194.76 | AR31: 194.76 | AS31: 0 | AT31: 0 | AU31: 0 | AV31: 0 | AW31: 0 | AX31: 0 | AY31: 0 | AZ31: 0 | BA31: 0 | BB31: 0 | BC31: 0 | BD31: 0 | BE31: 0 | BF31: 0 | BG31: 0 | BH31: 0 | BI31: 0 | BJ31: 0 | BK31: 0 | BL31: 0 | BM31: 0 | BN31: 0 | BO31: 0 | BP31: 0 | BQ31: 0 | BR31: 0 | BS31: 0 | BT31: 0 | BU31: 0 | BV31: 0 | BW31: 0 | BX31: 0 | BY31: 0 | BZ31: =IF(OR($H31<>"Silver",K31=0),0,IF(K31=MIN(IF(($H$8:$H$5000="Silver")*($D$8:$D$5000=$D31)*(K$8:K$5000>0),K$8:K$5000)),0,K31)) -> 0 | CA31: =IF(OR($H31<>"Silver",L31=0),0,IF(L31=MIN(IF(($H$8:$H$5000="Silver")*($D$8:$D$5000=$D31)*(L$8:L$5000>0),L$8:L$5000)),0,L31)) -> 0 | CB31: =IF(OR($H31<>"Silver",M31=0),0,IF(M31=MIN(IF(($H$8:$H$5000="Silver")*($D$8:$D$5000=$D31)*(M$8:M$5000>0),M$8:M$5000)),0,M31)) -> 0 | CC31: =IF(OR($H31<>"Silver",N31=0),0,IF(N31=MIN(IF(($H$8:$H$5000="Silver")*($D$8:$D$5000=$D31)*(N$8:N$5000>0),N$8:N$5000)),0,N31)) -> 0 | CD31: =IF(OR($H31<>"Silver",O31=0),0,IF(O31=MIN(IF(($H$8:$H$5000="Silver")*($D$8:$D$5000=$D31)*(O$8:O$5000>0),O$8:O$5000)),0,O31)) -> 0 | CE31: =IF(OR($H31<>"Silver",P31=0),0,IF(P31=MIN(IF(($H$8:$H$5000="Silver")*($D$8:$D$5000=$D31)*(P$8:P$5000>0),P$8:P$5000)),0,P31)) -> 0 | CF31: =IF(OR($H31<>"Silver",Q31=0),0,IF(Q31=MIN(IF(($H$8:$H$5000="Silver")*($D$8:$D$5000=$D31)*(Q$8:Q$5000>0),Q$8:Q$5000)),0,Q31)) -> 0 | CG31: =IF(OR($H31<>"Silver",R31=0),0,IF(R31=MIN(IF(($H$8:$H$5000="Silver")*($D$8:$D$5000=$D31)*(R$8:R$5000>0),R$8:R$5000)),0,R31)) -> 0 | CH31: =IF(OR($H31<>"Silver",S31=0),0,IF(S31=MIN(IF(($H$8:$H$5000="Silver")*($D$8:$D$5000=$D31)*(S$8:S$5000>0),S$8:S$5000)),0,S31)) -> 0 | CI31: =IF(OR($H31<>"Silver",T31=0),0,IF(T31=MIN(IF(($H$8:$H$5000="Silver")*($D$8:$D$5000=$D31)*(T$8:T$5000>0),T$8:T$5000)),0,T31)) -> 0 | CJ31: =IF(OR($H31<>"Silver",U31=0),0,IF(U31=MIN(IF(($H$8:$H$5000="Silver")*($D$8:$D$5000=$D31)*(U$8:U$5000>0),U$8:U$5000)),0,U31)) -> 0 | CK31: =IF(OR($H31<>"Silver",V31=0),0,IF(V31=MIN(IF(($H$8:$H$5000="Silver")*($D$8:$D$5000=$D31)*(V$8:V$5000>0),V$8:V$5000)),0,V31)) -> 0 | CL31: =IF(OR($H31<>"Silver",W31=0),0,IF(W31=MIN(IF(($H$8:$H$5000="Silver")*($D$8:$D$5000=$D31)*(W$8:W$5000>0),W$8:W$5000)),0,W31)) -> 0 | CM31: =IF(OR($H31<>"Silver",X31=0),0,IF(X31=MIN(IF(($H$8:$H$5000="Silver")*($D$8:$D$5000=$D31)*(X$8:X$5000>0),X$8:X$5000)),0,X31)) -> 0 | CN31: =IF(OR($H31<>"Silver",Y31=0),0,IF(Y31=MIN(IF(($H$8:$H$5000="Silver")*($D$8:$D$5000=$D31)*(Y$8:Y$5000>0),Y$8:Y$5000)),0,Y31)) -> 0 | CO31: =IF(OR($H31<>"Silver",Z31=0),0,IF(Z31=MIN(IF(($H$8:$H$5000="Silver")*($D$8:$D$5000=$D31)*(Z$8:Z$5000>0),Z$8:Z$5000)),0,Z31)) -> 0 | CP31: =IF(OR($H31<>"Silver",AA31=0),0,IF(AA31=MIN(IF(($H$8:$H$5000="Silver")*($D$8:$D$5000=$D31)*(AA$8:AA$5000>0),AA$8:AA$5000)),0,AA31)) -> 0 | CQ31: =IF(OR($H31<>"Silver",AB31=0),0,IF(AB31=MIN(IF(($H$8:$H$5000="Silver")*($D$8:$D$5000=$D31)*(AB$8:AB$5000>0),AB$8:AB$5000)),0,AB31)) -> 0 | CR31: =IF(OR($H31<>"Silver",AC31=0),0,IF(AC31=MIN(IF(($H$8:$H$5000="Silver")*($D$8:$D$5000=$D31)*(AC$8:AC$5000>0),AC$8:AC$5000)),0,AC31)) -> 0 | CS31: =IF(OR($H31<>"Silver",AD31=0),0,IF(AD31=MIN(IF(($H$8:$H$5000="Silver")*($D$8:$D$5000=$D31)*(AD$8:AD$5000>0),AD$8:AD$5000)),0,AD31)) -> 0 | CT31: =IF(OR($H31<>"Silver",AE31=0),0,IF(AE31=MIN(IF(($H$8:$H$5000="Silver")*($D$8:$D$5000=$D31)*(AE$8:AE$5000>0),AE$8:AE$5000)),0,AE31)) -> 0 | CU31: =IF(OR($H31<>"Silver",AF31=0),0,IF(AF31=MIN(IF(($H$8:$H$5000="Silver")*($D$8:$D$5000=$D31)*(AF$8:AF$5000>0),AF$8:AF$5000)),0,AF31)) -> 0 | CV31: =IF(OR($H31<>"Silver",AG31=0),0,IF(AG31=MIN(IF(($H$8:$H$5000="Silver")*($D$8:$D$5000=$D31)*(AG$8:AG$5000>0),AG$8:AG$5000)),0,AG31)) -> 0 | CW31: =IF(OR($H31<>"Silver",AH31=0),0,IF(AH31=MIN(IF(($H$8:$H$5000="Silver")*($D$8:$D$5000=$D31)*(AH$8:AH$5000>0),AH$8:AH$5000)),0,AH31)) -> 0 | CX31: =IF(OR($H31<>"Silver",AI31=0),0,IF(AI31=MIN(IF(($H$8:$H$5000="Silver")*($D$8:$D$5000=$D31)*(AI$8:AI$5000>0),AI$8:AI$5000)),0,AI31)) -> 194.76 | CY31: =IF(OR($H31<>"Silver",AJ31=0),0,IF(AJ31=MIN(IF(($H$8:$H$5000="Silver")*($D$8:$D$5000=$D31)*(AJ$8:AJ$5000>0),AJ$8:AJ$5000)),0,AJ31)) -> 0 | CZ31: =IF(OR($H31<>"Silver",AK31=0),0,IF(AK31=MIN(IF(($H$8:$H$5000="Silver")*($D$8:$D$5000=$D31)*(AK$8:AK$5000>0),AK$8:AK$5000)),0,AK31)) -> 194.76 | DA31: =IF(OR($H31<>"Silver",AL31=0),0,IF(AL31=MIN(IF(($H$8:$H$5000="Silver")*($D$8:$D$5000=$D31)*(AL$8:AL$5000>0),AL$8:AL$5000)),0,AL31)) -> 194.76 | DB31: =IF(OR($H31<>"Silver",AM31=0),0,IF(AM31=MIN(IF(($H$8:$H$5000="Silver")*($D$8:$D$5000=$D31)*(AM$8:AM$5000>0),AM$8:AM$5000)),0,AM31)) -> 0 | DC31: =IF(OR($H31<>"Silver",AN31=0),0,IF(AN31=MIN(IF(($H$8:$H$5000="Silver")*($D$8:$D$5000=$D31)*(AN$8:AN$5000>0),AN$8:AN$5000)),0,AN31)) -> 0 | DD31: =IF(OR($H31<>"Silver",AO31=0),0,IF(AO31=MIN(IF(($H$8:$H$5000="Silver")*($D$8:$D$5000=$D31)*(AO$8:AO$5000>0),AO$8:AO$5000)),0,AO31)) -> 0 | DE31: =IF(OR($H31<>"Silver",AP31=0),0,IF(AP31=MIN(IF(($H$8:$H$5000="Silver")*($D$8:$D$5000=$D31)*(AP$8:AP$5000>0),AP$8:AP$5000)),0,AP31)) -> 0 | DF31: =IF(OR($H31<>"Silver",AQ31=0),0,IF(AQ31=MIN(IF(($H$8:$H$5000="Silver")*($D$8:$D$5000=$D31)*(AQ$8:AQ$5000>0),AQ$8:AQ$5000)),0,AQ31)) -> 194.76 | DG31: =IF(OR($H31<>"Silver",AR31=0),0,IF(AR31=MIN(IF(($H$8:$H$5000="Silver")*($D$8:$D$5000=$D31)*(AR$8:AR$5000>0),AR$8:AR$5000)),0,AR31)) -> 194.76 | DH31: =IF(OR($H31<>"Silver",AS31=0),0,IF(AS31=MIN(IF(($H$8:$H$5000="Silver")*($D$8:$D$5000=$D31)*(AS$8:AS$5000>0),AS$8:AS$5000)),0,AS31)) -> 0 | DI31: =IF(OR($H31<>"Silver",AT31=0),0,IF(AT31=MIN(IF(($H$8:$H$5000="Silver")*($D$8:$D$5000=$D31)*(AT$8:AT$5000>0),AT$8:AT$5000)),0,AT31)) -> 0 | DJ31: =IF(OR($H31<>"Silver",AU31=0),0,IF(AU31=MIN(IF(($H$8:$H$5000="Silver")*($D$8:$D$5000=$D31)*(AU$8:AU$5000>0),AU$8:AU$5000)),0,AU31)) -> 0 | DK31: =IF(OR($H31<>"Silver",AV31=0),0,IF(AV31=MIN(IF(($H$8:$H$5000="Silver")*($D$8:$D$5000=$D31)*(AV$8:AV$5000>0),AV$8:AV$5000)),0,AV31)) -> 0 | DL31: =IF(OR($H31<>"Silver",AW31=0),0,IF(AW31=MIN(IF(($H$8:$H$5000="Silver")*($D$8:$D$5000=$D31)*(AW$8:AW$5000>0),AW$8:AW$5000)),0,AW31)) -> 0 | DM31: =IF(OR($H31<>"Silver",AX31=0),0,IF(AX31=MIN(IF(($H$8:$H$5000="Silver")*($D$8:$D$5000=$D31)*(AX$8:AX$5000>0),AX$8:AX$5000)),0,AX31)) -> 0 | DN31: =IF(OR($H31<>"Silver",AY31=0),0,IF(AY31=MIN(IF(($H$8:$H$5000="Silver")*($D$8:$D$5000=$D31)*(AY$8:AY$5000>0),AY$8:AY$5000)),0,AY31)) -> 0 | DO31: =IF(OR($H31<>"Silver",AZ31=0),0,IF(AZ31=MIN(IF(($H$8:$H$5000="Silver")*($D$8:$D$5000=$D31)*(AZ$8:AZ$5000>0),AZ$8:AZ$5000)),0,AZ31)) -> 0 | DP31: =IF(OR($H31<>"Silver",BA31=0),0,IF(BA31=MIN(IF(($H$8:$H$5000="Silver")*($D$8:$D$5000=$D31)*(BA$8:BA$5000>0),BA$8:BA$5000)),0,BA31)) -> 0 | DQ31: =IF(OR($H31<>"Silver",BB31=0),0,IF(BB31=MIN(IF(($H$8:$H$5000="Silver")*($D$8:$D$5000=$D31)*(BB$8:BB$5000>0),BB$8:BB$5000)),0,BB31)) -> 0 | DR31: =IF(OR($H31<>"Silver",BC31=0),0,IF(BC31=MIN(IF(($H$8:$H$5000="Silver")*($D$8:$D$5000=$D31)*(BC$8:BC$5000>0),BC$8:BC$5000)),0,BC31)) -> 0 | DS31: =IF(OR($H31<>"Silver",BD31=0),0,IF(BD31=MIN(IF(($H$8:$H$5000="Silver")*($D$8:$D$5000=$D31)*(BD$8:BD$5000>0),BD$8:BD$5000)),0,BD31)) -> 0 | DT31: =IF(OR($H31<>"Silver",BE31=0),0,IF(BE31=MIN(IF(($H$8:$H$5000="Silver")*($D$8:$D$5000=$D31)*(BE$8:BE$5000>0),BE$8:BE$5000)),0,BE31)) -> 0 | DU31: =IF(OR($H31<>"Silver",BF31=0),0,IF(BF31=MIN(IF(($H$8:$H$5000="Silver")*($D$8:$D$5000=$D31)*(BF$8:BF$5000>0),BF$8:BF$5000)),0,BF31)) -> 0 | DV31: =IF(OR($H31<>"Silver",BG31=0),0,IF(BG31=MIN(IF(($H$8:$H$5000="Silver")*($D$8:$D$5000=$D31)*(BG$8:BG$5000>0),BG$8:BG$5000)),0,BG31)) -> 0 | DW31: =IF(OR($H31<>"Silver",BH31=0),0,IF(BH31=MIN(IF(($H$8:$H$5000="Silver")*($D$8:$D$5000=$D31)*(BH$8:BH$5000>0),BH$8:BH$5000)),0,BH31)) -> 0 | DX31: =IF(OR($H31<>"Silver",BI31=0),0,IF(BI31=MIN(IF(($H$8:$H$5000="Silver")*($D$8:$D$5000=$D31)*(BI$8:BI$5000>0),BI$8:BI$5000)),0,BI31)) -> 0 | DY31: =IF(OR($H31<>"Silver",BJ31=0),0,IF(BJ31=MIN(IF(($H$8:$H$5000="Silver")*($D$8:$D$5000=$D31)*(BJ$8:BJ$5000>0),BJ$8:BJ$5000)),0,BJ31)) -> 0 | DZ31: =IF(OR($H31<>"Silver",BK31=0),0,IF(BK31=MIN(IF(($H$8:$H$5000="Silver")*($D$8:$D$5000=$D31)*(BK$8:BK$5000>0),BK$8:BK$5000)),0,BK31)) -> 0 | EA31: =IF(OR($H31<>"Silver",BL31=0),0,IF(BL31=MIN(IF(($H$8:$H$5000="Silver")*($D$8:$D$5000=$D31)*(BL$8:BL$5000>0),BL$8:BL$5000)),0,BL31)) -> 0 | EB31: =IF(OR($H31<>"Silver",BM31=0),0,IF(BM31=MIN(IF(($H$8:$H$5000="Silver")*($D$8:$D$5000=$D31)*(BM$8:BM$5000>0),BM$8:BM$5000)),0,BM31)) -> 0 | EC31: =IF(OR($H31<>"Silver",BN31=0),0,IF(BN31=MIN(IF(($H$8:$H$5000="Silver")*($D$8:$D$5000=$D31)*(BN$8:BN$5000>0),BN$8:BN$5000)),0,BN31)) -> 0 | ED31: =IF(OR($H31<>"Silver",BO31=0),0,IF(BO31=MIN(IF(($H$8:$H$5000="Silver")*($D$8:$D$5000=$D31)*(BO$8:BO$5000>0),BO$8:BO$5000)),0,BO31)) -> 0 | EE31: =IF(OR($H31<>"Silver",BP31=0),0,IF(BP31=MIN(IF(($H$8:$H$5000="Silver")*($D$8:$D$5000=$D31)*(BP$8:BP$5000>0),BP$8:BP$5000)),0,BP31)) -> 0 | EF31: =IF(OR($H31<>"Silver",BQ31=0),0,IF(BQ31=MIN(IF(($H$8:$H$5000="Silver")*($D$8:$D$5000=$D31)*(BQ$8:BQ$5000>0),BQ$8:BQ$5000)),0,BQ31)) -> 0 | EG31: =IF(OR($H31<>"Silver",BR31=0),0,IF(BR31=MIN(IF(($H$8:$H$5000="Silver")*($D$8:$D$5000=$D31)*(BR$8:BR$5000>0),BR$8:BR$5000)),0,BR31)) -> 0 | EH31: =IF(OR($H31<>"Silver",BS31=0),0,IF(BS31=MIN(IF(($H$8:$H$5000="Silver")*($D$8:$D$5000=$D31)*(BS$8:BS$5000>0),BS$8:BS$5000)),0,BS31)) -> 0 | EI31: =IF(OR($H31<>"Silver",BT31=0),0,IF(BT31=MIN(IF(($H$8:$H$5000="Silver")*($D$8:$D$5000=$D31)*(BT$8:BT$5000>0),BT$8:BT$5000)),0,BT31)) -> 0 | EJ31: =IF(OR($H31<>"Silver",BU31=0),0,IF(BU31=MIN(IF(($H$8:$H$5000="Silver")*($D$8:$D$5000=$D31)*(BU$8:BU$5000>0),BU$8:BU$5000)),0,BU31)) -> 0 | EK31: =IF(OR($H31<>"Silver",BV31=0),0,IF(BV31=MIN(IF(($H$8:$H$5000="Silver")*($D$8:$D$5000=$D31)*(BV$8:BV$5000>0),BV$8:BV$5000)),0,BV31)) -> 0 | EL31: =IF(OR($H31<>"Silver",BW31=0),0,IF(BW31=MIN(IF(($H$8:$H$5000="Silver")*($D$8:$D$5000=$D31)*(BW$8:BW$5000>0),BW$8:BW$5000)),0,BW31)) -> 0 | EM31: =IF(OR($H31<>"Silver",BX31=0),0,IF(BX31=MIN(IF(($H$8:$H$5000="Silver")*($D$8:$D$5000=$D31)*(BX$8:BX$5000>0),BX$8:BX$5000)),0,BX31)) -> 0 | EN31: =IF(OR($H31<>"Silver",BY31=0),0,IF(BY31=MIN(IF(($H$8:$H$5000="Silver")*($D$8:$D$5000=$D31)*(BY$8:BY$5000>0),BY$8:BY$5000)),0,BY31)) -> 0
B32: UPMC | C32: UPMC Health Options, Inc. | D32: Individual | E32: 16322PA0050030 | F32: UPMC Advantage Silver $1,750/$30 - Select Network | G32: EPO | H32: Silver | I32: On/Off | J32: Armstrong, Fayette, Greene, Lawrence, Indiana | K32: 0 | L32: 0 | M32: 0 | N32: 0 | O32: 0 | P32: 0 | Q32: 0 | R32: 0 | S32: 0 | T32: 0 | U32: 0 | V32: 0 | W32: 0 | X32: 0 | Y32: 0 | Z32: 0 | AA32: 0 | AB32: 0 | AC32: 0 | AD32: 0 | AE32: 0 | AF32: 0 | AG32: 0 | AH32: 0 | AI32: 194.06 | AJ32: 0 | AK32: 194.06 | AL32: 194.06 | AM32: 0 | AN32: 0 | AO32: 0 | AP32: 0 | AQ32: 194.06 | AR32: 194.06 | AS32: 0 | AT32: 0 | AU32: 0 | AV32: 0 | AW32: 0 | AX32: 0 | AY32: 0 | AZ32: 0 | BA32: 0 | BB32: 0 | BC32: 0 | BD32: 0 | BE32: 0 | BF32: 0 | BG32: 0 | BH32: 0 | BI32: 0 | BJ32: 0 | BK32: 0 | BL32: 0 | BM32: 0 | BN32: 0 | BO32: 0 | BP32: 0 | BQ32: 0 | BR32: 0 | BS32: 0 | BT32: 0 | BU32: 0 | BV32: 0 | BW32: 0 | BX32: 0 | BY32: 0 | BZ32: =IF(OR($H32<>"Silver",K32=0),0,IF(K32=MIN(IF(($H$8:$H$5000="Silver")*($D$8:$D$5000=$D32)*(K$8:K$5000>0),K$8:K$5000)),0,K32)) -> 0 | CA32: =IF(OR($H32<>"Silver",L32=0),0,IF(L32=MIN(IF(($H$8:$H$5000="Silver")*($D$8:$D$5000=$D32)*(L$8:L$5000>0),L$8:L$5000)),0,L32)) -> 0 | CB32: =IF(OR($H32<>"Silver",M32=0),0,IF(M32=MIN(IF(($H$8:$H$5000="Silver")*($D$8:$D$5000=$D32)*(M$8:M$5000>0),M$8:M$5000)),0,M32)) -> 0 | CC32: =IF(OR($H32<>"Silver",N32=0),0,IF(N32=MIN(IF(($H$8:$H$5000="Silver")*($D$8:$D$5000=$D32)*(N$8:N$5000>0),N$8:N$5000)),0,N32)) -> 0 | CD32: =IF(OR($H32<>"Silver",O32=0),0,IF(O32=MIN(IF(($H$8:$H$5000="Silver")*($D$8:$D$5000=$D32)*(O$8:O$5000>0),O$8:O$5000)),0,O32)) -> 0 | CE32: =IF(OR($H32<>"Silver",P32=0),0,IF(P32=MIN(IF(($H$8:$H$5000="Silver")*($D$8:$D$5000=$D32)*(P$8:P$5000>0),P$8:P$5000)),0,P32)) -> 0 | CF32: =IF(OR($H32<>"Silver",Q32=0),0,IF(Q32=MIN(IF(($H$8:$H$5000="Silver")*($D$8:$D$5000=$D32)*(Q$8:Q$5000>0),Q$8:Q$5000)),0,Q32)) -> 0 | CG32: =IF(OR($H32<>"Silver",R32=0),0,IF(R32=MIN(IF(($H$8:$H$5000="Silver")*($D$8:$D$5000=$D32)*(R$8:R$5000>0),R$8:R$5000)),0,R32)) -> 0 | CH32: =IF(OR($H32<>"Silver",S32=0),0,IF(S32=MIN(IF(($H$8:$H$5000="Silver")*($D$8:$D$5000=$D32)*(S$8:S$5000>0),S$8:S$5000)),0,S32)) -> 0 | CI32: =IF(OR($H32<>"Silver",T32=0),0,IF(T32=MIN(IF(($H$8:$H$5000="Silver")*($D$8:$D$5000=$D32)*(T$8:T$5000>0),T$8:T$5000)),0,T32)) -> 0 | CJ32: =IF(OR($H32<>"Silver",U32=0),0,IF(U32=MIN(IF(($H$8:$H$5000="Silver")*($D$8:$D$5000=$D32)*(U$8:U$5000>0),U$8:U$5000)),0,U32)) -> 0 | CK32: =IF(OR($H32<>"Silver",V32=0),0,IF(V32=MIN(IF(($H$8:$H$5000="Silver")*($D$8:$D$5000=$D32)*(V$8:V$5000>0),V$8:V$5000)),0,V32)) -> 0 | CL32: =IF(OR($H32<>"Silver",W32=0),0,IF(W32=MIN(IF(($H$8:$H$5000="Silver")*($D$8:$D$5000=$D32)*(W$8:W$5000>0),W$8:W$5000)),0,W32)) -> 0 | CM32: =IF(OR($H32<>"Silver",X32=0),0,IF(X32=MIN(IF(($H$8:$H$5000="Silver")*($D$8:$D$5000=$D32)*(X$8:X$5000>0),X$8:X$5000)),0,X32)) -> 0 | CN32: =IF(OR($H32<>"Silver",Y32=0),0,IF(Y32=MIN(IF(($H$8:$H$5000="Silver")*($D$8:$D$5000=$D32)*(Y$8:Y$5000>0),Y$8:Y$5000)),0,Y32)) -> 0 | CO32: =IF(OR($H32<>"Silver",Z32=0),0,IF(Z32=MIN(IF(($H$8:$H$5000="Silver")*($D$8:$D$5000=$D32)*(Z$8:Z$5000>0),Z$8:Z$5000)),0,Z32)) -> 0 | CP32: =IF(OR($H32<>"Silver",AA32=0),0,IF(AA32=MIN(IF(($H$8:$H$5000="Silver")*($D$8:$D$5000=$D32)*(AA$8:AA$5000>0),AA$8:AA$5000)),0,AA32)) -> 0 | CQ32: =IF(OR($H32<>"Silver",AB32=0),0,IF(AB32=MIN(IF(($H$8:$H$5000="Silver")*($D$8:$D$5000=$D32)*(AB$8:AB$5000>0),AB$8:AB$5000)),0,AB32)) -> 0 | CR32: =IF(OR($H32<>"Silver",AC32=0),0,IF(AC32=MIN(IF(($H$8:$H$5000="Silver")*($D$8:$D$5000=$D32)*(AC$8:AC$5000>0),AC$8:AC$5000)),0,AC32)) -> 0 | CS32: =IF(OR($H32<>"Silver",AD32=0),0,IF(AD32=MIN(IF(($H$8:$H$5000="Silver")*($D$8:$D$5000=$D32)*(AD$8:AD$5000>0),AD$8:AD$5000)),0,AD32)) -> 0 | CT32: =IF(OR($H32<>"Silver",AE32=0),0,IF(AE32=MIN(IF(($H$8:$H$5000="Silver")*($D$8:$D$5000=$D32)*(AE$8:AE$5000>0),AE$8:AE$5000)),0,AE32)) -> 0 | CU32: =IF(OR($H32<>"Silver",AF32=0),0,IF(AF32=MIN(IF(($H$8:$H$5000="Silver")*($D$8:$D$5000=$D32)*(AF$8:AF$5000>0),AF$8:AF$5000)),0,AF32)) -> 0 | CV32: =IF(OR($H32<>"Silver",AG32=0),0,IF(AG32=MIN(IF(($H$8:$H$5000="Silver")*($D$8:$D$5000=$D32)*(AG$8:AG$5000>0),AG$8:AG$5000)),0,AG32)) -> 0 | CW32: =IF(OR($H32<>"Silver",AH32=0),0,IF(AH32=MIN(IF(($H$8:$H$5000="Silver")*($D$8:$D$5000=$D32)*(AH$8:AH$5000>0),AH$8:AH$5000)),0,AH32)) -> 0 | CX32: =IF(OR($H32<>"Silver",AI32=0),0,IF(AI32=MIN(IF(($H$8:$H$5000="Silver")*($D$8:$D$5000=$D32)*(AI$8:AI$5000>0),AI$8:AI$5000)),0,AI32)) -> 194.06 | CY32: =IF(OR($H32<>"Silver",AJ32=0),0,IF(AJ32=MIN(IF(($H$8:$H$5000="Silver")*($D$8:$D$5000=$D32)*(AJ$8:AJ$5000>0),AJ$8:AJ$5000)),0,AJ32)) -> 0 | CZ32: =IF(OR($H32<>"Silver",AK32=0),0,IF(AK32=MIN(IF(($H$8:$H$5000="Silver")*($D$8:$D$5000=$D32)*(AK$8:AK$5000>0),AK$8:AK$5000)),0,AK32)) -> 194.06 | DA32: =IF(OR($H32<>"Silver",AL32=0),0,IF(AL32=MIN(IF(($H$8:$H$5000="Silver")*($D$8:$D$5000=$D32)*(AL$8:AL$5000>0),AL$8:AL$5000)),0,AL32)) -> 194.06 | DB32: =IF(OR($H32<>"Silver",AM32=0),0,IF(AM32=MIN(IF(($H$8:$H$5000="Silver")*($D$8:$D$5000=$D32)*(AM$8:AM$5000>0),AM$8:AM$5000)),0,AM32)) -> 0 | DC32: =IF(OR($H32<>"Silver",AN32=0),0,IF(AN32=MIN(IF(($H$8:$H$5000="Silver")*($D$8:$D$5000=$D32)*(AN$8:AN$5000>0),AN$8:AN$5000)),0,AN32)) -> 0 | DD32: =IF(OR($H32<>"Silver",AO32=0),0,IF(AO32=MIN(IF(($H$8:$H$5000="Silver")*($D$8:$D$5000=$D32)*(AO$8:AO$5000>0),AO$8:AO$5000)),0,AO32)) -> 0 | DE32: =IF(OR($H32<>"Silver",AP32=0),0,IF(AP32=MIN(IF(($H$8:$H$5000="Silver")*($D$8:$D$5000=$D32)*(AP$8:AP$5000>0),AP$8:AP$5000)),0,AP32)) -> 0 | DF32: =IF(OR($H32<>"Silver",AQ32=0),0,IF(AQ32=MIN(IF(($H$8:$H$5000="Silver")*($D$8:$D$5000=$D32)*(AQ$8:AQ$5000>0),AQ$8:AQ$5000)),0,AQ32)) -> 194.06 | DG32: =IF(OR($H32<>"Silver",AR32=0),0,IF(AR32=MIN(IF(($H$8:$H$5000="Silver")*($D$8:$D$5000=$D32)*(AR$8:AR$5000>0),AR$8:AR$5000)),0,AR32)) -> 194.06 | DH32: =IF(OR($H32<>"Silver",AS32=0),0,IF(AS32=MIN(IF(($H$8:$H$5000="Silver")*($D$8:$D$5000=$D32)*(AS$8:AS$5000>0),AS$8:AS$5000)),0,AS32)) -> 0 | DI32: =IF(OR($H32<>"Silver",AT32=0),0,IF(AT32=MIN(IF(($H$8:$H$5000="Silver")*($D$8:$D$5000=$D32)*(AT$8:AT$5000>0),AT$8:AT$5000)),0,AT32)) -> 0 | DJ32: =IF(OR($H32<>"Silver",AU32=0),0,IF(AU32=MIN(IF(($H$8:$H$5000="Silver")*($D$8:$D$5000=$D32)*(AU$8:AU$5000>0),AU$8:AU$5000)),0,AU32)) -> 0 | DK32: =IF(OR($H32<>"Silver",AV32=0),0,IF(AV32=MIN(IF(($H$8:$H$5000="Silver")*($D$8:$D$5000=$D32)*(AV$8:AV$5000>0),AV$8:AV$5000)),0,AV32)) -> 0 | DL32: =IF(OR($H32<>"Silver",AW32=0),0,IF(AW32=MIN(IF(($H$8:$H$5000="Silver")*($D$8:$D$5000=$D32)*(AW$8:AW$5000>0),AW$8:AW$5000)),0,AW32)) -> 0 | DM32: =IF(OR($H32<>"Silver",AX32=0),0,IF(AX32=MIN(IF(($H$8:$H$5000="Silver")*($D$8:$D$5000=$D32)*(AX$8:AX$5000>0),AX$8:AX$5000)),0,AX32)) -> 0 | DN32: =IF(OR($H32<>"Silver",AY32=0),0,IF(AY32=MIN(IF(($H$8:$H$5000="Silver")*($D$8:$D$5000=$D32)*(AY$8:AY$5000>0),AY$8:AY$5000)),0,AY32)) -> 0 | DO32: =IF(OR($H32<>"Silver",AZ32=0),0,IF(AZ32=MIN(IF(($H$8:$H$5000="Silver")*($D$8:$D$5000=$D32)*(AZ$8:AZ$5000>0),AZ$8:AZ$5000)),0,AZ32)) -> 0 | DP32: =IF(OR($H32<>"Silver",BA32=0),0,IF(BA32=MIN(IF(($H$8:$H$5000="Silver")*($D$8:$D$5000=$D32)*(BA$8:BA$5000>0),BA$8:BA$5000)),0,BA32)) -> 0 | DQ32: =IF(OR($H32<>"Silver",BB32=0),0,IF(BB32=MIN(IF(($H$8:$H$5000="Silver")*($D$8:$D$5000=$D32)*(BB$8:BB$5000>0),BB$8:BB$5000)),0,BB32)) -> 0 | DR32: =IF(OR($H32<>"Silver",BC32=0),0,IF(BC32=MIN(IF(($H$8:$H$5000="Silver")*($D$8:$D$5000=$D32)*(BC$8:BC$5000>0),BC$8:BC$5000)),0,BC32)) -> 0 | DS32: =IF(OR($H32<>"Silver",BD32=0),0,IF(BD32=MIN(IF(($H$8:$H$5000="Silver")*($D$8:$D$5000=$D32)*(BD$8:BD$5000>0),BD$8:BD$5000)),0,BD32)) -> 0 | DT32: =IF(OR($H32<>"Silver",BE32=0),0,IF(BE32=MIN(IF(($H$8:$H$5000="Silver")*($D$8:$D$5000=$D32)*(BE$8:BE$5000>0),BE$8:BE$5000)),0,BE32)) -> 0 | DU32: =IF(OR($H32<>"Silver",BF32=0),0,IF(BF32=MIN(IF(($H$8:$H$5000="Silver")*($D$8:$D$5000=$D32)*(BF$8:BF$5000>0),BF$8:BF$5000)),0,BF32)) -> 0 | DV32: =IF(OR($H32<>"Silver",BG32=0),0,IF(BG32=MIN(IF(($H$8:$H$5000="Silver")*($D$8:$D$5000=$D32)*(BG$8:BG$5000>0),BG$8:BG$5000)),0,BG32)) -> 0 | DW32: =IF(OR($H32<>"Silver",BH32=0),0,IF(BH32=MIN(IF(($H$8:$H$5000="Silver")*($D$8:$D$5000=$D32)*(BH$8:BH$5000>0),BH$8:BH$5000)),0,BH32)) -> 0 | DX32: =IF(OR($H32<>"Silver",BI32=0),0,IF(BI32=MIN(IF(($H$8:$H$5000="Silver")*($D$8:$D$5000=$D32)*(BI$8:BI$5000>0),BI$8:BI$5000)),0,BI32)) -> 0 | DY32: =IF(OR($H32<>"Silver",BJ32=0),0,IF(BJ32=MIN(IF(($H$8:$H$5000="Silver")*($D$8:$D$5000=$D32)*(BJ$8:BJ$5000>0),BJ$8:BJ$5000)),0,BJ32)) -> 0 | DZ32: =IF(OR($H32<>"Silver",BK32=0),0,IF(BK32=MIN(IF(($H$8:$H$5000="Silver")*($D$8:$D$5000=$D32)*(BK$8:BK$5000>0),BK$8:BK$5000)),0,BK32)) -> 0 | EA32: =IF(OR($H32<>"Silver",BL32=0),0,IF(BL32=MIN(IF(($H$8:$H$5000="Silver")*($D$8:$D$5000=$D32)*(BL$8:BL$5000>0),BL$8:BL$5000)),0,BL32)) -> 0 | EB32: =IF(OR($H32<>"Silver",BM32=0),0,IF(BM32=MIN(IF(($H$8:$H$5000="Silver")*($D$8:$D$5000=$D32)*(BM$8:BM$5000>0),BM$8:BM$5000)),0,BM32)) -> 0 | EC32: =IF(OR($H32<>"Silver",BN32=0),0,IF(BN32=MIN(IF(($H$8:$H$5000="Silver")*($D$8:$D$5000=$D32)*(BN$8:BN$5000>0),BN$8:BN$5000)),0,BN32)) -> 0 | ED32: =IF(OR($H32<>"Silver",BO32=0),0,IF(BO32=MIN(IF(($H$8:$H$5000="Silver")*($D$8:$D$5000=$D32)*(BO$8:BO$5000>0),BO$8:BO$5000)),0,BO32)) -> 0 | EE32: =IF(OR($H32<>"Silver",BP32=0),0,IF(BP32=MIN(IF(($H$8:$H$5000="Silver")*($D$8:$D$5000=$D32)*(BP$8:BP$5000>0),BP$8:BP$5000)),0,BP32)) -> 0 | EF32: =IF(OR($H32<>"Silver",BQ32=0),0,IF(BQ32=MIN(IF(($H$8:$H$5000="Silver")*($D$8:$D$5000=$D32)*(BQ$8:BQ$5000>0),BQ$8:BQ$5000)),0,BQ32)) -> 0 | EG32: =IF(OR($H32<>"Silver",BR32=0),0,IF(BR32=MIN(IF(($H$8:$H$5000="Silver")*($D$8:$D$5000=$D32)*(BR$8:BR$5000>0),BR$8:BR$5000)),0,BR32)) -> 0 | EH32: =IF(OR($H32<>"Silver",BS32=0),0,IF(BS32=MIN(IF(($H$8:$H$5000="Silver")*($D$8:$D$5000=$D32)*(BS$8:BS$5000>0),BS$8:BS$5000)),0,BS32)) -> 0 | EI32: =IF(OR($H32<>"Silver",BT32=0),0,IF(BT32=MIN(IF(($H$8:$H$5000="Silver")*($D$8:$D$5000=$D32)*(BT$8:BT$5000>0),BT$8:BT$5000)),0,BT32)) -> 0 | EJ32: =IF(OR($H32<>"Silver",BU32=0),0,IF(BU32=MIN(IF(($H$8:$H$5000="Silver")*($D$8:$D$5000=$D32)*(BU$8:BU$5000>0),BU$8:BU$5000)),0,BU32)) -> 0 | EK32: =IF(OR($H32<>"Silver",BV32=0),0,IF(BV32=MIN(IF(($H$8:$H$5000="Silver")*($D$8:$D$5000=$D32)*(BV$8:BV$5000>0),BV$8:BV$5000)),0,BV32)) -> 0 | EL32: =IF(OR($H32<>"Silver",BW32=0),0,IF(BW32=MIN(IF(($H$8:$H$5000="Silver")*($D$8:$D$5000=$D32)*(BW$8:BW$5000>0),BW$8:BW$5000)),0,BW32)) -> 0 | EM32: =IF(OR($H32<>"Silver",BX32=0),0,IF(BX32=MIN(IF(($H$8:$H$5000="Silver")*($D$8:$D$5000=$D32)*(BX$8:BX$5000>0),BX$8:BX$5000)),0,BX32)) -> 0 | EN32: =IF(OR($H32<>"Silver",BY32=0),0,IF(BY32=MIN(IF(($H$8:$H$5000="Silver")*($D$8:$D$5000=$D32)*(BY$8:BY$5000>0),BY$8:BY$5000)),0,BY32)) -> 0
B33: UPMC | C33: UPMC Health Options, Inc. | D33: Individual | E33: 16322PA0050031 | F33: UPMC Advantage Silver $3,250/$10 - Select Network | G33: EPO | H33: Silver | I33: On/Off | J33: Armstrong, Fayette, Greene, Lawrence, Indiana | K33: 0 | L33: 0 | M33: 0 | N33: 0 | O33: 0 | P33: 0 | Q33: 0 | R33: 0 | S33: 0 | T33: 0 | U33: 0 | V33: 0 | W33: 0 | X33: 0 | Y33: 0 | Z33: 0 | AA33: 0 | AB33: 0 | AC33: 0 | AD33: 0 | AE33: 0 | AF33: 0 | AG33: 0 | AH33: 0 | AI33: 190.92 | AJ33: 0 | AK33: 190.92 | AL33: 190.92 | AM33: 0 | AN33: 0 | AO33: 0 | AP33: 0 | AQ33: 190.92 | AR33: 190.92 | AS33: 0 | AT33: 0 | AU33: 0 | AV33: 0 | AW33: 0 | AX33: 0 | AY33: 0 | AZ33: 0 | BA33: 0 | BB33: 0 | BC33: 0 | BD33: 0 | BE33: 0 | BF33: 0 | BG33: 0 | BH33: 0 | BI33: 0 | BJ33: 0 | BK33: 0 | BL33: 0 | BM33: 0 | BN33: 0 | BO33: 0 | BP33: 0 | BQ33: 0 | BR33: 0 | BS33: 0 | BT33: 0 | BU33: 0 | BV33: 0 | BW33: 0 | BX33: 0 | BY33: 0 | BZ33: =IF(OR($H33<>"Silver",K33=0),0,IF(K33=MIN(IF(($H$8:$H$5000="Silver")*($D$8:$D$5000=$D33)*(K$8:K$5000>0),K$8:K$5000)),0,K33)) -> 0 | CA33: =IF(OR($H33<>"Silver",L33=0),0,IF(L33=MIN(IF(($H$8:$H$5000="Silver")*($D$8:$D$5000=$D33)*(L$8:L$5000>0),L$8:L$5000)),0,L33)) -> 0 | CB33: =IF(OR($H33<>"Silver",M33=0),0,IF(M33=MIN(IF(($H$8:$H$5000="Silver")*($D$8:$D$5000=$D33)*(M$8:M$5000>0),M$8:M$5000)),0,M33)) -> 0 | CC33: =IF(OR($H33<>"Silver",N33=0),0,IF(N33=MIN(IF(($H$8:$H$5000="Silver")*($D$8:$D$5000=$D33)*(N$8:N$5000>0),N$8:N$5000)),0,N33)) -> 0 | CD33: =IF(OR($H33<>"Silver",O33=0),0,IF(O33=MIN(IF(($H$8:$H$5000="Silver")*($D$8:$D$5000=$D33)*(O$8:O$5000>0),O$8:O$5000)),0,O33)) -> 0 | CE33: =IF(OR($H33<>"Silver",P33=0),0,IF(P33=MIN(IF(($H$8:$H$5000="Silver")*($D$8:$D$5000=$D33)*(P$8:P$5000>0),P$8:P$5000)),0,P33)) -> 0 | CF33: =IF(OR($H33<>"Silver",Q33=0),0,IF(Q33=MIN(IF(($H$8:$H$5000="Silver")*($D$8:$D$5000=$D33)*(Q$8:Q$5000>0),Q$8:Q$5000)),0,Q33)) -> 0 | CG33: =IF(OR($H33<>"Silver",R33=0),0,IF(R33=MIN(IF(($H$8:$H$5000="Silver")*($D$8:$D$5000=$D33)*(R$8:R$5000>0),R$8:R$5000)),0,R33)) -> 0 | CH33: =IF(OR($H33<>"Silver",S33=0),0,IF(S33=MIN(IF(($H$8:$H$5000="Silver")*($D$8:$D$5000=$D33)*(S$8:S$5000>0),S$8:S$5000)),0,S33)) -> 0 | CI33: =IF(OR($H33<>"Silver",T33=0),0,IF(T33=MIN(IF(($H$8:$H$5000="Silver")*($D$8:$D$5000=$D33)*(T$8:T$5000>0),T$8:T$5000)),0,T33)) -> 0 | CJ33: =IF(OR($H33<>"Silver",U33=0),0,IF(U33=MIN(IF(($H$8:$H$5000="Silver")*($D$8:$D$5000=$D33)*(U$8:U$5000>0),U$8:U$5000)),0,U33)) -> 0 | CK33: =IF(OR($H33<>"Silver",V33=0),0,IF(V33=MIN(IF(($H$8:$H$5000="Silver")*($D$8:$D$5000=$D33)*(V$8:V$5000>0),V$8:V$5000)),0,V33)) -> 0 | CL33: =IF(OR($H33<>"Silver",W33=0),0,IF(W33=MIN(IF(($H$8:$H$5000="Silver")*($D$8:$D$5000=$D33)*(W$8:W$5000>0),W$8:W$5000)),0,W33)) -> 0 | CM33: =IF(OR($H33<>"Silver",X33=0),0,IF(X33=MIN(IF(($H$8:$H$5000="Silver")*($D$8:$D$5000=$D33)*(X$8:X$5000>0),X$8:X$5000)),0,X33)) -> 0 | CN33: =IF(OR($H33<>"Silver",Y33=0),0,IF(Y33=MIN(IF(($H$8:$H$5000="Silver")*($D$8:$D$5000=$D33)*(Y$8:Y$5000>0),Y$8:Y$5000)),0,Y33)) -> 0 | CO33: =IF(OR($H33<>"Silver",Z33=0),0,IF(Z33=MIN(IF(($H$8:$H$5000="Silver")*($D$8:$D$5000=$D33)*(Z$8:Z$5000>0),Z$8:Z$5000)),0,Z33)) -> 0 | CP33: =IF(OR($H33<>"Silver",AA33=0),0,IF(AA33=MIN(IF(($H$8:$H$5000="Silver")*($D$8:$D$5000=$D33)*(AA$8:AA$5000>0),AA$8:AA$5000)),0,AA33)) -> 0 | CQ33: =IF(OR($H33<>"Silver",AB33=0),0,IF(AB33=MIN(IF(($H$8:$H$5000="Silver")*($D$8:$D$5000=$D33)*(AB$8:AB$5000>0),AB$8:AB$5000)),0,AB33)) -> 0 | CR33: =IF(OR($H33<>"Silver",AC33=0),0,IF(AC33=MIN(IF(($H$8:$H$5000="Silver")*($D$8:$D$5000=$D33)*(AC$8:AC$5000>0),AC$8:AC$5000)),0,AC33)) -> 0 | CS33: =IF(OR($H33<>"Silver",AD33=0),0,IF(AD33=MIN(IF(($H$8:$H$5000="Silver")*($D$8:$D$5000=$D33)*(AD$8:AD$5000>0),AD$8:AD$5000)),0,AD33)) -> 0 | CT33: =IF(OR($H33<>"Silver",AE33=0),0,IF(AE33=MIN(IF(($H$8:$H$5000="Silver")*($D$8:$D$5000=$D33)*(AE$8:AE$5000>0),AE$8:AE$5000)),0,AE33)) -> 0 | CU33: =IF(OR($H33<>"Silver",AF33=0),0,IF(AF33=MIN(IF(($H$8:$H$5000="Silver")*($D$8:$D$5000=$D33)*(AF$8:AF$5000>0),AF$8:AF$5000)),0,AF33)) -> 0 | CV33: =IF(OR($H33<>"Silver",AG33=0),0,IF(AG33=MIN(IF(($H$8:$H$5000="Silver")*($D$8:$D$5000=$D33)*(AG$8:AG$5000>0),AG$8:AG$5000)),0,AG33)) -> 0 | CW33: =IF(OR($H33<>"Silver",AH33=0),0,IF(AH33=MIN(IF(($H$8:$H$5000="Silver")*($D$8:$D$5000=$D33)*(AH$8:AH$5000>0),AH$8:AH$5000)),0,AH33)) -> 0 | CX33: =IF(OR($H33<>"Silver",AI33=0),0,IF(AI33=MIN(IF(($H$8:$H$5000="Silver")*($D$8:$D$5000=$D33)*(AI$8:AI$5000>0),AI$8:AI$5000)),0,AI33)) -> 190.92 | CY33: =IF(OR($H33<>"Silver",AJ33=0),0,IF(AJ33=MIN(IF(($H$8:$H$5000="Silver")*($D$8:$D$5000=$D33)*(AJ$8:AJ$5000>0),AJ$8:AJ$5000)),0,AJ33)) -> 0 | CZ33: =IF(OR($H33<>"Silver",AK33=0),0,IF(AK33=MIN(IF(($H$8:$H$5000="Silver")*($D$8:$D$5000=$D33)*(AK$8:AK$5000>0),AK$8:AK$5000)),0,AK33)) -> 190.92 | DA33: =IF(OR($H33<>"Silver",AL33=0),0,IF(AL33=MIN(IF(($H$8:$H$5000="Silver")*($D$8:$D$5000=$D33)*(AL$8:AL$5000>0),AL$8:AL$5000)),0,AL33)) -> 190.92 | DB33: =IF(OR($H33<>"Silver",AM33=0),0,IF(AM33=MIN(IF(($H$8:$H$5000="Silver")*($D$8:$D$5000=$D33)*(AM$8:AM$5000>0),AM$8:AM$5000)),0,AM33)) -> 0 | DC33: =IF(OR($H33<>"Silver",AN33=0),0,IF(AN33=MIN(IF(($H$8:$H$5000="Silver")*($D$8:$D$5000=$D33)*(AN$8:AN$5000>0),AN$8:AN$5000)),0,AN33)) -> 0 | DD33: =IF(OR($H33<>"Silver",AO33=0),0,IF(AO33=MIN(IF(($H$8:$H$5000="Silver")*($D$8:$D$5000=$D33)*(AO$8:AO$5000>0),AO$8:AO$5000)),0,AO33)) -> 0 | DE33: =IF(OR($H33<>"Silver",AP33=0),0,IF(AP33=MIN(IF(($H$8:$H$5000="Silver")*($D$8:$D$5000=$D33)*(AP$8:AP$5000>0),AP$8:AP$5000)),0,AP33)) -> 0 | DF33: =IF(OR($H33<>"Silver",AQ33=0),0,IF(AQ33=MIN(IF(($H$8:$H$5000="Silver")*($D$8:$D$5000=$D33)*(AQ$8:AQ$5000>0),AQ$8:AQ$5000)),0,AQ33)) -> 190.92 | DG33: =IF(OR($H33<>"Silver",AR33=0),0,IF(AR33=MIN(IF(($H$8:$H$5000="Silver")*($D$8:$D$5000=$D33)*(AR$8:AR$5000>0),AR$8:AR$5000)),0,AR33)) -> 190.92 | DH33: =IF(OR($H33<>"Silver",AS33=0),0,IF(AS33=MIN(IF(($H$8:$H$5000="Silver")*($D$8:$D$5000=$D33)*(AS$8:AS$5000>0),AS$8:AS$5000)),0,AS33)) -> 0 | DI33: =IF(OR($H33<>"Silver",AT33=0),0,IF(AT33=MIN(IF(($H$8:$H$5000="Silver")*($D$8:$D$5000=$D33)*(AT$8:AT$5000>0),AT$8:AT$5000)),0,AT33)) -> 0 | DJ33: =IF(OR($H33<>"Silver",AU33=0),0,IF(AU33=MIN(IF(($H$8:$H$5000="Silver")*($D$8:$D$5000=$D33)*(AU$8:AU$5000>0),AU$8:AU$5000)),0,AU33)) -> 0 | DK33: =IF(OR($H33<>"Silver",AV33=0),0,IF(AV33=MIN(IF(($H$8:$H$5000="Silver")*($D$8:$D$5000=$D33)*(AV$8:AV$5000>0),AV$8:AV$5000)),0,AV33)) -> 0 | DL33: =IF(OR($H33<>"Silver",AW33=0),0,IF(AW33=MIN(IF(($H$8:$H$5000="Silver")*($D$8:$D$5000=$D33)*(AW$8:AW$5000>0),AW$8:AW$5000)),0,AW33)) -> 0 | DM33: =IF(OR($H33<>"Silver",AX33=0),0,IF(AX33=MIN(IF(($H$8:$H$5000="Silver")*($D$8:$D$5000=$D33)*(AX$8:AX$5000>0),AX$8:AX$5000)),0,AX33)) -> 0 | DN33: =IF(OR($H33<>"Silver",AY33=0),0,IF(AY33=MIN(IF(($H$8:$H$5000="Silver")*($D$8:$D$5000=$D33)*(AY$8:AY$5000>0),AY$8:AY$5000)),0,AY33)) -> 0 | DO33: =IF(OR($H33<>"Silver",AZ33=0),0,IF(AZ33=MIN(IF(($H$8:$H$5000="Silver")*($D$8:$D$5000=$D33)*(AZ$8:AZ$5000>0),AZ$8:AZ$5000)),0,AZ33)) -> 0 | DP33: =IF(OR($H33<>"Silver",BA33=0),0,IF(BA33=MIN(IF(($H$8:$H$5000="Silver")*($D$8:$D$5000=$D33)*(BA$8:BA$5000>0),BA$8:BA$5000)),0,BA33)) -> 0 | DQ33: =IF(OR($H33<>"Silver",BB33=0),0,IF(BB33=MIN(IF(($H$8:$H$5000="Silver")*($D$8:$D$5000=$D33)*(BB$8:BB$5000>0),BB$8:BB$5000)),0,BB33)) -> 0 | DR33: =IF(OR($H33<>"Silver",BC33=0),0,IF(BC33=MIN(IF(($H$8:$H$5000="Silver")*($D$8:$D$5000=$D33)*(BC$8:BC$5000>0),BC$8:BC$5000)),0,BC33)) -> 0 | DS33: =IF(OR($H33<>"Silver",BD33=0),0,IF(BD33=MIN(IF(($H$8:$H$5000="Silver")*($D$8:$D$5000=$D33)*(BD$8:BD$5000>0),BD$8:BD$5000)),0,BD33)) -> 0 | DT33: =IF(OR($H33<>"Silver",BE33=0),0,IF(BE33=MIN(IF(($H$8:$H$5000="Silver")*($D$8:$D$5000=$D33)*(BE$8:BE$5000>0),BE$8:BE$5000)),0,BE33)) -> 0 | DU33: =IF(OR($H33<>"Silver",BF33=0),0,IF(BF33=MIN(IF(($H$8:$H$5000="Silver")*($D$8:$D$5000=$D33)*(BF$8:BF$5000>0),BF$8:BF$5000)),0,BF33)) -> 0 | DV33: =IF(OR($H33<>"Silver",BG33=0),0,IF(BG33=MIN(IF(($H$8:$H$5000="Silver")*($D$8:$D$5000=$D33)*(BG$8:BG$5000>0),BG$8:BG$5000)),0,BG33)) -> 0 | DW33: =IF(OR($H33<>"Silver",BH33=0),0,IF(BH33=MIN(IF(($H$8:$H$5000="Silver")*($D$8:$D$5000=$D33)*(BH$8:BH$5000>0),BH$8:BH$5000)),0,BH33)) -> 0 | DX33: =IF(OR($H33<>"Silver",BI33=0),0,IF(BI33=MIN(IF(($H$8:$H$5000="Silver")*($D$8:$D$5000=$D33)*(BI$8:BI$5000>0),BI$8:BI$5000)),0,BI33)) -> 0 | DY33: =IF(OR($H33<>"Silver",BJ33=0),0,IF(BJ33=MIN(IF(($H$8:$H$5000="Silver")*($D$8:$D$5000=$D33)*(BJ$8:BJ$5000>0),BJ$8:BJ$5000)),0,BJ33)) -> 0 | DZ33: =IF(OR($H33<>"Silver",BK33=0),0,IF(BK33=MIN(IF(($H$8:$H$5000="Silver")*($D$8:$D$5000=$D33)*(BK$8:BK$5000>0),BK$8:BK$5000)),0,BK33)) -> 0 | EA33: =IF(OR($H33<>"Silver",BL33=0),0,IF(BL33=MIN(IF(($H$8:$H$5000="Silver")*($D$8:$D$5000=$D33)*(BL$8:BL$5000>0),BL$8:BL$5000)),0,BL33)) -> 0 | EB33: =IF(OR($H33<>"Silver",BM33=0),0,IF(BM33=MIN(IF(($H$8:$H$5000="Silver")*($D$8:$D$5000=$D33)*(BM$8:BM$5000>0),BM$8:BM$5000)),0,BM33)) -> 0 | EC33: =IF(OR($H33<>"Silver",BN33=0),0,IF(BN33=MIN(IF(($H$8:$H$5000="Silver")*($D$8:$D$5000=$D33)*(BN$8:BN$5000>0),BN$8:BN$5000)),0,BN33)) -> 0 | ED33: =IF(OR($H33<>"Silver",BO33=0),0,IF(BO33=MIN(IF(($H$8:$H$5000="Silver")*($D$8:$D$5000=$D33)*(BO$8:BO$5000>0),BO$8:BO$5000)),0,BO33)) -> 0 | EE33: =IF(OR($H33<>"Silver",BP33=0),0,IF(BP33=MIN(IF(($H$8:$H$5000="Silver")*($D$8:$D$5000=$D33)*(BP$8:BP$5000>0),BP$8:BP$5000)),0,BP33)) -> 0 | EF33: =IF(OR($H33<>"Silver",BQ33=0),0,IF(BQ33=MIN(IF(($H$8:$H$5000="Silver")*($D$8:$D$5000=$D33)*(BQ$8:BQ$5000>0),BQ$8:BQ$5000)),0,BQ33)) -> 0 | EG33: =IF(OR($H33<>"Silver",BR33=0),0,IF(BR33=MIN(IF(($H$8:$H$5000="Silver")*($D$8:$D$5000=$D33)*(BR$8:BR$5000>0),BR$8:BR$5000)),0,BR33)) -> 0 | EH33: =IF(OR($H33<>"Silver",BS33=0),0,IF(BS33=MIN(IF(($H$8:$H$5000="Silver")*($D$8:$D$5000=$D33)*(BS$8:BS$5000>0),BS$8:BS$5000)),0,BS33)) -> 0 | EI33: =IF(OR($H33<>"Silver",BT33=0),0,IF(BT33=MIN(IF(($H$8:$H$5000="Silver")*($D$8:$D$5000=$D33)*(BT$8:BT$5000>0),BT$8:BT$5000)),0,BT33)) -> 0 | EJ33: =IF(OR($H33<>"Silver",BU33=0),0,IF(BU33=MIN(IF(($H$8:$H$5000="Silver")*($D$8:$D$5000=$D33)*(BU$8:BU$5000>0),BU$8:BU$5000)),0,BU33)) -> 0 | EK33: =IF(OR($H33<>"Silver",BV33=0),0,IF(BV33=MIN(IF(($H$8:$H$5000="Silver")*($D$8:$D$5000=$D33)*(BV$8:BV$5000>0),BV$8:BV$5000)),0,BV33)) -> 0 | EL33: =IF(OR($H33<>"Silver",BW33=0),0,IF(BW33=MIN(IF(($H$8:$H$5000="Silver")*($D$8:$D$5000=$D33)*(BW$8:BW$5000>0),BW$8:BW$5000)),0,BW33)) -> 0 | EM33: =IF(OR($H33<>"Silver",BX33=0),0,IF(BX33=MIN(IF(($H$8:$H$5000="Silver")*($D$8:$D$5000=$D33)*(BX$8:BX$5000>0),BX$8:BX$5000)),0,BX33)) -> 0 | EN33: =IF(OR($H33<>"Silver",BY33=0),0,IF(BY33=MIN(IF(($H$8:$H$5000="Silver")*($D$8:$D$5000=$D33)*(BY$8:BY$5000>0),BY$8:BY$5000)),0,BY33)) -> 0
B34: UPMC | C34: UPMC Health Options, Inc. | D34: Individual | E34: 16322PA0050033 | F34: UPMC Advantage Gold $750/$10 - Select Network | G34: EPO | H34: Gold | I34: On/Off | J34: Armstrong, Fayette, Greene, Lawrence, Indiana | K34: 0 | L34: 0 | M34: 0 | N34: 0 | O34: 0 | P34: 0 | Q34: 0 | R34: 0 | S34: 0 | T34: 0 | U34: 0 | V34: 0 | W34: 0 | X34: 0 | Y34: 0 | Z34: 0 | AA34: 0 | AB34: 0 | AC34: 0 | AD34: 0 | AE34: 0 | AF34: 0 | AG34: 0 | AH34: 0 | AI34: 240.92 | AJ34: 0 | AK34: 240.92 | AL34: 240.92 | AM34: 0 | AN34: 0 | AO34: 0 | AP34: 0 | AQ34: 240.92 | AR34: 240.92 | AS34: 0 | AT34: 0 | AU34: 0 | AV34: 0 | AW34: 0 | AX34: 0 | AY34: 0 | AZ34: 0 | BA34: 0 | BB34: 0 | BC34: 0 | BD34: 0 | BE34: 0 | BF34: 0 | BG34: 0 | BH34: 0 | BI34: 0 | BJ34: 0 | BK34: 0 | BL34: 0 | BM34: 0 | BN34: 0 | BO34: 0 | BP34: 0 | BQ34: 0 | BR34: 0 | BS34: 0 | BT34: 0 | BU34: 0 | BV34: 0 | BW34: 0 | BX34: 0 | BY34: 0 | BZ34: =IF(OR($H34<>"Silver",K34=0),0,IF(K34=MIN(IF(($H$8:$H$5000="Silver")*($D$8:$D$5000=$D34)*(K$8:K$5000>0),K$8:K$5000)),0,K34)) -> 0 | CA34: =IF(OR($H34<>"Silver",L34=0),0,IF(L34=MIN(IF(($H$8:$H$5000="Silver")*($D$8:$D$5000=$D34)*(L$8:L$5000>0),L$8:L$5000)),0,L34)) -> 0 | CB34: =IF(OR($H34<>"Silver",M34=0),0,IF(M34=MIN(IF(($H$8:$H$5000="Silver")*($D$8:$D$5000=$D34)*(M$8:M$5000>0),M$8:M$5000)),0,M34)) -> 0 | CC34: =IF(OR($H34<>"Silver",N34=0),0,IF(N34=MIN(IF(($H$8:$H$5000="Silver")*($D$8:$D$5000=$D34)*(N$8:N$5000>0),N$8:N$5000)),0,N34)) -> 0 | CD34: =IF(OR($H34<>"Silver",O34=0),0,IF(O34=MIN(IF(($H$8:$H$5000="Silver")*($D$8:$D$5000=$D34)*(O$8:O$5000>0),O$8:O$5000)),0,O34)) -> 0 | CE34: =IF(OR($H34<>"Silver",P34=0),0,IF(P34=MIN(IF(($H$8:$H$5000="Silver")*($D$8:$D$5000=$D34)*(P$8:P$5000>0),P$8:P$5000)),0,P34)) -> 0 | CF34: =IF(OR($H34<>"Silver",Q34=0),0,IF(Q34=MIN(IF(($H$8:$H$5000="Silver")*($D$8:$D$5000=$D34)*(Q$8:Q$5000>0),Q$8:Q$5000)),0,Q34)) -> 0 | CG34: =IF(OR($H34<>"Silver",R34=0),0,IF(R34=MIN(IF(($H$8:$H$5000="Silver")*($D$8:$D$5000=$D34)*(R$8:R$5000>0),R$8:R$5000)),0,R34)) -> 0 | CH34: =IF(OR($H34<>"Silver",S34=0),0,IF(S34=MIN(IF(($H$8:$H$5000="Silver")*($D$8:$D$5000=$D34)*(S$8:S$5000>0),S$8:S$5000)),0,S34)) -> 0 | CI34: =IF(OR($H34<>"Silver",T34=0),0,IF(T34=MIN(IF(($H$8:$H$5000="Silver")*($D$8:$D$5000=$D34)*(T$8:T$5000>0),T$8:T$5000)),0,T34)) -> 0 | CJ34: =IF(OR($H34<>"Silver",U34=0),0,IF(U34=MIN(IF(($H$8:$H$5000="Silver")*($D$8:$D$5000=$D34)*(U$8:U$5000>0),U$8:U$5000)),0,U34)) -> 0 | CK34: =IF(OR($H34<>"Silver",V34=0),0,IF(V34=MIN(IF(($H$8:$H$5000="Silver")*($D$8:$D$5000=$D34)*(V$8:V$5000>0),V$8:V$5000)),0,V34)) -> 0 | CL34: =IF(OR($H34<>"Silver",W34=0),0,IF(W34=MIN(IF(($H$8:$H$5000="Silver")*($D$8:$D$5000=$D34)*(W$8:W$5000>0),W$8:W$5000)),0,W34)) -> 0 | CM34: =IF(OR($H34<>"Silver",X34=0),0,IF(X34=MIN(IF(($H$8:$H$5000="Silver")*($D$8:$D$5000=$D34)*(X$8:X$5000>0),X$8:X$5000)),0,X34)) -> 0 | CN34: =IF(OR($H34<>"Silver",Y34=0),0,IF(Y34=MIN(IF(($H$8:$H$5000="Silver")*($D$8:$D$5000=$D34)*(Y$8:Y$5000>0),Y$8:Y$5000)),0,Y34)) -> 0 | CO34: =IF(OR($H34<>"Silver",Z34=0),0,IF(Z34=MIN(IF(($H$8:$H$5000="Silver")*($D$8:$D$5000=$D34)*(Z$8:Z$5000>0),Z$8:Z$5000)),0,Z34)) -> 0 | CP34: =IF(OR($H34<>"Silver",AA34=0),0,IF(AA34=MIN(IF(($H$8:$H$5000="Silver")*($D$8:$D$5000=$D34)*(AA$8:AA$5000>0),AA$8:AA$5000)),0,AA34)) -> 0 | CQ34: =IF(OR($H34<>"Silver",AB34=0),0,IF(AB34=MIN(IF(($H$8:$H$5000="Silver")*($D$8:$D$5000=$D34)*(AB$8:AB$5000>0),AB$8:AB$5000)),0,AB34)) -> 0 | CR34: =IF(OR($H34<>"Silver",AC34=0),0,IF(AC34=MIN(IF(($H$8:$H$5000="Silver")*($D$8:$D$5000=$D34)*(AC$8:AC$5000>0),AC$8:AC$5000)),0,AC34)) -> 0 | CS34: =IF(OR($H34<>"Silver",AD34=0),0,IF(AD34=MIN(IF(($H$8:$H$5000="Silver")*($D$8:$D$5000=$D34)*(AD$8:AD$5000>0),AD$8:AD$5000)),0,AD34)) -> 0 | CT34: =IF(OR($H34<>"Silver",AE34=0),0,IF(AE34=MIN(IF(($H$8:$H$5000="Silver")*($D$8:$D$5000=$D34)*(AE$8:AE$5000>0),AE$8:AE$5000)),0,AE34)) -> 0 | CU34: =IF(OR($H34<>"Silver",AF34=0),0,IF(AF34=MIN(IF(($H$8:$H$5000="Silver")*($D$8:$D$5000=$D34)*(AF$8:AF$5000>0),AF$8:AF$5000)),0,AF34)) -> 0 | CV34: =IF(OR($H34<>"Silver",AG34=0),0,IF(AG34=MIN(IF(($H$8:$H$5000="Silver")*($D$8:$D$5000=$D34)*(AG$8:AG$5000>0),AG$8:AG$5000)),0,AG34)) -> 0 | CW34: =IF(OR($H34<>"Silver",AH34=0),0,IF(AH34=MIN(IF(($H$8:$H$5000="Silver")*($D$8:$D$5000=$D34)*(AH$8:AH$5000>0),AH$8:AH$5000)),0,AH34)) -> 0 | CX34: =IF(OR($H34<>"Silver",AI34=0),0,IF(AI34=MIN(IF(($H$8:$H$5000="Silver")*($D$8:$D$5000=$D34)*(AI$8:AI$5000>0),AI$8:AI$5000)),0,AI34)) -> 0 | CY34: =IF(OR($H34<>"Silver",AJ34=0),0,IF(AJ34=MIN(IF(($H$8:$H$5000="Silver")*($D$8:$D$5000=$D34)*(AJ$8:AJ$5000>0),AJ$8:AJ$5000)),0,AJ34)) -> 0 | CZ34: =IF(OR($H34<>"Silver",AK34=0),0,IF(AK34=MIN(IF(($H$8:$H$5000="Silver")*($D$8:$D$5000=$D34)*(AK$8:AK$5000>0),AK$8:AK$5000)),0,AK34)) -> 0 | DA34: =IF(OR($H34<>"Silver",AL34=0),0,IF(AL34=MIN(IF(($H$8:$H$5000="Silver")*($D$8:$D$5000=$D34)*(AL$8:AL$5000>0),AL$8:AL$5000)),0,AL34)) -> 0 | DB34: =IF(OR($H34<>"Silver",AM34=0),0,IF(AM34=MIN(IF(($H$8:$H$5000="Silver")*($D$8:$D$5000=$D34)*(AM$8:AM$5000>0),AM$8:AM$5000)),0,AM34)) -> 0 | DC34: =IF(OR($H34<>"Silver",AN34=0),0,IF(AN34=MIN(IF(($H$8:$H$5000="Silver")*($D$8:$D$5000=$D34)*(AN$8:AN$5000>0),AN$8:AN$5000)),0,AN34)) -> 0 | DD34: =IF(OR($H34<>"Silver",AO34=0),0,IF(AO34=MIN(IF(($H$8:$H$5000="Silver")*($D$8:$D$5000=$D34)*(AO$8:AO$5000>0),AO$8:AO$5000)),0,AO34)) -> 0 | DE34: =IF(OR($H34<>"Silver",AP34=0),0,IF(AP34=MIN(IF(($H$8:$H$5000="Silver")*($D$8:$D$5000=$D34)*(AP$8:AP$5000>0),AP$8:AP$5000)),0,AP34)) -> 0 | DF34: =IF(OR($H34<>"Silver",AQ34=0),0,IF(AQ34=MIN(IF(($H$8:$H$5000="Silver")*($D$8:$D$5000=$D34)*(AQ$8:AQ$5000>0),AQ$8:AQ$5000)),0,AQ34)) -> 0 | DG34: =IF(OR($H34<>"Silver",AR34=0),0,IF(AR34=MIN(IF(($H$8:$H$5000="Silver")*($D$8:$D$5000=$D34)*(AR$8:AR$5000>0),AR$8:AR$5000)),0,AR34)) -> 0 | DH34: =IF(OR($H34<>"Silver",AS34=0),0,IF(AS34=MIN(IF(($H$8:$H$5000="Silver")*($D$8:$D$5000=$D34)*(AS$8:AS$5000>0),AS$8:AS$5000)),0,AS34)) -> 0 | DI34: =IF(OR($H34<>"Silver",AT34=0),0,IF(AT34=MIN(IF(($H$8:$H$5000="Silver")*($D$8:$D$5000=$D34)*(AT$8:AT$5000>0),AT$8:AT$5000)),0,AT34)) -> 0 | DJ34: =IF(OR($H34<>"Silver",AU34=0),0,IF(AU34=MIN(IF(($H$8:$H$5000="Silver")*($D$8:$D$5000=$D34)*(AU$8:AU$5000>0),AU$8:AU$5000)),0,AU34)) -> 0 | DK34: =IF(OR($H34<>"Silver",AV34=0),0,IF(AV34=MIN(IF(($H$8:$H$5000="Silver")*($D$8:$D$5000=$D34)*(AV$8:AV$5000>0),AV$8:AV$5000)),0,AV34)) -> 0 | DL34: =IF(OR($H34<>"Silver",AW34=0),0,IF(AW34=MIN(IF(($H$8:$H$5000="Silver")*($D$8:$D$5000=$D34)*(AW$8:AW$5000>0),AW$8:AW$5000)),0,AW34)) -> 0 | DM34: =IF(OR($H34<>"Silver",AX34=0),0,IF(AX34=MIN(IF(($H$8:$H$5000="Silver")*($D$8:$D$5000=$D34)*(AX$8:AX$5000>0),AX$8:AX$5000)),0,AX34)) -> 0 | DN34: =IF(OR($H34<>"Silver",AY34=0),0,IF(AY34=MIN(IF(($H$8:$H$5000="Silver")*($D$8:$D$5000=$D34)*(AY$8:AY$5000>0),AY$8:AY$5000)),0,AY34)) -> 0 | DO34: =IF(OR($H34<>"Silver",AZ34=0),0,IF(AZ34=MIN(IF(($H$8:$H$5000="Silver")*($D$8:$D$5000=$D34)*(AZ$8:AZ$5000>0),AZ$8:AZ$5000)),0,AZ34)) -> 0 | DP34: =IF(OR($H34<>"Silver",BA34=0),0,IF(BA34=MIN(IF(($H$8:$H$5000="Silver")*($D$8:$D$5000=$D34)*(BA$8:BA$5000>0),BA$8:BA$5000)),0,BA34)) -> 0 | DQ34: =IF(OR($H34<>"Silver",BB34=0),0,IF(BB34=MIN(IF(($H$8:$H$5000="Silver")*($D$8:$D$5000=$D34)*(BB$8:BB$5000>0),BB$8:BB$5000)),0,BB34)) -> 0 | DR34: =IF(OR($H34<>"Silver",BC34=0),0,IF(BC34=MIN(IF(($H$8:$H$5000="Silver")*($D$8:$D$5000=$D34)*(BC$8:BC$5000>0),BC$8:BC$5000)),0,BC34)) -> 0 | DS34: =IF(OR($H34<>"Silver",BD34=0),0,IF(BD34=MIN(IF(($H$8:$H$5000="Silver")*($D$8:$D$5000=$D34)*(BD$8:BD$5000>0),BD$8:BD$5000)),0,BD34)) -> 0 | DT34: =IF(OR($H34<>"Silver",BE34=0),0,IF(BE34=MIN(IF(($H$8:$H$5000="Silver")*($D$8:$D$5000=$D34)*(BE$8:BE$5000>0),BE$8:BE$5000)),0,BE34)) -> 0 | DU34: =IF(OR($H34<>"Silver",BF34=0),0,IF(BF34=MIN(IF(($H$8:$H$5000="Silver")*($D$8:$D$5000=$D34)*(BF$8:BF$5000>0),BF$8:BF$5000)),0,BF34)) -> 0 | DV34: =IF(OR($H34<>"Silver",BG34=0),0,IF(BG34=MIN(IF(($H$8:$H$5000="Silver")*($D$8:$D$5000=$D34)*(BG$8:BG$5000>0),BG$8:BG$5000)),0,BG34)) -> 0 | DW34: =IF(OR($H34<>"Silver",BH34=0),0,IF(BH34=MIN(IF(($H$8:$H$5000="Silver")*($D$8:$D$5000=$D34)*(BH$8:BH$5000>0),BH$8:BH$5000)),0,BH34)) -> 0 | DX34: =IF(OR($H34<>"Silver",BI34=0),0,IF(BI34=MIN(IF(($H$8:$H$5000="Silver")*($D$8:$D$5000=$D34)*(BI$8:BI$5000>0),BI$8:BI$5000)),0,BI34)) -> 0 | DY34: =IF(OR($H34<>"Silver",BJ34=0),0,IF(BJ34=MIN(IF(($H$8:$H$5000="Silver")*($D$8:$D$5000=$D34)*(BJ$8:BJ$5000>0),BJ$8:BJ$5000)),0,BJ34)) -> 0 | DZ34: =IF(OR($H34<>"Silver",BK34=0),0,IF(BK34=MIN(IF(($H$8:$H$5000="Silver")*($D$8:$D$5000=$D34)*(BK$8:BK$5000>0),BK$8:BK$5000)),0,BK34)) -> 0 | EA34: =IF(OR($H34<>"Silver",BL34=0),0,IF(BL34=MIN(IF(($H$8:$H$5000="Silver")*($D$8:$D$5000=$D34)*(BL$8:BL$5000>0),BL$8:BL$5000)),0,BL34)) -> 0 | EB34: =IF(OR($H34<>"Silver",BM34=0),0,IF(BM34=MIN(IF(($H$8:$H$5000="Silver")*($D$8:$D$5000=$D34)*(BM$8:BM$5000>0),BM$8:BM$5000)),0,BM34)) -> 0 | EC34: =IF(OR($H34<>"Silver",BN34=0),0,IF(BN34=MIN(IF(($H$8:$H$5000="Silver")*($D$8:$D$5000=$D34)*(BN$8:BN$5000>0),BN$8:BN$5000)),0,BN34)) -> 0 | ED34: =IF(OR($H34<>"Silver",BO34=0),0,IF(BO34=MIN(IF(($H$8:$H$5000="Silver")*($D$8:$D$5000=$D34)*(BO$8:BO$5000>0),BO$8:BO$5000)),0,BO34)) -> 0 | EE34: =IF(OR($H34<>"Silver",BP34=0),0,IF(BP34=MIN(IF(($H$8:$H$5000="Silver")*($D$8:$D$5000=$D34)*(BP$8:BP$5000>0),BP$8:BP$5000)),0,BP34)) -> 0 | EF34: =IF(OR($H34<>"Silver",BQ34=0),0,IF(BQ34=MIN(IF(($H$8:$H$5000="Silver")*($D$8:$D$5000=$D34)*(BQ$8:BQ$5000>0),BQ$8:BQ$5000)),0,BQ34)) -> 0 | EG34: =IF(OR($H34<>"Silver",BR34=0),0,IF(BR34=MIN(IF(($H$8:$H$5000="Silver")*($D$8:$D$5000=$D34)*(BR$8:BR$5000>0),BR$8:BR$5000)),0,BR34)) -> 0 | EH34: =IF(OR($H34<>"Silver",BS34=0),0,IF(BS34=MIN(IF(($H$8:$H$5000="Silver")*($D$8:$D$5000=$D34)*(BS$8:BS$5000>0),BS$8:BS$5000)),0,BS34)) -> 0 | EI34: =IF(OR($H34<>"Silver",BT34=0),0,IF(BT34=MIN(IF(($H$8:$H$5000="Silver")*($D$8:$D$5000=$D34)*(BT$8:BT$5000>0),BT$8:BT$5000)),0,BT34)) -> 0 | EJ34: =IF(OR($H34<>"Silver",BU34=0),0,IF(BU34=MIN(IF(($H$8:$H$5000="Silver")*($D$8:$D$5000=$D34)*(BU$8:BU$5000>0),BU$8:BU$5000)),0,BU34)) -> 0 | EK34: =IF(OR($H34<>"Silver",BV34=0),0,IF(BV34=MIN(IF(($H$8:$H$5000="Silver")*($D$8:$D$5000=$D34)*(BV$8:BV$5000>0),BV$8:BV$5000)),0,BV34)) -> 0 | EL34: =IF(OR($H34<>"Silver",BW34=0),0,IF(BW34=MIN(IF(($H$8:$H$5000="Silver")*($D$8:$D$5000=$D34)*(BW$8:BW$5000>0),BW$8:BW$5000)),0,BW34)) -> 0 | EM34: =IF(OR($H34<>"Silver",BX34=0),0,IF(BX34=MIN(IF(($H$8:$H$5000="Silver")*($D$8:$D$5000=$D34)*(BX$8:BX$5000>0),BX$8:BX$5000)),0,BX34)) -> 0 | EN34: =IF(OR($H34<>"Silver",BY34=0),0,IF(BY34=MIN(IF(($H$8:$H$5000="Silver")*($D$8:$D$5000=$D34)*(BY$8:BY$5000>0),BY$8:BY$5000)),0,BY34)) -> 0
